Workbook

Sheet Notes
A1: AM-FM.xlsm; Traders Tip spreadsheet created for the May 2021 Issue
A2: Coded beginning 2021-March-06 by Ronald McAllister (rpmac_xltt@sprynet.com)
A4: This Workbook demonstrates an EXCEL version of the ideas presented
A5: by John F. Ehlers in an article titled "A Technical Description Of Market Data For Traders"
A6: which originally appeared in the May 2021 issue of
A7: "Technical Analysis of Stocks and Commodities" magazine.
A9: * * * * * * * * * * * * * * * *
A11: Development Notes:
A13: All figures used in the article use the symbol SPY.
A14: Not replicated here: Figure 1, the MESA heat map uses a date range of 4/24/2019 thru 11/9/2020.
A15: Figures 2-5 use a date range of 5/1/2018 thru 11/09/2020.
A17: For the VBA curious:
A18: Refined and compartmentalized the routines in the Windowshade VBA module to reduce duplication of code.
A19: What I call window shading is the mechanism that changes the one or two indicator charts displayed
A20: in the space between the price and volume charts when a user selects one of the indicator display buttons,
A22: New for May 2021
A23: Upgraded the data download logic to do a better job of catching the common data download errors and provide a more graceful resolution.
A24: This includes better user notification of the nature of the error and some user control over how the error should be handled.
A25: User notification comes in teh form of a MSGbox display that includes the (sometimes cryptic) description of the error and offers the user three options.
A27: Abort - If I could customize the title, I would rename this button to "Debug"
A28: This choice places you in Debug mode at the failing VBA statement.
A29: Unless you are feeling good about your VBA (and Network) debugging skills, this is probably not for you.
A31: Retry
A32: Lets the code retry the failed download request.
A33: This is a reasonable option if the download request timed out (similar to video buffering) or your network connection has dropped out..
A34: Probably a good idea to make sure your internet connection is alive and well before you select Retry.
A36: Ignore
A37: Lets the code fall thru to a (hopefully) graceful error completion with the error indicated at the top of the InputPriceData tab
A39: New for August 2020
A40: Restructured my Symbol-Not-Found detection and now stop further processing in the not found case
A42: New with the May 2020 version of my T-Tips template: VBA to implement a "Perpetual" U.S. Markets Closed Holiday Calendar.
A44: Why we need one: The Yahoo Finance recently has begun having occasional filtration problems where bars for U.S. Market Closed Holidays
A45: make their way onto the Historical Data web page and into the Historical Data download.
A47: While testing this May 2020 spreadsheet with different symbols, I found that I sometimes had bars with the text "null" in the price fields.
A48: My code always translates the "null" text price values to zeros.
A49: The resulting zeros cause real problems with indicator computations and the amount of blank space below price candles on the price chart.
A51: "null" price bars can be valid for very lightly traded penny sheet symbols which may not trade every day the markets are open.
A52: But is definitely not normal for symbols on the big boards.
A54: A closer look determined that these "bars" were for holiday dates when the US markets are normally closed.
A55: I found it interesting that some times the next download for the same symbol would not contain any of these "holiday" bars. Weird!
A57: My approach here was to write code to determine if the DATE on a null price values bar falls on one of the 9 market closed U.S. Holidays.
A58: If the bar date corresponds to one of these market closed holidays, I drop the bar before it reaches the InputPriceData tab.
A59: If the date is not a holiday, I let the bar through with the resulting zero values.
A61: No messy tables to update over the years as there are good solid rules that can be used in VBA or any other programming language to determine
A62: the dates for U.S. Market Closed Holidays for any given calendar year.
A64: This workbook contains and uses VBA macros and may take advantage of user defined VBA Class structures.
A65: Input Data:
A66: The data in this workbook is sorted date-descending (most recent date at the top). All cell formulas and
A67: VBA routines are built assuming this date sequence.
A69: ERROR 9 (already fixed in this spreadsheet)
A70: On or about Jan 29, 2020 Yahoo Finance changed the format of the split factor expression used their historical data downloads.
A71: The Split expression went from using "/" as in "New Share Number/Old Share Number",
A72: to using ":" as in "New Share Number:Old Share Number".
A73: This caused the then current version of my VBA code to fail with a "Runtime Error '9': subscript out of range".
A75: Fix for this ERROR 9
A76: For T-Tip spreadsheets from September 2018 up to present:
A77: Selecting the Debug option takes one into the VBA at the code line which causes the failure:
A78: CellArray(C_A_RowNdx, C_A_ColNdx + 1) = SplitFactors(1)
A79: Two lines above the failing VBA line is a line that reads:
A80: SplitFactors = Split(CsvColumns(CsvColNdx), "/")
A81: Change the / to a :
A82: The corrected line should now read
A83: SplitFactors = Split(CsvColumns(CsvColNdx), ":")
A85: If you are fixing several spreadsheets and do not want to use the failure to find the fix location,
A86: you can use VBA’s FIND dialog (Ctrl F) to look for the substring
A87: SplitFactors =
A88: Do include one space and the equal sign in your FIND string
A89: Select the "Current Project" option
A90: There should only be one instance.
A92: T-Tip spreadsheets prior to the September 2018 spreadsheet do not hard fail.
A94: They just get weird results in the split columns of the Input Price Data tab (soft fail).
A95: These older spreadsheets used different data retrieval and formatting logic.
A97: To fix these older spreadsheets:
A98: In the VBA editor, use find (CTRL-F).
A99: Select the "Current Project" option, and search for the following:
A100: OtherChar:="/"
A101: You are looking for a hit in a line reading:
A102: Other:=True, OtherChar:="/", _
A103: This line is part of a multiline block of code starting with a line that reads:
A104: SplitRange.Offset(0, 1).Resize(SpRows, 1).TextToColumns
A105: Change the / to a : so that the line reads
A106: Other:=True, OtherChar:=":", _
A109: 2019-04-04 Finally came up with a mechanism to align the left location and overall length of the cursor scroll bar so that the left most and right most
A110: scroll bar thumb positions visually align reasonably well with the left and right ends of the price chart horizontal axis.
A111: Makes it a little easier to visually align the Thumb and thus the cursor with points of interest on the charts.
A113: Older:
B114: My sincere apologies to our Macintosh based readers: Neither MSXML nor WinHttpRequest are supported in your environment. So as it stands this version of the spreadsheet will not work for you.
B115: See "Why this approach does not work for Macintosh" below.
B116: I am investigating cURL as a non-Querytable based approach for the Macintosh environment.
A118: The new Yahoo Finance history download interface has changed rather radically. The biggest hurdle being a pseudo-security requirement of adding a
B119: crumb character string to any URL requesting any type of history download. That crumb must match up (by way of some sort of hash algorithm) with
B120: the Yahoo Finance cookie that must also be sent with any request to the new Yahoo History down load interface.
B122: A crumb value is returned, buried in the HTML for any of what I call the "entry level" Yahoo Finance web pages (no crumb security requirement for entry level pages).
B123: A crumb may come with other Yahoo Finance pages. A crumb may even accompany some of the secured pages as well. I have not checked.
B125: Entry level pages are the top level pages of the various Yahoo Finance dialogs and include: Quote Lookup, Stock Summary Quote, and any of the pages
B126: with links in the horizontal row with the "Summary" link on the quote summary page such as Options, Historical Data, and the rest.
B128: To date I have found no way to get at this crumb value using any native EXCEL capabilities.
B130: So this crumb requirement effectively shuts out any solution that attempts to exclusively use built-in facilities of EXCEL, which is to say a purely Querytables solution.
B132: The approach built for this Traders Tip spreadsheet uses WINHTTP calls to Load the InputPriceData worksheet.
B134: First I call to get the HTML text for the Yahoo Summary Quote page using the requested symbol. From this HTML text I extract the full company name,
B135: the market it trades, the market status and time stamp, and finally the associated crumb string. There is a bunch of other useful bits buried in this HTML
B136: text that do not necessarily appear on the web page your browser presents. Perhaps some day I will go after and build a worksheet with these other bits.
B138: Next I add the freshly extracted crumb string to the URLs I use in three separate WINHTTP calls to retrieve Price history, Split history, and Dividend history respectively.
B140: From there VBA code proceeds as in the past to fill in the cell formulas and formatting that make the "prettied up" InputPriceData sheet.
A142: Why this approach works for Windows:
B143: WINHTTP maintains a temporary computer memory cache where cookies are maintained for as long as the WINHTTP object is instantiated.
B144: WINHTTP updates this cache any time a "set cookie" header accompanies a web response.
B145: Subsequent WINHTTP calls automatically search this cache for cookies and add any "appropriate" cookies to the headers
B146: of any web requests that get sent out.
B147: This cookie handling automation means that even if the response to our WINHTTP call for the Summary web page includes a new version of
B148: the Yahoo Finance cookie, the imbedded Crumb value will always match the cookie newly installed in the cache!
A151: Why this approach does not work for Macintosh:
B152: For what it is worth, the Macintosh version of the MS Office suite of products do in fact maintain a special, shared amongst themselves only, cookie cache.
B153: They automate cookie handling into and from this cache JUST for the Office products and any Querytable activity they might originate.
B155: This cache is not tied to, nor shared with, any browser that might be installed on the MAC. And I have not found anything with HTTP capabilities similar to
B156: MSXML that can work with that Office product cookie cache.
B158: When working in the MAC EXCEL environment, I have not yet become conversant with a Mac based WINHTTP like capability.
B159: So l currently have no mechanism to replicate the non-Querytable data retrieval process I am using in Windows environments.
B160: A software product called CURL has been suggested as providing this capability in the MAC environment.
B161: A version of CURL is available for the Windows So some day I may explore its capabilities and how to access those capabilities from VBA.
A163: Calculation and Chart Worksheet Usage Comments:
C164: In General, Items in Bolded BLUE are items you may freely change to play what-if games.
C165: Be sure to have a backup copy of the spreadsheet before you alter anything else.
A167: Features carried forward from the June 2016 version of my T-Tips Template
A168: Added a pair of buttons near cell F12 that will allow the user to step the charting window forward or backward one bar for each click.
A169: I find this to be a good way to test my understanding of the author's ideas as I step through the evolution of the price behavior and the indicators.
B171: First: In the "Help! I would like to plot data" area.
B172: Added button to resolve #NA problems by locating the bar in the input data with a slightly more recent date than what the user actually requested.
B173: I find this particularly useful when I have a general idea of where I want to be date wise. Now I can pick a set of dates "out of the air".
B174: If either (or both) of my date specifications fall between dates that are available in the price history,
B175: this button will resolve them to the dates of the nearest, slightly more recent input bars.
B176: I can then refine my data interval search as necessary from there.
B177: Really great when working with Weekly or Monthly studies!
C178: 2016Jun11 - added logic to the "I would like to chart.." button to detect #N/A values and terminate
C179: gracefully with a message instead of blowing up in the charting logic.
B181: Second: In the "Price Chart Windowing Controls" area. (A11 and A12)
B182: When retrieving data for a new symbol or when changing from daily to weekly or monthly data, there was the possibility that the
B183: residual settings in A11 and A12 would fall outside of the number bars available on the input data tab after the new data retrieval.
B184: In certain combinations, this could create a serious error in the chart sizing logic and crash the spreadsheet.
B185: I have taken this opportunity to update the validity checking logic used in the chart sizing macros
B186: to adjust these values as necessary so that they fall within the boundaries of the newly retrieved input data.
A187: Features carried forward from the October 2015 Traders Tips Template
B188: Improved automation: changes to any of the following will automatically initiate calculations appropriate to reflect a change.
C189: Changing either of cells A11 (pan) or A12 (zoom) will automatically initiate the same chart sizing macros that the manual
C190: "Set Chart" button uses.

Sheet InputPriceData
A1: SPDR S&P 500 ETF Trust (SPY) -NYSEArca (Daily)
M2: To retrieve data for symbols traded on non US Exchanges, | II2: 241.79
A3: Request Online Yahoo History for: | F3: Market State == > | G3: At close: | H3: 16:00:00 | I3: EST | M3: you will need to append the dot-suffix for the exchange to the symbol.
A4: Symbol | B4: SPY | D4: Valid | I4: =OFFSET(I4,-2,0,1,1) -> 0 | M4: The following links provide a description of how to use the exchange suffix
A5: From | B5: 1950-10-01 | D5: Data | M5: along with a list of suffixes for the major world exchanges. | AD5: Trailing 12 Div return (Cur Close)
A6: To | B6: =NOW() -> 2021-03-14T16:18:07.180 | D6: Types | E6: =VLOOKUP(B7,D7:E10,2,FALSE) -> d | M6: https://help.yahoo.com/kb/finance/SLN2310.html
A7: Data Type | B7: Daily | D7: Daily | E7: d | M7: And
A8: Crumb | B8: IBppMfe2GJ9 | D8: Weekly | E8: w | M8: https://www.stockmarketeye.com/users-guide/ticker-symbols-and-data-providers/data-providers.html
A9: Available Data | D9: Monthly | E9: m
A10: Bar Count: | B10: 7081 | M10: You may search on “exchange suffixes” for additional discussions | AD10: =OFFSET(AC15,1,0,1,1)/OFFSET(N15,1,0,1,1) -> 0.01444196315
A11: From: | B11: =IF(B10<=0,"",OFFSET(B15,B10,IF(HistReqDataType="v",1,0),1,1)) -> 1993-01-29 | W11: Trailing 12 Month Dividend Returns
A12: To: | B12: =IF(B10<=0,"",IF(HistReqDataType="v",OFFSET(B15,2,1,1,1),OFFSET(B15,1,0,1,1))) -> 2021-03-12 | W12: Raw Close price on Dividend date | X12: Div Year and Month | Y12: Looking for year ago Div Year and Month | Z12: Year ago Div Date we found | AA12: row offset to year ago div Date | AB12: Same month flag | AC12: Trailing 12 Div Total | AD12: Trailing 12 Div return
Q13: Split History | S13: 0 | T13: Running | U13: Dividend History
B14: Raw Data Values | H14: Adjusted | I14: Price Adjust | J14: Vol Adjust | K14: Adjusted Values | P14: Last | Q14: Effective | R14: Shares | T14: Vol Adjust | V14: 113
A15: RelRow | B15: Date | C15: Open | D15: High | E15: Low | F15: Close | G15: Volume | H15: Close | I15: Factor | J15: Factor | K15: Open | L15: High | M15: Low | N15: Close | O15: Volume | P15: Trade | Q15: 44270 | R15: New | S15: Old | T15: 1 | U15: Date | V15: $ / Share
A16: 1 | B16: 2021-03-12 | C16: 392.070007 | D16: 394.209991 | E16: 391.200012 | F16: 394.059998 | G16: 64608100 | H16: 394.059998 | I16: =IF(F16=0,1,H16/F16) -> 1 | J16: =INDEX(OFFSET($T$15,0,0,$S$13+1,1),MATCH(B16,OFFSET($Q$15,0,0,$S$13+1,1),-1)) -> 1 | K16: =ROUND($I16*C16,2) -> 392.07 | L16: =ROUND($I16*D16,2) -> 394.21 | M16: 391.2 | N16: 394.06 | O16: =G16*J16 -> 64608100 | U16: 2020-12-18 | V16: 1.58 | W16: =(INDEX(OFFSET($F$15,1,0,$B$10,1),MATCH(U16,OFFSET($B$15,1,0,$B$10,1),-1))) -> 369.179993 | X16: =YEAR(U16)&RIGHT("0"&MONTH(U16),2) -> 202012 | Y16: =YEAR(U16)-1&RIGHT("0"&MONTH(U16),2) -> 201912 | Z16: =OFFSET(U15,AA16,0,1,1) -> 2019-12-20 | AA16: =MATCH(Y16,OFFSET($X$15,A16,0,$V$14+1-A16,1),-1) -> 5 | AB16: =IF(OR(AND(YEAR(U16)=YEAR(Z16),MONTH(U16)=MONTH(Z16)),MONTH(U16)=MONTH(Z16)),1,0) -> 1 | AC16: =(V16+IF(AA16-AB16=0,0,IFERROR(SUM(OFFSET(V16,1,0,AA16-AB16-1,1)),0))) -> 5.691 | AD16: =AC16/(INDEX(OFFSET($F$15,1,0,$B$10,1),MATCH(U16,OFFSET($B$15,1,0,$B$10,1),-1))) -> 0.01541524489
A17: 2 | B17: 2021-03-11 | C17: 392.230011 | D17: 395.649994 | E17: 391.73999 | F17: 393.529999 | G17: 86027400 | H17: 393.529999 | I17: =IF(F17=0,1,H17/F17) -> 1 | J17: =INDEX(OFFSET($T$15,0,0,$S$13+1,1),MATCH(B17,OFFSET($Q$15,0,0,$S$13+1,1),-1)) -> 1 | K17: =ROUND($I17*C17,2) -> 392.23 | L17: =ROUND($I17*D17,2) -> 395.65 | M17: =ROUND($I17*E17,2) -> 391.74 | N17: =ROUND($I17*F17,2) -> 393.53 | O17: =G17*J17 -> 86027400 | U17: 2020-09-18 | V17: 1.339 | W17: =(INDEX(OFFSET($F$15,1,0,$B$10,1),MATCH(U17,OFFSET($B$15,1,0,$B$10,1),-1))) -> 330.649994 | X17: =YEAR(U17)&RIGHT("0"&MONTH(U17),2) -> 202009 | Y17: =YEAR(U17)-1&RIGHT("0"&MONTH(U17),2) -> 201909 | Z17: =OFFSET(U16,AA17,0,1,1) -> 2019-09-20 | AA17: =MATCH(Y17,OFFSET($X$15,A17,0,$V$14+1-A17,1),-1) -> 5 | AB17: =IF(OR(AND(YEAR(U17)=YEAR(Z17),MONTH(U17)=MONTH(Z17)),MONTH(U17)=MONTH(Z17)),1,0) -> 1 | AC17: =(V17+IF(AA17-AB17=0,0,IFERROR(SUM(OFFSET(V17,1,0,AA17-AB17-1,1)),0))) -> 5.681 | AD17: =AC17/(INDEX(OFFSET($F$15,1,0,$B$10,1),MATCH(U17,OFFSET($B$15,1,0,$B$10,1),-1))) -> 0.01718130985
A18: 3 | B18: 2021-03-10 | C18: 389.690002 | D18: 391.399994 | E18: 388.170013 | F18: 389.579987 | G18: 109660800 | H18: 389.579987 | I18: 1 | J18: 1 | K18: 389.69 | L18: 391.4 | M18: 388.17 | N18: 389.58 | O18: 109660800 | U18: 2020-06-19 | V18: 1.366 | W18: 308.640015 | X18: 202006 | Y18: 201906 | Z18: 2019-06-21 | AA18: 5 | AB18: 1 | AC18: 5.726 | AD18: 0.01855235783
A19: 4 | B19: 2021-03-09 | C19: 385.850006 | D19: 389.910004 | E19: 385.309998 | F19: 387.170013 | G19: 113457800 | H19: 387.170013 | I19: 1 | J19: 1 | K19: 385.85 | L19: 389.91 | M19: 385.31 | N19: 387.17 | O19: 113457800 | U19: 2020-03-20 | V19: 1.406 | W19: 228.800003 | X19: 202003 | Y19: 201903 | Z19: 2019-03-15 | AA19: 5 | AB19: 1 | AC19: 5.792 | AD19: 0.02531468498
A20: 5 | B20: 2021-03-08 | C20: 384.660004 | D20: 387.679993 | E20: 381.420013 | F20: 381.720001 | G20: 122957100 | H20: 381.720001 | I20: 1 | J20: 1 | K20: 384.66 | L20: 387.68 | M20: 381.42 | N20: 381.72 | O20: 122957100 | U20: 2019-12-20 | V20: 1.57 | W20: 320.730011 | X20: 201912 | Y20: 201812 | Z20: 2018-12-21 | AA20: 5 | AB20: 1 | AC20: 5.619 | AD20: 0.01751940825
A21: 6 | B21: 2021-03-05 | C21: 380.459991 | D21: 384.76001 | E21: 372.640015 | F21: 383.630005 | G21: 151959800 | H21: 383.630005 | I21: 1 | J21: 1 | K21: 380.46 | L21: 384.76 | M21: 372.64 | N21: 383.63 | O21: 151959800 | U21: 2019-09-20 | V21: 1.384 | W21: 298.279999 | X21: 201909 | Y21: 201809 | Z21: 2018-09-21 | AA21: 5 | AB21: 1 | AC21: 5.484 | AD21: 0.01838540974
A22: 7 | B22: 2021-03-04 | C22: 381.220001 | D22: 384 | E22: 371.880005 | F22: 376.700012 | G22: 182856500 | H22: 376.700012 | I22: 1 | J22: 1 | K22: 381.22 | L22: 384 | M22: 371.88 | N22: 376.7 | O22: 182856500 | U22: 2019-06-21 | V22: 1.432 | W22: 294 | X22: 201906 | Y22: 201806 | Z22: 2018-06-15 | AA22: 5 | AB22: 1 | AC22: 5.423 | AD22: 0.01844557823
A23: 8 | B23: 2021-03-03 | C23: 385.790009 | D23: 386.829987 | E23: 381.309998 | F23: 381.420013 | G23: 119482700 | H23: 381.420013 | I23: 1 | J23: 1 | K23: 385.79 | L23: 386.83 | M23: 381.31 | N23: 381.42 | O23: 119482700 | U23: 2019-03-15 | V23: 1.233 | W23: 281.309998 | X23: 201903 | Y23: 201803 | Z23: 2018-03-16 | AA23: 5 | AB23: 1 | AC23: 5.237 | AD23: 0.01861647306
A24: 9 | B24: 2021-03-02 | C24: 389.820007 | D24: 390.070007 | E24: 386 | F24: 386.540009 | G24: 79389200 | H24: 386.540009 | I24: 1 | J24: 1 | K24: 389.82 | L24: 390.07 | M24: 386 | N24: 386.54 | O24: 79389200 | U24: 2018-12-21 | V24: 1.435 | W24: 240.699997 | X24: 201812 | Y24: 201712 | Z24: 2017-12-15 | AA24: 5 | AB24: 1 | AC24: 5.101 | AD24: 0.02119235589
A25: 10 | B25: 2021-03-01 | C25: 385.589996 | D25: 390.920013 | E25: 380.570007 | F25: 389.579987 | G25: 104945700 | H25: 389.579987 | I25: 1 | J25: 1 | K25: 385.59 | L25: 390.92 | M25: 380.57 | N25: 389.58 | O25: 104945700 | U25: 2018-09-21 | V25: 1.323 | W25: 291.98999 | X25: 201809 | Y25: 201709 | Z25: 2017-09-15 | AA25: 5 | AB25: 1 | AC25: 5.017 | AD25: 0.01718209587
A26: 11 | B26: 2021-02-26 | C26: 384.350006 | D26: 385.579987 | E26: 378.230011 | F26: 380.359985 | G26: 152534900 | H26: 380.359985 | I26: 1 | J26: 1 | K26: 384.35 | L26: 385.58 | M26: 378.23 | N26: 380.36 | O26: 152534900 | U26: 2018-06-15 | V26: 1.246 | W26: 277.130005 | X26: 201806 | Y26: 201706 | Z26: 2017-06-16 | AA26: 5 | AB26: 1 | AC26: 4.929 | AD26: 0.01778587634
A27: 12 | B27: 2021-02-25 | C27: 390.410004 | D27: 391.880005 | E27: 380.779999 | F27: 382.329987 | G27: 146670500 | H27: 382.329987 | I27: 1 | J27: 1 | K27: 390.41 | L27: 391.88 | M27: 380.78 | N27: 382.33 | O27: 146670500 | U27: 2018-03-16 | V27: 1.097 | W27: 274.200012 | X27: 201803 | Y27: 201703 | Z27: 2017-03-17 | AA27: 5 | AB27: 1 | AC27: 4.866 | AD27: 0.0177461699
A28: 13 | B28: 2021-02-24 | C28: 386.329987 | D28: 392.230011 | E28: 385.269989 | F28: 391.769989 | G28: 72433900 | H28: 391.769989 | I28: 1 | J28: 1 | K28: 386.33 | L28: 392.23 | M28: 385.27 | N28: 391.77 | O28: 72433900 | U28: 2017-12-15 | V28: 1.351 | W28: 266.51001 | X28: 201712 | Y28: 201612 | Z28: 2016-12-16 | AA28: 5 | AB28: 1 | AC28: 4.802 | AD28: 0.01801808495
A29: 14 | B29: 2021-02-23 | C29: 384.660004 | D29: 388.950012 | E29: 380.200012 | F29: 387.5 | G29: 107284100 | H29: 387.5 | I29: 1 | J29: 1 | K29: 384.66 | L29: 388.95 | M29: 380.2 | N29: 387.5 | O29: 107284100 | U29: 2017-09-15 | V29: 1.235 | W29: 249.190002 | X29: 201709 | Y29: 201609 | Z29: 2016-09-16 | AA29: 5 | AB29: 1 | AC29: 4.78 | AD29: 0.01918215001
A30: 15 | B30: 2021-02-22 | C30: 387.059998 | D30: 389.619995 | E30: 386.73999 | F30: 387.029999 | G30: 67414200 | H30: 387.029999 | I30: 1 | J30: 1 | K30: 387.06 | L30: 389.62 | M30: 386.74 | N30: 387.03 | O30: 67414200 | U30: 2017-06-16 | V30: 1.183 | W30: 242.639999 | X30: 201706 | Y30: 201606 | Z30: 2016-06-17 | AA30: 5 | AB30: 1 | AC30: 4.627 | AD30: 0.01906940331
A31: 16 | B31: 2021-02-19 | C31: 392.070007 | D31: 392.380005 | E31: 389.549988 | F31: 390.029999 | G31: 83241000 | H31: 390.029999 | I31: 1 | J31: 1 | K31: 392.07 | L31: 392.38 | M31: 389.55 | N31: 390.03 | O31: 83241000 | U31: 2017-03-17 | V31: 1.033 | W31: 237.029999 | X31: 201703 | Y31: 201603 | Z31: 2016-03-18 | AA31: 5 | AB31: 1 | AC31: 4.522 | AD31: 0.01907775395
A32: 17 | B32: 2021-02-18 | C32: 389.589996 | D32: 391.519989 | E32: 387.73999 | F32: 390.720001 | G32: 59712800 | H32: 390.720001 | I32: 1 | J32: 1 | K32: 389.59 | L32: 391.52 | M32: 387.74 | N32: 390.72 | O32: 59712800 | U32: 2016-12-16 | V32: 1.329 | W32: 225.039993 | X32: 201612 | Y32: 201512 | Z32: 2015-12-18 | AA32: 5 | AB32: 1 | AC32: 4.539 | AD32: 0.02016974823
A33: 18 | B33: 2021-02-17 | C33: 390.420013 | D33: 392.660004 | E33: 389.329987 | F33: 392.390015 | G33: 52290600 | H33: 392.390015 | I33: 1 | J33: 1 | K33: 390.42 | L33: 392.66 | M33: 389.33 | N33: 392.39 | O33: 52290600 | U33: 2016-09-16 | V33: 1.082 | W33: 213.369995 | X33: 201609 | Y33: 201509 | Z33: 2015-09-18 | AA33: 5 | AB33: 1 | AC33: 4.422 | AD33: 0.02072456345
A34: 19 | B34: 2021-02-16 | C34: 393.959991 | D34: 394.170013 | E34: 391.529999 | F34: 392.299988 | G34: 50972400 | H34: 392.299988 | I34: 1 | J34: 1 | K34: 393.96 | L34: 394.17 | M34: 391.53 | N34: 392.3 | O34: 50972400 | U34: 2016-06-17 | V34: 1.078 | W34: 206.520004 | X34: 201606 | Y34: 201506 | Z34: 2015-06-19 | AA34: 5 | AB34: 1 | AC34: 4.373 | AD34: 0.02117470422
A35: 20 | B35: 2021-02-12 | C35: 389.850006 | D35: 392.899994 | E35: 389.769989 | F35: 392.640015 | G35: 50505700 | H35: 392.640015 | I35: 1 | J35: 1 | K35: 389.85 | L35: 392.9 | M35: 389.77 | N35: 392.64 | O35: 50505700 | U35: 2016-03-18 | V35: 1.05 | W35: 204.380005 | X35: 201603 | Y35: 201503 | Z35: 2015-03-20 | AA35: 5 | AB35: 1 | AC35: 4.325 | AD35: 0.02116156128
A36: 21 | B36: 2021-02-11 | C36: 391.23999 | D36: 391.690002 | E36: 388.100006 | F36: 390.709991 | G36: 42755400 | H36: 390.709991 | I36: 1 | J36: 1 | K36: 391.24 | L36: 391.69 | M36: 388.1 | N36: 390.71 | O36: 42755400 | U36: 2015-12-18 | V36: 1.212 | W36: 200.020004 | X36: 201512 | Y36: 201412 | Z36: 2014-12-19 | AA36: 5 | AB36: 1 | AC36: 4.206 | AD36: 0.02102789679
A37: 22 | B37: 2021-02-10 | C37: 392.119995 | D37: 392.279999 | E37: 387.5 | F37: 390.079987 | G37: 59154400 | H37: 390.079987 | I37: 1 | J37: 1 | K37: 392.12 | L37: 392.28 | M37: 387.5 | N37: 390.08 | O37: 59154400 | U37: 2015-09-18 | V37: 1.033 | W37: 195.449997 | X37: 201509 | Y37: 201409 | Z37: 2014-09-19 | AA37: 5 | AB37: 1 | AC37: 4.129 | AD37: 0.0211256079
A38: 23 | B38: 2021-02-09 | C38: 389.609985 | D38: 390.890015 | E38: 389.170013 | F38: 390.25 | G38: 35551100 | H38: 390.25 | I38: 1 | J38: 1 | K38: 389.61 | L38: 390.89 | M38: 389.17 | N38: 390.25 | O38: 35551100 | U38: 2015-06-19 | V38: 1.03 | W38: 210.809998 | X38: 201506 | Y38: 201406 | Z38: 2014-06-20 | AA38: 5 | AB38: 1 | AC38: 4.035 | AD38: 0.01914045841
A39: 24 | B39: 2021-02-08 | C39: 389.269989 | D39: 390.559998 | E39: 388.350006 | F39: 390.51001 | G39: 38365200 | H39: 390.51001 | I39: 1 | J39: 1 | K39: 389.27 | L39: 390.56 | M39: 388.35 | N39: 390.51 | O39: 38365200 | U39: 2015-03-20 | V39: 0.931 | W39: 210.410004 | X39: 201503 | Y39: 201403 | Z39: 2014-03-21 | AA39: 5 | AB39: 1 | AC39: 3.942 | AD39: 0.01873485065
A40: 25 | B40: 2021-02-05 | C40: 388.200012 | D40: 388.470001 | E40: 386.140015 | F40: 387.709991 | G40: 48620300 | H40: 387.709991 | I40: 1 | J40: 1 | K40: 388.2 | L40: 388.47 | M40: 386.14 | N40: 387.71 | O40: 48620300 | U40: 2014-12-19 | V40: 1.135 | W40: 206.520004 | X40: 201412 | Y40: 201312 | Z40: 2013-12-20 | AA40: 5 | AB40: 1 | AC40: 3.836 | AD40: 0.01857447185
A41: 26 | B41: 2021-02-04 | C41: 382.959991 | D41: 386.23999 | E41: 381.970001 | F41: 386.190002 | G41: 47142600 | H41: 386.190002 | I41: 1 | J41: 1 | K41: 382.96 | L41: 386.24 | M41: 381.97 | N41: 386.19 | O41: 47142600 | U41: 2014-09-19 | V41: 0.939 | W41: 200.699997 | X41: 201409 | Y41: 201309 | Z41: 2013-09-20 | AA41: 5 | AB41: 1 | AC41: 3.681 | AD41: 0.01834080745
A42: 27 | B42: 2021-02-03 | C42: 382.440002 | D42: 383.700012 | E42: 380.480011 | F42: 381.850006 | G42: 52427100 | H42: 381.850006 | I42: 1 | J42: 1 | K42: 382.44 | L42: 383.7 | M42: 380.48 | N42: 381.85 | O42: 52427100 | U42: 2014-06-20 | V42: 0.937 | W42: 195.940002 | X42: 201406 | Y42: 201306 | Z42: 2013-06-21 | AA42: 5 | AB42: 1 | AC42: 3.58 | AD42: 0.01827089907
A43: 28 | B43: 2021-02-02 | C43: 379.649994 | D43: 383.220001 | E43: 376.320007 | F43: 381.549988 | G43: 64450700 | H43: 381.549988 | I43: 1 | J43: 1 | K43: 379.65 | L43: 383.22 | M43: 376.32 | N43: 381.55 | O43: 64450700 | U43: 2014-03-21 | V43: 0.825 | W43: 186.199997 | X43: 201403 | Y43: 201303 | Z43: 2013-03-15 | AA43: 5 | AB43: 1 | AC43: 3.482 | AD43: 0.01870032254
A44: 29 | B44: 2021-02-01 | C44: 373.720001 | D44: 377.339996 | E44: 370.380005 | F44: 376.230011 | G44: 75817600 | H44: 376.230011 | I44: 1 | J44: 1 | K44: 373.72 | L44: 377.34 | M44: 370.38 | N44: 376.23 | O44: 75817600 | U44: 2013-12-20 | V44: 0.98 | W44: 181.559998 | X44: 201312 | Y44: 201212 | Z44: 2012-12-21 | AA44: 5 | AB44: 1 | AC44: 3.351 | AD44: 0.01845670873
A45: 30 | B45: 2021-01-29 | C45: 375.630005 | D45: 376.670013 | E45: 368.269989 | F45: 370.070007 | G45: 126618400 | H45: 370.070007 | I45: 1 | J45: 1 | K45: 375.63 | L45: 376.67 | M45: 368.27 | N45: 370.07 | O45: 126618400 | U45: 2013-09-20 | V45: 0.838 | W45: 170.720001 | X45: 201309 | Y45: 201209 | Z45: 2012-09-21 | AA45: 5 | AB45: 1 | AC45: 3.393 | AD45: 0.01987464843
A46: 31 | B46: 2021-01-28 | C46: 376.359985 | D46: 381.929993 | E46: 375.890015 | F46: 377.630005 | G46: 94198100 | H46: 377.630005 | I46: 1 | J46: 1 | K46: 376.36 | L46: 381.93 | M46: 375.89 | N46: 377.63 | O46: 94198100 | U46: 2013-06-21 | V46: 0.839 | W46: 159.070007 | X46: 201306 | Y46: 201206 | Z46: 2012-06-15 | AA46: 5 | AB46: 1 | AC46: 3.334 | AD46: 0.02095932516
A47: 32 | B47: 2021-01-27 | C47: 380.220001 | D47: 380.320007 | E47: 372.01001 | F47: 374.410004 | G47: 123351100 | H47: 374.410004 | I47: 1 | J47: 1 | K47: 380.22 | L47: 380.32 | M47: 372.01 | N47: 374.41 | O47: 123351100 | U47: 2013-03-15 | V47: 0.694 | W47: 155.830002 | X47: 201303 | Y47: 201203 | Z47: 2012-03-16 | AA47: 5 | AB47: 1 | AC47: 3.183 | AD47: 0.02042610511
A48: 33 | B48: 2021-01-26 | C48: 385.410004 | D48: 385.850006 | E48: 383.540009 | F48: 383.790009 | G48: 42665300 | H48: 383.790009 | I48: 1 | J48: 1 | K48: 385.41 | L48: 385.85 | M48: 383.54 | N48: 383.79 | O48: 42665300 | U48: 2012-12-21 | V48: 1.022 | W48: 142.789993 | X48: 201212 | Y48: 201112 | Z48: 2011-12-16 | AA48: 5 | AB48: 1 | AC48: 3.103 | AD48: 0.02173121474
A49: 34 | B49: 2021-01-25 | C49: 383.670013 | D49: 384.769989 | E49: 378.459991 | F49: 384.390015 | G49: 70402000 | H49: 384.390015 | I49: 1 | J49: 1 | K49: 383.67 | L49: 384.77 | M49: 378.46 | N49: 384.39 | O49: 70402000 | U49: 2012-09-21 | V49: 0.779 | W49: 145.869995 | X49: 201209 | Y49: 201109 | Z49: 2011-09-16 | AA49: 5 | AB49: 1 | AC49: 2.851 | AD49: 0.01954480083
A50: 35 | B50: 2021-01-22 | C50: 382.25 | D50: 384.130005 | E50: 381.839996 | F50: 382.880005 | G50: 52860500 | H50: 382.880005 | I50: 1 | J50: 1 | K50: 382.25 | L50: 384.13 | M50: 381.84 | N50: 382.88 | O50: 52860500 | U50: 2012-06-15 | V50: 0.688 | W50: 134.139999 | X50: 201206 | Y50: 201106 | Z50: 2011-06-17 | AA50: 5 | AB50: 1 | AC50: 2.697 | AD50: 0.0201058597
A51: 36 | B51: 2021-01-21 | C51: 384.48999 | D51: 384.950012 | E51: 383.25 | F51: 384.23999 | G51: 47955800 | H51: 384.23999 | I51: 1 | J51: 1 | K51: 384.49 | L51: 384.95 | M51: 383.25 | N51: 384.24 | O51: 47955800 | U51: 2012-03-16 | V51: 0.614 | W51: 140.300003 | X51: 201203 | Y51: 201103 | Z51: 2011-03-18 | AA51: 5 | AB51: 1 | AC51: 2.637 | AD51: 0.01879543794
A52: 37 | B52: 2021-01-20 | C52: 381.109985 | D52: 384.790009 | E52: 380.690002 | F52: 383.890015 | G52: 61836100 | H52: 383.890015 | I52: 1 | J52: 1 | K52: 381.11 | L52: 384.79 | M52: 380.69 | N52: 383.89 | O52: 61836100 | U52: 2011-12-16 | V52: 0.77 | W52: 121.589996 | X52: 201112 | Y52: 201012 | Z52: 2010-12-17 | AA52: 5 | AB52: 1 | AC52: 2.576 | AD52: 0.02118595349
A53: 38 | B53: 2021-01-19 | C53: 378.339996 | D53: 379.230011 | E53: 376.75 | F53: 378.649994 | G53: 51233300 | H53: 378.649994 | I53: 1 | J53: 1 | K53: 378.34 | L53: 379.23 | M53: 376.75 | N53: 378.65 | O53: 51233300 | U53: 2011-09-16 | V53: 0.625 | W53: 121.519997 | X53: 201109 | Y53: 201009 | Z53: 2010-09-17 | AA53: 5 | AB53: 1 | AC53: 2.459 | AD53: 0.0202353527
A54: 39 | B54: 2021-01-15 | C54: 376.720001 | D54: 377.579987 | E54: 373.700012 | F54: 375.700012 | G54: 107160000 | H54: 375.700012 | I54: 1 | J54: 1 | K54: 376.72 | L54: 377.58 | M54: 373.7 | N54: 375.7 | O54: 107160000 | U54: 2011-06-17 | V54: 0.628 | W54: 127.050003 | X54: 201106 | Y54: 201006 | Z54: 2010-06-18 | AA54: 5 | AB54: 1 | AC54: 2.436 | AD54: 0.01917355327
A55: 40 | B55: 2021-01-14 | C55: 380.589996 | D55: 381.130005 | E55: 378.100006 | F55: 378.459991 | G55: 49989100 | H55: 378.459991 | I55: 1 | J55: 1 | K55: 380.59 | L55: 381.13 | M55: 378.1 | N55: 378.46 | O55: 49989100 | U55: 2011-03-18 | V55: 0.553 | W55: 127.760002 | X55: 201103 | Y55: 201003 | Z55: 2010-03-19 | AA55: 5 | AB55: 1 | AC55: 2.339 | AD55: 0.01830776427
A56: 41 | B56: 2021-01-13 | C56: 378.690002 | D56: 380.859985 | E56: 377.850006 | F56: 379.790009 | G56: 45303600 | H56: 379.790009 | I56: 1 | J56: 1 | K56: 378.69 | L56: 380.86 | M56: 377.85 | N56: 379.79 | O56: 45303600 | U56: 2010-12-17 | V56: 0.653 | W56: 124.300003 | X56: 201012 | Y56: 200912 | Z56: 2009-12-18 | AA56: 5 | AB56: 1 | AC56: 2.266 | AD56: 0.01823008806
A57: 42 | B57: 2021-01-12 | C57: 378.890015 | D57: 379.859985 | E57: 376.359985 | F57: 378.769989 | G57: 52547700 | H57: 378.769989 | I57: 1 | J57: 1 | K57: 378.89 | L57: 379.86 | M57: 376.36 | N57: 378.77 | O57: 52547700 | U57: 2010-09-17 | V57: 0.602 | W57: 112.489998 | X57: 201009 | Y57: 200909 | Z57: 2009-09-18 | AA57: 5 | AB57: 1 | AC57: 2.203 | AD57: 0.01958396337
A58: 43 | B58: 2021-01-11 | C58: 377.850006 | D58: 380.579987 | E58: 377.720001 | F58: 378.690002 | G58: 51176700 | H58: 378.690002 | I58: 1 | J58: 1 | K58: 377.85 | L58: 380.58 | M58: 377.72 | N58: 378.69 | O58: 51176700 | U58: 2010-06-18 | V58: 0.531 | W58: 111.730003 | X58: 201006 | Y58: 200906 | Z58: 2009-06-19 | AA58: 5 | AB58: 1 | AC58: 2.109 | AD58: 0.01887586094
A59: 44 | B59: 2021-01-08 | C59: 380.589996 | D59: 381.48999 | E59: 377.100006 | F59: 381.26001 | G59: 71677200 | H59: 381.26001 | I59: 1 | J59: 1 | K59: 380.59 | L59: 381.49 | M59: 377.1 | N59: 381.26 | O59: 71677200 | U59: 2010-03-19 | V59: 0.48 | W59: 115.970001 | X59: 201003 | Y59: 200903 | Z59: 2009-03-20 | AA59: 5 | AB59: 1 | AC59: 2.096 | AD59: 0.01807363958
A60: 45 | B60: 2021-01-07 | C60: 376.100006 | D60: 379.899994 | E60: 375.910004 | F60: 379.100006 | G60: 68766800 | H60: 379.100006 | I60: 1 | J60: 1 | K60: 376.1 | L60: 379.9 | M60: 375.91 | N60: 379.1 | O60: 68766800 | U60: 2009-12-18 | V60: 0.59 | W60: 110.209999 | X60: 200912 | Y60: 200812 | Z60: 2008-12-19 | AA60: 5 | AB60: 1 | AC60: 2.177 | AD60: 0.01975319862
A61: 46 | B61: 2021-01-06 | C61: 369.709991 | D61: 376.980011 | E61: 369.119995 | F61: 373.549988 | G61: 107997700 | H61: 373.549988 | I61: 1 | J61: 1 | K61: 369.71 | L61: 376.98 | M61: 369.12 | N61: 373.55 | O61: 107997700 | U61: 2009-09-18 | V61: 0.508 | W61: 106.720001 | X61: 200909 | Y61: 200809 | Z61: 2008-09-19 | AA61: 5 | AB61: 1 | AC61: 2.306 | AD61: 0.02160794582
A62: 47 | B62: 2021-01-05 | C62: 368.100006 | D62: 372.5 | E62: 368.049988 | F62: 371.329987 | G62: 66426200 | H62: 371.329987 | I62: 1 | J62: 1 | K62: 368.1 | L62: 372.5 | M62: 368.05 | N62: 371.33 | O62: 66426200 | U62: 2009-06-19 | V62: 0.518 | W62: 92.040001 | X62: 200906 | Y62: 200806 | Z62: 2008-06-20 | AA62: 5 | AB62: 1 | AC62: 2.489 | AD62: 0.02704258988
A63: 48 | B63: 2021-01-04 | C63: 375.309998 | D63: 375.450012 | E63: 364.820007 | F63: 368.790009 | G63: 110210800 | H63: 368.790009 | I63: 1 | J63: 1 | K63: 375.31 | L63: 375.45 | M63: 364.82 | N63: 368.79 | O63: 110210800 | U63: 2009-03-20 | V63: 0.561 | W63: 76.709999 | X63: 200903 | Y63: 200803 | Z63: 2008-03-20 | AA63: 5 | AB63: 1 | AC63: 2.64 | AD63: 0.03441533091
A64: 49 | B64: 2020-12-31 | C64: 371.779999 | D64: 374.660004 | E64: 371.230011 | F64: 373.880005 | G64: 78520700 | H64: 373.880005 | I64: 1 | J64: 1 | K64: 371.78 | L64: 374.66 | M64: 371.23 | N64: 373.88 | O64: 78520700 | U64: 2008-12-19 | V64: 0.719 | W64: 88.190002 | X64: 200812 | Y64: 200712 | Z64: 2007-12-21 | AA64: 5 | AB64: 1 | AC64: 2.721 | AD64: 0.0308538376
A65: 50 | B65: 2020-12-30 | C65: 372.339996 | D65: 373.100006 | E65: 371.570007 | F65: 371.98999 | G65: 49455300 | H65: 371.98999 | I65: 1 | J65: 1 | K65: 372.34 | L65: 373.1 | M65: 371.57 | N65: 371.99 | O65: 49455300 | U65: 2008-09-19 | V65: 0.691 | W65: 124.120003 | X65: 200809 | Y65: 200709 | Z65: 2007-09-21 | AA65: 5 | AB65: 1 | AC65: 2.777 | AD65: 0.02237350897
A66: 51 | B66: 2020-12-29 | C66: 373.809998 | D66: 374 | E66: 370.829987 | F66: 371.459991 | G66: 53680500 | H66: 371.459991 | I66: 1 | J66: 1 | K66: 373.81 | L66: 374 | M66: 370.83 | N66: 371.46 | O66: 53680500 | U66: 2008-06-20 | V66: 0.669 | W66: 131.580002 | X66: 200806 | Y66: 200706 | Z66: 2007-06-15 | AA66: 5 | AB66: 1 | AC66: 2.805 | AD66: 0.02131782913
A67: 52 | B67: 2020-12-28 | C67: 371.73999 | D67: 372.589996 | E67: 371.070007 | F67: 372.170013 | G67: 39000400 | H67: 372.170013 | I67: 1 | J67: 1 | K67: 371.74 | L67: 372.59 | M67: 371.07 | N67: 372.17 | O67: 39000400 | U67: 2008-03-20 | V67: 0.642 | W67: 132.080002 | X67: 200803 | Y67: 200703 | Z67: 2007-03-16 | AA67: 5 | AB67: 1 | AC67: 2.792 | AD67: 0.0211387035
A68: 53 | B68: 2020-12-24 | C68: 368.079987 | D68: 369.029999 | E68: 367.450012 | F68: 369 | G68: 26457900 | H68: 369 | I68: 1 | J68: 1 | K68: 368.08 | L68: 369.03 | M68: 367.45 | N68: 369 | O68: 26457900 | U68: 2007-12-21 | V68: 0.775 | W68: 148.130005 | X68: 200712 | Y68: 200612 | Z68: 2006-12-15 | AA68: 5 | AB68: 1 | AC68: 2.701 | AD68: 0.01823398305
A69: 54 | B69: 2020-12-23 | C69: 368.279999 | D69: 369.619995 | E69: 367.220001 | F69: 367.570007 | G69: 46201400 | H69: 367.570007 | I69: 1 | J69: 1 | K69: 368.28 | L69: 369.62 | M69: 367.22 | N69: 367.57 | O69: 46201400 | U69: 2007-09-21 | V69: 0.719 | W69: 151.970001 | X69: 200709 | Y69: 200609 | Z69: 2006-09-15 | AA69: 5 | AB69: 1 | AC69: 2.719 | AD69: 0.01789168903
A70: 55 | B70: 2020-12-22 | C70: 368.209991 | D70: 368.329987 | E70: 366.029999 | F70: 367.23999 | G70: 47949000 | H70: 367.23999 | I70: 1 | J70: 1 | K70: 368.21 | L70: 368.33 | M70: 366.03 | N70: 367.24 | O70: 47949000 | U70: 2007-06-15 | V70: 0.656 | W70: 153.070007 | X70: 200706 | Y70: 200606 | Z70: 2006-06-16 | AA70: 5 | AB70: 1 | AC70: 2.579 | AD70: 0.01684849992
A71: 56 | B71: 2020-12-21 | C71: 364.970001 | D71: 378.459991 | E71: 362.029999 | F71: 367.859985 | G71: 96386700 | H71: 367.859985 | I71: 1 | J71: 1 | K71: 364.97 | L71: 378.46 | M71: 362.03 | N71: 367.86 | O71: 96386700 | U71: 2007-03-16 | V71: 0.551 | W71: 138.529999 | X71: 200703 | Y71: 200603 | Z71: 2006-03-17 | AA71: 5 | AB71: 1 | AC71: 2.478 | AD71: 0.01788782226
A72: 57 | B72: 2020-12-18 | C72: 370.970001 | D72: 371.149994 | E72: 367.019989 | F72: 369.179993 | G72: 136542300 | H72: 369.179993 | I72: 1 | J72: 1 | K72: 370.97 | L72: 371.15 | M72: 367.02 | N72: 369.18 | O72: 136542300 | U72: 2006-12-15 | V72: 0.793 | W72: 142.339996 | X72: 200612 | Y72: 200512 | Z72: 2005-12-16 | AA72: 5 | AB72: 1 | AC72: 2.446 | AD72: 0.01718420731
A73: 58 | B73: 2020-12-17 | C73: 371.940002 | D73: 372.459991 | E73: 371.049988 | F73: 372.23999 | G73: 64119500 | H73: 370.660004 | I73: 0.9957554641 | J73: 1 | K73: 370.36 | L73: 370.88 | M73: 369.48 | N73: 370.66 | O73: 64119500 | U73: 2006-09-15 | V73: 0.579 | W73: 131.960007 | X73: 200609 | Y73: 200509 | Z73: 2005-09-16 | AA73: 5 | AB73: 1 | AC73: 2.325 | AD73: 0.01761897451
A74: 59 | B74: 2020-12-16 | C74: 369.820007 | D74: 371.160004 | E74: 368.869995 | F74: 370.170013 | G74: 58420500 | H74: 368.598816 | I74: 0.995755472 | J74: 1 | K74: 368.25 | L74: 369.58 | M74: 367.3 | N74: 368.6 | O74: 58420500 | U74: 2006-06-16 | V74: 0.555 | W74: 124.650002 | X74: 200606 | Y74: 200506 | Z74: 2005-06-17 | AA74: 5 | AB74: 1 | AC74: 2.268 | AD74: 0.01819494556
A75: 60 | B75: 2020-12-15 | C75: 367.399994 | D75: 369.589996 | E75: 365.920013 | F75: 369.589996 | G75: 64071100 | H75: 368.02124 | I75: 0.9957554154 | J75: 1 | K75: 365.84 | L75: 368.02 | M75: 364.37 | N75: 368.02 | O75: 64071100 | U75: 2006-03-17 | V75: 0.519 | W75: 130.619995 | X75: 200603 | Y75: 200503 | Z75: 2005-03-18 | AA75: 5 | AB75: 1 | AC75: 2.201 | AD75: 0.0168504064
A76: 61 | B76: 2020-12-14 | C76: 368.640015 | D76: 369.799988 | E76: 364.470001 | F76: 364.660004 | G76: 69216200 | H76: 363.112183 | I76: 0.9957554407 | J76: 1 | K76: 367.08 | L76: 368.23 | M76: 362.92 | N76: 363.11 | O76: 69216200 | U76: 2005-12-16 | V76: 0.672 | W76: 126.360001 | X76: 200512 | Y76: 200412 | Z76: 2004-12-17 | AA76: 5 | AB76: 1 | AC76: 2.149 | AD76: 0.01700696409
A77: 62 | B77: 2020-12-11 | C77: 364.899994 | D77: 366.73999 | E77: 363.26001 | F77: 366.299988 | G77: 57698600 | H77: 364.745209 | I77: 0.9957554489 | J77: 1 | K77: 363.35 | L77: 365.18 | M77: 361.72 | N77: 364.75 | O77: 57698600 | U77: 2005-09-16 | V77: 0.522 | W77: 123.5 | X77: 200509 | Y77: 200409 | Z77: 2004-09-17 | AA77: 6 | AB77: 1 | AC77: 2.396 | AD77: 0.01940080972
A78: 63 | B78: 2020-12-10 | C78: 365.369995 | D78: 367.859985 | E78: 364.429993 | F78: 366.730011 | G78: 57735400 | H78: 365.173401 | I78: 0.9957554333 | J78: 1 | K78: 363.82 | L78: 366.3 | M78: 362.88 | N78: 365.17 | O78: 57735400 | U78: 2005-06-17 | V78: 0.488 | W78: 121.360001 | X78: 200506 | Y78: 200406 | Z78: 2004-06-18 | AA78: 6 | AB78: 1 | AC78: 2.343 | AD78: 0.01930619628
A79: 64 | B79: 2020-12-09 | C79: 370.880005 | D79: 371.049988 | E79: 365.950012 | F79: 366.850006 | G79: 74098300 | H79: 365.292877 | I79: 0.9957554069 | J79: 1 | K79: 369.31 | L79: 369.48 | M79: 364.4 | N79: 365.29 | O79: 74098300 | U79: 2005-03-18 | V79: 0.467 | W79: 118.540001 | X79: 200503 | Y79: 200403 | Z79: 2004-03-19 | AA79: 6 | AB79: 1 | AC79: 2.269 | AD79: 0.01914121799
A80: 65 | B80: 2020-12-08 | C80: 367.720001 | D80: 370.779999 | E80: 367.670013 | F80: 370.170013 | G80: 42458900 | H80: 368.598816 | I80: 0.995755472 | J80: 1 | K80: 366.16 | L80: 369.21 | M80: 366.11 | N80: 368.6 | O80: 42458900 | U80: 2004-12-17 | V80: 0.568 | W80: 119.440002 | X80: 200412 | Y80: 200312 | Z80: 2003-12-19 | AA80: 6 | AB80: 1 | AC80: 2.197 | AD80: 0.0183941725
A81: 66 | B81: 2020-12-07 | C81: 369.019989 | D81: 369.619995 | E81: 367.720001 | F81: 369.089996 | G81: 48944300 | H81: 367.523376 | I81: =IF(F81=0,1,H81/F81) -> 0.9957554526 | J81: =INDEX(OFFSET($T$15,0,0,$S$13+1,1),MATCH(B81,OFFSET($Q$15,0,0,$S$13+1,1),-1)) -> 1 | K81: =ROUND($I81*C81,2) -> 367.45 | L81: =ROUND($I81*D81,2) -> 368.05 | M81: =ROUND($I81*E81,2) -> 366.16 | N81: =ROUND($I81*F81,2) -> 367.52 | O81: =G81*J81 -> 48944300 | U81: 2004-11-15 | V81: 0.351 | W81: =(INDEX(OFFSET($F$15,1,0,$B$10,1),MATCH(U81,OFFSET($B$15,1,0,$B$10,1),-1))) -> 118.730003 | X81: =YEAR(U81)&RIGHT("0"&MONTH(U81),2) -> 200411 | Y81: =YEAR(U81)-1&RIGHT("0"&MONTH(U81),2) -> 200311 | Z81: =OFFSET(U80,AA81,0,1,1) -> 2003-12-19 | AA81: =MATCH(Y81,OFFSET($X$15,A81,0,$V$14+1-A81,1),-1) -> 5 | AB81: =IF(OR(AND(YEAR(U81)=YEAR(Z81),MONTH(U81)=MONTH(Z81)),MONTH(U81)=MONTH(Z81)),1,0) -> 0 | AC81: =(V81+IF(AA81-AB81=0,0,IFERROR(SUM(OFFSET(V81,1,0,AA81-AB81-1,1)),0))) -> 2.145 | AD81: =AC81/(INDEX(OFFSET($F$15,1,0,$B$10,1),MATCH(U81,OFFSET($B$15,1,0,$B$10,1),-1))) -> 0.01806620017
A82: 67 | B82: 2020-12-04 | C82: 367.320007 | D82: 369.850006 | E82: 367.220001 | F82: 369.850006 | G82: 50749900 | H82: 368.280151 | I82: 0.9957554279 | J82: 1 | K82: 365.76 | L82: 368.28 | M82: 365.66 | N82: 368.28 | O82: 50749900 | U82: 2004-09-17 | V82: 0.469 | W82: 113.150002 | X82: 200409 | Y82: 200309 | Z82: 2003-09-19 | AA82: 5 | AB82: 1 | AC82: 1.794 | AD82: 0.01585505938
A83: 68 | B83: 2020-12-03 | C83: 366.679993 | D83: 368.190002 | E83: 365.5 | F83: 366.690002 | G83: 62882000 | H83: 365.133575 | I83: 0.9957554692 | J83: 1 | K83: 365.12 | L83: 366.63 | M83: 363.95 | N83: 365.13 | O83: 62882000 | U83: 2004-06-18 | V83: 0.414 | W83: 113.629997 | X83: 200406 | Y83: 200306 | Z83: 2003-06-20 | AA83: 5 | AB83: 1 | AC83: 1.725 | AD83: 0.01518085053
A84: 69 | B84: 2020-12-02 | C84: 364.820007 | D84: 366.959991 | E84: 364.200012 | F84: 366.790009 | G84: 45927000 | H84: 365.233154 | I84: 0.9957554596 | J84: 1 | K84: 363.27 | L84: 365.4 | M84: 362.65 | N84: 365.23 | O84: 45927000 | U84: 2004-03-19 | V84: 0.395 | W84: 111.059998 | X84: 200403 | Y84: 200303 | Z84: 2003-03-21 | AA84: 5 | AB84: 1 | AC84: 1.671 | AD84: 0.01504592139
A85: 70 | B85: 2020-12-01 | C85: 365.570007 | D85: 367.679993 | E85: 364.929993 | F85: 366.019989 | G85: 74505000 | H85: 364.4664 | I85: 0.9957554531 | J85: 1 | K85: 364.02 | L85: 366.12 | M85: 363.38 | N85: 364.47 | O85: 74505000 | U85: 2003-12-19 | V85: 0.516 | W85: 108.900002 | X85: 200312 | Y85: 200212 | Z85: 2002-12-20 | AA85: 5 | AB85: 1 | AC85: 1.63 | AD85: 0.01496786015
A86: 71 | B86: 2020-11-30 | C86: 362.829987 | D86: 363.119995 | E86: 359.170013 | F86: 362.059998 | G86: 83872700 | H86: 360.523224 | I86: 0.9957554714 | J86: 1 | K86: 361.29 | L86: 361.58 | M86: 357.65 | N86: 360.52 | O86: 83872700 | U86: 2003-09-19 | V86: 0.4 | W86: 103.669998 | X86: 200309 | Y86: 200209 | Z86: 2002-09-20 | AA86: 5 | AB86: 1 | AC86: 1.55 | AD86: 0.01495128803
A87: 72 | B87: 2020-11-27 | C87: 363.839996 | D87: 364.179993 | E87: 362.579987 | F87: 363.670013 | G87: 28514100 | H87: 362.126404 | I87: 0.995755468 | J87: 1 | K87: 362.3 | L87: 362.63 | M87: 361.04 | N87: 362.13 | O87: 28514100 | U87: 2003-06-20 | V87: 0.36 | W87: 99.440002 | X87: 200306 | Y87: 200206 | Z87: 2002-06-21 | AA87: 5 | AB87: 1 | AC87: 1.528 | AD87: 0.01536604957
A88: 73 | B88: 2020-11-25 | C88: 363.130005 | D88: 363.160004 | E88: 361.480011 | F88: 362.660004 | G88: 45330900 | H88: 361.120667 | I88: 0.9957554266 | J88: 1 | K88: 361.59 | L88: 361.62 | M88: 359.95 | N88: 361.12 | O88: 45330900 | U88: 2003-03-21 | V88: 0.354 | W88: 89.669998 | X88: 200303 | Y88: 200203 | Z88: 2002-03-15 | AA88: 5 | AB88: 1 | AC88: 1.521 | AD88: 0.01696219509
A89: 74 | B89: 2020-11-24 | C89: 360.209991 | D89: 363.809998 | E89: 359.290009 | F89: 363.220001 | G89: 62415900 | H89: 361.678284 | I89: 0.9957554182 | J89: 1 | K89: 358.68 | L89: 362.27 | M89: 357.76 | N89: 361.68 | O89: 62415900 | U89: 2002-12-20 | V89: 0.436 | W89: 89.989998 | X89: 200212 | Y89: 200112 | Z89: 2001-12-21 | AA89: 5 | AB89: 1 | AC89: 1.498 | AD89: 0.0166462944
A90: 75 | B90: 2020-11-23 | C90: 357.279999 | D90: 358.820007 | E90: 354.869995 | F90: 357.459991 | G90: 63230600 | H90: 355.942719 | I90: 0.9957554075 | J90: 1 | K90: 355.76 | L90: 357.3 | M90: 353.36 | N90: 355.94 | O90: 63230600 | U90: 2002-09-20 | V90: 0.378 | W90: 84.349998 | X90: 200209 | Y90: 200109 | Z90: 2001-09-21 | AA90: 5 | AB90: 1 | AC90: 1.455 | AD90: 0.01724955583
A91: 76 | B91: 2020-11-20 | C91: 357.5 | D91: 357.720001 | E91: 355.25 | F91: 355.329987 | G91: 70417300 | H91: 353.821777 | I91: 0.9957554666 | J91: 1 | K91: 355.98 | L91: 356.2 | M91: 353.74 | N91: 353.82 | O91: 70417300 | U91: 2002-06-21 | V91: 0.353 | W91: 99.279999 | X91: 200206 | Y91: 200106 | Z91: 2001-06-15 | AA91: 5 | AB91: 1 | AC91: 1.446 | AD91: 0.01456486719
A92: 77 | B92: 2020-11-19 | C92: 355.600006 | D92: 358.179993 | E92: 354.149994 | F92: 357.779999 | G92: 59940900 | H92: 356.261383 | I92: 0.9957554475 | J92: 1 | K92: 354.09 | L92: 356.66 | M92: 352.65 | N92: 356.26 | O92: 59940900 | U92: 2002-03-15 | V92: 0.331 | W92: 116.650002 | X92: 200203 | Y92: 200103 | Z92: 2001-03-16 | AA92: 5 | AB92: 1 | AC92: 1.439 | AD92: 0.0123360478
A93: 78 | B93: 2020-11-18 | C93: 360.910004 | D93: 361.5 | E93: 356.23999 | F93: 356.279999 | G93: 70591300 | H93: 354.767731 | I93: 0.9957553946 | J93: 1 | K93: 359.38 | L93: 359.97 | M93: 354.73 | N93: 354.77 | O93: 70591300 | U93: 2001-12-21 | V93: 0.393 | W93: 114.949997 | X93: 200112 | Y93: 200012 | Z93: 2000-12-15 | AA93: 5 | AB93: 1 | AC93: 1.424 | AD93: 0.0123879951
A94: 79 | B94: 2020-11-17 | C94: 359.970001 | D94: 361.920013 | E94: 358.339996 | F94: 360.619995 | G94: 66111000 | H94: 359.089325 | I94: 0.9957554489 | J94: 1 | K94: 358.44 | L94: 360.38 | M94: 356.82 | N94: 359.09 | O94: 66111000 | U94: 2001-09-21 | V94: 0.369 | W94: 97.279999 | X94: 200109 | Y94: 200009 | Z94: 2000-09-15 | AA94: 5 | AB94: 1 | AC94: 1.442 | AD94: 0.01482319094
A95: 80 | B95: 2020-11-16 | C95: 360.980011 | D95: 362.779999 | E95: 359.589996 | F95: 362.570007 | G95: 74541100 | H95: 361.031067 | I95: 0.995755468 | J95: 1 | K95: 359.45 | L95: 361.24 | M95: 358.06 | N95: 361.03 | O95: 74541100 | U95: 2001-06-15 | V95: 0.346 | W95: 121.849998 | X95: 200106 | Y95: 200006 | Z95: 2000-06-16 | AA95: 5 | AB95: 1 | AC95: 1.448 | AD95: 0.01188346347
A96: 81 | B96: 2020-11-13 | C96: 355.269989 | D96: 358.899994 | E96: 354.709991 | F96: 358.100006 | G96: 62892200 | H96: 356.580017 | I96: 0.9957554064 | J96: 1 | K96: 353.76 | L96: 357.38 | M96: 353.2 | N96: 356.58 | O96: 62892200 | U96: 2001-03-16 | V96: 0.316 | W96: 115.010002 | X96: 200103 | Y96: 200003 | Z96: 2000-03-17 | AA96: 5 | AB96: 1 | AC96: 1.45 | AD96: 0.01260759912
A97: 82 | B97: 2020-11-12 | C97: 355.579987 | D97: 356.720001 | E97: 351.26001 | F97: 353.209991 | G97: 67546200 | H97: 351.710754 | I97: 0.9957553947 | J97: 1 | K97: 354.07 | L97: 355.21 | M97: 349.77 | N97: 351.71 | O97: 67546200 | U97: 2000-12-15 | V97: 0.411 | W97: 130.96875 | X97: 200012 | Y97: 199912 | Z97: 1999-12-17 | AA97: 5 | AB97: 1 | AC97: 1.505 | AD97: 0.01149129086
A98: 83 | B98: 2020-11-11 | C98: 356.399994 | D98: 357.559998 | E98: 355.059998 | F98: 356.670013 | G98: 58649000 | H98: 355.156097 | I98: 0.9957554155 | J98: 1 | K98: 354.89 | L98: 356.04 | M98: 353.55 | N98: 355.16 | O98: 58649000 | U98: 2000-09-15 | V98: 0.375 | W98: 146 | X98: 200009 | Y98: 199909 | Z98: 1999-09-17 | AA98: 5 | AB98: 1 | AC98: 1.442 | AD98: 0.009876712329
A99: 84 | B99: 2020-11-10 | C99: 353.48999 | D99: 355.179993 | E99: 350.51001 | F99: 354.040009 | G99: 85552000 | H99: 352.537262 | I99: 0.9957554317 | J99: 1 | K99: 351.99 | L99: 353.67 | M99: 349.02 | N99: 352.54 | O99: 85552000 | U99: 2000-06-16 | V99: 0.348 | W99: 146.59375 | X99: 200006 | Y99: 199906 | Z99: 1999-06-18 | AA99: 5 | AB99: 1 | AC99: 1.439 | AD99: 0.009816243871
A100: 85 | B100: 2020-11-09 | C100: 363.970001 | D100: 364.380005 | E100: 354.059998 | F100: 354.559998 | G100: 172304200 | H100: 353.055054 | I100: 0.9957554603 | J100: 1 | K100: 362.43 | L100: 362.83 | M100: 352.56 | N100: 353.06 | O100: 172304200 | U100: 2000-03-17 | V100: 0.371 | W100: 146.9375 | X100: 200003 | Y100: 199903 | Z100: 1999-03-19 | AA100: 5 | AB100: 1 | AC100: 1.496 | AD100: 0.01018119949
A101: 86 | B101: 2020-11-06 | C101: 349.929993 | D101: 351.51001 | E101: 347.649994 | F101: 350.160004 | G101: 74973000 | H101: 348.673737 | I101: 0.9957554633 | J101: 1 | K101: 348.44 | L101: 350.02 | M101: 346.17 | N101: 348.67 | O101: 74973000 | U101: 1999-12-17 | V101: 0.348 | W101: 142.6875 | X101: 199912 | Y101: 199812 | Z101: 1998-12-18 | AA101: 5 | AB101: 1 | AC101: 1.445 | AD101: 0.01012702584
A102: 87 | B102: 2020-11-05 | C102: 349.23999 | D102: 352.190002 | E102: 348.859985 | F102: 350.23999 | G102: 82039700 | H102: 348.753387 | I102: 0.9957554733 | J102: 1 | K102: 347.76 | L102: 350.7 | M102: 347.38 | N102: 348.75 | O102: 82039700 | U102: 1999-09-17 | V102: 0.372 | W102: 133.75 | X102: 199909 | Y102: 199809 | Z102: 1998-09-18 | AA102: 5 | AB102: 1 | AC102: 1.489 | AD102: 0.01113271028
A103: 88 | B103: 2020-11-04 | C103: 340.859985 | D103: 347.940002 | E103: 339.589996 | F103: 343.540009 | G103: 126959700 | H103: 342.081818 | I103: 0.9957553969 | J103: 1 | K103: 339.41 | L103: 346.46 | M103: 338.15 | N103: 342.08 | O103: 126959700 | U103: 1999-06-18 | V103: 0.405 | W103: 134.3125 | X103: 199906 | Y103: 199806 | Z103: 1998-06-19 | AA103: 5 | AB103: 1 | AC103: 1.476 | AD103: 0.01098929735
A104: 89 | B104: 2020-11-03 | C104: 333.690002 | D104: 338.25 | E104: 330.290009 | F104: 336.029999 | G104: 93294200 | H104: 334.603699 | I104: 0.9957554385 | J104: 1 | K104: 332.27 | L104: 336.81 | M104: 328.89 | N104: 334.6 | O104: 93294200 | U104: 1999-03-19 | V104: 0.32 | W104: 129.6875 | X104: 199903 | Y104: 199803 | Z104: 1998-03-20 | AA104: 5 | AB104: 1 | AC104: 1.423 | AD104: 0.01097253012
A105: 90 | B105: 2020-11-02 | C105: 330.200012 | D105: 332.359985 | E105: 327.23999 | F105: 330.200012 | G105: 86068300 | H105: 328.798462 | I105: 0.9957554514 | J105: 1 | K105: 328.8 | L105: 330.95 | M105: 325.85 | N105: 328.8 | O105: 86068300 | U105: 1998-12-18 | V105: 0.392 | W105: 118.5 | X105: 199812 | Y105: 199712 | Z105: 1997-12-19 | AA105: 5 | AB105: 1 | AC105: 1.416 | AD105: 0.01194936709
A106: 91 | B106: 2020-10-30 | C106: 328.279999 | D106: 329.690002 | E106: 322.600006 | F106: 326.540009 | G106: 120287300 | H106: 325.153992 | I106: 0.9957554451 | J106: 1 | K106: 326.89 | L106: 328.29 | M106: 321.23 | N106: 325.15 | O106: 120287300 | U106: 1998-09-18 | V106: 0.359 | W106: 102.09375 | X106: 199809 | Y106: 199709 | Z106: 1997-09-19 | AA106: 5 | AB106: 1 | AC106: 1.404 | AD106: 0.01375206612
A107: 92 | B107: 2020-10-29 | C107: 326.910004 | D107: 333.399994 | E107: 325.089996 | F107: 329.980011 | G107: 90597700 | H107: 328.579376 | I107: 0.9957553944 | J107: 1 | K107: 325.52 | L107: 331.98 | M107: 323.71 | N107: 328.58 | O107: 90597700 | U107: 1998-06-19 | V107: 0.352 | W107: 110.0625 | X107: 199806 | Y107: 199706 | Z107: 1997-06-20 | AA107: 5 | AB107: 1 | AC107: 1.393 | AD107: 0.0126564452
A108: 93 | B108: 2020-10-28 | C108: 332.100006 | D108: 338.25 | E108: 326.130005 | F108: 326.660004 | G108: 127094300 | H108: 325.273468 | I108: 0.9957554155 | J108: 1 | K108: 330.69 | L108: 336.81 | M108: 324.75 | N108: 325.27 | O108: 127094300 | U108: 1998-03-20 | V108: 0.313 | W108: 109.875 | X108: 199803 | Y108: 199703 | Z108: 1997-03-21 | AA108: 5 | AB108: 1 | AC108: 1.391 | AD108: 0.01265984073
A109: 94 | B109: 2020-10-27 | C109: 339.76001 | D109: 340.119995 | E109: 337.98999 | F109: 338.220001 | G109: 65994100 | H109: 336.784393 | I109: 0.9957554018 | J109: 1 | K109: 338.32 | L109: 338.68 | M109: 336.56 | N109: 336.78 | O109: 65994100 | U109: 1997-12-19 | V109: 0.38 | W109: 94.78125 | X109: 199712 | Y109: 199612 | Z109: 1996-12-20 | AA109: 5 | AB109: 1 | AC109: 1.377 | AD109: 0.01452818991
A110: 95 | B110: 2020-10-26 | C110: 342.130005 | D110: 342.980011 | E110: 335.619995 | F110: 339.390015 | G110: 91473000 | H110: 337.949463 | I110: 0.9957554673 | J110: 1 | K110: 340.68 | L110: 341.52 | M110: 334.2 | N110: 337.95 | O110: 91473000 | U110: 1997-09-19 | V110: 0.348 | W110: 95.03125 | X110: 199709 | Y110: 199609 | Z110: 1996-09-20 | AA110: 5 | AB110: 1 | AC110: 1.364 | AD110: 0.0143531733
A111: 96 | B111: 2020-10-23 | C111: 345.929993 | D111: 345.98999 | E111: 343.130005 | F111: 345.779999 | G111: 49143900 | H111: 344.312317 | I111: 0.9957554456 | J111: 1 | K111: 344.46 | L111: 344.52 | M111: 341.67 | N111: 344.31 | O111: 49143900 | U111: 1997-06-20 | V111: 0.35 | W111: 89.578125 | X111: 199706 | Y111: 199606 | Z111: 1996-06-21 | AA111: 5 | AB111: 1 | AC111: 1.368 | AD111: 0.01527158556
A112: 97 | B112: 2020-10-22 | C112: 342.959991 | D112: 345.23999 | E112: 340.649994 | F112: 344.609985 | G112: 55399300 | H112: 343.147278 | I112: 0.9957554712 | J112: 1 | K112: 341.5 | L112: 343.77 | M112: 339.2 | N112: 343.15 | O112: 55399300 | U112: 1997-03-21 | V112: 0.299 | W112: 78.4375 | X112: 199703 | Y112: 199603 | Z112: 1996-03-15 | AA112: 5 | AB112: 1 | AC112: 1.369 | AD112: 0.01745338645
A113: 98 | B113: 2020-10-21 | C113: 343.329987 | D113: 345.670013 | E113: 342.399994 | F113: 342.730011 | G113: 63575000 | H113: 341.275269 | I113: 0.9957554286 | J113: 1 | K113: 341.87 | L113: 344.2 | M113: 340.95 | N113: 341.28 | O113: 63575000 | U113: 1996-12-20 | V113: 0.367 | W113: 74.84375 | X113: 199612 | Y113: 199512 | Z113: 1995-12-15 | AA113: 5 | AB113: 1 | AC113: 1.355 | AD113: 0.01810438413
A114: 99 | B114: 2020-10-20 | C114: 343.459991 | D114: 346.880005 | E114: 342.640015 | F114: 343.380005 | G114: 60051900 | H114: 341.922516 | I114: 0.9957554634 | J114: 1 | K114: 342 | L114: 345.41 | M114: 341.19 | N114: 341.92 | O114: 60051900 | U114: 1996-09-20 | V114: 0.352 | W114: 68.640625 | X114: 199609 | Y114: 199509 | Z114: 1995-09-15 | AA114: 5 | AB114: 1 | AC114: 1.37 | AD114: 0.01995902572
A115: 100 | B115: 2020-10-19 | C115: 348.649994 | D115: 349.329987 | E115: 341.040009 | F115: 342.01001 | G115: 68425600 | H115: 340.558319 | I115: 0.9957554137 | J115: 1 | K115: 347.17 | L115: 347.85 | M115: 339.59 | N115: 340.56 | O115: 68425600 | U115: 1996-06-21 | V115: 0.351 | W115: 66.8125 | X115: 199606 | Y115: 199506 | Z115: 1995-06-16 | AA115: 5 | AB115: 1 | AC115: 1.33 | AD115: 0.01990645463
A116: 101 | B116: 2020-10-16 | C116: 348.959991 | D116: 350.75 | E116: 347.100006 | F116: 347.290009 | G116: 89501900 | H116: 345.815918 | I116: 0.9957554466 | J116: 1 | K116: 347.48 | L116: 349.26 | M116: 345.63 | N116: 345.82 | O116: 89501900 | U116: 1996-03-15 | V116: 0.285 | W116: 64.125 | X116: 199603 | Y116: 199503 | Z116: 1995-03-17 | AA116: 5 | AB116: 1 | AC116: 1.295 | AD116: 0.02019493177
A117: 102 | B117: 2020-10-15 | C117: 343.709991 | D117: 348.019989 | E117: 343.130005 | F117: 347.5 | G117: 60357700 | H117: 346.025024 | I117: 0.9957554647 | J117: 1 | K117: 342.25 | L117: 346.54 | M117: 341.67 | N117: 346.03 | O117: 60357700 | U117: 1995-12-15 | V117: 0.382 | W117: 61.8125 | X117: 199512 | Y117: 199412 | Z117: 1994-12-16 | AA117: 5 | AB117: 1 | AC117: 1.278 | AD117: 0.02067542973
A118: 103 | B118: 2020-10-14 | C118: 350.75 | D118: 351.929993 | E118: 347.140015 | F118: 347.929993 | G118: 57958700 | H118: 346.453186 | I118: 0.9957554478 | J118: 1 | K118: 349.26 | L118: 350.44 | M118: 345.67 | N118: 346.45 | O118: 57958700 | U118: 1995-09-15 | V118: 0.312 | W118: 58.4375 | X118: 199509 | Y118: 199409 | Z118: 1994-09-16 | AA118: 5 | AB118: 1 | AC118: 1.259 | AD118: 0.02154438503
A119: 104 | B119: 2020-10-13 | C119: 352.279999 | D119: 352.470001 | E119: 349.089996 | F119: 350.130005 | G119: 73255500 | H119: 348.64386 | I119: 0.995755448 | J119: 1 | K119: 350.78 | L119: 350.97 | M119: 347.61 | N119: 348.64 | O119: 73255500 | U119: 1995-06-16 | V119: 0.316 | W119: 53.96875 | X119: 199506 | Y119: 199406 | Z119: 1994-06-17 | AA119: 5 | AB119: 1 | AC119: 1.235 | AD119: 0.0228836132
A120: 105 | B120: 2020-10-12 | C120: 349.589996 | D120: 354.019989 | E120: 349.059998 | F120: 352.429993 | G120: 80388500 | H120: 350.934082 | I120: 0.9957554379 | J120: 1 | K120: 348.11 | L120: 352.52 | M120: 347.58 | N120: 350.93 | O120: 80388500 | U120: 1995-03-17 | V120: 0.268 | W120: 49.5625 | X120: 199503 | Y120: 199403 | Z120: 1994-03-18 | AA120: 5 | AB120: 1 | AC120: 1.224 | AD120: 0.02469609079
A121: 106 | B121: 2020-10-09 | C121: 345.559998 | D121: 347.350006 | E121: 344.890015 | F121: 346.850006 | G121: 59528600 | H121: 345.377777 | I121: 0.9957554304 | J121: 1 | K121: 344.09 | L121: 345.88 | M121: 343.43 | N121: 345.38 | O121: 59528600 | U121: 1994-12-16 | V121: 0.363 | W121: 45.75 | X121: 199412 | Y121: 199312 | Z121: 1993-12-17 | AA121: 5 | AB121: 1 | AC121: 1.227 | AD121: 0.02681967213
A122: 107 | B122: 2020-10-08 | C122: 342.850006 | D122: 343.850006 | E122: 341.859985 | F122: 343.779999 | G122: 45242500 | H122: 342.320801 | I122: 0.9957554308 | J122: 1 | K122: 341.39 | L122: 342.39 | M122: 340.41 | N122: 342.32 | O122: 45242500 | U122: 1994-09-16 | V122: 0.288 | W122: 47.015625 | X122: 199409 | Y122: 199309 | Z122: 1993-09-17 | AA122: 5 | AB122: 1 | AC122: 1.181 | AD122: 0.02511930874
A123: 108 | B123: 2020-10-07 | C123: 338.119995 | D123: 341.630005 | E123: 338.089996 | F123: 340.76001 | G123: 56999600 | H123: 339.313629 | I123: 0.9957554262 | J123: 1 | K123: 336.68 | L123: 340.18 | M123: 336.65 | N123: 339.31 | O123: 56999600 | U123: 1994-06-17 | V123: 0.305 | W123: 45.875 | X123: 199406 | Y123: 199306 | Z123: 1993-06-18 | AA123: 5 | AB123: 1 | AC123: 1.179 | AD123: 0.02570027248
A124: 109 | B124: 2020-10-06 | C124: 339.910004 | D124: 342.170013 | E124: 334.380005 | F124: 334.929993 | G124: 90128900 | H124: 333.508362 | I124: 0.9957554384 | J124: 1 | K124: 338.47 | L124: 340.72 | M124: 332.96 | N124: 333.51 | O124: 90128900 | U124: 1994-03-18 | V124: 0.271 | W124: 46.96875 | X124: 199403 | Y124: 199303 | Z124: 1993-03-19 | AA124: 5 | AB124: 1 | AC124: 1.192 | AD124: 0.02537857618
A125: 110 | B125: 2020-10-05 | C125: 336.059998 | D125: 339.959991 | E125: 336.01001 | F125: 339.76001 | G125: 45713100 | H125: 338.317871 | I125: 0.9957554187 | J125: 1 | K125: 334.63 | L125: 338.52 | M125: 334.58 | N125: 338.32 | O125: 45713100 | U125: 1993-12-17 | V125: 0.317 | W125: 46.5625 | X125: 199312 | Y125: 199212 | Z125: 1993-03-19 | AA125: 4 | AB125: 0 | AC125: 1.134 | AD125: 0.02435436242
A126: 111 | B126: 2020-10-02 | C126: 331.700012 | D126: 337.01001 | E126: 331.190002 | F126: 333.839996 | G126: 89431100 | H126: 332.423004 | I126: 0.9957554756 | J126: 1 | K126: 330.29 | L126: 335.58 | M126: 329.78 | N126: 332.42 | O126: 89431100 | U126: 1993-09-17 | V126: 0.286 | W126: 45.8125 | X126: 199309 | Y126: 199209 | Z126: 1993-03-19 | AA126: 3 | AB126: 0 | AC126: 0.817 | AD126: 0.01783356071
A127: 112 | B127: 2020-10-01 | C127: 337.690002 | D127: 338.73999 | E127: 335.01001 | F127: 337.040009 | G127: 88698700 | H127: 335.609406 | I127: 0.9957553912 | J127: 1 | K127: 336.26 | L127: 337.3 | M127: 333.59 | N127: 335.61 | O127: 88698700 | U127: 1993-06-18 | V127: 0.318 | W127: 44.5 | X127: 199306 | Y127: 199206 | Z127: 1993-03-19 | AA127: 2 | AB127: 0 | AC127: 0.531 | AD127: 0.01193258427
A128: 113 | B128: 2020-09-30 | C128: 333.089996 | D128: 338.290009 | E128: 332.880005 | F128: 334.890015 | G128: 104081100 | H128: 333.468567 | I128: 0.9957554781 | J128: 1 | K128: 331.68 | L128: 336.85 | M128: 331.47 | N128: 333.47 | O128: 104081100 | U128: 1993-03-19 | V128: 0.213 | W128: 45.03125 | X128: 199303 | Y128: 199203 | Z128: 1993-03-19 | AA128: 1 | AB128: 1 | AC128: 0.213 | AD128: 0.004730048577
A129: 114 | B129: 2020-09-29 | C129: 333.970001 | D129: 334.769989 | E129: 331.619995 | F129: 332.369995 | G129: 51304000 | H129: 330.959229 | I129: 0.9957554351 | J129: 1 | K129: 332.55 | L129: 333.35 | M129: 330.21 | N129: 330.96 | O129: 51304000
A130: 115 | B130: 2020-09-28 | C130: 333.220001 | D130: 334.959991 | E130: 332.149994 | F130: 334.190002 | G130: 64584600 | H130: 332.771515 | I130: 0.9957554475 | J130: 1 | K130: 331.81 | L130: 333.54 | M130: 330.74 | N130: 332.77 | O130: 64584600
A131: 116 | B131: 2020-09-25 | C131: 322.579987 | D131: 329.579987 | E131: 321.640015 | F131: 328.730011 | G131: 71069400 | H131: 327.334686 | I131: 0.9957554073 | J131: 1 | K131: 321.21 | L131: 328.18 | M131: 320.27 | N131: 327.33 | O131: 71069400
A132: 117 | B132: 2020-09-24 | C132: 321.220001 | D132: 326.799988 | E132: 319.799988 | F132: 323.5 | G132: 76681300 | H132: 322.126892 | I132: 0.9957554621 | J132: 1 | K132: 319.86 | L132: 325.41 | M132: 318.44 | N132: 322.13 | O132: 76681300
A133: 118 | B133: 2020-09-23 | C133: 330.899994 | D133: 331.200012 | E133: 322.100006 | F133: 322.640015 | G133: 93112200 | H133: 321.270538 | I133: 0.9957554025 | J133: 1 | K133: 329.5 | L133: 329.79 | M133: 320.73 | N133: 321.27 | O133: 93112200
A134: 119 | B134: 2020-09-22 | C134: 328.570007 | D134: 330.899994 | E134: 325.859985 | F134: 330.299988 | G134: 63612100 | H134: 328.89801 | I134: 0.9957554404 | J134: 1 | K134: 327.18 | L134: 329.5 | M134: 324.48 | N134: 328.9 | O134: 63612100
A135: 120 | B135: 2020-09-21 | C135: 325.700012 | D135: 327.130005 | E135: 321.730011 | F135: 326.970001 | G135: 99450800 | H135: 325.582153 | I135: 0.9957554271 | J135: 1 | K135: 324.32 | L135: 325.74 | M135: 320.36 | N135: 325.58 | O135: 99450800
A136: 121 | B136: 2020-09-18 | C136: 335.369995 | D136: 335.48999 | E136: 327.970001 | F136: 330.649994 | G136: 105877900 | H136: 329.246521 | I136: 0.995755412 | J136: 1 | K136: 333.95 | L136: 334.07 | M136: 326.58 | N136: 329.25 | O136: 105877900
A137: 122 | B137: 2020-09-17 | C137: 333.559998 | D137: 337.700012 | E137: 332.98999 | F137: 335.839996 | G137: 91523300 | H137: 333.081207 | I137: 0.9917854066 | J137: 1 | K137: 330.82 | L137: 334.93 | M137: 330.25 | N137: 333.08 | O137: 91523300
A138: 123 | B138: 2020-09-16 | C138: 341.51001 | D138: 343.059998 | E138: 338.519989 | F138: 338.820007 | G138: 82096000 | H138: 336.036713 | I138: 0.9917853316 | J138: 1 | K138: 338.7 | L138: 340.24 | M138: 335.74 | N138: 336.04 | O138: 82096000
A139: 124 | B139: 2020-09-15 | C139: 341.119995 | D139: 342.019989 | E139: 338.470001 | F139: 340.170013 | G139: 52920900 | H139: 337.375641 | I139: 0.9917853665 | J139: 1 | K139: 338.32 | L139: 339.21 | M139: 335.69 | N139: 337.38 | O139: 52920900
A140: 125 | B140: 2020-09-14 | C140: 337.48999 | D140: 340.380005 | E140: 334.220001 | F140: 338.459991 | G140: 65605700 | H140: 335.679657 | I140: 0.9917853393 | J140: 1 | K140: 334.72 | L140: 337.58 | M140: 331.47 | N140: 335.68 | O140: 65605700
A141: 126 | B141: 2020-09-11 | C141: 335.820007 | D141: 336.970001 | E141: 331 | F141: 334.059998 | G141: 84680200 | H141: 331.315796 | I141: 0.991785302 | J141: 1 | K141: 333.06 | L141: 334.2 | M141: 328.28 | N141: 331.32 | O141: 84680200
A142: 127 | B142: 2020-09-10 | C142: 341.820007 | D142: 342.529999 | E142: 332.850006 | F142: 333.890015 | G142: 90569500 | H142: 331.147217 | I142: 0.9917853249 | J142: 1 | K142: 339.01 | L142: 339.72 | M142: 330.12 | N142: 331.15 | O142: 90569500
A143: 128 | B143: 2020-09-09 | C143: 337.549988 | D143: 342.459991 | E143: 336.609985 | F143: 339.790009 | G143: 91462300 | H143: 336.998749 | I143: 0.9917853382 | J143: 1 | K143: 334.78 | L143: 339.65 | M143: 333.84 | N143: 337 | O143: 91462300
A144: 129 | B144: 2020-09-08 | C144: 336.709991 | D144: 342.640015 | E144: 332.880005 | F144: 333.209991 | G144: 114465300 | H144: 330.472778 | I144: 0.9917853213 | J144: 1 | K144: 333.94 | L144: 339.83 | M144: 330.15 | N144: 330.47 | O144: 114465300
A145: 130 | B145: 2020-09-04 | C145: 346.130005 | D145: 347.829987 | E145: 334.869995 | F145: 342.570007 | G145: 139156300 | H145: 339.75589 | I145: =IF(F145=0,1,H145/F145) -> 0.9917852791 | J145: =INDEX(OFFSET($T$15,0,0,$S$13+1,1),MATCH(B145,OFFSET($Q$15,0,0,$S$13+1,1),-1)) -> 1 | K145: =ROUND($I145*C145,2) -> 343.29 | L145: =ROUND($I145*D145,2) -> 344.97 | M145: =ROUND($I145*E145,2) -> 332.12 | N145: =ROUND($I145*F145,2) -> 339.76 | O145: =G145*J145 -> 139156300
A146: 131 | B146: 2020-09-03 | C146: 355.869995 | D146: 356.380005 | E146: 342.589996 | F146: 345.390015 | G146: 148011100 | H146: 342.552765 | I146: 0.9917853734 | J146: 1 | K146: 352.95 | L146: 353.45 | M146: 339.78 | N146: 342.55 | O146: 148011100
A147: 132 | B147: 2020-09-02 | C147: 354.670013 | D147: 358.75 | E147: 353.429993 | F147: 357.700012 | G147: 69540000 | H147: 354.761627 | I147: 0.9917853372 | J147: 1 | K147: 351.76 | L147: 355.8 | M147: 350.53 | N147: 354.76 | O147: 69540000
A148: 133 | B148: 2020-09-01 | C148: 350.209991 | D148: 352.709991 | E148: 349.23999 | F148: 352.600006 | G148: 54999300 | H148: 349.703522 | I148: 0.9917853546 | J148: 1 | K148: 347.33 | L148: 349.81 | M148: 346.37 | N148: 349.7 | O148: 54999300
A149: 134 | B149: 2020-08-31 | C149: 350.350006 | D149: 351.299988 | E149: 349.059998 | F149: 349.309998 | G149: 66099200 | H149: 346.440552 | I149: 0.9917853883 | J149: 1 | K149: 347.47 | L149: 348.41 | M149: 346.19 | N149: 346.44 | O149: 66099200
A150: 135 | B150: 2020-08-28 | C150: 349.440002 | D150: 350.720001 | E150: 348.149994 | F150: 350.579987 | G150: 48588900 | H150: 347.700104 | I150: 0.9917853754 | J150: 1 | K150: 346.57 | L150: 347.84 | M150: 345.29 | N150: 347.7 | O150: 48588900
A151: 136 | B151: 2020-08-27 | C151: 348.51001 | D151: 349.899994 | E151: 346.529999 | F151: 348.329987 | G151: 58034100 | H151: 345.468567 | I151: 0.9917853182 | J151: 1 | K151: 345.65 | L151: 347.03 | M151: 343.68 | N151: 345.47 | O151: 58034100
A152: 137 | B152: 2020-08-26 | C152: 344.76001 | D152: 347.859985 | E152: 344.170013 | F152: 347.570007 | G152: 50790200 | H152: 344.714844 | I152: 0.9917853585 | J152: 1 | K152: 341.93 | L152: 345 | M152: 341.34 | N152: 344.71 | O152: 50790200
A153: 138 | B153: 2020-08-25 | C153: 343.529999 | D153: 344.209991 | E153: 342.269989 | F153: 344.119995 | G153: 38463400 | H153: 341.293182 | I153: 0.9917853858 | J153: 1 | K153: 340.71 | L153: 341.38 | M153: 339.46 | N153: 341.29 | O153: 38463400
A154: 139 | B154: 2020-08-24 | C154: 342.119995 | D154: 343 | E154: 339.450012 | F154: 342.920013 | G154: 48588700 | H154: 340.103058 | I154: 0.9917853876 | J154: 1 | K154: 339.31 | L154: 340.18 | M154: 336.66 | N154: 340.1 | O154: 48588700
A155: 140 | B155: 2020-08-21 | C155: 337.920013 | D155: 339.720001 | E155: 337.549988 | F155: 339.480011 | G155: 55106600 | H155: 336.691284 | I155: 0.9917852984 | J155: 1 | K155: 335.14 | L155: 336.93 | M155: 334.78 | N155: 336.69 | O155: 55106600
A156: 141 | B156: 2020-08-20 | C156: 335.359985 | D156: 338.799988 | E156: 335.220001 | F156: 338.279999 | G156: 42207800 | H156: 335.50116 | I156: 0.9917853878 | J156: 1 | K156: 332.61 | L156: 336.02 | M156: 332.47 | N156: 335.5 | O156: 42207800
A157: 142 | B157: 2020-08-19 | C157: 339.049988 | D157: 339.609985 | E157: 336.619995 | F157: 337.230011 | G157: 68054200 | H157: 334.459778 | I157: 0.9917853308 | J157: 1 | K157: 336.26 | L157: 336.82 | M157: 333.85 | N157: 334.46 | O157: 68054200
A158: 143 | B158: 2020-08-18 | C158: 338.339996 | D158: 339.100006 | E158: 336.609985 | F158: 338.640015 | G158: 38733900 | H158: 335.858215 | I158: 0.9917853772 | J158: 1 | K158: 335.56 | L158: 336.31 | M158: 333.84 | N158: 335.86 | O158: 38733900
A159: 144 | B159: 2020-08-17 | C159: 337.940002 | D159: 338.339996 | E159: 336.850006 | F159: 337.910004 | G159: 35481000 | H159: 335.134186 | I159: 0.9917853335 | J159: 1 | K159: 335.16 | L159: 335.56 | M159: 334.08 | N159: 335.13 | O159: 35481000
A160: 145 | B160: 2020-08-14 | C160: 336.410004 | D160: 337.420013 | E160: 335.619995 | F160: 336.839996 | G160: 47260400 | H160: 334.072968 | I160: 0.9917853342 | J160: 1 | K160: 333.65 | L160: 334.65 | M160: 332.86 | N160: 334.07 | O160: 47260400
A161: 146 | B161: 2020-08-13 | C161: 336.609985 | D161: 338.25 | E161: 335.829987 | F161: 336.829987 | G161: 41816100 | H161: 334.063019 | I161: 0.9917852682 | J161: 1 | K161: 333.84 | L161: 335.47 | M161: 333.07 | N161: 334.06 | O161: 41816100
A162: 147 | B162: 2020-08-12 | C162: 335.440002 | D162: 338.279999 | E162: 335.410004 | F162: 337.440002 | G162: 53826100 | H162: 334.66806 | I162: 0.9917853782 | J162: 1 | K162: 332.68 | L162: 335.5 | M162: 332.65 | N162: 334.67 | O162: 53826100
A163: 148 | B163: 2020-08-11 | C163: 336.850006 | D163: 337.540009 | E163: 332.01001 | F163: 332.799988 | G163: 69601100 | H163: 330.066162 | I163: 0.9917853783 | J163: 1 | K163: 334.08 | L163: 334.77 | M163: 329.28 | N163: 330.07 | O163: 69601100
A164: 149 | B164: 2020-08-10 | C164: 335.059998 | D164: 335.769989 | E164: 332.959991 | F164: 335.570007 | G164: 44282100 | H164: 332.813416 | I164: 0.9917853475 | J164: 1 | K164: 332.31 | L164: 333.01 | M164: 330.22 | N164: 332.81 | O164: 44282100
A165: 150 | B165: 2020-08-07 | C165: 333.279999 | D165: 334.880005 | E165: 332.299988 | F165: 334.570007 | G165: 57308300 | H165: 331.821655 | I165: 0.9917854203 | J165: 1 | K165: 330.54 | L165: 332.13 | M165: 329.57 | N165: 331.82 | O165: 57308300
A166: 151 | B166: 2020-08-06 | C166: 331.480011 | D166: 334.459991 | E166: 331.130005 | F166: 334.329987 | G166: 43679400 | H166: 331.583588 | I166: 0.9917853644 | J166: 1 | K166: 328.76 | L166: 331.71 | M166: 328.41 | N166: 331.58 | O166: 43679400
A167: 152 | B167: 2020-08-05 | C167: 331.470001 | D167: 332.390015 | E167: 331.179993 | F167: 332.109985 | G167: 42866400 | H167: 329.381805 | I167: 0.9917853117 | J167: 1 | K167: 328.75 | L167: 329.66 | M167: 328.46 | N167: 329.38 | O167: 42866400
A168: 153 | B168: 2020-08-04 | C168: 327.859985 | D168: 330.059998 | E168: 327.859985 | F168: 330.059998 | G168: 41917900 | H168: 327.348663 | I168: 0.9917853269 | J168: 1 | K168: 325.17 | L168: 327.35 | M168: 325.17 | N168: 327.35 | O168: 41917900
A169: 154 | B169: 2020-08-03 | C169: 328.320007 | D169: 329.619995 | E169: 327.730011 | F169: 328.790009 | G169: 53077900 | H169: 326.089111 | I169: 0.9917853404 | J169: 1 | K169: 325.62 | L169: 326.91 | M169: 325.04 | N169: 326.09 | O169: 53077900
A170: 155 | B170: 2020-07-31 | C170: 325.899994 | D170: 326.630005 | E170: 321.329987 | F170: 326.519989 | G170: 85210800 | H170: 323.837738 | I170: 0.9917853391 | J170: 1 | K170: 323.22 | L170: 323.95 | M170: 318.69 | N170: 323.84 | O170: 85210800
A171: 156 | B171: 2020-07-30 | C171: 321.899994 | D171: 324.410004 | E171: 319.640015 | F171: 323.959991 | G171: 61861700 | H171: 321.298767 | I171: 0.9917853313 | J171: 1 | K171: 319.26 | L171: 321.75 | M171: 317.01 | N171: 321.3 | O171: 61861700
A172: 157 | B172: 2020-07-29 | C172: 322.119995 | D172: 325.730011 | E172: 322.079987 | F172: 325.119995 | G172: 48454200 | H172: 322.449249 | I172: 0.991785353 | J172: 1 | K172: 319.47 | L172: 323.05 | M172: 319.43 | N172: 322.45 | O172: 48454200
A173: 158 | B173: 2020-07-28 | C173: 322.429993 | D173: 323.640015 | E173: 320.850006 | F173: 321.170013 | G173: 57495000 | H173: 318.531708 | I173: 0.9917853321 | J173: 1 | K173: 319.78 | L173: 320.98 | M173: 318.21 | N173: 318.53 | O173: 57495000
A174: 159 | B174: 2020-07-27 | C174: 321.630005 | D174: 323.410004 | E174: 320.769989 | F174: 323.220001 | G174: 48293000 | H174: 320.56485 | I174: 0.9917853134 | J174: 1 | K174: 318.99 | L174: 320.75 | M174: 318.13 | N174: 320.56 | O174: 48293000
A175: 160 | B175: 2020-07-24 | C175: 320.950012 | D175: 321.98999 | E175: 319.25 | F175: 320.880005 | G175: 73766600 | H175: 318.24408 | I175: 0.9917853249 | J175: 1 | K175: 318.31 | L175: 319.34 | M175: 316.63 | N175: 318.24 | O175: 73766600
A176: 161 | B176: 2020-07-23 | C176: 326.470001 | D176: 327.230011 | E176: 321.480011 | F176: 322.959991 | G176: 75738000 | H176: 320.306976 | I176: 0.9917853137 | J176: 1 | K176: 323.79 | L176: 324.54 | M176: 318.84 | N176: 320.31 | O176: 75738000
A177: 162 | B177: 2020-07-22 | C177: 324.619995 | D177: 327.200012 | E177: 324.5 | F177: 326.859985 | G177: 57792900 | H177: 324.174957 | I177: 0.9917853879 | J177: 1 | K177: 321.95 | L177: 324.51 | M177: 321.83 | N177: 324.17 | O177: 57792900
A178: 163 | B178: 2020-07-21 | C178: 326.450012 | D178: 326.929993 | E178: 323.940002 | F178: 325.01001 | G178: 57499000 | H178: 322.340179 | I178: 0.9917853884 | J178: 1 | K178: 323.77 | L178: 324.24 | M178: 321.28 | N178: 322.34 | O178: 57499000
A179: 164 | B179: 2020-07-20 | C179: 321.429993 | D179: 325.130005 | E179: 320.619995 | F179: 324.320007 | G179: 56308800 | H179: 321.655823 | I179: 0.9917853233 | J179: 1 | K179: 318.79 | L179: 322.46 | M179: 317.99 | N179: 321.66 | O179: 56308800
A180: 165 | B180: 2020-07-17 | C180: 321.880005 | D180: 322.570007 | E180: 319.73999 | F180: 321.720001 | G180: 62774900 | H180: 319.077179 | I180: 0.9917853351 | J180: 1 | K180: 319.24 | L180: 319.92 | M180: 317.11 | N180: 319.08 | O180: 62774900
A181: 166 | B181: 2020-07-16 | C181: 319.790009 | D181: 321.279999 | E181: 319.089996 | F181: 320.790009 | G181: 54622500 | H181: 318.154846 | I181: 0.9917853957 | J181: 1 | K181: 317.16 | L181: 318.64 | M181: 316.47 | N181: 318.15 | O181: 54622500
A182: 167 | B182: 2020-07-15 | C182: 322.410004 | D182: 323.040009 | E182: 319.269989 | F182: 321.850006 | G182: 87196500 | H182: 319.206116 | I182: 0.9917853349 | J182: 1 | K182: 319.76 | L182: 320.39 | M182: 316.65 | N182: 319.21 | O182: 87196500
A183: 168 | B183: 2020-07-14 | C183: 313.299988 | D183: 319.76001 | E183: 312 | F183: 318.920013 | G183: 93657000 | H183: 316.300201 | I183: 0.9917853634 | J183: 1 | K183: 310.73 | L183: 317.13 | M183: 309.44 | N183: 316.3 | O183: 93657000
A184: 169 | B184: 2020-07-13 | C184: 320.130005 | D184: 322.709991 | E184: 314.130005 | F184: 314.839996 | G184: 102997500 | H184: 312.253693 | I184: 0.9917853417 | J184: 1 | K184: 317.5 | L184: 320.06 | M184: 311.55 | N184: 312.25 | O184: 102997500
A185: 170 | B185: 2020-07-10 | C185: 314.309998 | D185: 317.880005 | E185: 312.76001 | F185: 317.589996 | G185: 57550400 | H185: 314.98111 | I185: 0.9917853647 | J185: 1 | K185: 311.73 | L185: 315.27 | M185: 310.19 | N185: 314.98 | O185: 57550400
A186: 171 | B186: 2020-07-09 | C186: 316.839996 | D186: 317.100006 | E186: 310.679993 | F186: 314.380005 | G186: 83354200 | H186: 311.797455 | I186: 0.99178526 | J186: 1 | K186: 314.24 | L186: 314.5 | M186: 308.13 | N186: 311.8 | O186: 83354200
A187: 172 | B187: 2020-07-08 | C187: 314.609985 | D187: 316.299988 | E187: 312.700012 | F187: 316.179993 | G187: 54638600 | H187: 313.582672 | I187: 0.9917853088 | J187: 1 | K187: 312.03 | L187: 313.7 | M187: 310.13 | N187: 313.58 | O187: 54638600
A188: 173 | B188: 2020-07-07 | C188: 315.380005 | D188: 317.519989 | E188: 313.369995 | F188: 313.779999 | G188: 82910000 | H188: 311.202423 | I188: 0.9917854038 | J188: 1 | K188: 312.79 | L188: 314.91 | M188: 310.8 | N188: 311.2 | O188: 82910000
A189: 174 | B189: 2020-07-06 | C189: 316.369995 | D189: 317.679993 | E189: 315.559998 | F189: 317.049988 | G189: 61713800 | H189: 314.445557 | I189: 0.9917854247 | J189: 1 | K189: 313.77 | L189: 315.07 | M189: 312.97 | N189: 314.45 | O189: 61713800
A190: 175 | B190: 2020-07-02 | C190: 314.23999 | D190: 315.700012 | E190: 311.51001 | F190: 312.230011 | G190: 69344200 | H190: 309.665131 | I190: 0.9917852868 | J190: 1 | K190: 311.66 | L190: 313.11 | M190: 308.95 | N190: 309.67 | O190: 69344200
A191: 176 | B191: 2020-07-01 | C191: 309.570007 | D191: 311.890015 | E191: 309.070007 | F191: 310.519989 | G191: 72396500 | H191: 307.969177 | I191: 0.9917853533 | J191: 1 | K191: 307.03 | L191: 309.33 | M191: 306.53 | N191: 307.97 | O191: 72396500
A192: 177 | B192: 2020-06-30 | C192: 303.98999 | D192: 310.200012 | E192: 303.820007 | F192: 308.359985 | G192: 113394800 | H192: 305.826904 | I192: 0.9917853122 | J192: 1 | K192: 301.49 | L192: 307.65 | M192: 301.32 | N192: 305.83 | O192: 113394800
A193: 178 | B193: 2020-06-29 | C193: 301.410004 | D193: 304.609985 | E193: 298.929993 | F193: 304.459991 | G193: 79773300 | H193: 301.958954 | I193: 0.9917853344 | J193: 1 | K193: 298.93 | L193: 302.11 | M193: 296.47 | N193: 301.96 | O193: 79773300
A194: 179 | B194: 2020-06-26 | C194: 306.160004 | D194: 306.390015 | E194: 299.420013 | F194: 300.049988 | G194: 127961000 | H194: 297.585205 | I194: 0.9917854254 | J194: 1 | K194: 303.65 | L194: 303.87 | M194: 296.96 | N194: 297.59 | O194: 127961000
A195: 180 | B195: 2020-06-25 | C195: 303.470001 | D195: 307.640015 | E195: 301.279999 | F195: 307.350006 | G195: 89468000 | H195: 304.825226 | I195: 0.9917853263 | J195: 1 | K195: 300.98 | L195: 305.11 | M195: 298.81 | N195: 304.83 | O195: 89468000
A196: 181 | B196: 2020-06-24 | C196: 309.839996 | D196: 310.51001 | E196: 302.100006 | F196: 304.089996 | G196: 132813500 | H196: 301.59201 | I196: 0.9917853726 | J196: 1 | K196: 307.29 | L196: 307.96 | M196: 299.62 | N196: 301.59 | O196: 132813500
A197: 182 | B197: 2020-06-23 | C197: 313.48999 | D197: 314.5 | E197: 311.609985 | F197: 312.049988 | G197: 68471200 | H197: 309.486603 | I197: 0.9917853386 | J197: 1 | K197: 310.91 | L197: 311.92 | M197: 309.05 | N197: 309.49 | O197: 68471200
A198: 183 | B198: 2020-06-22 | C198: 307.98999 | D198: 311.049988 | E198: 306.75 | F198: 310.619995 | G198: 74649400 | H198: 308.068359 | I198: 0.9917853453 | J198: 1 | K198: 305.46 | L198: 308.49 | M198: 304.23 | N198: 308.07 | O198: 74649400
A199: 184 | B199: 2020-06-19 | C199: 314.170013 | D199: 314.380005 | E199: 306.529999 | F199: 308.640015 | G199: 135549600 | H199: 306.104645 | I199: 0.991785349 | J199: 1 | K199: 311.59 | L199: 311.8 | M199: 304.01 | N199: 306.1 | O199: 135549600
A200: 185 | B200: 2020-06-18 | C200: 310.01001 | D200: 312.299988 | E200: 309.51001 | F200: 311.779999 | G200: 80828700 | H200: 307.864044 | I200: 0.9874400057 | J200: 1 | K200: 306.12 | L200: 308.38 | M200: 305.62 | N200: 307.86 | O200: 80828700
... 4300 more rows

Sheet CalculationsAndCharts
A1: AM-FM.xlsm
A2: =InputPriceData!A1 -> SPDR S&P 500 ETF Trust (SPY) -NYSEArca (Daily)
A4: User Charting Controls | E4: Click to Shift Chart One Bar:
A5: Data Control | C5: TRUE
A6: =InputPriceData!$B$10 -> 7081 | B6: Available Input Data Rows | E6: Earliest: | F6: =OFFSET(InputPriceData!B15,CalculationsAndCharts!A6,0,1,1) -> 1993-01-29
A7: =MAX(A33:A56896) -> 1250 | B7: Available Calculation Rows | E7: Latest: | F7: =OFFSET(InputPriceData!B15,1,0,1,1) -> 2021-03-12
A8: =MIN(AvailableInputRows-DataPanRows,A7) -> 1250 | B8: Logically Available for Calc / Plot | E8: $ Change: | F8: =G33-G34 -> 4.39
A10: Historical Price Windowing Specifications | F10: Click to Shift
A11: 84 | B11: Input Data Offset (Pan) | F11: Points to Plot
A12: 638 | B12: Data Points to Plot (Zoom)
B13: First: | C13: =OFFSET(B32,A12,0,1,1) -> 2018-05-01
B14: ="Last: " & IF(OFFSET(InputPriceData!P15,1+A11,0,1,1)="","",TEXT(OFFSET(InputPriceData!P15,1+A11,0,1,1),"H:MM AM/PM")) -> Last: | C14: =B33 -> 2020-11-09
A15: User Controls
A16: AM Detector | D16: FM DEMODULATOR
A17: 4 | B17: Envelope Length | D17: Calulated "semi Constants" | R17: 8
A18: 8 | B18: Volatility Length | E18: Super Smoother Coeff for Period = | F18: 30
D19: a1 = | E19: =EXP(-1.414*3.14159/F18) -> 0.8623676349
D20: b1 = | E20: =2*E19*COS(RADIANS(1.414*180/F18)) -> 1.705861666
D21: c2 = | E21: =E20 -> 1.705861666
D22: c3 = | E22: =-E19*E19 -> -0.7436779377
D23: c1 = | E23: =1-E21-E22 -> 0.03781627184
A25: Help! I would like to plot data
A26: From | B26: 2018-05-01 | C26: =OFFSET(InputPriceData!$A$15,MATCH(B26,OFFSET(InputPriceData!B15,1,0,InputPriceData!$B$10,1),0),0,1,1)-C27 -> 638 | E26: 607
A27: To | B27: 2020-11-09 | C27: =OFFSET(InputPriceData!$A$15,MATCH(B27,OFFSET(InputPriceData!$B$15,1,0,InputPriceData!$B$10,1),0),0,1,1)-1 -> 84 | E27: =$A$12-$E$26+1 -> 32
H28: Value @ Cursor => | I28: =OFFSET(A32,$E$27,0,1,1)&"(RR)" -> 32(RR) | J28: =OFFSET($B$32,E27,0,1,1) -> 2020-09-25 | K28: =TEXT(OFFSET(D32,$E$27,0,1,1),"#,##0.00")&"(o)" -> 321.21(o) | L28: =TEXT(OFFSET(E32,$E$27,0,1,1),"#,##0.00")&"(h)" -> 328.18(h) | M28: =TEXT(OFFSET(F32,$E$27,0,1,1),"#,##0.00")&"(l)" -> 320.27(l) | N28: =TEXT(OFFSET(G32,$E$27,0,1,1),"#,##0.00")&"(c)" -> 327.33(c) | O28: =TEXT(OFFSET(C32,$E$27,0,1,1),"#,##0.00,,""M""")&"(v)" -> 71.07M(v)
E29: Cursor ==> | AY29: Work Area For Chart Cursors
B30: =LogicallyAvailableRows -> 1250 | C30: <== Calculation Rel Row Limits ==> | H30: =LogicallyAvailableRows -> 1250 | J30: =LogicallyAvailableRows-$A$17+1 -> 1247 | K30: =LogicallyAvailableRows-$A$17-A18+2 -> 1240 | N30: =LogicallyAvailableRows -> 1250 | P30: =LogicallyAvailableRows-3+1 -> 1248
A31: Rel Row | H31: AM DETECTOR | N31: FM DEMODULATOR | AW31: Used To Color Vol Bars
B32: Date | C32: Volume | D32: Open | E32: High | F32: Low | G32: Close | H32: Whitener | I32: ABS(Deriv) | J32: ="Envel(" &A17& ")" -> Envel(4) | K32: ="Volatil("&A18&")" -> Volatil(8) | N32: 10 x Whitener | O32: Hard Limit | P32: SS | AW32: Up Vol | AX32: Dn Vol | AY32: Volume Cursor | AZ32: =MAX(OFFSET(C33,0,0,A12,1)) -> 392220700 | BA32: Price Chart Cursor | BC32: Indicator 01 Cursor | BE32: Indicator 02 Cursor | BG32: Indicator 03 Cursor | BI32: Indicator 04 Cursor
A33: 1 | B33: =IF(A33>$B$30,NA(),IF($A33>$A$8,"",OFFSET(InputPriceData!$B$15,$A33+$A$11,0,1,1))) -> 2020-11-09 | C33: =IF(A33>$B$30,NA(),IF($A33>$A$8,"",OFFSET(InputPriceData!$G$15,CalculationsAndCharts!$A33+$A$11,IF($C$5,8,0),1,1))) -> 172304200 | D33: =IF(A33>$B$30,NA(),IF(A33>$A$8,"",OFFSET(InputPriceData!$C$15,CalculationsAndCharts!$A33+$A$11,IF($C$5,8,0),1,1))) -> 362.43 | E33: =IF(A33>$B$30,NA(),IF(A33>$A$8,"",OFFSET(InputPriceData!$D$15,CalculationsAndCharts!$A33+$A$11,IF($C$5,8,0),1,1))) -> 362.83 | F33: =IF(A33>$B$30,NA(),IF(A33>$A$8,"",OFFSET(InputPriceData!$E$15,CalculationsAndCharts!$A33+$A$11,IF($C$5,8,0),1,1))) -> 352.56 | G33: =IF(A33>$B$30,NA(),IF(A33>$A$8,"",OFFSET(InputPriceData!$F$15,CalculationsAndCharts!$A33+$A$11,IF($C$5,8,0),1,1))) -> 353.06 | H33: =IF($A33>$H$30,NA(),G33-D33) -> -9.37 | I33: =IF($A33>$H$30,NA(),ABS(H33)) -> 9.37 | J33: =IF($A33>$J$30,NA(),MAX(OFFSET(I33,0,0,$A$17,1))) -> 9.37 | K33: =IF($A33>$K$30,NA(),AVERAGE(OFFSET(J33,0,0,$A$18,1))) -> 4.5875 | N33: =IF($A33>$N$30,NA(),10*H33) -> -93.7 | O33: =IF($A33>$N$30,NA(),IF(N33<-1,-1,IF(N33>1,1,N33))) -> -1 | P33: =IF($A33>$A$8,NA(),IF($A33>$P$30,O33,$E$23*(O33+O34)/2+$E$21*P34+$E$22*P35)) -> -0.05486815545 | AW33: =IF(G33>=D33,C33,NA()) ->  | AX33: =IF(G33<D33,C33,NA()) -> 172304200 | AY33: =$E$27 -> 32 | AZ33: 0 | BA33: =$E$27 -> 32 | BB33: 210.132 | BC33: =$E$27 -> 32 | BD33: 0 | BE33: =$E$27 -> 32 | BF33: -0.8 | BG33: =$E$27 -> 32 | BH33: -13.6 | BI33: =$E$27 -> 32 | BJ33: -1
A34: 2 | B34: =IF(A34>$B$30,NA(),IF($A34>$A$8,"",OFFSET(InputPriceData!$B$15,$A34+$A$11,0,1,1))) -> 2020-11-06 | C34: =IF(A34>$B$30,NA(),IF($A34>$A$8,"",OFFSET(InputPriceData!$G$15,CalculationsAndCharts!$A34+$A$11,IF($C$5,8,0),1,1))) -> 74973000 | D34: =IF(A34>$B$30,NA(),IF(A34>$A$8,"",OFFSET(InputPriceData!$C$15,CalculationsAndCharts!$A34+$A$11,IF($C$5,8,0),1,1))) -> 348.44 | E34: =IF(A34>$B$30,NA(),IF(A34>$A$8,"",OFFSET(InputPriceData!$D$15,CalculationsAndCharts!$A34+$A$11,IF($C$5,8,0),1,1))) -> 350.02 | F34: =IF(A34>$B$30,NA(),IF(A34>$A$8,"",OFFSET(InputPriceData!$E$15,CalculationsAndCharts!$A34+$A$11,IF($C$5,8,0),1,1))) -> 346.17 | G34: =IF(A34>$B$30,NA(),IF(A34>$A$8,"",OFFSET(InputPriceData!$F$15,CalculationsAndCharts!$A34+$A$11,IF($C$5,8,0),1,1))) -> 348.67 | H34: =IF($A34>$H$30,NA(),G34-D34) -> 0.23 | I34: =IF($A34>$H$30,NA(),ABS(H34)) -> 0.23 | J34: =IF($A34>$J$30,NA(),MAX(OFFSET(I34,0,0,$A$17,1))) -> 2.67 | K34: =IF($A34>$K$30,NA(),AVERAGE(OFFSET(J34,0,0,$A$18,1))) -> 4.09375 | N34: =IF($A34>$N$30,NA(),10*H34) -> 2.3 | O34: =IF($A34>$N$30,NA(),IF(N34<-1,-1,IF(N34>1,1,N34))) -> 1 | P34: =IF($A34>$A$8,NA(),IF($A34>$P$30,O34,$E$23*(O34+O35)/2+$E$21*P35+$E$22*P36)) -> -0.1557387703 | AW34: 74973000 | AY34: =$E$27 -> 32 | AZ34: =CEILING(AZ32,10^INT(LOG10(AZ32))/8) -> 400000000 | BA34: =$E$27 -> 32 | BB34: 371.90075 | BC34: =$E$27 -> 32 | BD34: 13 | BE34: =$E$27 -> 32 | BF34: 0.8 | BG34: =$E$27 -> 32 | BH34: 13.6 | BI34: =$E$27 -> 32 | BJ34: 1
A35: 3 | B35: =IF(A35>$B$30,NA(),IF($A35>$A$8,"",OFFSET(InputPriceData!$B$15,$A35+$A$11,0,1,1))) -> 2020-11-05 | C35: =IF(A35>$B$30,NA(),IF($A35>$A$8,"",OFFSET(InputPriceData!$G$15,CalculationsAndCharts!$A35+$A$11,IF($C$5,8,0),1,1))) -> 82039700 | D35: =IF(A35>$B$30,NA(),IF(A35>$A$8,"",OFFSET(InputPriceData!$C$15,CalculationsAndCharts!$A35+$A$11,IF($C$5,8,0),1,1))) -> 347.76 | E35: =IF(A35>$B$30,NA(),IF(A35>$A$8,"",OFFSET(InputPriceData!$D$15,CalculationsAndCharts!$A35+$A$11,IF($C$5,8,0),1,1))) -> 350.7 | F35: =IF(A35>$B$30,NA(),IF(A35>$A$8,"",OFFSET(InputPriceData!$E$15,CalculationsAndCharts!$A35+$A$11,IF($C$5,8,0),1,1))) -> 347.38 | G35: =IF(A35>$B$30,NA(),IF(A35>$A$8,"",OFFSET(InputPriceData!$F$15,CalculationsAndCharts!$A35+$A$11,IF($C$5,8,0),1,1))) -> 348.75 | H35: 0.99 | I35: 0.99 | J35: 2.67 | K35: 4.10125 | N35: =IF($A35>$N$30,NA(),10*H35) -> 9.9 | O35: =IF($A35>$N$30,NA(),IF(N35<-1,-1,IF(N35>1,1,N35))) -> 1 | P35: -0.2834568997 | AW35: 82039700
A36: 4 | B36: =IF(A36>$B$30,NA(),IF($A36>$A$8,"",OFFSET(InputPriceData!$B$15,$A36+$A$11,0,1,1))) -> 2020-11-04 | C36: =IF(A36>$B$30,NA(),IF($A36>$A$8,"",OFFSET(InputPriceData!$G$15,CalculationsAndCharts!$A36+$A$11,IF($C$5,8,0),1,1))) -> 126959700 | D36: =IF(A36>$B$30,NA(),IF(A36>$A$8,"",OFFSET(InputPriceData!$C$15,CalculationsAndCharts!$A36+$A$11,IF($C$5,8,0),1,1))) -> 339.41 | E36: =IF(A36>$B$30,NA(),IF(A36>$A$8,"",OFFSET(InputPriceData!$D$15,CalculationsAndCharts!$A36+$A$11,IF($C$5,8,0),1,1))) -> 346.46 | F36: =IF(A36>$B$30,NA(),IF(A36>$A$8,"",OFFSET(InputPriceData!$E$15,CalculationsAndCharts!$A36+$A$11,IF($C$5,8,0),1,1))) -> 338.15 | G36: =IF(A36>$B$30,NA(),IF(A36>$A$8,"",OFFSET(InputPriceData!$F$15,CalculationsAndCharts!$A36+$A$11,IF($C$5,8,0),1,1))) -> 342.08 | H36: 2.67 | I36: 2.67 | J36: 2.67 | K36: 4.10875 | N36: =IF($A36>$N$30,NA(),10*H36) -> 26.7 | O36: =IF($A36>$N$30,NA(),IF(N36<-1,-1,IF(N36>1,1,N36))) -> 1 | P36: -0.3899311817 | AW36: 126959700
A37: 5 | B37: =IF(A37>$B$30,NA(),IF($A37>$A$8,"",OFFSET(InputPriceData!$B$15,$A37+$A$11,0,1,1))) -> 2020-11-03 | C37: =IF(A37>$B$30,NA(),IF($A37>$A$8,"",OFFSET(InputPriceData!$G$15,CalculationsAndCharts!$A37+$A$11,IF($C$5,8,0),1,1))) -> 93294200 | D37: =IF(A37>$B$30,NA(),IF(A37>$A$8,"",OFFSET(InputPriceData!$C$15,CalculationsAndCharts!$A37+$A$11,IF($C$5,8,0),1,1))) -> 332.27 | E37: =IF(A37>$B$30,NA(),IF(A37>$A$8,"",OFFSET(InputPriceData!$D$15,CalculationsAndCharts!$A37+$A$11,IF($C$5,8,0),1,1))) -> 336.81 | F37: =IF(A37>$B$30,NA(),IF(A37>$A$8,"",OFFSET(InputPriceData!$E$15,CalculationsAndCharts!$A37+$A$11,IF($C$5,8,0),1,1))) -> 328.89 | G37: =IF(A37>$B$30,NA(),IF(A37>$A$8,"",OFFSET(InputPriceData!$F$15,CalculationsAndCharts!$A37+$A$11,IF($C$5,8,0),1,1))) -> 334.6 | H37: 2.33 | I37: 2.33 | J37: 3.06 | K37: 3.98125 | N37: =IF($A37>$N$30,NA(),10*H37) -> 23.3 | O37: =IF($A37>$N$30,NA(),IF(N37<-1,-1,IF(N37>1,1,N37))) -> 1 | P37: -0.4624252869 | AW37: 93294200
A38: 6 | B38: =IF(A38>$B$30,NA(),IF($A38>$A$8,"",OFFSET(InputPriceData!$B$15,$A38+$A$11,0,1,1))) -> 2020-11-02 | C38: =IF(A38>$B$30,NA(),IF($A38>$A$8,"",OFFSET(InputPriceData!$G$15,CalculationsAndCharts!$A38+$A$11,IF($C$5,8,0),1,1))) -> 86068300 | D38: =IF(A38>$B$30,NA(),IF(A38>$A$8,"",OFFSET(InputPriceData!$C$15,CalculationsAndCharts!$A38+$A$11,IF($C$5,8,0),1,1))) -> 328.8 | E38: =IF(A38>$B$30,NA(),IF(A38>$A$8,"",OFFSET(InputPriceData!$D$15,CalculationsAndCharts!$A38+$A$11,IF($C$5,8,0),1,1))) -> 330.95 | F38: =IF(A38>$B$30,NA(),IF(A38>$A$8,"",OFFSET(InputPriceData!$E$15,CalculationsAndCharts!$A38+$A$11,IF($C$5,8,0),1,1))) -> 325.85 | G38: =IF(A38>$B$30,NA(),IF(A38>$A$8,"",OFFSET(InputPriceData!$F$15,CalculationsAndCharts!$A38+$A$11,IF($C$5,8,0),1,1))) -> 328.8 | H38: 0 | I38: 0 | J38: 5.42 | K38: 4.425 | N38: =IF($A38>$N$30,NA(),10*H38) -> 0 | O38: =IF($A38>$N$30,NA(),IF(N38<-1,-1,IF(N38>1,1,N38))) -> 0 | P38: -0.4855409826 | AW38: 86068300
A39: 7 | B39: =IF(A39>$B$30,NA(),IF($A39>$A$8,"",OFFSET(InputPriceData!$B$15,$A39+$A$11,0,1,1))) -> 2020-10-30 | C39: =IF(A39>$B$30,NA(),IF($A39>$A$8,"",OFFSET(InputPriceData!$G$15,CalculationsAndCharts!$A39+$A$11,IF($C$5,8,0),1,1))) -> 120287300 | D39: =IF(A39>$B$30,NA(),IF(A39>$A$8,"",OFFSET(InputPriceData!$C$15,CalculationsAndCharts!$A39+$A$11,IF($C$5,8,0),1,1))) -> 326.89 | E39: =IF(A39>$B$30,NA(),IF(A39>$A$8,"",OFFSET(InputPriceData!$D$15,CalculationsAndCharts!$A39+$A$11,IF($C$5,8,0),1,1))) -> 328.29 | F39: =IF(A39>$B$30,NA(),IF(A39>$A$8,"",OFFSET(InputPriceData!$E$15,CalculationsAndCharts!$A39+$A$11,IF($C$5,8,0),1,1))) -> 321.23 | G39: =IF(A39>$B$30,NA(),IF(A39>$A$8,"",OFFSET(InputPriceData!$F$15,CalculationsAndCharts!$A39+$A$11,IF($C$5,8,0),1,1))) -> 325.15 | H39: -1.74 | I39: 1.74 | J39: 5.42 | K39: 4.57375 | N39: =IF($A39>$N$30,NA(),10*H39) -> -17.4 | O39: =IF($A39>$N$30,NA(),IF(N39<-1,-1,IF(N39>1,1,N39))) -> -1 | P39: -0.4665088328 | AX39: 120287300
A40: 8 | B40: =IF(A40>$B$30,NA(),IF($A40>$A$8,"",OFFSET(InputPriceData!$B$15,$A40+$A$11,0,1,1))) -> 2020-10-29 | C40: =IF(A40>$B$30,NA(),IF($A40>$A$8,"",OFFSET(InputPriceData!$G$15,CalculationsAndCharts!$A40+$A$11,IF($C$5,8,0),1,1))) -> 90597700 | D40: =IF(A40>$B$30,NA(),IF(A40>$A$8,"",OFFSET(InputPriceData!$C$15,CalculationsAndCharts!$A40+$A$11,IF($C$5,8,0),1,1))) -> 325.52 | E40: =IF(A40>$B$30,NA(),IF(A40>$A$8,"",OFFSET(InputPriceData!$D$15,CalculationsAndCharts!$A40+$A$11,IF($C$5,8,0),1,1))) -> 331.98 | F40: =IF(A40>$B$30,NA(),IF(A40>$A$8,"",OFFSET(InputPriceData!$E$15,CalculationsAndCharts!$A40+$A$11,IF($C$5,8,0),1,1))) -> 323.71 | G40: =IF(A40>$B$30,NA(),IF(A40>$A$8,"",OFFSET(InputPriceData!$F$15,CalculationsAndCharts!$A40+$A$11,IF($C$5,8,0),1,1))) -> 328.58 | H40: 3.06 | I40: 3.06 | J40: 5.42 | K40: 4.7225 | N40: =IF($A40>$N$30,NA(),10*H40) -> 30.6 | O40: =IF($A40>$N$30,NA(),IF(N40<-1,-1,IF(N40>1,1,N40))) -> 1 | P40: -0.4426199451 | AW40: 90597700
A41: 9 | B41: =IF(A41>$B$30,NA(),IF($A41>$A$8,"",OFFSET(InputPriceData!$B$15,$A41+$A$11,0,1,1))) -> 2020-10-28 | C41: =IF(A41>$B$30,NA(),IF($A41>$A$8,"",OFFSET(InputPriceData!$G$15,CalculationsAndCharts!$A41+$A$11,IF($C$5,8,0),1,1))) -> 127094300 | D41: =IF(A41>$B$30,NA(),IF(A41>$A$8,"",OFFSET(InputPriceData!$C$15,CalculationsAndCharts!$A41+$A$11,IF($C$5,8,0),1,1))) -> 330.69 | E41: =IF(A41>$B$30,NA(),IF(A41>$A$8,"",OFFSET(InputPriceData!$D$15,CalculationsAndCharts!$A41+$A$11,IF($C$5,8,0),1,1))) -> 336.81 | F41: =IF(A41>$B$30,NA(),IF(A41>$A$8,"",OFFSET(InputPriceData!$E$15,CalculationsAndCharts!$A41+$A$11,IF($C$5,8,0),1,1))) -> 324.75 | G41: =IF(A41>$B$30,NA(),IF(A41>$A$8,"",OFFSET(InputPriceData!$F$15,CalculationsAndCharts!$A41+$A$11,IF($C$5,8,0),1,1))) -> 325.27 | H41: -5.42 | I41: 5.42 | J41: 5.42 | K41: 4.87125 | N41: =IF($A41>$N$30,NA(),10*H41) -> -54.2 | O41: =IF($A41>$N$30,NA(),IF(N41<-1,-1,IF(N41>1,1,N41))) -> -1 | P41: -0.3879899476 | AX41: 127094300
A42: 10 | B42: =IF(A42>$B$30,NA(),IF($A42>$A$8,"",OFFSET(InputPriceData!$B$15,$A42+$A$11,0,1,1))) -> 2020-10-27 | C42: =IF(A42>$B$30,NA(),IF($A42>$A$8,"",OFFSET(InputPriceData!$G$15,CalculationsAndCharts!$A42+$A$11,IF($C$5,8,0),1,1))) -> 65994100 | D42: =IF(A42>$B$30,NA(),IF(A42>$A$8,"",OFFSET(InputPriceData!$C$15,CalculationsAndCharts!$A42+$A$11,IF($C$5,8,0),1,1))) -> 338.32 | E42: =IF(A42>$B$30,NA(),IF(A42>$A$8,"",OFFSET(InputPriceData!$D$15,CalculationsAndCharts!$A42+$A$11,IF($C$5,8,0),1,1))) -> 338.68 | F42: =IF(A42>$B$30,NA(),IF(A42>$A$8,"",OFFSET(InputPriceData!$E$15,CalculationsAndCharts!$A42+$A$11,IF($C$5,8,0),1,1))) -> 336.56 | G42: =IF(A42>$B$30,NA(),IF(A42>$A$8,"",OFFSET(InputPriceData!$F$15,CalculationsAndCharts!$A42+$A$11,IF($C$5,8,0),1,1))) -> 336.78 | H42: -1.54 | I42: 1.54 | J42: 2.73 | K42: 4.66625 | N42: =IF($A42>$N$30,NA(),10*H42) -> -15.4 | O42: =IF($A42>$N$30,NA(),IF(N42<-1,-1,IF(N42>1,1,N42))) -> -1 | P42: -0.294801314 | AX42: 65994100
A43: 11 | B43: =IF(A43>$B$30,NA(),IF($A43>$A$8,"",OFFSET(InputPriceData!$B$15,$A43+$A$11,0,1,1))) -> 2020-10-26 | C43: =IF(A43>$B$30,NA(),IF($A43>$A$8,"",OFFSET(InputPriceData!$G$15,CalculationsAndCharts!$A43+$A$11,IF($C$5,8,0),1,1))) -> 91473000 | D43: =IF(A43>$B$30,NA(),IF(A43>$A$8,"",OFFSET(InputPriceData!$C$15,CalculationsAndCharts!$A43+$A$11,IF($C$5,8,0),1,1))) -> 340.68 | E43: =IF(A43>$B$30,NA(),IF(A43>$A$8,"",OFFSET(InputPriceData!$D$15,CalculationsAndCharts!$A43+$A$11,IF($C$5,8,0),1,1))) -> 341.52 | F43: =IF(A43>$B$30,NA(),IF(A43>$A$8,"",OFFSET(InputPriceData!$E$15,CalculationsAndCharts!$A43+$A$11,IF($C$5,8,0),1,1))) -> 334.2 | G43: =IF(A43>$B$30,NA(),IF(A43>$A$8,"",OFFSET(InputPriceData!$F$15,CalculationsAndCharts!$A43+$A$11,IF($C$5,8,0),1,1))) -> 337.95 | H43: -2.73 | I43: 2.73 | J43: 2.73 | K43: 4.7975 | N43: =IF($A43>$N$30,NA(),10*H43) -> -27.3 | O43: =IF($A43>$N$30,NA(),IF(N43<-1,-1,IF(N43>1,1,N43))) -> -1 | P43: -0.2053531201 | AX43: 91473000
A44: 12 | B44: =IF(A44>$B$30,NA(),IF($A44>$A$8,"",OFFSET(InputPriceData!$B$15,$A44+$A$11,0,1,1))) -> 2020-10-23 | C44: =IF(A44>$B$30,NA(),IF($A44>$A$8,"",OFFSET(InputPriceData!$G$15,CalculationsAndCharts!$A44+$A$11,IF($C$5,8,0),1,1))) -> 49143900 | D44: =IF(A44>$B$30,NA(),IF(A44>$A$8,"",OFFSET(InputPriceData!$C$15,CalculationsAndCharts!$A44+$A$11,IF($C$5,8,0),1,1))) -> 344.46 | E44: =IF(A44>$B$30,NA(),IF(A44>$A$8,"",OFFSET(InputPriceData!$D$15,CalculationsAndCharts!$A44+$A$11,IF($C$5,8,0),1,1))) -> 344.52 | F44: =IF(A44>$B$30,NA(),IF(A44>$A$8,"",OFFSET(InputPriceData!$E$15,CalculationsAndCharts!$A44+$A$11,IF($C$5,8,0),1,1))) -> 341.67 | G44: =IF(A44>$B$30,NA(),IF(A44>$A$8,"",OFFSET(InputPriceData!$F$15,CalculationsAndCharts!$A44+$A$11,IF($C$5,8,0),1,1))) -> 344.31 | H44: -0.15 | I44: 0.15 | J44: 1.65 | K44: 4.80875 | N44: =IF($A44>$N$30,NA(),10*H44) -> -1.5 | O44: =IF($A44>$N$30,NA(),IF(N44<-1,-1,IF(N44>1,1,N44))) -> -1 | P44: -0.1254830467 | AX44: 49143900
A45: 13 | B45: =IF(A45>$B$30,NA(),IF($A45>$A$8,"",OFFSET(InputPriceData!$B$15,$A45+$A$11,0,1,1))) -> 2020-10-22 | C45: =IF(A45>$B$30,NA(),IF($A45>$A$8,"",OFFSET(InputPriceData!$G$15,CalculationsAndCharts!$A45+$A$11,IF($C$5,8,0),1,1))) -> 55399300 | D45: =IF(A45>$B$30,NA(),IF(A45>$A$8,"",OFFSET(InputPriceData!$C$15,CalculationsAndCharts!$A45+$A$11,IF($C$5,8,0),1,1))) -> 341.5 | E45: =IF(A45>$B$30,NA(),IF(A45>$A$8,"",OFFSET(InputPriceData!$D$15,CalculationsAndCharts!$A45+$A$11,IF($C$5,8,0),1,1))) -> 343.77 | F45: =IF(A45>$B$30,NA(),IF(A45>$A$8,"",OFFSET(InputPriceData!$E$15,CalculationsAndCharts!$A45+$A$11,IF($C$5,8,0),1,1))) -> 339.2 | G45: =IF(A45>$B$30,NA(),IF(A45>$A$8,"",OFFSET(InputPriceData!$F$15,CalculationsAndCharts!$A45+$A$11,IF($C$5,8,0),1,1))) -> 343.15 | H45: 1.65 | I45: 1.65 | J45: 6.61 | K45: 4.955 | N45: =IF($A45>$N$30,NA(),10*H45) -> 16.5 | O45: =IF($A45>$N$30,NA(),IF(N45<-1,-1,IF(N45>1,1,N45))) -> 1 | P45: -0.06255378631 | AW45: 55399300
A46: 14 | B46: =IF(A46>$B$30,NA(),IF($A46>$A$8,"",OFFSET(InputPriceData!$B$15,$A46+$A$11,0,1,1))) -> 2020-10-21 | C46: =IF(A46>$B$30,NA(),IF($A46>$A$8,"",OFFSET(InputPriceData!$G$15,CalculationsAndCharts!$A46+$A$11,IF($C$5,8,0),1,1))) -> 63575000 | D46: =IF(A46>$B$30,NA(),IF(A46>$A$8,"",OFFSET(InputPriceData!$C$15,CalculationsAndCharts!$A46+$A$11,IF($C$5,8,0),1,1))) -> 341.87 | E46: =IF(A46>$B$30,NA(),IF(A46>$A$8,"",OFFSET(InputPriceData!$D$15,CalculationsAndCharts!$A46+$A$11,IF($C$5,8,0),1,1))) -> 344.2 | F46: =IF(A46>$B$30,NA(),IF(A46>$A$8,"",OFFSET(InputPriceData!$E$15,CalculationsAndCharts!$A46+$A$11,IF($C$5,8,0),1,1))) -> 340.95 | G46: =IF(A46>$B$30,NA(),IF(A46>$A$8,"",OFFSET(InputPriceData!$F$15,CalculationsAndCharts!$A46+$A$11,IF($C$5,8,0),1,1))) -> 341.28 | H46: -0.59 | I46: 0.59 | J46: 6.61 | K46: 4.48125 | N46: =IF($A46>$N$30,NA(),10*H46) -> -5.9 | O46: =IF($A46>$N$30,NA(),IF(N46<-1,-1,IF(N46>1,1,N46))) -> -1 | P46: 0.02524606369 | AX46: 63575000
A47: 15 | B47: =IF(A47>$B$30,NA(),IF($A47>$A$8,"",OFFSET(InputPriceData!$B$15,$A47+$A$11,0,1,1))) -> 2020-10-20 | C47: =IF(A47>$B$30,NA(),IF($A47>$A$8,"",OFFSET(InputPriceData!$G$15,CalculationsAndCharts!$A47+$A$11,IF($C$5,8,0),1,1))) -> 60051900 | D47: =IF(A47>$B$30,NA(),IF(A47>$A$8,"",OFFSET(InputPriceData!$C$15,CalculationsAndCharts!$A47+$A$11,IF($C$5,8,0),1,1))) -> 342 | E47: =IF(A47>$B$30,NA(),IF(A47>$A$8,"",OFFSET(InputPriceData!$D$15,CalculationsAndCharts!$A47+$A$11,IF($C$5,8,0),1,1))) -> 345.41 | F47: =IF(A47>$B$30,NA(),IF(A47>$A$8,"",OFFSET(InputPriceData!$E$15,CalculationsAndCharts!$A47+$A$11,IF($C$5,8,0),1,1))) -> 341.19 | G47: =IF(A47>$B$30,NA(),IF(A47>$A$8,"",OFFSET(InputPriceData!$F$15,CalculationsAndCharts!$A47+$A$11,IF($C$5,8,0),1,1))) -> 341.92 | H47: -0.08 | I47: 0.08 | J47: 6.61 | K47: 4.275 | N47: =IF($A47>$N$30,NA(),10*H47) -> -0.8 | O47: =IF($A47>$N$30,NA(),IF(N47<-1,-1,IF(N47>1,1,N47))) -> -0.8 | P47: 0.1420239504 | AX47: 60051900
A48: 16 | B48: =IF(A48>$B$30,NA(),IF($A48>$A$8,"",OFFSET(InputPriceData!$B$15,$A48+$A$11,0,1,1))) -> 2020-10-19 | C48: =IF(A48>$B$30,NA(),IF($A48>$A$8,"",OFFSET(InputPriceData!$G$15,CalculationsAndCharts!$A48+$A$11,IF($C$5,8,0),1,1))) -> 68425600 | D48: =IF(A48>$B$30,NA(),IF(A48>$A$8,"",OFFSET(InputPriceData!$C$15,CalculationsAndCharts!$A48+$A$11,IF($C$5,8,0),1,1))) -> 347.17 | E48: =IF(A48>$B$30,NA(),IF(A48>$A$8,"",OFFSET(InputPriceData!$D$15,CalculationsAndCharts!$A48+$A$11,IF($C$5,8,0),1,1))) -> 347.85 | F48: =IF(A48>$B$30,NA(),IF(A48>$A$8,"",OFFSET(InputPriceData!$E$15,CalculationsAndCharts!$A48+$A$11,IF($C$5,8,0),1,1))) -> 339.59 | G48: =IF(A48>$B$30,NA(),IF(A48>$A$8,"",OFFSET(InputPriceData!$F$15,CalculationsAndCharts!$A48+$A$11,IF($C$5,8,0),1,1))) -> 340.56 | H48: -6.61 | I48: 6.61 | J48: 6.61 | K48: 4.06875 | N48: =IF($A48>$N$30,NA(),10*H48) -> -66.1 | O48: =IF($A48>$N$30,NA(),IF(N48<-1,-1,IF(N48>1,1,N48))) -> -1 | P48: 0.2460641833 | AX48: 68425600
A49: 17 | B49: =IF(A49>$B$30,NA(),IF($A49>$A$8,"",OFFSET(InputPriceData!$B$15,$A49+$A$11,0,1,1))) -> 2020-10-16 | C49: =IF(A49>$B$30,NA(),IF($A49>$A$8,"",OFFSET(InputPriceData!$G$15,CalculationsAndCharts!$A49+$A$11,IF($C$5,8,0),1,1))) -> 89501900 | D49: =IF(A49>$B$30,NA(),IF(A49>$A$8,"",OFFSET(InputPriceData!$C$15,CalculationsAndCharts!$A49+$A$11,IF($C$5,8,0),1,1))) -> 347.48 | E49: =IF(A49>$B$30,NA(),IF(A49>$A$8,"",OFFSET(InputPriceData!$D$15,CalculationsAndCharts!$A49+$A$11,IF($C$5,8,0),1,1))) -> 349.26 | F49: =IF(A49>$B$30,NA(),IF(A49>$A$8,"",OFFSET(InputPriceData!$E$15,CalculationsAndCharts!$A49+$A$11,IF($C$5,8,0),1,1))) -> 345.63 | G49: =IF(A49>$B$30,NA(),IF(A49>$A$8,"",OFFSET(InputPriceData!$F$15,CalculationsAndCharts!$A49+$A$11,IF($C$5,8,0),1,1))) -> 345.82 | H49: -1.66 | I49: 1.66 | J49: 3.78 | K49: 3.8625 | N49: =IF($A49>$N$30,NA(),10*H49) -> -16.6 | O49: =IF($A49>$N$30,NA(),IF(N49<-1,-1,IF(N49>1,1,N49))) -> -1 | P49: 0.3276860185 | AX49: 89501900
A50: 18 | B50: =IF(A50>$B$30,NA(),IF($A50>$A$8,"",OFFSET(InputPriceData!$B$15,$A50+$A$11,0,1,1))) -> 2020-10-15 | C50: =IF(A50>$B$30,NA(),IF($A50>$A$8,"",OFFSET(InputPriceData!$G$15,CalculationsAndCharts!$A50+$A$11,IF($C$5,8,0),1,1))) -> 60357700 | D50: =IF(A50>$B$30,NA(),IF(A50>$A$8,"",OFFSET(InputPriceData!$C$15,CalculationsAndCharts!$A50+$A$11,IF($C$5,8,0),1,1))) -> 342.25 | E50: =IF(A50>$B$30,NA(),IF(A50>$A$8,"",OFFSET(InputPriceData!$D$15,CalculationsAndCharts!$A50+$A$11,IF($C$5,8,0),1,1))) -> 346.54 | F50: =IF(A50>$B$30,NA(),IF(A50>$A$8,"",OFFSET(InputPriceData!$E$15,CalculationsAndCharts!$A50+$A$11,IF($C$5,8,0),1,1))) -> 341.67 | G50: =IF(A50>$B$30,NA(),IF(A50>$A$8,"",OFFSET(InputPriceData!$F$15,CalculationsAndCharts!$A50+$A$11,IF($C$5,8,0),1,1))) -> 346.03 | H50: 3.78 | I50: 3.78 | J50: 3.78 | K50: 4.01 | N50: =IF($A50>$N$30,NA(),10*H50) -> 37.8 | O50: =IF($A50>$N$30,NA(),IF(N50<-1,-1,IF(N50>1,1,N50))) -> 1 | P50: 0.3699270187 | AW50: 60357700
A51: 19 | B51: =IF(A51>$B$30,NA(),IF($A51>$A$8,"",OFFSET(InputPriceData!$B$15,$A51+$A$11,0,1,1))) -> 2020-10-14 | C51: =IF(A51>$B$30,NA(),IF($A51>$A$8,"",OFFSET(InputPriceData!$G$15,CalculationsAndCharts!$A51+$A$11,IF($C$5,8,0),1,1))) -> 57958700 | D51: =IF(A51>$B$30,NA(),IF(A51>$A$8,"",OFFSET(InputPriceData!$C$15,CalculationsAndCharts!$A51+$A$11,IF($C$5,8,0),1,1))) -> 349.26 | E51: =IF(A51>$B$30,NA(),IF(A51>$A$8,"",OFFSET(InputPriceData!$D$15,CalculationsAndCharts!$A51+$A$11,IF($C$5,8,0),1,1))) -> 350.44 | F51: =IF(A51>$B$30,NA(),IF(A51>$A$8,"",OFFSET(InputPriceData!$E$15,CalculationsAndCharts!$A51+$A$11,IF($C$5,8,0),1,1))) -> 345.67 | G51: =IF(A51>$B$30,NA(),IF(A51>$A$8,"",OFFSET(InputPriceData!$F$15,CalculationsAndCharts!$A51+$A$11,IF($C$5,8,0),1,1))) -> 346.45 | H51: -2.81 | I51: 2.81 | J51: 2.82 | K51: 3.99875 | N51: =IF($A51>$N$30,NA(),10*H51) -> -28.1 | O51: =IF($A51>$N$30,NA(),IF(N51<-1,-1,IF(N51>1,1,N51))) -> -1 | P51: 0.4079162315 | AX51: 57958700
A52: 20 | B52: =IF(A52>$B$30,NA(),IF($A52>$A$8,"",OFFSET(InputPriceData!$B$15,$A52+$A$11,0,1,1))) -> 2020-10-13 | C52: =IF(A52>$B$30,NA(),IF($A52>$A$8,"",OFFSET(InputPriceData!$G$15,CalculationsAndCharts!$A52+$A$11,IF($C$5,8,0),1,1))) -> 73255500 | D52: =IF(A52>$B$30,NA(),IF(A52>$A$8,"",OFFSET(InputPriceData!$C$15,CalculationsAndCharts!$A52+$A$11,IF($C$5,8,0),1,1))) -> 350.78 | E52: =IF(A52>$B$30,NA(),IF(A52>$A$8,"",OFFSET(InputPriceData!$D$15,CalculationsAndCharts!$A52+$A$11,IF($C$5,8,0),1,1))) -> 350.97 | F52: =IF(A52>$B$30,NA(),IF(A52>$A$8,"",OFFSET(InputPriceData!$E$15,CalculationsAndCharts!$A52+$A$11,IF($C$5,8,0),1,1))) -> 347.61 | G52: =IF(A52>$B$30,NA(),IF(A52>$A$8,"",OFFSET(InputPriceData!$F$15,CalculationsAndCharts!$A52+$A$11,IF($C$5,8,0),1,1))) -> 348.64 | H52: -2.14 | I52: 2.14 | J52: 2.82 | K52: 3.9125 | N52: =IF($A52>$N$30,NA(),10*H52) -> -21.4 | O52: =IF($A52>$N$30,NA(),IF(N52<-1,-1,IF(N52>1,1,N52))) -> -1 | P52: 0.4382564374 | AX52: 73255500
A53: 21 | B53: =IF(A53>$B$30,NA(),IF($A53>$A$8,"",OFFSET(InputPriceData!$B$15,$A53+$A$11,0,1,1))) -> 2020-10-12 | C53: =IF(A53>$B$30,NA(),IF($A53>$A$8,"",OFFSET(InputPriceData!$G$15,CalculationsAndCharts!$A53+$A$11,IF($C$5,8,0),1,1))) -> 80388500 | D53: =IF(A53>$B$30,NA(),IF(A53>$A$8,"",OFFSET(InputPriceData!$C$15,CalculationsAndCharts!$A53+$A$11,IF($C$5,8,0),1,1))) -> 348.11 | E53: =IF(A53>$B$30,NA(),IF(A53>$A$8,"",OFFSET(InputPriceData!$D$15,CalculationsAndCharts!$A53+$A$11,IF($C$5,8,0),1,1))) -> 352.52 | F53: =IF(A53>$B$30,NA(),IF(A53>$A$8,"",OFFSET(InputPriceData!$E$15,CalculationsAndCharts!$A53+$A$11,IF($C$5,8,0),1,1))) -> 347.58 | G53: =IF(A53>$B$30,NA(),IF(A53>$A$8,"",OFFSET(InputPriceData!$F$15,CalculationsAndCharts!$A53+$A$11,IF($C$5,8,0),1,1))) -> 350.93 | H53: 2.82 | I53: 2.82 | J53: 2.82 | K53: 3.78375 | N53: =IF($A53>$N$30,NA(),10*H53) -> 28.2 | O53: =IF($A53>$N$30,NA(),IF(N53<-1,-1,IF(N53>1,1,N53))) -> 1 | P53: 0.4059181236 | AW53: 80388500
A54: 22 | B54: =IF(A54>$B$30,NA(),IF($A54>$A$8,"",OFFSET(InputPriceData!$B$15,$A54+$A$11,0,1,1))) -> 2020-10-09 | C54: =IF(A54>$B$30,NA(),IF($A54>$A$8,"",OFFSET(InputPriceData!$G$15,CalculationsAndCharts!$A54+$A$11,IF($C$5,8,0),1,1))) -> 59528600 | D54: =IF(A54>$B$30,NA(),IF(A54>$A$8,"",OFFSET(InputPriceData!$C$15,CalculationsAndCharts!$A54+$A$11,IF($C$5,8,0),1,1))) -> 344.09 | E54: =IF(A54>$B$30,NA(),IF(A54>$A$8,"",OFFSET(InputPriceData!$D$15,CalculationsAndCharts!$A54+$A$11,IF($C$5,8,0),1,1))) -> 345.88 | F54: =IF(A54>$B$30,NA(),IF(A54>$A$8,"",OFFSET(InputPriceData!$E$15,CalculationsAndCharts!$A54+$A$11,IF($C$5,8,0),1,1))) -> 343.43 | G54: =IF(A54>$B$30,NA(),IF(A54>$A$8,"",OFFSET(InputPriceData!$F$15,CalculationsAndCharts!$A54+$A$11,IF($C$5,8,0),1,1))) -> 345.38 | H54: 1.29 | I54: 1.29 | J54: 4.96 | K54: 4.19625 | N54: =IF($A54>$N$30,NA(),10*H54) -> 12.9 | O54: =IF($A54>$N$30,NA(),IF(N54<-1,-1,IF(N54>1,1,N54))) -> 1 | P54: 0.3417927523 | AW54: 59528600
A55: 23 | B55: =IF(A55>$B$30,NA(),IF($A55>$A$8,"",OFFSET(InputPriceData!$B$15,$A55+$A$11,0,1,1))) -> 2020-10-08 | C55: =IF(A55>$B$30,NA(),IF($A55>$A$8,"",OFFSET(InputPriceData!$G$15,CalculationsAndCharts!$A55+$A$11,IF($C$5,8,0),1,1))) -> 45242500 | D55: =IF(A55>$B$30,NA(),IF(A55>$A$8,"",OFFSET(InputPriceData!$C$15,CalculationsAndCharts!$A55+$A$11,IF($C$5,8,0),1,1))) -> 341.39 | E55: =IF(A55>$B$30,NA(),IF(A55>$A$8,"",OFFSET(InputPriceData!$D$15,CalculationsAndCharts!$A55+$A$11,IF($C$5,8,0),1,1))) -> 342.39 | F55: =IF(A55>$B$30,NA(),IF(A55>$A$8,"",OFFSET(InputPriceData!$E$15,CalculationsAndCharts!$A55+$A$11,IF($C$5,8,0),1,1))) -> 340.41 | G55: =IF(A55>$B$30,NA(),IF(A55>$A$8,"",OFFSET(InputPriceData!$F$15,CalculationsAndCharts!$A55+$A$11,IF($C$5,8,0),1,1))) -> 342.32 | H55: 0.93 | I55: 0.93 | J55: 4.96 | K55: 4.34125 | N55: =IF($A55>$N$30,NA(),10*H55) -> 9.3 | O55: =IF($A55>$N$30,NA(),IF(N55<-1,-1,IF(N55>1,1,N55))) -> 1 | P55: 0.2890354697 | AW55: 45242500
A56: 24 | B56: =IF(A56>$B$30,NA(),IF($A56>$A$8,"",OFFSET(InputPriceData!$B$15,$A56+$A$11,0,1,1))) -> 2020-10-07 | C56: =IF(A56>$B$30,NA(),IF($A56>$A$8,"",OFFSET(InputPriceData!$G$15,CalculationsAndCharts!$A56+$A$11,IF($C$5,8,0),1,1))) -> 56999600 | D56: =IF(A56>$B$30,NA(),IF(A56>$A$8,"",OFFSET(InputPriceData!$C$15,CalculationsAndCharts!$A56+$A$11,IF($C$5,8,0),1,1))) -> 336.68 | E56: =IF(A56>$B$30,NA(),IF(A56>$A$8,"",OFFSET(InputPriceData!$D$15,CalculationsAndCharts!$A56+$A$11,IF($C$5,8,0),1,1))) -> 340.18 | F56: =IF(A56>$B$30,NA(),IF(A56>$A$8,"",OFFSET(InputPriceData!$E$15,CalculationsAndCharts!$A56+$A$11,IF($C$5,8,0),1,1))) -> 336.65 | G56: =IF(A56>$B$30,NA(),IF(A56>$A$8,"",OFFSET(InputPriceData!$F$15,CalculationsAndCharts!$A56+$A$11,IF($C$5,8,0),1,1))) -> 339.31 | H56: 2.63 | I56: 2.63 | J56: 4.96 | K56: 4.75 | N56: =IF($A56>$N$30,NA(),10*H56) -> 26.3 | O56: =IF($A56>$N$30,NA(),IF(N56<-1,-1,IF(N56>1,1,N56))) -> 1 | P56: 0.2542472188 | AW56: 56999600
A57: 25 | B57: =IF(A57>$B$30,NA(),IF($A57>$A$8,"",OFFSET(InputPriceData!$B$15,$A57+$A$11,0,1,1))) -> 2020-10-06 | C57: =IF(A57>$B$30,NA(),IF($A57>$A$8,"",OFFSET(InputPriceData!$G$15,CalculationsAndCharts!$A57+$A$11,IF($C$5,8,0),1,1))) -> 90128900 | D57: =IF(A57>$B$30,NA(),IF(A57>$A$8,"",OFFSET(InputPriceData!$C$15,CalculationsAndCharts!$A57+$A$11,IF($C$5,8,0),1,1))) -> 338.47 | E57: =IF(A57>$B$30,NA(),IF(A57>$A$8,"",OFFSET(InputPriceData!$D$15,CalculationsAndCharts!$A57+$A$11,IF($C$5,8,0),1,1))) -> 340.72 | F57: =IF(A57>$B$30,NA(),IF(A57>$A$8,"",OFFSET(InputPriceData!$E$15,CalculationsAndCharts!$A57+$A$11,IF($C$5,8,0),1,1))) -> 332.96 | G57: =IF(A57>$B$30,NA(),IF(A57>$A$8,"",OFFSET(InputPriceData!$F$15,CalculationsAndCharts!$A57+$A$11,IF($C$5,8,0),1,1))) -> 333.51 | H57: -4.96 | I57: 4.96 | J57: 4.96 | K57: 5.15875 | N57: =IF($A57>$N$30,NA(),10*H57) -> -49.6 | O57: =IF($A57>$N$30,NA(),IF(N57<-1,-1,IF(N57>1,1,N57))) -> -1 | P57: 0.2453903459 | AX57: 90128900
A58: 26 | B58: =IF(A58>$B$30,NA(),IF($A58>$A$8,"",OFFSET(InputPriceData!$B$15,$A58+$A$11,0,1,1))) -> 2020-10-05 | C58: =IF(A58>$B$30,NA(),IF($A58>$A$8,"",OFFSET(InputPriceData!$G$15,CalculationsAndCharts!$A58+$A$11,IF($C$5,8,0),1,1))) -> 45713100 | D58: =IF(A58>$B$30,NA(),IF(A58>$A$8,"",OFFSET(InputPriceData!$C$15,CalculationsAndCharts!$A58+$A$11,IF($C$5,8,0),1,1))) -> 334.63 | E58: =IF(A58>$B$30,NA(),IF(A58>$A$8,"",OFFSET(InputPriceData!$D$15,CalculationsAndCharts!$A58+$A$11,IF($C$5,8,0),1,1))) -> 338.52 | F58: =IF(A58>$B$30,NA(),IF(A58>$A$8,"",OFFSET(InputPriceData!$E$15,CalculationsAndCharts!$A58+$A$11,IF($C$5,8,0),1,1))) -> 334.58 | G58: =IF(A58>$B$30,NA(),IF(A58>$A$8,"",OFFSET(InputPriceData!$F$15,CalculationsAndCharts!$A58+$A$11,IF($C$5,8,0),1,1))) -> 338.32 | H58: 3.69 | I58: 3.69 | J58: 3.69 | K58: 5.5675 | N58: =IF($A58>$N$30,NA(),10*H58) -> 36.9 | O58: =IF($A58>$N$30,NA(),IF(N58<-1,-1,IF(N58>1,1,N58))) -> 1 | P58: 0.2210026103 | AW58: 45713100
A59: 27 | B59: =IF(A59>$B$30,NA(),IF($A59>$A$8,"",OFFSET(InputPriceData!$B$15,$A59+$A$11,0,1,1))) -> 2020-10-02 | C59: =IF(A59>$B$30,NA(),IF($A59>$A$8,"",OFFSET(InputPriceData!$G$15,CalculationsAndCharts!$A59+$A$11,IF($C$5,8,0),1,1))) -> 89431100 | D59: =IF(A59>$B$30,NA(),IF(A59>$A$8,"",OFFSET(InputPriceData!$C$15,CalculationsAndCharts!$A59+$A$11,IF($C$5,8,0),1,1))) -> 330.29 | E59: =IF(A59>$B$30,NA(),IF(A59>$A$8,"",OFFSET(InputPriceData!$D$15,CalculationsAndCharts!$A59+$A$11,IF($C$5,8,0),1,1))) -> 335.58 | F59: =IF(A59>$B$30,NA(),IF(A59>$A$8,"",OFFSET(InputPriceData!$E$15,CalculationsAndCharts!$A59+$A$11,IF($C$5,8,0),1,1))) -> 329.78 | G59: =IF(A59>$B$30,NA(),IF(A59>$A$8,"",OFFSET(InputPriceData!$F$15,CalculationsAndCharts!$A59+$A$11,IF($C$5,8,0),1,1))) -> 332.42 | H59: 2.13 | I59: 2.13 | J59: 2.13 | K59: 6.135 | N59: =IF($A59>$N$30,NA(),10*H59) -> 21.3 | O59: =IF($A59>$N$30,NA(),IF(N59<-1,-1,IF(N59>1,1,N59))) -> 1 | P59: 0.1769711435 | AW59: 89431100
A60: 28 | B60: =IF(A60>$B$30,NA(),IF($A60>$A$8,"",OFFSET(InputPriceData!$B$15,$A60+$A$11,0,1,1))) -> 2020-10-01 | C60: =IF(A60>$B$30,NA(),IF($A60>$A$8,"",OFFSET(InputPriceData!$G$15,CalculationsAndCharts!$A60+$A$11,IF($C$5,8,0),1,1))) -> 88698700 | D60: =IF(A60>$B$30,NA(),IF(A60>$A$8,"",OFFSET(InputPriceData!$C$15,CalculationsAndCharts!$A60+$A$11,IF($C$5,8,0),1,1))) -> 336.26 | E60: =IF(A60>$B$30,NA(),IF(A60>$A$8,"",OFFSET(InputPriceData!$D$15,CalculationsAndCharts!$A60+$A$11,IF($C$5,8,0),1,1))) -> 337.3 | F60: =IF(A60>$B$30,NA(),IF(A60>$A$8,"",OFFSET(InputPriceData!$E$15,CalculationsAndCharts!$A60+$A$11,IF($C$5,8,0),1,1))) -> 333.59 | G60: =IF(A60>$B$30,NA(),IF(A60>$A$8,"",OFFSET(InputPriceData!$F$15,CalculationsAndCharts!$A60+$A$11,IF($C$5,8,0),1,1))) -> 335.61 | H60: -0.65 | I60: 0.65 | J60: 1.79 | K60: 6.45625 | N60: =IF($A60>$N$30,NA(),10*H60) -> -6.5 | O60: =IF($A60>$N$30,NA(),IF(N60<-1,-1,IF(N60>1,1,N60))) -> -1 | P60: 0.1596147273 | AX60: 88698700
A61: 29 | B61: =IF(A61>$B$30,NA(),IF($A61>$A$8,"",OFFSET(InputPriceData!$B$15,$A61+$A$11,0,1,1))) -> 2020-09-30 | C61: =IF(A61>$B$30,NA(),IF($A61>$A$8,"",OFFSET(InputPriceData!$G$15,CalculationsAndCharts!$A61+$A$11,IF($C$5,8,0),1,1))) -> 104081100 | D61: =IF(A61>$B$30,NA(),IF(A61>$A$8,"",OFFSET(InputPriceData!$C$15,CalculationsAndCharts!$A61+$A$11,IF($C$5,8,0),1,1))) -> 331.68 | E61: =IF(A61>$B$30,NA(),IF(A61>$A$8,"",OFFSET(InputPriceData!$D$15,CalculationsAndCharts!$A61+$A$11,IF($C$5,8,0),1,1))) -> 336.85 | F61: =IF(A61>$B$30,NA(),IF(A61>$A$8,"",OFFSET(InputPriceData!$E$15,CalculationsAndCharts!$A61+$A$11,IF($C$5,8,0),1,1))) -> 331.47 | G61: =IF(A61>$B$30,NA(),IF(A61>$A$8,"",OFFSET(InputPriceData!$F$15,CalculationsAndCharts!$A61+$A$11,IF($C$5,8,0),1,1))) -> 333.47 | H61: 1.79 | I61: 1.79 | J61: 6.12 | K61: 6.82 | N61: =IF($A61>$N$30,NA(),10*H61) -> 17.9 | O61: =IF($A61>$N$30,NA(),IF(N61<-1,-1,IF(N61>1,1,N61))) -> 1 | P61: 0.1281596458 | AW61: 104081100
A62: 30 | B62: =IF(A62>$B$30,NA(),IF($A62>$A$8,"",OFFSET(InputPriceData!$B$15,$A62+$A$11,0,1,1))) -> 2020-09-29 | C62: =IF(A62>$B$30,NA(),IF($A62>$A$8,"",OFFSET(InputPriceData!$G$15,CalculationsAndCharts!$A62+$A$11,IF($C$5,8,0),1,1))) -> 51304000 | D62: =IF(A62>$B$30,NA(),IF(A62>$A$8,"",OFFSET(InputPriceData!$C$15,CalculationsAndCharts!$A62+$A$11,IF($C$5,8,0),1,1))) -> 332.55 | E62: =IF(A62>$B$30,NA(),IF(A62>$A$8,"",OFFSET(InputPriceData!$D$15,CalculationsAndCharts!$A62+$A$11,IF($C$5,8,0),1,1))) -> 333.35 | F62: =IF(A62>$B$30,NA(),IF(A62>$A$8,"",OFFSET(InputPriceData!$E$15,CalculationsAndCharts!$A62+$A$11,IF($C$5,8,0),1,1))) -> 330.21 | G62: =IF(A62>$B$30,NA(),IF(A62>$A$8,"",OFFSET(InputPriceData!$F$15,CalculationsAndCharts!$A62+$A$11,IF($C$5,8,0),1,1))) -> 330.96 | H62: -1.59 | I62: 1.59 | J62: 6.12 | K62: 6.6425 | N62: =IF($A62>$N$30,NA(),10*H62) -> -15.9 | O62: =IF($A62>$N$30,NA(),IF(N62<-1,-1,IF(N62>1,1,N62))) -> -1 | P62: 0.07934604026 | AX62: 51304000
A63: 31 | B63: =IF(A63>$B$30,NA(),IF($A63>$A$8,"",OFFSET(InputPriceData!$B$15,$A63+$A$11,0,1,1))) -> 2020-09-28 | C63: =IF(A63>$B$30,NA(),IF($A63>$A$8,"",OFFSET(InputPriceData!$G$15,CalculationsAndCharts!$A63+$A$11,IF($C$5,8,0),1,1))) -> 64584600 | D63: =IF(A63>$B$30,NA(),IF(A63>$A$8,"",OFFSET(InputPriceData!$C$15,CalculationsAndCharts!$A63+$A$11,IF($C$5,8,0),1,1))) -> 331.81 | E63: =IF(A63>$B$30,NA(),IF(A63>$A$8,"",OFFSET(InputPriceData!$D$15,CalculationsAndCharts!$A63+$A$11,IF($C$5,8,0),1,1))) -> 333.54 | F63: =IF(A63>$B$30,NA(),IF(A63>$A$8,"",OFFSET(InputPriceData!$E$15,CalculationsAndCharts!$A63+$A$11,IF($C$5,8,0),1,1))) -> 330.74 | G63: =IF(A63>$B$30,NA(),IF(A63>$A$8,"",OFFSET(InputPriceData!$F$15,CalculationsAndCharts!$A63+$A$11,IF($C$5,8,0),1,1))) -> 332.77 | H63: 0.96 | I63: 0.96 | J63: 8.23 | K63: 6.21 | N63: =IF($A63>$N$30,NA(),10*H63) -> 9.6 | O63: =IF($A63>$N$30,NA(),IF(N63<-1,-1,IF(N63>1,1,N63))) -> 1 | P63: 0.009673169323 | AW63: 64584600
A64: 32 | B64: =IF(A64>$B$30,NA(),IF($A64>$A$8,"",OFFSET(InputPriceData!$B$15,$A64+$A$11,0,1,1))) -> 2020-09-25 | C64: =IF(A64>$B$30,NA(),IF($A64>$A$8,"",OFFSET(InputPriceData!$G$15,CalculationsAndCharts!$A64+$A$11,IF($C$5,8,0),1,1))) -> 71069400 | D64: =IF(A64>$B$30,NA(),IF(A64>$A$8,"",OFFSET(InputPriceData!$C$15,CalculationsAndCharts!$A64+$A$11,IF($C$5,8,0),1,1))) -> 321.21 | E64: =IF(A64>$B$30,NA(),IF(A64>$A$8,"",OFFSET(InputPriceData!$D$15,CalculationsAndCharts!$A64+$A$11,IF($C$5,8,0),1,1))) -> 328.18 | F64: =IF(A64>$B$30,NA(),IF(A64>$A$8,"",OFFSET(InputPriceData!$E$15,CalculationsAndCharts!$A64+$A$11,IF($C$5,8,0),1,1))) -> 320.27 | G64: =IF(A64>$B$30,NA(),IF(A64>$A$8,"",OFFSET(InputPriceData!$F$15,CalculationsAndCharts!$A64+$A$11,IF($C$5,8,0),1,1))) -> 327.33 | H64: 6.12 | I64: 6.12 | J64: 8.23 | K64: 5.51375 | N64: =IF($A64>$N$30,NA(),10*H64) -> 61.2 | O64: =IF($A64>$N$30,NA(),IF(N64<-1,-1,IF(N64>1,1,N64))) -> 1 | P64: -0.0845056016 | AW64: 71069400
A65: 33 | B65: =IF(A65>$B$30,NA(),IF($A65>$A$8,"",OFFSET(InputPriceData!$B$15,$A65+$A$11,0,1,1))) -> 2020-09-24 | C65: =IF(A65>$B$30,NA(),IF($A65>$A$8,"",OFFSET(InputPriceData!$G$15,CalculationsAndCharts!$A65+$A$11,IF($C$5,8,0),1,1))) -> 76681300 | D65: =IF(A65>$B$30,NA(),IF(A65>$A$8,"",OFFSET(InputPriceData!$C$15,CalculationsAndCharts!$A65+$A$11,IF($C$5,8,0),1,1))) -> 319.86 | E65: =IF(A65>$B$30,NA(),IF(A65>$A$8,"",OFFSET(InputPriceData!$D$15,CalculationsAndCharts!$A65+$A$11,IF($C$5,8,0),1,1))) -> 325.41 | F65: =IF(A65>$B$30,NA(),IF(A65>$A$8,"",OFFSET(InputPriceData!$E$15,CalculationsAndCharts!$A65+$A$11,IF($C$5,8,0),1,1))) -> 318.44 | G65: =IF(A65>$B$30,NA(),IF(A65>$A$8,"",OFFSET(InputPriceData!$F$15,CalculationsAndCharts!$A65+$A$11,IF($C$5,8,0),1,1))) -> 322.13 | H65: 2.27 | I65: 2.27 | J65: 8.23 | K65: 5.4675 | N65: =IF($A65>$N$30,NA(),10*H65) -> 22.7 | O65: =IF($A65>$N$30,NA(),IF(N65<-1,-1,IF(N65>1,1,N65))) -> 1 | P65: -0.1559973181 | AW65: 76681300
A66: 34 | B66: =IF(A66>$B$30,NA(),IF($A66>$A$8,"",OFFSET(InputPriceData!$B$15,$A66+$A$11,0,1,1))) -> 2020-09-23 | C66: =IF(A66>$B$30,NA(),IF($A66>$A$8,"",OFFSET(InputPriceData!$G$15,CalculationsAndCharts!$A66+$A$11,IF($C$5,8,0),1,1))) -> 93112200 | D66: =IF(A66>$B$30,NA(),IF(A66>$A$8,"",OFFSET(InputPriceData!$C$15,CalculationsAndCharts!$A66+$A$11,IF($C$5,8,0),1,1))) -> 329.5 | E66: =IF(A66>$B$30,NA(),IF(A66>$A$8,"",OFFSET(InputPriceData!$D$15,CalculationsAndCharts!$A66+$A$11,IF($C$5,8,0),1,1))) -> 329.79 | F66: =IF(A66>$B$30,NA(),IF(A66>$A$8,"",OFFSET(InputPriceData!$E$15,CalculationsAndCharts!$A66+$A$11,IF($C$5,8,0),1,1))) -> 320.73 | G66: =IF(A66>$B$30,NA(),IF(A66>$A$8,"",OFFSET(InputPriceData!$F$15,CalculationsAndCharts!$A66+$A$11,IF($C$5,8,0),1,1))) -> 321.27 | H66: -8.23 | I66: 8.23 | J66: 8.23 | K66: 5.42125 | N66: =IF($A66>$N$30,NA(),10*H66) -> -82.3 | O66: =IF($A66>$N$30,NA(),IF(N66<-1,-1,IF(N66>1,1,N66))) -> -1 | P66: -0.1933470985 | AX66: 93112200
A67: 35 | B67: =IF(A67>$B$30,NA(),IF($A67>$A$8,"",OFFSET(InputPriceData!$B$15,$A67+$A$11,0,1,1))) -> 2020-09-22 | C67: =IF(A67>$B$30,NA(),IF($A67>$A$8,"",OFFSET(InputPriceData!$G$15,CalculationsAndCharts!$A67+$A$11,IF($C$5,8,0),1,1))) -> 63612100 | D67: =IF(A67>$B$30,NA(),IF(A67>$A$8,"",OFFSET(InputPriceData!$C$15,CalculationsAndCharts!$A67+$A$11,IF($C$5,8,0),1,1))) -> 327.18 | E67: =IF(A67>$B$30,NA(),IF(A67>$A$8,"",OFFSET(InputPriceData!$D$15,CalculationsAndCharts!$A67+$A$11,IF($C$5,8,0),1,1))) -> 329.5 | F67: =IF(A67>$B$30,NA(),IF(A67>$A$8,"",OFFSET(InputPriceData!$E$15,CalculationsAndCharts!$A67+$A$11,IF($C$5,8,0),1,1))) -> 324.48 | G67: =IF(A67>$B$30,NA(),IF(A67>$A$8,"",OFFSET(InputPriceData!$F$15,CalculationsAndCharts!$A67+$A$11,IF($C$5,8,0),1,1))) -> 328.9 | H67: 1.72 | I67: 1.72 | J67: 4.7 | K67: 5.375 | N67: =IF($A67>$N$30,NA(),10*H67) -> 17.2 | O67: =IF($A67>$N$30,NA(),IF(N67<-1,-1,IF(N67>1,1,N67))) -> 1 | P67: -0.2337383922 | AW67: 63612100
A68: 36 | B68: =IF(A68>$B$30,NA(),IF($A68>$A$8,"",OFFSET(InputPriceData!$B$15,$A68+$A$11,0,1,1))) -> 2020-09-21 | C68: =IF(A68>$B$30,NA(),IF($A68>$A$8,"",OFFSET(InputPriceData!$G$15,CalculationsAndCharts!$A68+$A$11,IF($C$5,8,0),1,1))) -> 99450800 | D68: =IF(A68>$B$30,NA(),IF(A68>$A$8,"",OFFSET(InputPriceData!$C$15,CalculationsAndCharts!$A68+$A$11,IF($C$5,8,0),1,1))) -> 324.32 | E68: =IF(A68>$B$30,NA(),IF(A68>$A$8,"",OFFSET(InputPriceData!$D$15,CalculationsAndCharts!$A68+$A$11,IF($C$5,8,0),1,1))) -> 325.74 | F68: =IF(A68>$B$30,NA(),IF(A68>$A$8,"",OFFSET(InputPriceData!$E$15,CalculationsAndCharts!$A68+$A$11,IF($C$5,8,0),1,1))) -> 320.36 | G68: =IF(A68>$B$30,NA(),IF(A68>$A$8,"",OFFSET(InputPriceData!$F$15,CalculationsAndCharts!$A68+$A$11,IF($C$5,8,0),1,1))) -> 325.58 | H68: 1.26 | I68: 1.26 | J68: 4.7 | K68: 5.77 | N68: =IF($A68>$N$30,NA(),10*H68) -> 12.6 | O68: =IF($A68>$N$30,NA(),IF(N68<-1,-1,IF(N68>1,1,N68))) -> 1 | P68: -0.276165601 | AW68: 99450800
A69: 37 | B69: =IF(A69>$B$30,NA(),IF($A69>$A$8,"",OFFSET(InputPriceData!$B$15,$A69+$A$11,0,1,1))) -> 2020-09-18 | C69: =IF(A69>$B$30,NA(),IF($A69>$A$8,"",OFFSET(InputPriceData!$G$15,CalculationsAndCharts!$A69+$A$11,IF($C$5,8,0),1,1))) -> 105877900 | D69: =IF(A69>$B$30,NA(),IF(A69>$A$8,"",OFFSET(InputPriceData!$C$15,CalculationsAndCharts!$A69+$A$11,IF($C$5,8,0),1,1))) -> 333.95 | E69: =IF(A69>$B$30,NA(),IF(A69>$A$8,"",OFFSET(InputPriceData!$D$15,CalculationsAndCharts!$A69+$A$11,IF($C$5,8,0),1,1))) -> 334.07 | F69: =IF(A69>$B$30,NA(),IF(A69>$A$8,"",OFFSET(InputPriceData!$E$15,CalculationsAndCharts!$A69+$A$11,IF($C$5,8,0),1,1))) -> 326.58 | G69: =IF(A69>$B$30,NA(),IF(A69>$A$8,"",OFFSET(InputPriceData!$F$15,CalculationsAndCharts!$A69+$A$11,IF($C$5,8,0),1,1))) -> 329.25 | H69: -4.7 | I69: 4.7 | J69: 4.7 | K69: 6.4825 | N69: =IF($A69>$N$30,NA(),10*H69) -> -47 | O69: =IF($A69>$N$30,NA(),IF(N69<-1,-1,IF(N69>1,1,N69))) -> -1 | P69: -0.2683226676 | AX69: 105877900
A70: 38 | B70: =IF(A70>$B$30,NA(),IF($A70>$A$8,"",OFFSET(InputPriceData!$B$15,$A70+$A$11,0,1,1))) -> 2020-09-17 | C70: =IF(A70>$B$30,NA(),IF($A70>$A$8,"",OFFSET(InputPriceData!$G$15,CalculationsAndCharts!$A70+$A$11,IF($C$5,8,0),1,1))) -> 91523300 | D70: =IF(A70>$B$30,NA(),IF(A70>$A$8,"",OFFSET(InputPriceData!$C$15,CalculationsAndCharts!$A70+$A$11,IF($C$5,8,0),1,1))) -> 330.82 | E70: =IF(A70>$B$30,NA(),IF(A70>$A$8,"",OFFSET(InputPriceData!$D$15,CalculationsAndCharts!$A70+$A$11,IF($C$5,8,0),1,1))) -> 334.93 | F70: =IF(A70>$B$30,NA(),IF(A70>$A$8,"",OFFSET(InputPriceData!$E$15,CalculationsAndCharts!$A70+$A$11,IF($C$5,8,0),1,1))) -> 330.25 | G70: =IF(A70>$B$30,NA(),IF(A70>$A$8,"",OFFSET(InputPriceData!$F$15,CalculationsAndCharts!$A70+$A$11,IF($C$5,8,0),1,1))) -> 333.08 | H70: 2.26 | I70: 2.26 | J70: 2.66 | K70: 7.195 | N70: =IF($A70>$N$30,NA(),10*H70) -> 22.6 | O70: =IF($A70>$N$30,NA(),IF(N70<-1,-1,IF(N70>1,1,N70))) -> 1 | P70: -0.2441322279 | AW70: 91523300
A71: 39 | B71: =IF(A71>$B$30,NA(),IF($A71>$A$8,"",OFFSET(InputPriceData!$B$15,$A71+$A$11,0,1,1))) -> 2020-09-16 | C71: =IF(A71>$B$30,NA(),IF($A71>$A$8,"",OFFSET(InputPriceData!$G$15,CalculationsAndCharts!$A71+$A$11,IF($C$5,8,0),1,1))) -> 82096000 | D71: =IF(A71>$B$30,NA(),IF(A71>$A$8,"",OFFSET(InputPriceData!$C$15,CalculationsAndCharts!$A71+$A$11,IF($C$5,8,0),1,1))) -> 338.7 | E71: =IF(A71>$B$30,NA(),IF(A71>$A$8,"",OFFSET(InputPriceData!$D$15,CalculationsAndCharts!$A71+$A$11,IF($C$5,8,0),1,1))) -> 340.24 | F71: =IF(A71>$B$30,NA(),IF(A71>$A$8,"",OFFSET(InputPriceData!$E$15,CalculationsAndCharts!$A71+$A$11,IF($C$5,8,0),1,1))) -> 335.74 | G71: =IF(A71>$B$30,NA(),IF(A71>$A$8,"",OFFSET(InputPriceData!$F$15,CalculationsAndCharts!$A71+$A$11,IF($C$5,8,0),1,1))) -> 336.04 | H71: -2.66 | I71: 2.66 | J71: 2.66 | K71: 8.1625 | N71: =IF($A71>$N$30,NA(),10*H71) -> -26.6 | O71: =IF($A71>$N$30,NA(),IF(N71<-1,-1,IF(N71>1,1,N71))) -> -1 | P71: -0.1991899098 | AX71: 82096000
A72: 40 | B72: =IF(A72>$B$30,NA(),IF($A72>$A$8,"",OFFSET(InputPriceData!$B$15,$A72+$A$11,0,1,1))) -> 2020-09-15 | C72: =IF(A72>$B$30,NA(),IF($A72>$A$8,"",OFFSET(InputPriceData!$G$15,CalculationsAndCharts!$A72+$A$11,IF($C$5,8,0),1,1))) -> 52920900 | D72: =IF(A72>$B$30,NA(),IF(A72>$A$8,"",OFFSET(InputPriceData!$C$15,CalculationsAndCharts!$A72+$A$11,IF($C$5,8,0),1,1))) -> 338.32 | E72: =IF(A72>$B$30,NA(),IF(A72>$A$8,"",OFFSET(InputPriceData!$D$15,CalculationsAndCharts!$A72+$A$11,IF($C$5,8,0),1,1))) -> 339.21 | F72: =IF(A72>$B$30,NA(),IF(A72>$A$8,"",OFFSET(InputPriceData!$E$15,CalculationsAndCharts!$A72+$A$11,IF($C$5,8,0),1,1))) -> 335.69 | G72: =IF(A72>$B$30,NA(),IF(A72>$A$8,"",OFFSET(InputPriceData!$F$15,CalculationsAndCharts!$A72+$A$11,IF($C$5,8,0),1,1))) -> 337.38 | H72: -0.94 | I72: 0.94 | J72: 7.86 | K72: 9.13 | N72: =IF($A72>$N$30,NA(),10*H72) -> -9.4 | O72: =IF($A72>$N$30,NA(),IF(N72<-1,-1,IF(N72>1,1,N72))) -> -1 | P72: -0.1286285348 | AX72: 52920900
A73: 41 | B73: =IF(A73>$B$30,NA(),IF($A73>$A$8,"",OFFSET(InputPriceData!$B$15,$A73+$A$11,0,1,1))) -> 2020-09-14 | C73: =IF(A73>$B$30,NA(),IF($A73>$A$8,"",OFFSET(InputPriceData!$G$15,CalculationsAndCharts!$A73+$A$11,IF($C$5,8,0),1,1))) -> 65605700 | D73: =IF(A73>$B$30,NA(),IF(A73>$A$8,"",OFFSET(InputPriceData!$C$15,CalculationsAndCharts!$A73+$A$11,IF($C$5,8,0),1,1))) -> 334.72 | E73: =IF(A73>$B$30,NA(),IF(A73>$A$8,"",OFFSET(InputPriceData!$D$15,CalculationsAndCharts!$A73+$A$11,IF($C$5,8,0),1,1))) -> 337.58 | F73: =IF(A73>$B$30,NA(),IF(A73>$A$8,"",OFFSET(InputPriceData!$E$15,CalculationsAndCharts!$A73+$A$11,IF($C$5,8,0),1,1))) -> 331.47 | G73: =IF(A73>$B$30,NA(),IF(A73>$A$8,"",OFFSET(InputPriceData!$F$15,CalculationsAndCharts!$A73+$A$11,IF($C$5,8,0),1,1))) -> 335.68 | H73: 0.96 | I73: 0.96 | J73: 7.86 | K73: 8.5225 | N73: =IF($A73>$N$30,NA(),10*H73) -> 9.6 | O73: =IF($A73>$N$30,NA(),IF(N73<-1,-1,IF(N73>1,1,N73))) -> 1 | P73: -0.07805643516 | AW73: 65605700
A74: 42 | B74: =IF(A74>$B$30,NA(),IF($A74>$A$8,"",OFFSET(InputPriceData!$B$15,$A74+$A$11,0,1,1))) -> 2020-09-11 | C74: =IF(A74>$B$30,NA(),IF($A74>$A$8,"",OFFSET(InputPriceData!$G$15,CalculationsAndCharts!$A74+$A$11,IF($C$5,8,0),1,1))) -> 84680200 | D74: =IF(A74>$B$30,NA(),IF(A74>$A$8,"",OFFSET(InputPriceData!$C$15,CalculationsAndCharts!$A74+$A$11,IF($C$5,8,0),1,1))) -> 333.06 | E74: =IF(A74>$B$30,NA(),IF(A74>$A$8,"",OFFSET(InputPriceData!$D$15,CalculationsAndCharts!$A74+$A$11,IF($C$5,8,0),1,1))) -> 334.2 | F74: =IF(A74>$B$30,NA(),IF(A74>$A$8,"",OFFSET(InputPriceData!$E$15,CalculationsAndCharts!$A74+$A$11,IF($C$5,8,0),1,1))) -> 328.28 | G74: =IF(A74>$B$30,NA(),IF(A74>$A$8,"",OFFSET(InputPriceData!$F$15,CalculationsAndCharts!$A74+$A$11,IF($C$5,8,0),1,1))) -> 331.32 | H74: -1.74 | I74: 1.74 | J74: 7.86 | K74: 7.83625 | N74: =IF($A74>$N$30,NA(),10*H74) -> -17.4 | O74: =IF($A74>$N$30,NA(),IF(N74<-1,-1,IF(N74>1,1,N74))) -> -1 | P74: -0.006084550103 | AX74: 84680200
A75: 43 | B75: =IF(A75>$B$30,NA(),IF($A75>$A$8,"",OFFSET(InputPriceData!$B$15,$A75+$A$11,0,1,1))) -> 2020-09-10 | C75: =IF(A75>$B$30,NA(),IF($A75>$A$8,"",OFFSET(InputPriceData!$G$15,CalculationsAndCharts!$A75+$A$11,IF($C$5,8,0),1,1))) -> 90569500 | D75: =IF(A75>$B$30,NA(),IF(A75>$A$8,"",OFFSET(InputPriceData!$C$15,CalculationsAndCharts!$A75+$A$11,IF($C$5,8,0),1,1))) -> 339.01 | E75: =IF(A75>$B$30,NA(),IF(A75>$A$8,"",OFFSET(InputPriceData!$D$15,CalculationsAndCharts!$A75+$A$11,IF($C$5,8,0),1,1))) -> 339.72 | F75: =IF(A75>$B$30,NA(),IF(A75>$A$8,"",OFFSET(InputPriceData!$E$15,CalculationsAndCharts!$A75+$A$11,IF($C$5,8,0),1,1))) -> 330.12 | G75: =IF(A75>$B$30,NA(),IF(A75>$A$8,"",OFFSET(InputPriceData!$F$15,CalculationsAndCharts!$A75+$A$11,IF($C$5,8,0),1,1))) -> 331.15 | H75: -7.86 | I75: 7.86 | J75: 7.86 | K75: 7.20125 | N75: =IF($A75>$N$30,NA(),10*H75) -> -78.6 | O75: =IF($A75>$N$30,NA(),IF(N75<-1,-1,IF(N75>1,1,N75))) -> -1 | P75: 0.09100314928 | AX75: 90569500
A76: 44 | B76: =IF(A76>$B$30,NA(),IF($A76>$A$8,"",OFFSET(InputPriceData!$B$15,$A76+$A$11,0,1,1))) -> 2020-09-09 | C76: =IF(A76>$B$30,NA(),IF($A76>$A$8,"",OFFSET(InputPriceData!$G$15,CalculationsAndCharts!$A76+$A$11,IF($C$5,8,0),1,1))) -> 91462300 | D76: =IF(A76>$B$30,NA(),IF(A76>$A$8,"",OFFSET(InputPriceData!$C$15,CalculationsAndCharts!$A76+$A$11,IF($C$5,8,0),1,1))) -> 334.78 | E76: =IF(A76>$B$30,NA(),IF(A76>$A$8,"",OFFSET(InputPriceData!$D$15,CalculationsAndCharts!$A76+$A$11,IF($C$5,8,0),1,1))) -> 339.65 | F76: =IF(A76>$B$30,NA(),IF(A76>$A$8,"",OFFSET(InputPriceData!$E$15,CalculationsAndCharts!$A76+$A$11,IF($C$5,8,0),1,1))) -> 333.84 | G76: =IF(A76>$B$30,NA(),IF(A76>$A$8,"",OFFSET(InputPriceData!$F$15,CalculationsAndCharts!$A76+$A$11,IF($C$5,8,0),1,1))) -> 337 | H76: 2.22 | I76: 2.22 | J76: 10.4 | K76: 6.56625 | N76: =IF($A76>$N$30,NA(),10*H76) -> 22.2 | O76: =IF($A76>$N$30,NA(),IF(N76<-1,-1,IF(N76>1,1,N76))) -> 1 | P76: 0.1660760066 | AW76: 91462300
A77: 45 | B77: =IF(A77>$B$30,NA(),IF($A77>$A$8,"",OFFSET(InputPriceData!$B$15,$A77+$A$11,0,1,1))) -> 2020-09-08 | C77: =IF(A77>$B$30,NA(),IF($A77>$A$8,"",OFFSET(InputPriceData!$G$15,CalculationsAndCharts!$A77+$A$11,IF($C$5,8,0),1,1))) -> 114465300 | D77: =IF(A77>$B$30,NA(),IF(A77>$A$8,"",OFFSET(InputPriceData!$C$15,CalculationsAndCharts!$A77+$A$11,IF($C$5,8,0),1,1))) -> 333.94 | E77: =IF(A77>$B$30,NA(),IF(A77>$A$8,"",OFFSET(InputPriceData!$D$15,CalculationsAndCharts!$A77+$A$11,IF($C$5,8,0),1,1))) -> 339.83 | F77: =IF(A77>$B$30,NA(),IF(A77>$A$8,"",OFFSET(InputPriceData!$E$15,CalculationsAndCharts!$A77+$A$11,IF($C$5,8,0),1,1))) -> 330.15 | G77: =IF(A77>$B$30,NA(),IF(A77>$A$8,"",OFFSET(InputPriceData!$F$15,CalculationsAndCharts!$A77+$A$11,IF($C$5,8,0),1,1))) -> 330.47 | H77: -3.47 | I77: 3.47 | J77: 10.4 | K77: 5.61375 | N77: =IF($A77>$N$30,NA(),10*H77) -> -34.7 | O77: =IF($A77>$N$30,NA(),IF(N77<-1,-1,IF(N77>1,1,N77))) -> -1 | P77: 0.2585790626 | AX77: 114465300
A78: 46 | B78: =IF(A78>$B$30,NA(),IF($A78>$A$8,"",OFFSET(InputPriceData!$B$15,$A78+$A$11,0,1,1))) -> 2020-09-04 | C78: =IF(A78>$B$30,NA(),IF($A78>$A$8,"",OFFSET(InputPriceData!$G$15,CalculationsAndCharts!$A78+$A$11,IF($C$5,8,0),1,1))) -> 139156300 | D78: =IF(A78>$B$30,NA(),IF(A78>$A$8,"",OFFSET(InputPriceData!$C$15,CalculationsAndCharts!$A78+$A$11,IF($C$5,8,0),1,1))) -> 343.29 | E78: =IF(A78>$B$30,NA(),IF(A78>$A$8,"",OFFSET(InputPriceData!$D$15,CalculationsAndCharts!$A78+$A$11,IF($C$5,8,0),1,1))) -> 344.97 | F78: =IF(A78>$B$30,NA(),IF(A78>$A$8,"",OFFSET(InputPriceData!$E$15,CalculationsAndCharts!$A78+$A$11,IF($C$5,8,0),1,1))) -> 332.12 | G78: =IF(A78>$B$30,NA(),IF(A78>$A$8,"",OFFSET(InputPriceData!$F$15,CalculationsAndCharts!$A78+$A$11,IF($C$5,8,0),1,1))) -> 339.76 | H78: -3.53 | I78: 3.53 | J78: 10.4 | K78: 4.66125 | N78: =IF($A78>$N$30,NA(),10*H78) -> -35.3 | O78: =IF($A78>$N$30,NA(),IF(N78<-1,-1,IF(N78>1,1,N78))) -> -1 | P78: 0.3698161395 | AX78: 139156300
A79: 47 | B79: =IF(A79>$B$30,NA(),IF($A79>$A$8,"",OFFSET(InputPriceData!$B$15,$A79+$A$11,0,1,1))) -> 2020-09-03 | C79: =IF(A79>$B$30,NA(),IF($A79>$A$8,"",OFFSET(InputPriceData!$G$15,CalculationsAndCharts!$A79+$A$11,IF($C$5,8,0),1,1))) -> 148011100 | D79: =IF(A79>$B$30,NA(),IF(A79>$A$8,"",OFFSET(InputPriceData!$C$15,CalculationsAndCharts!$A79+$A$11,IF($C$5,8,0),1,1))) -> 352.95 | E79: =IF(A79>$B$30,NA(),IF(A79>$A$8,"",OFFSET(InputPriceData!$D$15,CalculationsAndCharts!$A79+$A$11,IF($C$5,8,0),1,1))) -> 353.45 | F79: =IF(A79>$B$30,NA(),IF(A79>$A$8,"",OFFSET(InputPriceData!$E$15,CalculationsAndCharts!$A79+$A$11,IF($C$5,8,0),1,1))) -> 339.78 | G79: =IF(A79>$B$30,NA(),IF(A79>$A$8,"",OFFSET(InputPriceData!$F$15,CalculationsAndCharts!$A79+$A$11,IF($C$5,8,0),1,1))) -> 342.55 | H79: -10.4 | I79: 10.4 | J79: 10.4 | K79: 3.7225 | N79: =IF($A79>$N$30,NA(),10*H79) -> -104 | O79: =IF($A79>$N$30,NA(),IF(N79<-1,-1,IF(N79>1,1,N79))) -> -1 | P79: 0.4497374795 | AX79: 148011100
A80: 48 | B80: =IF(A80>$B$30,NA(),IF($A80>$A$8,"",OFFSET(InputPriceData!$B$15,$A80+$A$11,0,1,1))) -> 2020-09-02 | C80: =IF(A80>$B$30,NA(),IF($A80>$A$8,"",OFFSET(InputPriceData!$G$15,CalculationsAndCharts!$A80+$A$11,IF($C$5,8,0),1,1))) -> 69540000 | D80: =IF(A80>$B$30,NA(),IF(A80>$A$8,"",OFFSET(InputPriceData!$C$15,CalculationsAndCharts!$A80+$A$11,IF($C$5,8,0),1,1))) -> 351.76 | E80: =IF(A80>$B$30,NA(),IF(A80>$A$8,"",OFFSET(InputPriceData!$D$15,CalculationsAndCharts!$A80+$A$11,IF($C$5,8,0),1,1))) -> 355.8 | F80: =IF(A80>$B$30,NA(),IF(A80>$A$8,"",OFFSET(InputPriceData!$E$15,CalculationsAndCharts!$A80+$A$11,IF($C$5,8,0),1,1))) -> 350.53 | G80: =IF(A80>$B$30,NA(),IF(A80>$A$8,"",OFFSET(InputPriceData!$F$15,CalculationsAndCharts!$A80+$A$11,IF($C$5,8,0),1,1))) -> 354.76 | H80: 3 | I80: 3 | J80: 3 | K80: 2.78375 | N80: =IF($A80>$N$30,NA(),10*H80) -> 30 | O80: =IF($A80>$N$30,NA(),IF(N80<-1,-1,IF(N80>1,1,N80))) -> 1 | P80: 0.4834855204 | AW80: 69540000
A81: 49 | B81: =IF(A81>$B$30,NA(),IF($A81>$A$8,"",OFFSET(InputPriceData!$B$15,$A81+$A$11,0,1,1))) -> 2020-09-01 | C81: =IF(A81>$B$30,NA(),IF($A81>$A$8,"",OFFSET(InputPriceData!$G$15,CalculationsAndCharts!$A81+$A$11,IF($C$5,8,0),1,1))) -> 54999300 | D81: =IF(A81>$B$30,NA(),IF(A81>$A$8,"",OFFSET(InputPriceData!$C$15,CalculationsAndCharts!$A81+$A$11,IF($C$5,8,0),1,1))) -> 347.33 | E81: =IF(A81>$B$30,NA(),IF(A81>$A$8,"",OFFSET(InputPriceData!$D$15,CalculationsAndCharts!$A81+$A$11,IF($C$5,8,0),1,1))) -> 349.81 | F81: =IF(A81>$B$30,NA(),IF(A81>$A$8,"",OFFSET(InputPriceData!$E$15,CalculationsAndCharts!$A81+$A$11,IF($C$5,8,0),1,1))) -> 346.37 | G81: =IF(A81>$B$30,NA(),IF(A81>$A$8,"",OFFSET(InputPriceData!$F$15,CalculationsAndCharts!$A81+$A$11,IF($C$5,8,0),1,1))) -> 349.7 | H81: 2.37 | I81: 2.37 | J81: 2.37 | K81: 2.77 | N81: =IF($A81>$N$30,NA(),10*H81) -> 23.7 | O81: =IF($A81>$N$30,NA(),IF(N81<-1,-1,IF(N81>1,1,N81))) -> 1 | P81: 0.5042800339 | AW81: 54999300
A82: 50 | B82: =IF(A82>$B$30,NA(),IF($A82>$A$8,"",OFFSET(InputPriceData!$B$15,$A82+$A$11,0,1,1))) -> 2020-08-31 | C82: =IF(A82>$B$30,NA(),IF($A82>$A$8,"",OFFSET(InputPriceData!$G$15,CalculationsAndCharts!$A82+$A$11,IF($C$5,8,0),1,1))) -> 66099200 | D82: =IF(A82>$B$30,NA(),IF(A82>$A$8,"",OFFSET(InputPriceData!$C$15,CalculationsAndCharts!$A82+$A$11,IF($C$5,8,0),1,1))) -> 347.47 | E82: =IF(A82>$B$30,NA(),IF(A82>$A$8,"",OFFSET(InputPriceData!$D$15,CalculationsAndCharts!$A82+$A$11,IF($C$5,8,0),1,1))) -> 348.41 | F82: =IF(A82>$B$30,NA(),IF(A82>$A$8,"",OFFSET(InputPriceData!$E$15,CalculationsAndCharts!$A82+$A$11,IF($C$5,8,0),1,1))) -> 346.19 | G82: =IF(A82>$B$30,NA(),IF(A82>$A$8,"",OFFSET(InputPriceData!$F$15,CalculationsAndCharts!$A82+$A$11,IF($C$5,8,0),1,1))) -> 346.44 | H82: -1.03 | I82: 1.03 | J82: 2.78 | K82: 2.835 | N82: =IF($A82>$N$30,NA(),10*H82) -> -10.3 | O82: =IF($A82>$N$30,NA(),IF(N82<-1,-1,IF(N82>1,1,N82))) -> -1 | P82: 0.5574492791 | AX82: 66099200
A83: 51 | B83: =IF(A83>$B$30,NA(),IF($A83>$A$8,"",OFFSET(InputPriceData!$B$15,$A83+$A$11,0,1,1))) -> 2020-08-28 | C83: =IF(A83>$B$30,NA(),IF($A83>$A$8,"",OFFSET(InputPriceData!$G$15,CalculationsAndCharts!$A83+$A$11,IF($C$5,8,0),1,1))) -> 48588900 | D83: =IF(A83>$B$30,NA(),IF(A83>$A$8,"",OFFSET(InputPriceData!$C$15,CalculationsAndCharts!$A83+$A$11,IF($C$5,8,0),1,1))) -> 346.57 | E83: =IF(A83>$B$30,NA(),IF(A83>$A$8,"",OFFSET(InputPriceData!$D$15,CalculationsAndCharts!$A83+$A$11,IF($C$5,8,0),1,1))) -> 347.84 | F83: =IF(A83>$B$30,NA(),IF(A83>$A$8,"",OFFSET(InputPriceData!$E$15,CalculationsAndCharts!$A83+$A$11,IF($C$5,8,0),1,1))) -> 345.29 | G83: =IF(A83>$B$30,NA(),IF(A83>$A$8,"",OFFSET(InputPriceData!$F$15,CalculationsAndCharts!$A83+$A$11,IF($C$5,8,0),1,1))) -> 347.7 | H83: 1.13 | I83: 1.13 | J83: 2.78 | K83: 2.7125 | N83: =IF($A83>$N$30,NA(),10*H83) -> 11.3 | O83: =IF($A83>$N$30,NA(),IF(N83<-1,-1,IF(N83>1,1,N83))) -> 1 | P83: 0.6005977847 | AW83: 48588900
A84: 52 | B84: =IF(A84>$B$30,NA(),IF($A84>$A$8,"",OFFSET(InputPriceData!$B$15,$A84+$A$11,0,1,1))) -> 2020-08-27 | C84: =IF(A84>$B$30,NA(),IF($A84>$A$8,"",OFFSET(InputPriceData!$G$15,CalculationsAndCharts!$A84+$A$11,IF($C$5,8,0),1,1))) -> 58034100 | D84: =IF(A84>$B$30,NA(),IF(A84>$A$8,"",OFFSET(InputPriceData!$C$15,CalculationsAndCharts!$A84+$A$11,IF($C$5,8,0),1,1))) -> 345.65 | E84: =IF(A84>$B$30,NA(),IF(A84>$A$8,"",OFFSET(InputPriceData!$D$15,CalculationsAndCharts!$A84+$A$11,IF($C$5,8,0),1,1))) -> 347.03 | F84: =IF(A84>$B$30,NA(),IF(A84>$A$8,"",OFFSET(InputPriceData!$E$15,CalculationsAndCharts!$A84+$A$11,IF($C$5,8,0),1,1))) -> 343.68 | G84: =IF(A84>$B$30,NA(),IF(A84>$A$8,"",OFFSET(InputPriceData!$F$15,CalculationsAndCharts!$A84+$A$11,IF($C$5,8,0),1,1))) -> 345.47 | H84: -0.18 | I84: 0.18 | J84: 2.78 | K84: 2.4175 | N84: =IF($A84>$N$30,NA(),10*H84) -> -1.8 | O84: =IF($A84>$N$30,NA(),IF(N84<-1,-1,IF(N84>1,1,N84))) -> -1 | P84: 0.6280776056 | AX84: 58034100
A85: 53 | B85: =IF(A85>$B$30,NA(),IF($A85>$A$8,"",OFFSET(InputPriceData!$B$15,$A85+$A$11,0,1,1))) -> 2020-08-26 | C85: =IF(A85>$B$30,NA(),IF($A85>$A$8,"",OFFSET(InputPriceData!$G$15,CalculationsAndCharts!$A85+$A$11,IF($C$5,8,0),1,1))) -> 50790200 | D85: =IF(A85>$B$30,NA(),IF(A85>$A$8,"",OFFSET(InputPriceData!$C$15,CalculationsAndCharts!$A85+$A$11,IF($C$5,8,0),1,1))) -> 341.93 | E85: =IF(A85>$B$30,NA(),IF(A85>$A$8,"",OFFSET(InputPriceData!$D$15,CalculationsAndCharts!$A85+$A$11,IF($C$5,8,0),1,1))) -> 345 | F85: =IF(A85>$B$30,NA(),IF(A85>$A$8,"",OFFSET(InputPriceData!$E$15,CalculationsAndCharts!$A85+$A$11,IF($C$5,8,0),1,1))) -> 341.34 | G85: =IF(A85>$B$30,NA(),IF(A85>$A$8,"",OFFSET(InputPriceData!$F$15,CalculationsAndCharts!$A85+$A$11,IF($C$5,8,0),1,1))) -> 344.71 | H85: 2.78 | I85: 2.78 | J85: 2.78 | K85: 2.31875 | N85: =IF($A85>$N$30,NA(),10*H85) -> 27.8 | O85: =IF($A85>$N$30,NA(),IF(N85<-1,-1,IF(N85>1,1,N85))) -> 1 | P85: 0.6330908879 | AW85: 50790200
A86: 54 | B86: =IF(A86>$B$30,NA(),IF($A86>$A$8,"",OFFSET(InputPriceData!$B$15,$A86+$A$11,0,1,1))) -> 2020-08-25 | C86: =IF(A86>$B$30,NA(),IF($A86>$A$8,"",OFFSET(InputPriceData!$G$15,CalculationsAndCharts!$A86+$A$11,IF($C$5,8,0),1,1))) -> 38463400 | D86: =IF(A86>$B$30,NA(),IF(A86>$A$8,"",OFFSET(InputPriceData!$C$15,CalculationsAndCharts!$A86+$A$11,IF($C$5,8,0),1,1))) -> 340.71 | E86: =IF(A86>$B$30,NA(),IF(A86>$A$8,"",OFFSET(InputPriceData!$D$15,CalculationsAndCharts!$A86+$A$11,IF($C$5,8,0),1,1))) -> 341.38 | F86: =IF(A86>$B$30,NA(),IF(A86>$A$8,"",OFFSET(InputPriceData!$E$15,CalculationsAndCharts!$A86+$A$11,IF($C$5,8,0),1,1))) -> 339.46 | G86: =IF(A86>$B$30,NA(),IF(A86>$A$8,"",OFFSET(InputPriceData!$F$15,CalculationsAndCharts!$A86+$A$11,IF($C$5,8,0),1,1))) -> 341.29 | H86: 0.58 | I86: 0.58 | J86: 2.89 | K86: 2.4725 | N86: =IF($A86>$N$30,NA(),10*H86) -> 5.8 | O86: =IF($A86>$N$30,NA(),IF(N86<-1,-1,IF(N86>1,1,N86))) -> 1 | P86: 0.6076392054 | AW86: 38463400
A87: 55 | B87: =IF(A87>$B$30,NA(),IF($A87>$A$8,"",OFFSET(InputPriceData!$B$15,$A87+$A$11,0,1,1))) -> 2020-08-24 | C87: =IF(A87>$B$30,NA(),IF($A87>$A$8,"",OFFSET(InputPriceData!$G$15,CalculationsAndCharts!$A87+$A$11,IF($C$5,8,0),1,1))) -> 48588700 | D87: =IF(A87>$B$30,NA(),IF(A87>$A$8,"",OFFSET(InputPriceData!$C$15,CalculationsAndCharts!$A87+$A$11,IF($C$5,8,0),1,1))) -> 339.31 | E87: =IF(A87>$B$30,NA(),IF(A87>$A$8,"",OFFSET(InputPriceData!$D$15,CalculationsAndCharts!$A87+$A$11,IF($C$5,8,0),1,1))) -> 340.18 | F87: =IF(A87>$B$30,NA(),IF(A87>$A$8,"",OFFSET(InputPriceData!$E$15,CalculationsAndCharts!$A87+$A$11,IF($C$5,8,0),1,1))) -> 336.66 | G87: =IF(A87>$B$30,NA(),IF(A87>$A$8,"",OFFSET(InputPriceData!$F$15,CalculationsAndCharts!$A87+$A$11,IF($C$5,8,0),1,1))) -> 340.1 | H87: 0.79 | I87: 0.79 | J87: 2.89 | K87: 2.6125 | N87: =IF($A87>$N$30,NA(),10*H87) -> 7.9 | O87: =IF($A87>$N$30,NA(),IF(N87<-1,-1,IF(N87>1,1,N87))) -> 1 | P87: 0.5933668173 | AW87: 48588700
A88: 56 | B88: =IF(A88>$B$30,NA(),IF($A88>$A$8,"",OFFSET(InputPriceData!$B$15,$A88+$A$11,0,1,1))) -> 2020-08-21 | C88: =IF(A88>$B$30,NA(),IF($A88>$A$8,"",OFFSET(InputPriceData!$G$15,CalculationsAndCharts!$A88+$A$11,IF($C$5,8,0),1,1))) -> 55106600 | D88: =IF(A88>$B$30,NA(),IF(A88>$A$8,"",OFFSET(InputPriceData!$C$15,CalculationsAndCharts!$A88+$A$11,IF($C$5,8,0),1,1))) -> 335.14 | E88: =IF(A88>$B$30,NA(),IF(A88>$A$8,"",OFFSET(InputPriceData!$D$15,CalculationsAndCharts!$A88+$A$11,IF($C$5,8,0),1,1))) -> 336.93 | F88: =IF(A88>$B$30,NA(),IF(A88>$A$8,"",OFFSET(InputPriceData!$E$15,CalculationsAndCharts!$A88+$A$11,IF($C$5,8,0),1,1))) -> 334.78 | G88: =IF(A88>$B$30,NA(),IF(A88>$A$8,"",OFFSET(InputPriceData!$F$15,CalculationsAndCharts!$A88+$A$11,IF($C$5,8,0),1,1))) -> 336.69 | H88: 1.55 | I88: 1.55 | J88: 2.89 | K88: 2.7525 | N88: =IF($A88>$N$30,NA(),10*H88) -> 15.5 | O88: =IF($A88>$N$30,NA(),IF(N88<-1,-1,IF(N88>1,1,N88))) -> 1 | P88: 0.5948526257 | AW88: 55106600
A89: 57 | B89: =IF(A89>$B$30,NA(),IF($A89>$A$8,"",OFFSET(InputPriceData!$B$15,$A89+$A$11,0,1,1))) -> 2020-08-20 | C89: =IF(A89>$B$30,NA(),IF($A89>$A$8,"",OFFSET(InputPriceData!$G$15,CalculationsAndCharts!$A89+$A$11,IF($C$5,8,0),1,1))) -> 42207800 | D89: =IF(A89>$B$30,NA(),IF(A89>$A$8,"",OFFSET(InputPriceData!$C$15,CalculationsAndCharts!$A89+$A$11,IF($C$5,8,0),1,1))) -> 332.61 | E89: =IF(A89>$B$30,NA(),IF(A89>$A$8,"",OFFSET(InputPriceData!$D$15,CalculationsAndCharts!$A89+$A$11,IF($C$5,8,0),1,1))) -> 336.02 | F89: =IF(A89>$B$30,NA(),IF(A89>$A$8,"",OFFSET(InputPriceData!$E$15,CalculationsAndCharts!$A89+$A$11,IF($C$5,8,0),1,1))) -> 332.47 | G89: =IF(A89>$B$30,NA(),IF(A89>$A$8,"",OFFSET(InputPriceData!$F$15,CalculationsAndCharts!$A89+$A$11,IF($C$5,8,0),1,1))) -> 335.5 | H89: 2.89 | I89: 2.89 | J89: 2.89 | K89: 2.8925 | N89: =IF($A89>$N$30,NA(),10*H89) -> 28.9 | O89: =IF($A89>$N$30,NA(),IF(N89<-1,-1,IF(N89>1,1,N89))) -> 1 | P89: 0.6174524243 | AW89: 42207800
A90: 58 | B90: =IF(A90>$B$30,NA(),IF($A90>$A$8,"",OFFSET(InputPriceData!$B$15,$A90+$A$11,0,1,1))) -> 2020-08-19 | C90: =IF(A90>$B$30,NA(),IF($A90>$A$8,"",OFFSET(InputPriceData!$G$15,CalculationsAndCharts!$A90+$A$11,IF($C$5,8,0),1,1))) -> 68054200 | D90: =IF(A90>$B$30,NA(),IF(A90>$A$8,"",OFFSET(InputPriceData!$C$15,CalculationsAndCharts!$A90+$A$11,IF($C$5,8,0),1,1))) -> 336.26 | E90: =IF(A90>$B$30,NA(),IF(A90>$A$8,"",OFFSET(InputPriceData!$D$15,CalculationsAndCharts!$A90+$A$11,IF($C$5,8,0),1,1))) -> 336.82 | F90: =IF(A90>$B$30,NA(),IF(A90>$A$8,"",OFFSET(InputPriceData!$E$15,CalculationsAndCharts!$A90+$A$11,IF($C$5,8,0),1,1))) -> 333.85 | G90: =IF(A90>$B$30,NA(),IF(A90>$A$8,"",OFFSET(InputPriceData!$F$15,CalculationsAndCharts!$A90+$A$11,IF($C$5,8,0),1,1))) -> 334.46 | H90: -1.8 | I90: 1.8 | J90: 1.8 | K90: 2.88375 | N90: =IF($A90>$N$30,NA(),10*H90) -> -18 | O90: =IF($A90>$N$30,NA(),IF(N90<-1,-1,IF(N90>1,1,N90))) -> -1 | P90: 0.6672943247 | AX90: 68054200
A91: 59 | B91: =IF(A91>$B$30,NA(),IF($A91>$A$8,"",OFFSET(InputPriceData!$B$15,$A91+$A$11,0,1,1))) -> 2020-08-18 | C91: =IF(A91>$B$30,NA(),IF($A91>$A$8,"",OFFSET(InputPriceData!$G$15,CalculationsAndCharts!$A91+$A$11,IF($C$5,8,0),1,1))) -> 38733900 | D91: =IF(A91>$B$30,NA(),IF(A91>$A$8,"",OFFSET(InputPriceData!$C$15,CalculationsAndCharts!$A91+$A$11,IF($C$5,8,0),1,1))) -> 335.56 | E91: =IF(A91>$B$30,NA(),IF(A91>$A$8,"",OFFSET(InputPriceData!$D$15,CalculationsAndCharts!$A91+$A$11,IF($C$5,8,0),1,1))) -> 336.31 | F91: =IF(A91>$B$30,NA(),IF(A91>$A$8,"",OFFSET(InputPriceData!$E$15,CalculationsAndCharts!$A91+$A$11,IF($C$5,8,0),1,1))) -> 333.84 | G91: =IF(A91>$B$30,NA(),IF(A91>$A$8,"",OFFSET(InputPriceData!$F$15,CalculationsAndCharts!$A91+$A$11,IF($C$5,8,0),1,1))) -> 335.86 | H91: 0.3 | I91: 0.3 | J91: 0.42 | K91: 3.01125 | N91: =IF($A91>$N$30,NA(),10*H91) -> 3 | O91: =IF($A91>$N$30,NA(),IF(N91<-1,-1,IF(N91>1,1,N91))) -> 1 | P91: 0.7003829988 | AW91: 38733900
A92: 60 | B92: =IF(A92>$B$30,NA(),IF($A92>$A$8,"",OFFSET(InputPriceData!$B$15,$A92+$A$11,0,1,1))) -> 2020-08-17 | C92: =IF(A92>$B$30,NA(),IF($A92>$A$8,"",OFFSET(InputPriceData!$G$15,CalculationsAndCharts!$A92+$A$11,IF($C$5,8,0),1,1))) -> 35481000 | D92: =IF(A92>$B$30,NA(),IF(A92>$A$8,"",OFFSET(InputPriceData!$C$15,CalculationsAndCharts!$A92+$A$11,IF($C$5,8,0),1,1))) -> 335.16 | E92: =IF(A92>$B$30,NA(),IF(A92>$A$8,"",OFFSET(InputPriceData!$D$15,CalculationsAndCharts!$A92+$A$11,IF($C$5,8,0),1,1))) -> 335.56 | F92: =IF(A92>$B$30,NA(),IF(A92>$A$8,"",OFFSET(InputPriceData!$E$15,CalculationsAndCharts!$A92+$A$11,IF($C$5,8,0),1,1))) -> 334.08 | G92: =IF(A92>$B$30,NA(),IF(A92>$A$8,"",OFFSET(InputPriceData!$F$15,CalculationsAndCharts!$A92+$A$11,IF($C$5,8,0),1,1))) -> 335.13 | H92: -0.03 | I92: 0.03 | J92: 1.99 | K92: 3.31125 | N92: =IF($A92>$N$30,NA(),10*H92) -> -0.3 | O92: =IF($A92>$N$30,NA(),IF(N92<-1,-1,IF(N92>1,1,N92))) -> -0.3 | P92: 0.7092615735 | AX92: 35481000
A93: 61 | B93: =IF(A93>$B$30,NA(),IF($A93>$A$8,"",OFFSET(InputPriceData!$B$15,$A93+$A$11,0,1,1))) -> 2020-08-14 | C93: =IF(A93>$B$30,NA(),IF($A93>$A$8,"",OFFSET(InputPriceData!$G$15,CalculationsAndCharts!$A93+$A$11,IF($C$5,8,0),1,1))) -> 47260400 | D93: =IF(A93>$B$30,NA(),IF(A93>$A$8,"",OFFSET(InputPriceData!$C$15,CalculationsAndCharts!$A93+$A$11,IF($C$5,8,0),1,1))) -> 333.65 | E93: =IF(A93>$B$30,NA(),IF(A93>$A$8,"",OFFSET(InputPriceData!$D$15,CalculationsAndCharts!$A93+$A$11,IF($C$5,8,0),1,1))) -> 334.65 | F93: =IF(A93>$B$30,NA(),IF(A93>$A$8,"",OFFSET(InputPriceData!$E$15,CalculationsAndCharts!$A93+$A$11,IF($C$5,8,0),1,1))) -> 332.86 | G93: =IF(A93>$B$30,NA(),IF(A93>$A$8,"",OFFSET(InputPriceData!$F$15,CalculationsAndCharts!$A93+$A$11,IF($C$5,8,0),1,1))) -> 334.07 | H93: 0.42 | I93: 0.42 | J93: 4.01 | K93: 3.335 | N93: =IF($A93>$N$30,NA(),10*H93) -> 4.2 | O93: =IF($A93>$N$30,NA(),IF(N93<-1,-1,IF(N93>1,1,N93))) -> 1 | P93: 0.7029317386 | AW93: 47260400
A94: 62 | B94: =IF(A94>$B$30,NA(),IF($A94>$A$8,"",OFFSET(InputPriceData!$B$15,$A94+$A$11,0,1,1))) -> 2020-08-13 | C94: =IF(A94>$B$30,NA(),IF($A94>$A$8,"",OFFSET(InputPriceData!$G$15,CalculationsAndCharts!$A94+$A$11,IF($C$5,8,0),1,1))) -> 41816100 | D94: =IF(A94>$B$30,NA(),IF(A94>$A$8,"",OFFSET(InputPriceData!$C$15,CalculationsAndCharts!$A94+$A$11,IF($C$5,8,0),1,1))) -> 333.84 | E94: =IF(A94>$B$30,NA(),IF(A94>$A$8,"",OFFSET(InputPriceData!$D$15,CalculationsAndCharts!$A94+$A$11,IF($C$5,8,0),1,1))) -> 335.47 | F94: =IF(A94>$B$30,NA(),IF(A94>$A$8,"",OFFSET(InputPriceData!$E$15,CalculationsAndCharts!$A94+$A$11,IF($C$5,8,0),1,1))) -> 333.07 | G94: =IF(A94>$B$30,NA(),IF(A94>$A$8,"",OFFSET(InputPriceData!$F$15,CalculationsAndCharts!$A94+$A$11,IF($C$5,8,0),1,1))) -> 334.06 | H94: 0.22 | I94: 0.22 | J94: 4.01 | K94: 3.10625 | N94: =IF($A94>$N$30,NA(),10*H94) -> 2.2 | O94: =IF($A94>$N$30,NA(),IF(N94<-1,-1,IF(N94>1,1,N94))) -> 1 | P94: 0.6764735145 | AW94: 41816100
A95: 63 | B95: =IF(A95>$B$30,NA(),IF($A95>$A$8,"",OFFSET(InputPriceData!$B$15,$A95+$A$11,0,1,1))) -> 2020-08-12 | C95: =IF(A95>$B$30,NA(),IF($A95>$A$8,"",OFFSET(InputPriceData!$G$15,CalculationsAndCharts!$A95+$A$11,IF($C$5,8,0),1,1))) -> 53826100 | D95: =IF(A95>$B$30,NA(),IF(A95>$A$8,"",OFFSET(InputPriceData!$C$15,CalculationsAndCharts!$A95+$A$11,IF($C$5,8,0),1,1))) -> 332.68 | E95: =IF(A95>$B$30,NA(),IF(A95>$A$8,"",OFFSET(InputPriceData!$D$15,CalculationsAndCharts!$A95+$A$11,IF($C$5,8,0),1,1))) -> 335.5 | F95: =IF(A95>$B$30,NA(),IF(A95>$A$8,"",OFFSET(InputPriceData!$E$15,CalculationsAndCharts!$A95+$A$11,IF($C$5,8,0),1,1))) -> 332.65 | G95: =IF(A95>$B$30,NA(),IF(A95>$A$8,"",OFFSET(InputPriceData!$F$15,CalculationsAndCharts!$A95+$A$11,IF($C$5,8,0),1,1))) -> 334.67 | H95: 1.99 | I95: 1.99 | J95: 4.01 | K95: 2.9775 | N95: =IF($A95>$N$30,NA(),10*H95) -> 19.9 | O95: =IF($A95>$N$30,NA(),IF(N95<-1,-1,IF(N95>1,1,N95))) -> 1 | P95: 0.6573474146 | AW95: 53826100
A96: 64 | B96: =IF(A96>$B$30,NA(),IF($A96>$A$8,"",OFFSET(InputPriceData!$B$15,$A96+$A$11,0,1,1))) -> 2020-08-11 | C96: =IF(A96>$B$30,NA(),IF($A96>$A$8,"",OFFSET(InputPriceData!$G$15,CalculationsAndCharts!$A96+$A$11,IF($C$5,8,0),1,1))) -> 69601100 | D96: =IF(A96>$B$30,NA(),IF(A96>$A$8,"",OFFSET(InputPriceData!$C$15,CalculationsAndCharts!$A96+$A$11,IF($C$5,8,0),1,1))) -> 334.08 | E96: =IF(A96>$B$30,NA(),IF(A96>$A$8,"",OFFSET(InputPriceData!$D$15,CalculationsAndCharts!$A96+$A$11,IF($C$5,8,0),1,1))) -> 334.77 | F96: =IF(A96>$B$30,NA(),IF(A96>$A$8,"",OFFSET(InputPriceData!$E$15,CalculationsAndCharts!$A96+$A$11,IF($C$5,8,0),1,1))) -> 329.28 | G96: =IF(A96>$B$30,NA(),IF(A96>$A$8,"",OFFSET(InputPriceData!$F$15,CalculationsAndCharts!$A96+$A$11,IF($C$5,8,0),1,1))) -> 330.07 | H96: -4.01 | I96: 4.01 | J96: 4.01 | K96: 2.84875 | N96: =IF($A96>$N$30,NA(),10*H96) -> -40.1 | O96: =IF($A96>$N$30,NA(),IF(N96<-1,-1,IF(N96>1,1,N96))) -> -1 | P96: 0.6490531568 | AX96: 69601100
A97: 65 | B97: =IF(A97>$B$30,NA(),IF($A97>$A$8,"",OFFSET(InputPriceData!$B$15,$A97+$A$11,0,1,1))) -> 2020-08-10 | C97: =IF(A97>$B$30,NA(),IF($A97>$A$8,"",OFFSET(InputPriceData!$G$15,CalculationsAndCharts!$A97+$A$11,IF($C$5,8,0),1,1))) -> 44282100 | D97: =IF(A97>$B$30,NA(),IF(A97>$A$8,"",OFFSET(InputPriceData!$C$15,CalculationsAndCharts!$A97+$A$11,IF($C$5,8,0),1,1))) -> 332.31 | E97: =IF(A97>$B$30,NA(),IF(A97>$A$8,"",OFFSET(InputPriceData!$D$15,CalculationsAndCharts!$A97+$A$11,IF($C$5,8,0),1,1))) -> 333.01 | F97: =IF(A97>$B$30,NA(),IF(A97>$A$8,"",OFFSET(InputPriceData!$E$15,CalculationsAndCharts!$A97+$A$11,IF($C$5,8,0),1,1))) -> 330.22 | G97: =IF(A97>$B$30,NA(),IF(A97>$A$8,"",OFFSET(InputPriceData!$F$15,CalculationsAndCharts!$A97+$A$11,IF($C$5,8,0),1,1))) -> 332.81 | H97: 0.5 | I97: 0.5 | J97: 2.82 | K97: 2.72 | N97: =IF($A97>$N$30,NA(),10*H97) -> 5 | O97: =IF($A97>$N$30,NA(),IF(N97<-1,-1,IF(N97>1,1,N97))) -> 1 | P97: 0.6048955627 | AW97: =IF(G97>=D97,C97,NA()) -> 44282100 | AX97: =IF(G97<D97,C97,NA()) -> 
A98: 66 | B98: =IF(A98>$B$30,NA(),IF($A98>$A$8,"",OFFSET(InputPriceData!$B$15,$A98+$A$11,0,1,1))) -> 2020-08-07 | C98: =IF(A98>$B$30,NA(),IF($A98>$A$8,"",OFFSET(InputPriceData!$G$15,CalculationsAndCharts!$A98+$A$11,IF($C$5,8,0),1,1))) -> 57308300 | D98: =IF(A98>$B$30,NA(),IF(A98>$A$8,"",OFFSET(InputPriceData!$C$15,CalculationsAndCharts!$A98+$A$11,IF($C$5,8,0),1,1))) -> 330.54 | E98: =IF(A98>$B$30,NA(),IF(A98>$A$8,"",OFFSET(InputPriceData!$D$15,CalculationsAndCharts!$A98+$A$11,IF($C$5,8,0),1,1))) -> 332.13 | F98: =IF(A98>$B$30,NA(),IF(A98>$A$8,"",OFFSET(InputPriceData!$E$15,CalculationsAndCharts!$A98+$A$11,IF($C$5,8,0),1,1))) -> 329.57 | G98: =IF(A98>$B$30,NA(),IF(A98>$A$8,"",OFFSET(InputPriceData!$F$15,CalculationsAndCharts!$A98+$A$11,IF($C$5,8,0),1,1))) -> 331.82 | H98: =IF($A98>$H$30,NA(),G98-D98) -> 1.28 | I98: =IF($A98>$H$30,NA(),ABS(H98)) -> 1.28 | J98: =IF($A98>$J$30,NA(),MAX(OFFSET(I98,0,0,$A$17,1))) -> 2.82 | K98: =IF($A98>$K$30,NA(),AVERAGE(OFFSET(J98,0,0,$A$18,1))) -> 2.74 | N98: =IF($A98>$N$30,NA(),10*H98) -> 12.8 | O98: =IF($A98>$N$30,NA(),IF(N98<-1,-1,IF(N98>1,1,N98))) -> 1 | P98: =IF($A98>$A$8,NA(),IF($A98>$P$30,O98,$E$23*(O98+O99)/2+$E$21*P99+$E$22*P100)) -> 0.514759113 | AW98: 57308300
A99: 67 | B99: =IF(A99>$B$30,NA(),IF($A99>$A$8,"",OFFSET(InputPriceData!$B$15,$A99+$A$11,0,1,1))) -> 2020-08-06 | C99: =IF(A99>$B$30,NA(),IF($A99>$A$8,"",OFFSET(InputPriceData!$G$15,CalculationsAndCharts!$A99+$A$11,IF($C$5,8,0),1,1))) -> 43679400 | D99: =IF(A99>$B$30,NA(),IF(A99>$A$8,"",OFFSET(InputPriceData!$C$15,CalculationsAndCharts!$A99+$A$11,IF($C$5,8,0),1,1))) -> 328.76 | E99: =IF(A99>$B$30,NA(),IF(A99>$A$8,"",OFFSET(InputPriceData!$D$15,CalculationsAndCharts!$A99+$A$11,IF($C$5,8,0),1,1))) -> 331.71 | F99: =IF(A99>$B$30,NA(),IF(A99>$A$8,"",OFFSET(InputPriceData!$E$15,CalculationsAndCharts!$A99+$A$11,IF($C$5,8,0),1,1))) -> 328.41 | G99: =IF(A99>$B$30,NA(),IF(A99>$A$8,"",OFFSET(InputPriceData!$F$15,CalculationsAndCharts!$A99+$A$11,IF($C$5,8,0),1,1))) -> 331.58 | H99: 2.82 | I99: 2.82 | J99: 2.82 | K99: 2.8225 | N99: =IF($A99>$N$30,NA(),10*H99) -> 28.2 | O99: =IF($A99>$N$30,NA(),IF(N99<-1,-1,IF(N99>1,1,N99))) -> 1 | P99: 0.4182301656 | AW99: 43679400
A100: 68 | B100: =IF(A100>$B$30,NA(),IF($A100>$A$8,"",OFFSET(InputPriceData!$B$15,$A100+$A$11,0,1,1))) -> 2020-08-05 | C100: =IF(A100>$B$30,NA(),IF($A100>$A$8,"",OFFSET(InputPriceData!$G$15,CalculationsAndCharts!$A100+$A$11,IF($C$5,8,0),1,1))) -> 42866400 | D100: =IF(A100>$B$30,NA(),IF(A100>$A$8,"",OFFSET(InputPriceData!$C$15,CalculationsAndCharts!$A100+$A$11,IF($C$5,8,0),1,1))) -> 328.75 | E100: =IF(A100>$B$30,NA(),IF(A100>$A$8,"",OFFSET(InputPriceData!$D$15,CalculationsAndCharts!$A100+$A$11,IF($C$5,8,0),1,1))) -> 329.66 | F100: =IF(A100>$B$30,NA(),IF(A100>$A$8,"",OFFSET(InputPriceData!$E$15,CalculationsAndCharts!$A100+$A$11,IF($C$5,8,0),1,1))) -> 328.46 | G100: =IF(A100>$B$30,NA(),IF(A100>$A$8,"",OFFSET(InputPriceData!$F$15,CalculationsAndCharts!$A100+$A$11,IF($C$5,8,0),1,1))) -> 329.38 | H100: 0.63 | I100: 0.63 | J100: 2.18 | K100: 2.905 | N100: =IF($A100>$N$30,NA(),10*H100) -> 6.3 | O100: =IF($A100>$N$30,NA(),IF(N100<-1,-1,IF(N100>1,1,N100))) -> 1 | P100: 0.31801396 | AW100: 42866400
A101: 69 | B101: =IF(A101>$B$30,NA(),IF($A101>$A$8,"",OFFSET(InputPriceData!$B$15,$A101+$A$11,0,1,1))) -> 2020-08-04 | C101: =IF(A101>$B$30,NA(),IF($A101>$A$8,"",OFFSET(InputPriceData!$G$15,CalculationsAndCharts!$A101+$A$11,IF($C$5,8,0),1,1))) -> 41917900 | D101: =IF(A101>$B$30,NA(),IF(A101>$A$8,"",OFFSET(InputPriceData!$C$15,CalculationsAndCharts!$A101+$A$11,IF($C$5,8,0),1,1))) -> 325.17 | E101: =IF(A101>$B$30,NA(),IF(A101>$A$8,"",OFFSET(InputPriceData!$D$15,CalculationsAndCharts!$A101+$A$11,IF($C$5,8,0),1,1))) -> 327.35 | F101: =IF(A101>$B$30,NA(),IF(A101>$A$8,"",OFFSET(InputPriceData!$E$15,CalculationsAndCharts!$A101+$A$11,IF($C$5,8,0),1,1))) -> 325.17 | G101: =IF(A101>$B$30,NA(),IF(A101>$A$8,"",OFFSET(InputPriceData!$F$15,CalculationsAndCharts!$A101+$A$11,IF($C$5,8,0),1,1))) -> 327.35 | H101: 2.18 | I101: 2.18 | J101: 2.18 | K101: 3.0675 | N101: =IF($A101>$N$30,NA(),10*H101) -> 21.8 | O101: =IF($A101>$N$30,NA(),IF(N101<-1,-1,IF(N101>1,1,N101))) -> 1 | P101: 0.2179356433 | AW101: 41917900
A102: 70 | B102: =IF(A102>$B$30,NA(),IF($A102>$A$8,"",OFFSET(InputPriceData!$B$15,$A102+$A$11,0,1,1))) -> 2020-08-03 | C102: =IF(A102>$B$30,NA(),IF($A102>$A$8,"",OFFSET(InputPriceData!$G$15,CalculationsAndCharts!$A102+$A$11,IF($C$5,8,0),1,1))) -> 53077900 | D102: =IF(A102>$B$30,NA(),IF(A102>$A$8,"",OFFSET(InputPriceData!$C$15,CalculationsAndCharts!$A102+$A$11,IF($C$5,8,0),1,1))) -> 325.62 | E102: =IF(A102>$B$30,NA(),IF(A102>$A$8,"",OFFSET(InputPriceData!$D$15,CalculationsAndCharts!$A102+$A$11,IF($C$5,8,0),1,1))) -> 326.91 | F102: =IF(A102>$B$30,NA(),IF(A102>$A$8,"",OFFSET(InputPriceData!$E$15,CalculationsAndCharts!$A102+$A$11,IF($C$5,8,0),1,1))) -> 325.04 | G102: =IF(A102>$B$30,NA(),IF(A102>$A$8,"",OFFSET(InputPriceData!$F$15,CalculationsAndCharts!$A102+$A$11,IF($C$5,8,0),1,1))) -> 326.09 | H102: 0.47 | I102: 0.47 | J102: 2.98 | K102: 3.23 | N102: =IF($A102>$N$30,NA(),10*H102) -> 4.7 | O102: =IF($A102>$N$30,NA(),IF(N102<-1,-1,IF(N102>1,1,N102))) -> 1 | P102: 0.1231317573 | AW102: 53077900
A103: 71 | B103: =IF(A103>$B$30,NA(),IF($A103>$A$8,"",OFFSET(InputPriceData!$B$15,$A103+$A$11,0,1,1))) -> 2020-07-31 | C103: =IF(A103>$B$30,NA(),IF($A103>$A$8,"",OFFSET(InputPriceData!$G$15,CalculationsAndCharts!$A103+$A$11,IF($C$5,8,0),1,1))) -> 85210800 | D103: =IF(A103>$B$30,NA(),IF(A103>$A$8,"",OFFSET(InputPriceData!$C$15,CalculationsAndCharts!$A103+$A$11,IF($C$5,8,0),1,1))) -> 323.22 | E103: =IF(A103>$B$30,NA(),IF(A103>$A$8,"",OFFSET(InputPriceData!$D$15,CalculationsAndCharts!$A103+$A$11,IF($C$5,8,0),1,1))) -> 323.95 | F103: =IF(A103>$B$30,NA(),IF(A103>$A$8,"",OFFSET(InputPriceData!$E$15,CalculationsAndCharts!$A103+$A$11,IF($C$5,8,0),1,1))) -> 318.69 | G103: =IF(A103>$B$30,NA(),IF(A103>$A$8,"",OFFSET(InputPriceData!$F$15,CalculationsAndCharts!$A103+$A$11,IF($C$5,8,0),1,1))) -> 323.84 | H103: 0.62 | I103: 0.62 | J103: 2.98 | K103: 3.21625 | N103: =IF($A103>$N$30,NA(),10*H103) -> 6.2 | O103: =IF($A103>$N$30,NA(),IF(N103<-1,-1,IF(N103>1,1,N103))) -> 1 | P103: 0.04024103945 | AW103: 85210800
A104: 72 | B104: =IF(A104>$B$30,NA(),IF($A104>$A$8,"",OFFSET(InputPriceData!$B$15,$A104+$A$11,0,1,1))) -> 2020-07-30 | C104: =IF(A104>$B$30,NA(),IF($A104>$A$8,"",OFFSET(InputPriceData!$G$15,CalculationsAndCharts!$A104+$A$11,IF($C$5,8,0),1,1))) -> 61861700 | D104: =IF(A104>$B$30,NA(),IF(A104>$A$8,"",OFFSET(InputPriceData!$C$15,CalculationsAndCharts!$A104+$A$11,IF($C$5,8,0),1,1))) -> 319.26 | E104: =IF(A104>$B$30,NA(),IF(A104>$A$8,"",OFFSET(InputPriceData!$D$15,CalculationsAndCharts!$A104+$A$11,IF($C$5,8,0),1,1))) -> 321.75 | F104: =IF(A104>$B$30,NA(),IF(A104>$A$8,"",OFFSET(InputPriceData!$E$15,CalculationsAndCharts!$A104+$A$11,IF($C$5,8,0),1,1))) -> 317.01 | G104: =IF(A104>$B$30,NA(),IF(A104>$A$8,"",OFFSET(InputPriceData!$F$15,CalculationsAndCharts!$A104+$A$11,IF($C$5,8,0),1,1))) -> 321.3 | H104: 2.04 | I104: 2.04 | J104: 2.98 | K104: 3.2025 | N104: =IF($A104>$N$30,NA(),10*H104) -> 20.4 | O104: =IF($A104>$N$30,NA(),IF(N104<-1,-1,IF(N104>1,1,N104))) -> 1 | P104: -0.02241540061 | AW104: 61861700
A105: 73 | B105: =IF(A105>$B$30,NA(),IF($A105>$A$8,"",OFFSET(InputPriceData!$B$15,$A105+$A$11,0,1,1))) -> 2020-07-29 | C105: =IF(A105>$B$30,NA(),IF($A105>$A$8,"",OFFSET(InputPriceData!$G$15,CalculationsAndCharts!$A105+$A$11,IF($C$5,8,0),1,1))) -> 48454200 | D105: =IF(A105>$B$30,NA(),IF(A105>$A$8,"",OFFSET(InputPriceData!$C$15,CalculationsAndCharts!$A105+$A$11,IF($C$5,8,0),1,1))) -> 319.47 | E105: =IF(A105>$B$30,NA(),IF(A105>$A$8,"",OFFSET(InputPriceData!$D$15,CalculationsAndCharts!$A105+$A$11,IF($C$5,8,0),1,1))) -> 323.05 | F105: =IF(A105>$B$30,NA(),IF(A105>$A$8,"",OFFSET(InputPriceData!$E$15,CalculationsAndCharts!$A105+$A$11,IF($C$5,8,0),1,1))) -> 319.43 | G105: =IF(A105>$B$30,NA(),IF(A105>$A$8,"",OFFSET(InputPriceData!$F$15,CalculationsAndCharts!$A105+$A$11,IF($C$5,8,0),1,1))) -> 322.45 | H105: 2.98 | I105: 2.98 | J105: 2.98 | K105: 3.18875 | N105: =IF($A105>$N$30,NA(),10*H105) -> 29.8 | O105: =IF($A105>$N$30,NA(),IF(N105<-1,-1,IF(N105>1,1,N105))) -> 1 | P105: -0.05467735182 | AW105: 48454200
A106: 74 | B106: =IF(A106>$B$30,NA(),IF($A106>$A$8,"",OFFSET(InputPriceData!$B$15,$A106+$A$11,0,1,1))) -> 2020-07-28 | C106: =IF(A106>$B$30,NA(),IF($A106>$A$8,"",OFFSET(InputPriceData!$G$15,CalculationsAndCharts!$A106+$A$11,IF($C$5,8,0),1,1))) -> 57495000 | D106: =IF(A106>$B$30,NA(),IF(A106>$A$8,"",OFFSET(InputPriceData!$C$15,CalculationsAndCharts!$A106+$A$11,IF($C$5,8,0),1,1))) -> 319.78 | E106: =IF(A106>$B$30,NA(),IF(A106>$A$8,"",OFFSET(InputPriceData!$D$15,CalculationsAndCharts!$A106+$A$11,IF($C$5,8,0),1,1))) -> 320.98 | F106: =IF(A106>$B$30,NA(),IF(A106>$A$8,"",OFFSET(InputPriceData!$E$15,CalculationsAndCharts!$A106+$A$11,IF($C$5,8,0),1,1))) -> 318.21 | G106: =IF(A106>$B$30,NA(),IF(A106>$A$8,"",OFFSET(InputPriceData!$F$15,CalculationsAndCharts!$A106+$A$11,IF($C$5,8,0),1,1))) -> 318.53 | H106: -1.25 | I106: 1.25 | J106: 3.48 | K106: 3.5125 | N106: =IF($A106>$N$30,NA(),10*H106) -> -12.5 | O106: =IF($A106>$N$30,NA(),IF(N106<-1,-1,IF(N106>1,1,N106))) -> -1 | P106: -0.04442827244 | AX106: 57495000
A107: 75 | B107: =IF(A107>$B$30,NA(),IF($A107>$A$8,"",OFFSET(InputPriceData!$B$15,$A107+$A$11,0,1,1))) -> 2020-07-27 | C107: =IF(A107>$B$30,NA(),IF($A107>$A$8,"",OFFSET(InputPriceData!$G$15,CalculationsAndCharts!$A107+$A$11,IF($C$5,8,0),1,1))) -> 48293000 | D107: =IF(A107>$B$30,NA(),IF(A107>$A$8,"",OFFSET(InputPriceData!$C$15,CalculationsAndCharts!$A107+$A$11,IF($C$5,8,0),1,1))) -> 318.99 | E107: =IF(A107>$B$30,NA(),IF(A107>$A$8,"",OFFSET(InputPriceData!$D$15,CalculationsAndCharts!$A107+$A$11,IF($C$5,8,0),1,1))) -> 320.75 | F107: =IF(A107>$B$30,NA(),IF(A107>$A$8,"",OFFSET(InputPriceData!$E$15,CalculationsAndCharts!$A107+$A$11,IF($C$5,8,0),1,1))) -> 318.13 | G107: =IF(A107>$B$30,NA(),IF(A107>$A$8,"",OFFSET(InputPriceData!$F$15,CalculationsAndCharts!$A107+$A$11,IF($C$5,8,0),1,1))) -> 320.56 | H107: 1.57 | I107: 1.57 | J107: 3.48 | K107: 3.77375 | N107: =IF($A107>$N$30,NA(),10*H107) -> 15.7 | O107: =IF($A107>$N$30,NA(),IF(N107<-1,-1,IF(N107>1,1,N107))) -> 1 | P107: -0.02838746981 | AW107: 48293000
A108: 76 | B108: =IF(A108>$B$30,NA(),IF($A108>$A$8,"",OFFSET(InputPriceData!$B$15,$A108+$A$11,0,1,1))) -> 2020-07-24 | C108: =IF(A108>$B$30,NA(),IF($A108>$A$8,"",OFFSET(InputPriceData!$G$15,CalculationsAndCharts!$A108+$A$11,IF($C$5,8,0),1,1))) -> 73766600 | D108: =IF(A108>$B$30,NA(),IF(A108>$A$8,"",OFFSET(InputPriceData!$C$15,CalculationsAndCharts!$A108+$A$11,IF($C$5,8,0),1,1))) -> 318.31 | E108: =IF(A108>$B$30,NA(),IF(A108>$A$8,"",OFFSET(InputPriceData!$D$15,CalculationsAndCharts!$A108+$A$11,IF($C$5,8,0),1,1))) -> 319.34 | F108: =IF(A108>$B$30,NA(),IF(A108>$A$8,"",OFFSET(InputPriceData!$E$15,CalculationsAndCharts!$A108+$A$11,IF($C$5,8,0),1,1))) -> 316.63 | G108: =IF(A108>$B$30,NA(),IF(A108>$A$8,"",OFFSET(InputPriceData!$F$15,CalculationsAndCharts!$A108+$A$11,IF($C$5,8,0),1,1))) -> 318.24 | H108: -0.07 | I108: 0.07 | J108: 3.48 | K108: 4.035 | N108: =IF($A108>$N$30,NA(),10*H108) -> -0.7 | O108: =IF($A108>$N$30,NA(),IF(N108<-1,-1,IF(N108>1,1,N108))) -> -0.7 | P108: -0.00537440188 | AX108: 73766600
A109: 77 | B109: =IF(A109>$B$30,NA(),IF($A109>$A$8,"",OFFSET(InputPriceData!$B$15,$A109+$A$11,0,1,1))) -> 2020-07-23 | C109: =IF(A109>$B$30,NA(),IF($A109>$A$8,"",OFFSET(InputPriceData!$G$15,CalculationsAndCharts!$A109+$A$11,IF($C$5,8,0),1,1))) -> 75738000 | D109: =IF(A109>$B$30,NA(),IF(A109>$A$8,"",OFFSET(InputPriceData!$C$15,CalculationsAndCharts!$A109+$A$11,IF($C$5,8,0),1,1))) -> 323.79 | E109: =IF(A109>$B$30,NA(),IF(A109>$A$8,"",OFFSET(InputPriceData!$D$15,CalculationsAndCharts!$A109+$A$11,IF($C$5,8,0),1,1))) -> 324.54 | F109: =IF(A109>$B$30,NA(),IF(A109>$A$8,"",OFFSET(InputPriceData!$E$15,CalculationsAndCharts!$A109+$A$11,IF($C$5,8,0),1,1))) -> 318.84 | G109: =IF(A109>$B$30,NA(),IF(A109>$A$8,"",OFFSET(InputPriceData!$F$15,CalculationsAndCharts!$A109+$A$11,IF($C$5,8,0),1,1))) -> 320.31 | H109: -3.48 | I109: 3.48 | J109: 3.48 | K109: 4.29625 | N109: =IF($A109>$N$30,NA(),10*H109) -> -34.8 | O109: =IF($A109>$N$30,NA(),IF(N109<-1,-1,IF(N109>1,1,N109))) -> -1 | P109: 0.03347137677 | AX109: 75738000
A110: 78 | B110: =IF(A110>$B$30,NA(),IF($A110>$A$8,"",OFFSET(InputPriceData!$B$15,$A110+$A$11,0,1,1))) -> 2020-07-22 | C110: =IF(A110>$B$30,NA(),IF($A110>$A$8,"",OFFSET(InputPriceData!$G$15,CalculationsAndCharts!$A110+$A$11,IF($C$5,8,0),1,1))) -> 57792900 | D110: =IF(A110>$B$30,NA(),IF(A110>$A$8,"",OFFSET(InputPriceData!$C$15,CalculationsAndCharts!$A110+$A$11,IF($C$5,8,0),1,1))) -> 321.95 | E110: =IF(A110>$B$30,NA(),IF(A110>$A$8,"",OFFSET(InputPriceData!$D$15,CalculationsAndCharts!$A110+$A$11,IF($C$5,8,0),1,1))) -> 324.51 | F110: =IF(A110>$B$30,NA(),IF(A110>$A$8,"",OFFSET(InputPriceData!$E$15,CalculationsAndCharts!$A110+$A$11,IF($C$5,8,0),1,1))) -> 321.83 | G110: =IF(A110>$B$30,NA(),IF(A110>$A$8,"",OFFSET(InputPriceData!$F$15,CalculationsAndCharts!$A110+$A$11,IF($C$5,8,0),1,1))) -> 324.17 | H110: 2.22 | I110: 2.22 | J110: 2.87 | K110: 4.5175 | N110: =IF($A110>$N$30,NA(),10*H110) -> 22.2 | O110: =IF($A110>$N$30,NA(),IF(N110<-1,-1,IF(N110>1,1,N110))) -> 1 | P110: 0.04078124119 | AW110: 57792900
A111: 79 | B111: =IF(A111>$B$30,NA(),IF($A111>$A$8,"",OFFSET(InputPriceData!$B$15,$A111+$A$11,0,1,1))) -> 2020-07-21 | C111: =IF(A111>$B$30,NA(),IF($A111>$A$8,"",OFFSET(InputPriceData!$G$15,CalculationsAndCharts!$A111+$A$11,IF($C$5,8,0),1,1))) -> 57499000 | D111: =IF(A111>$B$30,NA(),IF(A111>$A$8,"",OFFSET(InputPriceData!$C$15,CalculationsAndCharts!$A111+$A$11,IF($C$5,8,0),1,1))) -> 323.77 | E111: =IF(A111>$B$30,NA(),IF(A111>$A$8,"",OFFSET(InputPriceData!$D$15,CalculationsAndCharts!$A111+$A$11,IF($C$5,8,0),1,1))) -> 324.24 | F111: =IF(A111>$B$30,NA(),IF(A111>$A$8,"",OFFSET(InputPriceData!$E$15,CalculationsAndCharts!$A111+$A$11,IF($C$5,8,0),1,1))) -> 321.28 | G111: =IF(A111>$B$30,NA(),IF(A111>$A$8,"",OFFSET(InputPriceData!$F$15,CalculationsAndCharts!$A111+$A$11,IF($C$5,8,0),1,1))) -> 322.34 | H111: -1.43 | I111: 1.43 | J111: 2.87 | K111: 4.565 | N111: =IF($A111>$N$30,NA(),10*H111) -> -14.3 | O111: =IF($A111>$N$30,NA(),IF(N111<-1,-1,IF(N111>1,1,N111))) -> -1 | P111: 0.04853684296 | AX111: 57499000
A112: 80 | B112: =IF(A112>$B$30,NA(),IF($A112>$A$8,"",OFFSET(InputPriceData!$B$15,$A112+$A$11,0,1,1))) -> 2020-07-20 | C112: =IF(A112>$B$30,NA(),IF($A112>$A$8,"",OFFSET(InputPriceData!$G$15,CalculationsAndCharts!$A112+$A$11,IF($C$5,8,0),1,1))) -> 56308800 | D112: =IF(A112>$B$30,NA(),IF(A112>$A$8,"",OFFSET(InputPriceData!$C$15,CalculationsAndCharts!$A112+$A$11,IF($C$5,8,0),1,1))) -> 318.79 | E112: =IF(A112>$B$30,NA(),IF(A112>$A$8,"",OFFSET(InputPriceData!$D$15,CalculationsAndCharts!$A112+$A$11,IF($C$5,8,0),1,1))) -> 322.46 | F112: =IF(A112>$B$30,NA(),IF(A112>$A$8,"",OFFSET(InputPriceData!$E$15,CalculationsAndCharts!$A112+$A$11,IF($C$5,8,0),1,1))) -> 317.99 | G112: =IF(A112>$B$30,NA(),IF(A112>$A$8,"",OFFSET(InputPriceData!$F$15,CalculationsAndCharts!$A112+$A$11,IF($C$5,8,0),1,1))) -> 321.66 | H112: 2.87 | I112: 2.87 | J112: 2.87 | K112: 4.51125 | N112: =IF($A112>$N$30,NA(),10*H112) -> 28.7 | O112: =IF($A112>$N$30,NA(),IF(N112<-1,-1,IF(N112>1,1,N112))) -> 1 | P112: 0.05649743856 | AW112: 56308800
A113: 81 | B113: =IF(A113>$B$30,NA(),IF($A113>$A$8,"",OFFSET(InputPriceData!$B$15,$A113+$A$11,0,1,1))) -> 2020-07-17 | C113: =IF(A113>$B$30,NA(),IF($A113>$A$8,"",OFFSET(InputPriceData!$G$15,CalculationsAndCharts!$A113+$A$11,IF($C$5,8,0),1,1))) -> 62774900 | D113: =IF(A113>$B$30,NA(),IF(A113>$A$8,"",OFFSET(InputPriceData!$C$15,CalculationsAndCharts!$A113+$A$11,IF($C$5,8,0),1,1))) -> 319.24 | E113: =IF(A113>$B$30,NA(),IF(A113>$A$8,"",OFFSET(InputPriceData!$D$15,CalculationsAndCharts!$A113+$A$11,IF($C$5,8,0),1,1))) -> 319.92 | F113: =IF(A113>$B$30,NA(),IF(A113>$A$8,"",OFFSET(InputPriceData!$E$15,CalculationsAndCharts!$A113+$A$11,IF($C$5,8,0),1,1))) -> 317.11 | G113: =IF(A113>$B$30,NA(),IF(A113>$A$8,"",OFFSET(InputPriceData!$F$15,CalculationsAndCharts!$A113+$A$11,IF($C$5,8,0),1,1))) -> 319.08 | H113: -0.16 | I113: 0.16 | J113: 5.57 | K113: 4.40125 | N113: =IF($A113>$N$30,NA(),10*H113) -> -1.6 | O113: =IF($A113>$N$30,NA(),IF(N113<-1,-1,IF(N113>1,1,N113))) -> -1 | P113: 0.06432888388 | AX113: 62774900
A114: 82 | B114: =IF(A114>$B$30,NA(),IF($A114>$A$8,"",OFFSET(InputPriceData!$B$15,$A114+$A$11,0,1,1))) -> 2020-07-16 | C114: =IF(A114>$B$30,NA(),IF($A114>$A$8,"",OFFSET(InputPriceData!$G$15,CalculationsAndCharts!$A114+$A$11,IF($C$5,8,0),1,1))) -> 54622500 | D114: =IF(A114>$B$30,NA(),IF(A114>$A$8,"",OFFSET(InputPriceData!$C$15,CalculationsAndCharts!$A114+$A$11,IF($C$5,8,0),1,1))) -> 317.16 | E114: =IF(A114>$B$30,NA(),IF(A114>$A$8,"",OFFSET(InputPriceData!$D$15,CalculationsAndCharts!$A114+$A$11,IF($C$5,8,0),1,1))) -> 318.64 | F114: =IF(A114>$B$30,NA(),IF(A114>$A$8,"",OFFSET(InputPriceData!$E$15,CalculationsAndCharts!$A114+$A$11,IF($C$5,8,0),1,1))) -> 316.47 | G114: =IF(A114>$B$30,NA(),IF(A114>$A$8,"",OFFSET(InputPriceData!$F$15,CalculationsAndCharts!$A114+$A$11,IF($C$5,8,0),1,1))) -> 318.15 | H114: 0.99 | I114: 0.99 | J114: 5.57 | K114: 3.95375 | N114: =IF($A114>$N$30,NA(),10*H114) -> 9.9 | O114: =IF($A114>$N$30,NA(),IF(N114<-1,-1,IF(N114>1,1,N114))) -> 1 | P114: 0.07158843332 | AW114: 54622500
A115: 83 | B115: =IF(A115>$B$30,NA(),IF($A115>$A$8,"",OFFSET(InputPriceData!$B$15,$A115+$A$11,0,1,1))) -> 2020-07-15 | C115: =IF(A115>$B$30,NA(),IF($A115>$A$8,"",OFFSET(InputPriceData!$G$15,CalculationsAndCharts!$A115+$A$11,IF($C$5,8,0),1,1))) -> 87196500 | D115: =IF(A115>$B$30,NA(),IF(A115>$A$8,"",OFFSET(InputPriceData!$C$15,CalculationsAndCharts!$A115+$A$11,IF($C$5,8,0),1,1))) -> 319.76 | E115: =IF(A115>$B$30,NA(),IF(A115>$A$8,"",OFFSET(InputPriceData!$D$15,CalculationsAndCharts!$A115+$A$11,IF($C$5,8,0),1,1))) -> 320.39 | F115: =IF(A115>$B$30,NA(),IF(A115>$A$8,"",OFFSET(InputPriceData!$E$15,CalculationsAndCharts!$A115+$A$11,IF($C$5,8,0),1,1))) -> 316.65 | G115: =IF(A115>$B$30,NA(),IF(A115>$A$8,"",OFFSET(InputPriceData!$F$15,CalculationsAndCharts!$A115+$A$11,IF($C$5,8,0),1,1))) -> 319.21 | H115: -0.55 | I115: 0.55 | J115: 5.57 | K115: 3.8 | N115: =IF($A115>$N$30,NA(),10*H115) -> -5.5 | O115: =IF($A115>$N$30,NA(),IF(N115<-1,-1,IF(N115>1,1,N115))) -> -1 | P115: 0.07770982211 | AX115: 87196500
A116: 84 | B116: =IF(A116>$B$30,NA(),IF($A116>$A$8,"",OFFSET(InputPriceData!$B$15,$A116+$A$11,0,1,1))) -> 2020-07-14 | C116: =IF(A116>$B$30,NA(),IF($A116>$A$8,"",OFFSET(InputPriceData!$G$15,CalculationsAndCharts!$A116+$A$11,IF($C$5,8,0),1,1))) -> 93657000 | D116: =IF(A116>$B$30,NA(),IF(A116>$A$8,"",OFFSET(InputPriceData!$C$15,CalculationsAndCharts!$A116+$A$11,IF($C$5,8,0),1,1))) -> 310.73 | E116: =IF(A116>$B$30,NA(),IF(A116>$A$8,"",OFFSET(InputPriceData!$D$15,CalculationsAndCharts!$A116+$A$11,IF($C$5,8,0),1,1))) -> 317.13 | F116: =IF(A116>$B$30,NA(),IF(A116>$A$8,"",OFFSET(InputPriceData!$E$15,CalculationsAndCharts!$A116+$A$11,IF($C$5,8,0),1,1))) -> 309.44 | G116: =IF(A116>$B$30,NA(),IF(A116>$A$8,"",OFFSET(InputPriceData!$F$15,CalculationsAndCharts!$A116+$A$11,IF($C$5,8,0),1,1))) -> 316.3 | H116: 5.57 | I116: 5.57 | J116: 5.57 | K116: 3.64625 | N116: =IF($A116>$N$30,NA(),10*H116) -> 55.7 | O116: =IF($A116>$N$30,NA(),IF(N116<-1,-1,IF(N116>1,1,N116))) -> 1 | P116: 0.0819894879 | AW116: 93657000
A117: 85 | B117: =IF(A117>$B$30,NA(),IF($A117>$A$8,"",OFFSET(InputPriceData!$B$15,$A117+$A$11,0,1,1))) -> 2020-07-13 | C117: =IF(A117>$B$30,NA(),IF($A117>$A$8,"",OFFSET(InputPriceData!$G$15,CalculationsAndCharts!$A117+$A$11,IF($C$5,8,0),1,1))) -> 102997500 | D117: =IF(A117>$B$30,NA(),IF(A117>$A$8,"",OFFSET(InputPriceData!$C$15,CalculationsAndCharts!$A117+$A$11,IF($C$5,8,0),1,1))) -> 317.5 | E117: =IF(A117>$B$30,NA(),IF(A117>$A$8,"",OFFSET(InputPriceData!$D$15,CalculationsAndCharts!$A117+$A$11,IF($C$5,8,0),1,1))) -> 320.06 | F117: =IF(A117>$B$30,NA(),IF(A117>$A$8,"",OFFSET(InputPriceData!$E$15,CalculationsAndCharts!$A117+$A$11,IF($C$5,8,0),1,1))) -> 311.55 | G117: =IF(A117>$B$30,NA(),IF(A117>$A$8,"",OFFSET(InputPriceData!$F$15,CalculationsAndCharts!$A117+$A$11,IF($C$5,8,0),1,1))) -> 312.25 | H117: -5.25 | I117: 5.25 | J117: 5.25 | K117: 3.7075 | N117: =IF($A117>$N$30,NA(),10*H117) -> -52.5 | O117: =IF($A117>$N$30,NA(),IF(N117<-1,-1,IF(N117>1,1,N117))) -> -1 | P117: 0.0835750251 | AX117: 102997500
A118: 86 | B118: =IF(A118>$B$30,NA(),IF($A118>$A$8,"",OFFSET(InputPriceData!$B$15,$A118+$A$11,0,1,1))) -> 2020-07-10 | C118: =IF(A118>$B$30,NA(),IF($A118>$A$8,"",OFFSET(InputPriceData!$G$15,CalculationsAndCharts!$A118+$A$11,IF($C$5,8,0),1,1))) -> 57550400 | D118: =IF(A118>$B$30,NA(),IF(A118>$A$8,"",OFFSET(InputPriceData!$C$15,CalculationsAndCharts!$A118+$A$11,IF($C$5,8,0),1,1))) -> 311.73 | E118: =IF(A118>$B$30,NA(),IF(A118>$A$8,"",OFFSET(InputPriceData!$D$15,CalculationsAndCharts!$A118+$A$11,IF($C$5,8,0),1,1))) -> 315.27 | F118: =IF(A118>$B$30,NA(),IF(A118>$A$8,"",OFFSET(InputPriceData!$E$15,CalculationsAndCharts!$A118+$A$11,IF($C$5,8,0),1,1))) -> 310.19 | G118: =IF(A118>$B$30,NA(),IF(A118>$A$8,"",OFFSET(InputPriceData!$F$15,CalculationsAndCharts!$A118+$A$11,IF($C$5,8,0),1,1))) -> 314.98 | H118: 3.25 | I118: 3.25 | J118: 3.25 | K118: 3.80875 | N118: =IF($A118>$N$30,NA(),10*H118) -> 32.5 | O118: =IF($A118>$N$30,NA(),IF(N118<-1,-1,IF(N118>1,1,N118))) -> 1 | P118: 0.08145722841 | AW118: 57550400
A119: 87 | B119: =IF(A119>$B$30,NA(),IF($A119>$A$8,"",OFFSET(InputPriceData!$B$15,$A119+$A$11,0,1,1))) -> 2020-07-09 | C119: =IF(A119>$B$30,NA(),IF($A119>$A$8,"",OFFSET(InputPriceData!$G$15,CalculationsAndCharts!$A119+$A$11,IF($C$5,8,0),1,1))) -> 83354200 | D119: =IF(A119>$B$30,NA(),IF(A119>$A$8,"",OFFSET(InputPriceData!$C$15,CalculationsAndCharts!$A119+$A$11,IF($C$5,8,0),1,1))) -> 314.24 | E119: =IF(A119>$B$30,NA(),IF(A119>$A$8,"",OFFSET(InputPriceData!$D$15,CalculationsAndCharts!$A119+$A$11,IF($C$5,8,0),1,1))) -> 314.5 | F119: =IF(A119>$B$30,NA(),IF(A119>$A$8,"",OFFSET(InputPriceData!$E$15,CalculationsAndCharts!$A119+$A$11,IF($C$5,8,0),1,1))) -> 308.13 | G119: =IF(A119>$B$30,NA(),IF(A119>$A$8,"",OFFSET(InputPriceData!$F$15,CalculationsAndCharts!$A119+$A$11,IF($C$5,8,0),1,1))) -> 311.8 | H119: -2.44 | I119: 2.44 | J119: 2.44 | K119: 4.16 | N119: =IF($A119>$N$30,NA(),10*H119) -> -24.4 | O119: =IF($A119>$N$30,NA(),IF(N119<-1,-1,IF(N119>1,1,N119))) -> -1 | P119: 0.07446736745 | AX119: 83354200
A120: 88 | B120: =IF(A120>$B$30,NA(),IF($A120>$A$8,"",OFFSET(InputPriceData!$B$15,$A120+$A$11,0,1,1))) -> 2020-07-08 | C120: =IF(A120>$B$30,NA(),IF($A120>$A$8,"",OFFSET(InputPriceData!$G$15,CalculationsAndCharts!$A120+$A$11,IF($C$5,8,0),1,1))) -> 54638600 | D120: =IF(A120>$B$30,NA(),IF(A120>$A$8,"",OFFSET(InputPriceData!$C$15,CalculationsAndCharts!$A120+$A$11,IF($C$5,8,0),1,1))) -> 312.03 | E120: =IF(A120>$B$30,NA(),IF(A120>$A$8,"",OFFSET(InputPriceData!$D$15,CalculationsAndCharts!$A120+$A$11,IF($C$5,8,0),1,1))) -> 313.7 | F120: =IF(A120>$B$30,NA(),IF(A120>$A$8,"",OFFSET(InputPriceData!$E$15,CalculationsAndCharts!$A120+$A$11,IF($C$5,8,0),1,1))) -> 310.13 | G120: =IF(A120>$B$30,NA(),IF(A120>$A$8,"",OFFSET(InputPriceData!$F$15,CalculationsAndCharts!$A120+$A$11,IF($C$5,8,0),1,1))) -> 313.58 | H120: 1.55 | I120: 1.55 | J120: 1.99 | K120: 4.6125 | N120: =IF($A120>$N$30,NA(),10*H120) -> 15.5 | O120: =IF($A120>$N$30,NA(),IF(N120<-1,-1,IF(N120>1,1,N120))) -> 1 | P120: 0.06128163386 | AW120: 54638600
A121: 89 | B121: =IF(A121>$B$30,NA(),IF($A121>$A$8,"",OFFSET(InputPriceData!$B$15,$A121+$A$11,0,1,1))) -> 2020-07-07 | C121: =IF(A121>$B$30,NA(),IF($A121>$A$8,"",OFFSET(InputPriceData!$G$15,CalculationsAndCharts!$A121+$A$11,IF($C$5,8,0),1,1))) -> 82910000 | D121: =IF(A121>$B$30,NA(),IF(A121>$A$8,"",OFFSET(InputPriceData!$C$15,CalculationsAndCharts!$A121+$A$11,IF($C$5,8,0),1,1))) -> 312.79 | E121: =IF(A121>$B$30,NA(),IF(A121>$A$8,"",OFFSET(InputPriceData!$D$15,CalculationsAndCharts!$A121+$A$11,IF($C$5,8,0),1,1))) -> 314.91 | F121: =IF(A121>$B$30,NA(),IF(A121>$A$8,"",OFFSET(InputPriceData!$E$15,CalculationsAndCharts!$A121+$A$11,IF($C$5,8,0),1,1))) -> 310.8 | G121: =IF(A121>$B$30,NA(),IF(A121>$A$8,"",OFFSET(InputPriceData!$F$15,CalculationsAndCharts!$A121+$A$11,IF($C$5,8,0),1,1))) -> 311.2 | H121: -1.59 | I121: 1.59 | J121: 1.99 | K121: 5.07625 | N121: =IF($A121>$N$30,NA(),10*H121) -> -15.9 | O121: =IF($A121>$N$30,NA(),IF(N121<-1,-1,IF(N121>1,1,N121))) -> -1 | P121: 0.04043500694 | AX121: 82910000
A122: 90 | B122: =IF(A122>$B$30,NA(),IF($A122>$A$8,"",OFFSET(InputPriceData!$B$15,$A122+$A$11,0,1,1))) -> 2020-07-06 | C122: =IF(A122>$B$30,NA(),IF($A122>$A$8,"",OFFSET(InputPriceData!$G$15,CalculationsAndCharts!$A122+$A$11,IF($C$5,8,0),1,1))) -> 61713800 | D122: =IF(A122>$B$30,NA(),IF(A122>$A$8,"",OFFSET(InputPriceData!$C$15,CalculationsAndCharts!$A122+$A$11,IF($C$5,8,0),1,1))) -> 313.77 | E122: =IF(A122>$B$30,NA(),IF(A122>$A$8,"",OFFSET(InputPriceData!$D$15,CalculationsAndCharts!$A122+$A$11,IF($C$5,8,0),1,1))) -> 315.07 | F122: =IF(A122>$B$30,NA(),IF(A122>$A$8,"",OFFSET(InputPriceData!$E$15,CalculationsAndCharts!$A122+$A$11,IF($C$5,8,0),1,1))) -> 312.97 | G122: =IF(A122>$B$30,NA(),IF(A122>$A$8,"",OFFSET(InputPriceData!$F$15,CalculationsAndCharts!$A122+$A$11,IF($C$5,8,0),1,1))) -> 314.45 | H122: 0.68 | I122: 0.68 | J122: 4.34 | K122: 5.54 | N122: =IF($A122>$N$30,NA(),10*H122) -> 6.8 | O122: =IF($A122>$N$30,NA(),IF(N122<-1,-1,IF(N122>1,1,N122))) -> 1 | P122: 0.01034707908 | AW122: 61713800
A123: 91 | B123: =IF(A123>$B$30,NA(),IF($A123>$A$8,"",OFFSET(InputPriceData!$B$15,$A123+$A$11,0,1,1))) -> 2020-07-02 | C123: =IF(A123>$B$30,NA(),IF($A123>$A$8,"",OFFSET(InputPriceData!$G$15,CalculationsAndCharts!$A123+$A$11,IF($C$5,8,0),1,1))) -> 69344200 | D123: =IF(A123>$B$30,NA(),IF(A123>$A$8,"",OFFSET(InputPriceData!$C$15,CalculationsAndCharts!$A123+$A$11,IF($C$5,8,0),1,1))) -> 311.66 | E123: =IF(A123>$B$30,NA(),IF(A123>$A$8,"",OFFSET(InputPriceData!$D$15,CalculationsAndCharts!$A123+$A$11,IF($C$5,8,0),1,1))) -> 313.11 | F123: =IF(A123>$B$30,NA(),IF(A123>$A$8,"",OFFSET(InputPriceData!$E$15,CalculationsAndCharts!$A123+$A$11,IF($C$5,8,0),1,1))) -> 308.95 | G123: =IF(A123>$B$30,NA(),IF(A123>$A$8,"",OFFSET(InputPriceData!$F$15,CalculationsAndCharts!$A123+$A$11,IF($C$5,8,0),1,1))) -> 309.67 | H123: -1.99 | I123: 1.99 | J123: 4.34 | K123: 5.68375 | N123: =IF($A123>$N$30,NA(),10*H123) -> -19.9 | O123: =IF($A123>$N$30,NA(),IF(N123<-1,-1,IF(N123>1,1,N123))) -> -1 | P123: -0.03063735016 | AX123: 69344200
A124: 92 | B124: =IF(A124>$B$30,NA(),IF($A124>$A$8,"",OFFSET(InputPriceData!$B$15,$A124+$A$11,0,1,1))) -> 2020-07-01 | C124: =IF(A124>$B$30,NA(),IF($A124>$A$8,"",OFFSET(InputPriceData!$G$15,CalculationsAndCharts!$A124+$A$11,IF($C$5,8,0),1,1))) -> 72396500 | D124: =IF(A124>$B$30,NA(),IF(A124>$A$8,"",OFFSET(InputPriceData!$C$15,CalculationsAndCharts!$A124+$A$11,IF($C$5,8,0),1,1))) -> 307.03 | E124: =IF(A124>$B$30,NA(),IF(A124>$A$8,"",OFFSET(InputPriceData!$D$15,CalculationsAndCharts!$A124+$A$11,IF($C$5,8,0),1,1))) -> 309.33 | F124: =IF(A124>$B$30,NA(),IF(A124>$A$8,"",OFFSET(InputPriceData!$E$15,CalculationsAndCharts!$A124+$A$11,IF($C$5,8,0),1,1))) -> 306.53 | G124: =IF(A124>$B$30,NA(),IF(A124>$A$8,"",OFFSET(InputPriceData!$F$15,CalculationsAndCharts!$A124+$A$11,IF($C$5,8,0),1,1))) -> 307.97 | H124: 0.94 | I124: 0.94 | J124: 6.06 | K124: 5.8275 | N124: =IF($A124>$N$30,NA(),10*H124) -> 9.4 | O124: =IF($A124>$N$30,NA(),IF(N124<-1,-1,IF(N124>1,1,N124))) -> 1 | P124: -0.08418988528 | AW124: 72396500
A125: 93 | B125: =IF(A125>$B$30,NA(),IF($A125>$A$8,"",OFFSET(InputPriceData!$B$15,$A125+$A$11,0,1,1))) -> 2020-06-30 | C125: =IF(A125>$B$30,NA(),IF($A125>$A$8,"",OFFSET(InputPriceData!$G$15,CalculationsAndCharts!$A125+$A$11,IF($C$5,8,0),1,1))) -> 113394800 | D125: =IF(A125>$B$30,NA(),IF(A125>$A$8,"",OFFSET(InputPriceData!$C$15,CalculationsAndCharts!$A125+$A$11,IF($C$5,8,0),1,1))) -> 301.49 | E125: =IF(A125>$B$30,NA(),IF(A125>$A$8,"",OFFSET(InputPriceData!$D$15,CalculationsAndCharts!$A125+$A$11,IF($C$5,8,0),1,1))) -> 307.65 | F125: =IF(A125>$B$30,NA(),IF(A125>$A$8,"",OFFSET(InputPriceData!$E$15,CalculationsAndCharts!$A125+$A$11,IF($C$5,8,0),1,1))) -> 301.32 | G125: =IF(A125>$B$30,NA(),IF(A125>$A$8,"",OFFSET(InputPriceData!$F$15,CalculationsAndCharts!$A125+$A$11,IF($C$5,8,0),1,1))) -> 305.83 | H125: 4.34 | I125: 4.34 | J125: 6.06 | K125: 5.75625 | N125: =IF($A125>$N$30,NA(),10*H125) -> 43.4 | O125: =IF($A125>$N$30,NA(),IF(N125<-1,-1,IF(N125>1,1,N125))) -> 1 | P125: -0.1519191871 | AW125: 113394800
A126: 94 | B126: =IF(A126>$B$30,NA(),IF($A126>$A$8,"",OFFSET(InputPriceData!$B$15,$A126+$A$11,0,1,1))) -> 2020-06-29 | C126: =IF(A126>$B$30,NA(),IF($A126>$A$8,"",OFFSET(InputPriceData!$G$15,CalculationsAndCharts!$A126+$A$11,IF($C$5,8,0),1,1))) -> 79773300 | D126: =IF(A126>$B$30,NA(),IF(A126>$A$8,"",OFFSET(InputPriceData!$C$15,CalculationsAndCharts!$A126+$A$11,IF($C$5,8,0),1,1))) -> 298.93 | E126: =IF(A126>$B$30,NA(),IF(A126>$A$8,"",OFFSET(InputPriceData!$D$15,CalculationsAndCharts!$A126+$A$11,IF($C$5,8,0),1,1))) -> 302.11 | F126: =IF(A126>$B$30,NA(),IF(A126>$A$8,"",OFFSET(InputPriceData!$E$15,CalculationsAndCharts!$A126+$A$11,IF($C$5,8,0),1,1))) -> 296.47 | G126: =IF(A126>$B$30,NA(),IF(A126>$A$8,"",OFFSET(InputPriceData!$F$15,CalculationsAndCharts!$A126+$A$11,IF($C$5,8,0),1,1))) -> 301.96 | H126: 3.03 | I126: 3.03 | J126: 6.06 | K126: 6.1125 | N126: =IF($A126>$N$30,NA(),10*H126) -> 30.3 | O126: =IF($A126>$N$30,NA(),IF(N126<-1,-1,IF(N126>1,1,N126))) -> 1 | P126: -0.184417143 | AW126: 79773300
A127: 95 | B127: =IF(A127>$B$30,NA(),IF($A127>$A$8,"",OFFSET(InputPriceData!$B$15,$A127+$A$11,0,1,1))) -> 2020-06-26 | C127: =IF(A127>$B$30,NA(),IF($A127>$A$8,"",OFFSET(InputPriceData!$G$15,CalculationsAndCharts!$A127+$A$11,IF($C$5,8,0),1,1))) -> 127961000 | D127: =IF(A127>$B$30,NA(),IF(A127>$A$8,"",OFFSET(InputPriceData!$C$15,CalculationsAndCharts!$A127+$A$11,IF($C$5,8,0),1,1))) -> 303.65 | E127: =IF(A127>$B$30,NA(),IF(A127>$A$8,"",OFFSET(InputPriceData!$D$15,CalculationsAndCharts!$A127+$A$11,IF($C$5,8,0),1,1))) -> 303.87 | F127: =IF(A127>$B$30,NA(),IF(A127>$A$8,"",OFFSET(InputPriceData!$E$15,CalculationsAndCharts!$A127+$A$11,IF($C$5,8,0),1,1))) -> 296.96 | G127: =IF(A127>$B$30,NA(),IF(A127>$A$8,"",OFFSET(InputPriceData!$F$15,CalculationsAndCharts!$A127+$A$11,IF($C$5,8,0),1,1))) -> 297.59 | H127: -6.06 | I127: 6.06 | J127: 6.06 | K127: 6.46875 | N127: =IF($A127>$N$30,NA(),10*H127) -> -60.6 | O127: =IF($A127>$N$30,NA(),IF(N127<-1,-1,IF(N127>1,1,N127))) -> -1 | P127: -0.1678880996 | AX127: 127961000
A128: 96 | B128: =IF(A128>$B$30,NA(),IF($A128>$A$8,"",OFFSET(InputPriceData!$B$15,$A128+$A$11,0,1,1))) -> 2020-06-25 | C128: =IF(A128>$B$30,NA(),IF($A128>$A$8,"",OFFSET(InputPriceData!$G$15,CalculationsAndCharts!$A128+$A$11,IF($C$5,8,0),1,1))) -> 89468000 | D128: =IF(A128>$B$30,NA(),IF(A128>$A$8,"",OFFSET(InputPriceData!$C$15,CalculationsAndCharts!$A128+$A$11,IF($C$5,8,0),1,1))) -> 300.98 | E128: =IF(A128>$B$30,NA(),IF(A128>$A$8,"",OFFSET(InputPriceData!$D$15,CalculationsAndCharts!$A128+$A$11,IF($C$5,8,0),1,1))) -> 305.11 | F128: =IF(A128>$B$30,NA(),IF(A128>$A$8,"",OFFSET(InputPriceData!$E$15,CalculationsAndCharts!$A128+$A$11,IF($C$5,8,0),1,1))) -> 298.81 | G128: =IF(A128>$B$30,NA(),IF(A128>$A$8,"",OFFSET(InputPriceData!$F$15,CalculationsAndCharts!$A128+$A$11,IF($C$5,8,0),1,1))) -> 304.83 | H128: 3.85 | I128: 3.85 | J128: 5.7 | K128: 7.05125 | N128: =IF($A128>$N$30,NA(),10*H128) -> 38.5 | O128: =IF($A128>$N$30,NA(),IF(N128<-1,-1,IF(N128>1,1,N128))) -> 1 | P128: -0.1371248564 | AW128: 89468000
A129: 97 | B129: =IF(A129>$B$30,NA(),IF($A129>$A$8,"",OFFSET(InputPriceData!$B$15,$A129+$A$11,0,1,1))) -> 2020-06-24 | C129: =IF(A129>$B$30,NA(),IF($A129>$A$8,"",OFFSET(InputPriceData!$G$15,CalculationsAndCharts!$A129+$A$11,IF($C$5,8,0),1,1))) -> 132813500 | D129: =IF(A129>$B$30,NA(),IF(A129>$A$8,"",OFFSET(InputPriceData!$C$15,CalculationsAndCharts!$A129+$A$11,IF($C$5,8,0),1,1))) -> 307.29 | E129: =IF(A129>$B$30,NA(),IF(A129>$A$8,"",OFFSET(InputPriceData!$D$15,CalculationsAndCharts!$A129+$A$11,IF($C$5,8,0),1,1))) -> 307.96 | F129: =IF(A129>$B$30,NA(),IF(A129>$A$8,"",OFFSET(InputPriceData!$E$15,CalculationsAndCharts!$A129+$A$11,IF($C$5,8,0),1,1))) -> 299.62 | G129: =IF(A129>$B$30,NA(),IF(A129>$A$8,"",OFFSET(InputPriceData!$F$15,CalculationsAndCharts!$A129+$A$11,IF($C$5,8,0),1,1))) -> 301.59 | H129: -5.7 | I129: 5.7 | J129: 5.7 | K129: 7.67875 | N129: =IF($A129>$N$30,NA(),10*H129) -> -57 | O129: =IF($A129>$N$30,NA(),IF(N129<-1,-1,IF(N129>1,1,N129))) -> -1 | P129: -0.08878565964 | AX129: 132813500
A130: 98 | B130: =IF(A130>$B$30,NA(),IF($A130>$A$8,"",OFFSET(InputPriceData!$B$15,$A130+$A$11,0,1,1))) -> 2020-06-23 | C130: =IF(A130>$B$30,NA(),IF($A130>$A$8,"",OFFSET(InputPriceData!$G$15,CalculationsAndCharts!$A130+$A$11,IF($C$5,8,0),1,1))) -> 68471200 | D130: =IF(A130>$B$30,NA(),IF(A130>$A$8,"",OFFSET(InputPriceData!$C$15,CalculationsAndCharts!$A130+$A$11,IF($C$5,8,0),1,1))) -> 310.91 | E130: =IF(A130>$B$30,NA(),IF(A130>$A$8,"",OFFSET(InputPriceData!$D$15,CalculationsAndCharts!$A130+$A$11,IF($C$5,8,0),1,1))) -> 311.92 | F130: =IF(A130>$B$30,NA(),IF(A130>$A$8,"",OFFSET(InputPriceData!$E$15,CalculationsAndCharts!$A130+$A$11,IF($C$5,8,0),1,1))) -> 309.05 | G130: =IF(A130>$B$30,NA(),IF(A130>$A$8,"",OFFSET(InputPriceData!$F$15,CalculationsAndCharts!$A130+$A$11,IF($C$5,8,0),1,1))) -> 309.49 | H130: -1.42 | I130: 1.42 | J130: 5.49 | K130: 8.30625 | N130: =IF($A130>$N$30,NA(),10*H130) -> -14.2 | O130: =IF($A130>$N$30,NA(),IF(N130<-1,-1,IF(N130>1,1,N130))) -> -1 | P130: -0.01927070332 | AX130: 68471200
A131: 99 | B131: =IF(A131>$B$30,NA(),IF($A131>$A$8,"",OFFSET(InputPriceData!$B$15,$A131+$A$11,0,1,1))) -> 2020-06-22 | C131: =IF(A131>$B$30,NA(),IF($A131>$A$8,"",OFFSET(InputPriceData!$G$15,CalculationsAndCharts!$A131+$A$11,IF($C$5,8,0),1,1))) -> 74649400 | D131: =IF(A131>$B$30,NA(),IF(A131>$A$8,"",OFFSET(InputPriceData!$C$15,CalculationsAndCharts!$A131+$A$11,IF($C$5,8,0),1,1))) -> 305.46 | E131: =IF(A131>$B$30,NA(),IF(A131>$A$8,"",OFFSET(InputPriceData!$D$15,CalculationsAndCharts!$A131+$A$11,IF($C$5,8,0),1,1))) -> 308.49 | F131: =IF(A131>$B$30,NA(),IF(A131>$A$8,"",OFFSET(InputPriceData!$E$15,CalculationsAndCharts!$A131+$A$11,IF($C$5,8,0),1,1))) -> 304.23 | G131: =IF(A131>$B$30,NA(),IF(A131>$A$8,"",OFFSET(InputPriceData!$F$15,CalculationsAndCharts!$A131+$A$11,IF($C$5,8,0),1,1))) -> 308.07 | H131: 2.61 | I131: 2.61 | J131: 5.49 | K131: 8.96 | N131: =IF($A131>$N$30,NA(),10*H131) -> 26.1 | O131: =IF($A131>$N$30,NA(),IF(N131<-1,-1,IF(N131>1,1,N131))) -> 1 | P131: 0.02433342827 | AW131: 74649400
A132: 100 | B132: =IF(A132>$B$30,NA(),IF($A132>$A$8,"",OFFSET(InputPriceData!$B$15,$A132+$A$11,0,1,1))) -> 2020-06-19 | C132: =IF(A132>$B$30,NA(),IF($A132>$A$8,"",OFFSET(InputPriceData!$G$15,CalculationsAndCharts!$A132+$A$11,IF($C$5,8,0),1,1))) -> 135549600 | D132: =IF(A132>$B$30,NA(),IF(A132>$A$8,"",OFFSET(InputPriceData!$C$15,CalculationsAndCharts!$A132+$A$11,IF($C$5,8,0),1,1))) -> 311.59 | E132: =IF(A132>$B$30,NA(),IF(A132>$A$8,"",OFFSET(InputPriceData!$D$15,CalculationsAndCharts!$A132+$A$11,IF($C$5,8,0),1,1))) -> 311.8 | F132: =IF(A132>$B$30,NA(),IF(A132>$A$8,"",OFFSET(InputPriceData!$E$15,CalculationsAndCharts!$A132+$A$11,IF($C$5,8,0),1,1))) -> 304.01 | G132: =IF(A132>$B$30,NA(),IF(A132>$A$8,"",OFFSET(InputPriceData!$F$15,CalculationsAndCharts!$A132+$A$11,IF($C$5,8,0),1,1))) -> 306.1 | H132: -5.49 | I132: 5.49 | J132: 5.49 | K132: 8.64125 | N132: =IF($A132>$N$30,NA(),10*H132) -> -54.9 | O132: =IF($A132>$N$30,NA(),IF(N132<-1,-1,IF(N132>1,1,N132))) -> -1 | P132: 0.0817291501 | AX132: 135549600
A133: 101 | B133: =IF(A133>$B$30,NA(),IF($A133>$A$8,"",OFFSET(InputPriceData!$B$15,$A133+$A$11,0,1,1))) -> 2020-06-18 | C133: =IF(A133>$B$30,NA(),IF($A133>$A$8,"",OFFSET(InputPriceData!$G$15,CalculationsAndCharts!$A133+$A$11,IF($C$5,8,0),1,1))) -> 80828700 | D133: =IF(A133>$B$30,NA(),IF(A133>$A$8,"",OFFSET(InputPriceData!$C$15,CalculationsAndCharts!$A133+$A$11,IF($C$5,8,0),1,1))) -> 306.12 | E133: =IF(A133>$B$30,NA(),IF(A133>$A$8,"",OFFSET(InputPriceData!$D$15,CalculationsAndCharts!$A133+$A$11,IF($C$5,8,0),1,1))) -> 308.38 | F133: =IF(A133>$B$30,NA(),IF(A133>$A$8,"",OFFSET(InputPriceData!$E$15,CalculationsAndCharts!$A133+$A$11,IF($C$5,8,0),1,1))) -> 305.62 | G133: =IF(A133>$B$30,NA(),IF(A133>$A$8,"",OFFSET(InputPriceData!$F$15,CalculationsAndCharts!$A133+$A$11,IF($C$5,8,0),1,1))) -> 307.86 | H133: 1.74 | I133: 1.74 | J133: 8.91 | K133: 8.3225 | N133: =IF($A133>$N$30,NA(),10*H133) -> 17.4 | O133: =IF($A133>$N$30,NA(),IF(N133<-1,-1,IF(N133>1,1,N133))) -> 1 | P133: 0.1547513917 | AW133: 80828700
A134: 102 | B134: =IF(A134>$B$30,NA(),IF($A134>$A$8,"",OFFSET(InputPriceData!$B$15,$A134+$A$11,0,1,1))) -> 2020-06-17 | C134: =IF(A134>$B$30,NA(),IF($A134>$A$8,"",OFFSET(InputPriceData!$G$15,CalculationsAndCharts!$A134+$A$11,IF($C$5,8,0),1,1))) -> 83398900 | D134: =IF(A134>$B$30,NA(),IF(A134>$A$8,"",OFFSET(InputPriceData!$C$15,CalculationsAndCharts!$A134+$A$11,IF($C$5,8,0),1,1))) -> 310.13 | E134: =IF(A134>$B$30,NA(),IF(A134>$A$8,"",OFFSET(InputPriceData!$D$15,CalculationsAndCharts!$A134+$A$11,IF($C$5,8,0),1,1))) -> 310.44 | F134: =IF(A134>$B$30,NA(),IF(A134>$A$8,"",OFFSET(InputPriceData!$E$15,CalculationsAndCharts!$A134+$A$11,IF($C$5,8,0),1,1))) -> 306.96 | G134: =IF(A134>$B$30,NA(),IF(A134>$A$8,"",OFFSET(InputPriceData!$F$15,CalculationsAndCharts!$A134+$A$11,IF($C$5,8,0),1,1))) -> 307.75 | H134: -2.38 | I134: 2.38 | J134: 8.91 | K134: 7.57625 | N134: =IF($A134>$N$30,NA(),10*H134) -> -23.8 | O134: =IF($A134>$N$30,NA(),IF(N134<-1,-1,IF(N134>1,1,N134))) -> -1 | P134: 0.2450729107 | AX134: 83398900
A135: 103 | B135: =IF(A135>$B$30,NA(),IF($A135>$A$8,"",OFFSET(InputPriceData!$B$15,$A135+$A$11,0,1,1))) -> 2020-06-16 | C135: =IF(A135>$B$30,NA(),IF($A135>$A$8,"",OFFSET(InputPriceData!$G$15,CalculationsAndCharts!$A135+$A$11,IF($C$5,8,0),1,1))) -> 137627500 | D135: =IF(A135>$B$30,NA(),IF(A135>$A$8,"",OFFSET(InputPriceData!$C$15,CalculationsAndCharts!$A135+$A$11,IF($C$5,8,0),1,1))) -> 311.52 | E135: =IF(A135>$B$30,NA(),IF(A135>$A$8,"",OFFSET(InputPriceData!$D$15,CalculationsAndCharts!$A135+$A$11,IF($C$5,8,0),1,1))) -> 311.68 | F135: =IF(A135>$B$30,NA(),IF(A135>$A$8,"",OFFSET(InputPriceData!$E$15,CalculationsAndCharts!$A135+$A$11,IF($C$5,8,0),1,1))) -> 303.81 | G135: =IF(A135>$B$30,NA(),IF(A135>$A$8,"",OFFSET(InputPriceData!$F$15,CalculationsAndCharts!$A135+$A$11,IF($C$5,8,0),1,1))) -> 309.03 | H135: -2.49 | I135: 2.49 | J135: 10.72 | K135: 6.7225 | N135: =IF($A135>$N$30,NA(),10*H135) -> -24.9 | O135: =IF($A135>$N$30,NA(),IF(N135<-1,-1,IF(N135>1,1,N135))) -> -1 | P135: 0.3540633366 | AX135: 137627500
A136: 104 | B136: =IF(A136>$B$30,NA(),IF($A136>$A$8,"",OFFSET(InputPriceData!$B$15,$A136+$A$11,0,1,1))) -> 2020-06-15 | C136: =IF(A136>$B$30,NA(),IF($A136>$A$8,"",OFFSET(InputPriceData!$G$15,CalculationsAndCharts!$A136+$A$11,IF($C$5,8,0),1,1))) -> 135782700 | D136: =IF(A136>$B$30,NA(),IF(A136>$A$8,"",OFFSET(InputPriceData!$C$15,CalculationsAndCharts!$A136+$A$11,IF($C$5,8,0),1,1))) -> 294.28 | E136: =IF(A136>$B$30,NA(),IF(A136>$A$8,"",OFFSET(InputPriceData!$D$15,CalculationsAndCharts!$A136+$A$11,IF($C$5,8,0),1,1))) -> 304.41 | F136: =IF(A136>$B$30,NA(),IF(A136>$A$8,"",OFFSET(InputPriceData!$E$15,CalculationsAndCharts!$A136+$A$11,IF($C$5,8,0),1,1))) -> 293.01 | G136: =IF(A136>$B$30,NA(),IF(A136>$A$8,"",OFFSET(InputPriceData!$F$15,CalculationsAndCharts!$A136+$A$11,IF($C$5,8,0),1,1))) -> 303.19 | H136: 8.91 | I136: 8.91 | J136: 10.72 | K136: 5.6225 | N136: =IF($A136>$N$30,NA(),10*H136) -> 89.1 | O136: =IF($A136>$N$30,NA(),IF(N136<-1,-1,IF(N136>1,1,N136))) -> 1 | P136: 0.4317647121 | AW136: 135782700
A137: 105 | B137: =IF(A137>$B$30,NA(),IF($A137>$A$8,"",OFFSET(InputPriceData!$B$15,$A137+$A$11,0,1,1))) -> 2020-06-12 | C137: =IF(A137>$B$30,NA(),IF($A137>$A$8,"",OFFSET(InputPriceData!$G$15,CalculationsAndCharts!$A137+$A$11,IF($C$5,8,0),1,1))) -> 194678900 | D137: =IF(A137>$B$30,NA(),IF(A137>$A$8,"",OFFSET(InputPriceData!$C$15,CalculationsAndCharts!$A137+$A$11,IF($C$5,8,0),1,1))) -> 304.37 | E137: =IF(A137>$B$30,NA(),IF(A137>$A$8,"",OFFSET(InputPriceData!$D$15,CalculationsAndCharts!$A137+$A$11,IF($C$5,8,0),1,1))) -> 305.2 | F137: =IF(A137>$B$30,NA(),IF(A137>$A$8,"",OFFSET(InputPriceData!$E$15,CalculationsAndCharts!$A137+$A$11,IF($C$5,8,0),1,1))) -> 294.85 | G137: =IF(A137>$B$30,NA(),IF(A137>$A$8,"",OFFSET(InputPriceData!$F$15,CalculationsAndCharts!$A137+$A$11,IF($C$5,8,0),1,1))) -> 300.39 | H137: -3.98 | I137: 3.98 | J137: 10.72 | K137: 4.5225 | N137: =IF($A137>$N$30,NA(),10*H137) -> -39.8 | O137: =IF($A137>$N$30,NA(),IF(N137<-1,-1,IF(N137>1,1,N137))) -> -1 | P137: 0.5142918931 | AX137: 194678900
A138: 106 | B138: =IF(A138>$B$30,NA(),IF($A138>$A$8,"",OFFSET(InputPriceData!$B$15,$A138+$A$11,0,1,1))) -> 2020-06-11 | C138: =IF(A138>$B$30,NA(),IF($A138>$A$8,"",OFFSET(InputPriceData!$G$15,CalculationsAndCharts!$A138+$A$11,IF($C$5,8,0),1,1))) -> 209243600 | D138: =IF(A138>$B$30,NA(),IF(A138>$A$8,"",OFFSET(InputPriceData!$C$15,CalculationsAndCharts!$A138+$A$11,IF($C$5,8,0),1,1))) -> 307.55 | E138: =IF(A138>$B$30,NA(),IF(A138>$A$8,"",OFFSET(InputPriceData!$D$15,CalculationsAndCharts!$A138+$A$11,IF($C$5,8,0),1,1))) -> 308.23 | F138: =IF(A138>$B$30,NA(),IF(A138>$A$8,"",OFFSET(InputPriceData!$E$15,CalculationsAndCharts!$A138+$A$11,IF($C$5,8,0),1,1))) -> 296.24 | G138: =IF(A138>$B$30,NA(),IF(A138>$A$8,"",OFFSET(InputPriceData!$F$15,CalculationsAndCharts!$A138+$A$11,IF($C$5,8,0),1,1))) -> 296.83 | H138: -10.72 | I138: 10.72 | J138: 10.72 | K138: 3.42 | N138: =IF($A138>$N$30,NA(),10*H138) -> -107.2 | O138: =IF($A138>$N$30,NA(),IF(N138<-1,-1,IF(N138>1,1,N138))) -> -1 | P138: 0.599111646 | AX138: 209243600
A139: 107 | B139: =IF(A139>$B$30,NA(),IF($A139>$A$8,"",OFFSET(InputPriceData!$B$15,$A139+$A$11,0,1,1))) -> 2020-06-10 | C139: =IF(A139>$B$30,NA(),IF($A139>$A$8,"",OFFSET(InputPriceData!$G$15,CalculationsAndCharts!$A139+$A$11,IF($C$5,8,0),1,1))) -> 95000800 | D139: =IF(A139>$B$30,NA(),IF(A139>$A$8,"",OFFSET(InputPriceData!$C$15,CalculationsAndCharts!$A139+$A$11,IF($C$5,8,0),1,1))) -> 317.38 | E139: =IF(A139>$B$30,NA(),IF(A139>$A$8,"",OFFSET(InputPriceData!$D$15,CalculationsAndCharts!$A139+$A$11,IF($C$5,8,0),1,1))) -> 318.34 | F139: =IF(A139>$B$30,NA(),IF(A139>$A$8,"",OFFSET(InputPriceData!$E$15,CalculationsAndCharts!$A139+$A$11,IF($C$5,8,0),1,1))) -> 314.22 | G139: =IF(A139>$B$30,NA(),IF(A139>$A$8,"",OFFSET(InputPriceData!$F$15,CalculationsAndCharts!$A139+$A$11,IF($C$5,8,0),1,1))) -> 314.99 | H139: -2.39 | I139: 2.39 | J139: 2.94 | K139: 2.3175 | N139: =IF($A139>$N$30,NA(),10*H139) -> -23.9 | O139: =IF($A139>$N$30,NA(),IF(N139<-1,-1,IF(N139>1,1,N139))) -> -1 | P139: 0.6318507002 | AX139: 95000800
A140: 108 | B140: =IF(A140>$B$30,NA(),IF($A140>$A$8,"",OFFSET(InputPriceData!$B$15,$A140+$A$11,0,1,1))) -> 2020-06-09 | C140: =IF(A140>$B$30,NA(),IF($A140>$A$8,"",OFFSET(InputPriceData!$G$15,CalculationsAndCharts!$A140+$A$11,IF($C$5,8,0),1,1))) -> 77479200 | D140: =IF(A140>$B$30,NA(),IF(A140>$A$8,"",OFFSET(InputPriceData!$C$15,CalculationsAndCharts!$A140+$A$11,IF($C$5,8,0),1,1))) -> 316.28 | E140: =IF(A140>$B$30,NA(),IF(A140>$A$8,"",OFFSET(InputPriceData!$D$15,CalculationsAndCharts!$A140+$A$11,IF($C$5,8,0),1,1))) -> 319.22 | F140: =IF(A140>$B$30,NA(),IF(A140>$A$8,"",OFFSET(InputPriceData!$E$15,CalculationsAndCharts!$A140+$A$11,IF($C$5,8,0),1,1))) -> 315.35 | G140: =IF(A140>$B$30,NA(),IF(A140>$A$8,"",OFFSET(InputPriceData!$F$15,CalculationsAndCharts!$A140+$A$11,IF($C$5,8,0),1,1))) -> 316.76 | H140: 0.48 | I140: 0.48 | J140: 2.94 | K140: 2.3025 | N140: =IF($A140>$N$30,NA(),10*H140) -> 4.8 | O140: =IF($A140>$N$30,NA(),IF(N140<-1,-1,IF(N140>1,1,N140))) -> 1 | P140: 0.5928937081 | AW140: 77479200
A141: 109 | B141: =IF(A141>$B$30,NA(),IF($A141>$A$8,"",OFFSET(InputPriceData!$B$15,$A141+$A$11,0,1,1))) -> 2020-06-08 | C141: =IF(A141>$B$30,NA(),IF($A141>$A$8,"",OFFSET(InputPriceData!$G$15,CalculationsAndCharts!$A141+$A$11,IF($C$5,8,0),1,1))) -> 73641200 | D141: =IF(A141>$B$30,NA(),IF(A141>$A$8,"",OFFSET(InputPriceData!$C$15,CalculationsAndCharts!$A141+$A$11,IF($C$5,8,0),1,1))) -> 316.2 | E141: =IF(A141>$B$30,NA(),IF(A141>$A$8,"",OFFSET(InputPriceData!$D$15,CalculationsAndCharts!$A141+$A$11,IF($C$5,8,0),1,1))) -> 319.35 | F141: =IF(A141>$B$30,NA(),IF(A141>$A$8,"",OFFSET(InputPriceData!$E$15,CalculationsAndCharts!$A141+$A$11,IF($C$5,8,0),1,1))) -> 315.62 | G141: =IF(A141>$B$30,NA(),IF(A141>$A$8,"",OFFSET(InputPriceData!$F$15,CalculationsAndCharts!$A141+$A$11,IF($C$5,8,0),1,1))) -> 319.14 | H141: 2.94 | I141: 2.94 | J141: 2.94 | K141: 2.2875 | N141: =IF($A141>$N$30,NA(),10*H141) -> 29.4 | O141: =IF($A141>$N$30,NA(),IF(N141<-1,-1,IF(N141>1,1,N141))) -> 1 | P141: 0.5103606402 | AW141: 73641200
A142: 110 | B142: =IF(A142>$B$30,NA(),IF($A142>$A$8,"",OFFSET(InputPriceData!$B$15,$A142+$A$11,0,1,1))) -> 2020-06-05 | C142: =IF(A142>$B$30,NA(),IF($A142>$A$8,"",OFFSET(InputPriceData!$G$15,CalculationsAndCharts!$A142+$A$11,IF($C$5,8,0),1,1))) -> 150524700 | D142: =IF(A142>$B$30,NA(),IF(A142>$A$8,"",OFFSET(InputPriceData!$C$15,CalculationsAndCharts!$A142+$A$11,IF($C$5,8,0),1,1))) -> 313.25 | E142: =IF(A142>$B$30,NA(),IF(A142>$A$8,"",OFFSET(InputPriceData!$D$15,CalculationsAndCharts!$A142+$A$11,IF($C$5,8,0),1,1))) -> 317.23 | F142: =IF(A142>$B$30,NA(),IF(A142>$A$8,"",OFFSET(InputPriceData!$E$15,CalculationsAndCharts!$A142+$A$11,IF($C$5,8,0),1,1))) -> 313.18 | G142: =IF(A142>$B$30,NA(),IF(A142>$A$8,"",OFFSET(InputPriceData!$F$15,CalculationsAndCharts!$A142+$A$11,IF($C$5,8,0),1,1))) -> 315.33 | H142: 2.08 | I142: 2.08 | J142: 2.08 | K142: 2.2725 | N142: =IF($A142>$N$30,NA(),10*H142) -> 20.8 | O142: =IF($A142>$N$30,NA(),IF(N142<-1,-1,IF(N142>1,1,N142))) -> 1 | P142: 0.4242793817 | AW142: 150524700
A143: 111 | B143: =IF(A143>$B$30,NA(),IF($A143>$A$8,"",OFFSET(InputPriceData!$B$15,$A143+$A$11,0,1,1))) -> 2020-06-04 | C143: =IF(A143>$B$30,NA(),IF($A143>$A$8,"",OFFSET(InputPriceData!$G$15,CalculationsAndCharts!$A143+$A$11,IF($C$5,8,0),1,1))) -> 75794400 | D143: =IF(A143>$B$30,NA(),IF(A143>$A$8,"",OFFSET(InputPriceData!$C$15,CalculationsAndCharts!$A143+$A$11,IF($C$5,8,0),1,1))) -> 307.2 | E143: =IF(A143>$B$30,NA(),IF(A143>$A$8,"",OFFSET(InputPriceData!$D$15,CalculationsAndCharts!$A143+$A$11,IF($C$5,8,0),1,1))) -> 309.07 | F143: =IF(A143>$B$30,NA(),IF(A143>$A$8,"",OFFSET(InputPriceData!$E$15,CalculationsAndCharts!$A143+$A$11,IF($C$5,8,0),1,1))) -> 305.2 | G143: =IF(A143>$B$30,NA(),IF(A143>$A$8,"",OFFSET(InputPriceData!$F$15,CalculationsAndCharts!$A143+$A$11,IF($C$5,8,0),1,1))) -> 307.45 | H143: 0.25 | I143: 0.25 | J143: 1.92 | K143: 2.365 | N143: =IF($A143>$N$30,NA(),10*H143) -> 2.5 | O143: =IF($A143>$N$30,NA(),IF(N143<-1,-1,IF(N143>1,1,N143))) -> 1 | P143: 0.3378042454 | AW143: 75794400
A144: 112 | B144: =IF(A144>$B$30,NA(),IF($A144>$A$8,"",OFFSET(InputPriceData!$B$15,$A144+$A$11,0,1,1))) -> 2020-06-03 | C144: =IF(A144>$B$30,NA(),IF($A144>$A$8,"",OFFSET(InputPriceData!$G$15,CalculationsAndCharts!$A144+$A$11,IF($C$5,8,0),1,1))) -> 92567600 | D144: =IF(A144>$B$30,NA(),IF(A144>$A$8,"",OFFSET(InputPriceData!$C$15,CalculationsAndCharts!$A144+$A$11,IF($C$5,8,0),1,1))) -> 306.34 | E144: =IF(A144>$B$30,NA(),IF(A144>$A$8,"",OFFSET(InputPriceData!$D$15,CalculationsAndCharts!$A144+$A$11,IF($C$5,8,0),1,1))) -> 309.29 | F144: =IF(A144>$B$30,NA(),IF(A144>$A$8,"",OFFSET(InputPriceData!$E$15,CalculationsAndCharts!$A144+$A$11,IF($C$5,8,0),1,1))) -> 306.05 | G144: =IF(A144>$B$30,NA(),IF(A144>$A$8,"",OFFSET(InputPriceData!$F$15,CalculationsAndCharts!$A144+$A$11,IF($C$5,8,0),1,1))) -> 308.26 | H144: 1.92 | I144: 1.92 | J144: 1.92 | K144: 2.41875 | N144: =IF($A144>$N$30,NA(),10*H144) -> 19.2 | O144: =IF($A144>$N$30,NA(),IF(N144<-1,-1,IF(N144>1,1,N144))) -> 1 | P144: 0.2551967636 | AW144: 92567600
A145: 113 | B145: =IF(A145>$B$30,NA(),IF($A145>$A$8,"",OFFSET(InputPriceData!$B$15,$A145+$A$11,0,1,1))) -> 2020-06-02 | C145: =IF(A145>$B$30,NA(),IF($A145>$A$8,"",OFFSET(InputPriceData!$G$15,CalculationsAndCharts!$A145+$A$11,IF($C$5,8,0),1,1))) -> 74267200 | D145: =IF(A145>$B$30,NA(),IF(A145>$A$8,"",OFFSET(InputPriceData!$C$15,CalculationsAndCharts!$A145+$A$11,IF($C$5,8,0),1,1))) -> 302.7 | E145: =IF(A145>$B$30,NA(),IF(A145>$A$8,"",OFFSET(InputPriceData!$D$15,CalculationsAndCharts!$A145+$A$11,IF($C$5,8,0),1,1))) -> 304.26 | F145: =IF(A145>$B$30,NA(),IF(A145>$A$8,"",OFFSET(InputPriceData!$E$15,CalculationsAndCharts!$A145+$A$11,IF($C$5,8,0),1,1))) -> 301.27 | G145: =IF(A145>$B$30,NA(),IF(A145>$A$8,"",OFFSET(InputPriceData!$F$15,CalculationsAndCharts!$A145+$A$11,IF($C$5,8,0),1,1))) -> 304.21 | H145: 1.51 | I145: 1.51 | J145: 1.9 | K145: 2.4725 | N145: =IF($A145>$N$30,NA(),10*H145) -> 15.1 | O145: =IF($A145>$N$30,NA(),IF(N145<-1,-1,IF(N145>1,1,N145))) -> 1 | P145: 0.1819906116 | AW145: 74267200
A146: 114 | B146: =IF(A146>$B$30,NA(),IF($A146>$A$8,"",OFFSET(InputPriceData!$B$15,$A146+$A$11,0,1,1))) -> 2020-06-01 | C146: =IF(A146>$B$30,NA(),IF($A146>$A$8,"",OFFSET(InputPriceData!$G$15,CalculationsAndCharts!$A146+$A$11,IF($C$5,8,0),1,1))) -> 55758300 | D146: =IF(A146>$B$30,NA(),IF(A146>$A$8,"",OFFSET(InputPriceData!$C$15,CalculationsAndCharts!$A146+$A$11,IF($C$5,8,0),1,1))) -> 299.81 | E146: =IF(A146>$B$30,NA(),IF(A146>$A$8,"",OFFSET(InputPriceData!$D$15,CalculationsAndCharts!$A146+$A$11,IF($C$5,8,0),1,1))) -> 302.36 | F146: =IF(A146>$B$30,NA(),IF(A146>$A$8,"",OFFSET(InputPriceData!$E$15,CalculationsAndCharts!$A146+$A$11,IF($C$5,8,0),1,1))) -> 299.25 | G146: =IF(A146>$B$30,NA(),IF(A146>$A$8,"",OFFSET(InputPriceData!$F$15,CalculationsAndCharts!$A146+$A$11,IF($C$5,8,0),1,1))) -> 301.71 | H146: 1.9 | I146: 1.9 | J146: 1.9 | K146: 2.7175 | N146: =IF($A146>$N$30,NA(),10*H146) -> 19 | O146: =IF($A146>$N$30,NA(),IF(N146<-1,-1,IF(N146>1,1,N146))) -> 1 | P146: 0.1251486852 | AW146: 55758300
A147: 115 | B147: =IF(A147>$B$30,NA(),IF($A147>$A$8,"",OFFSET(InputPriceData!$B$15,$A147+$A$11,0,1,1))) -> 2020-05-29 | C147: =IF(A147>$B$30,NA(),IF($A147>$A$8,"",OFFSET(InputPriceData!$G$15,CalculationsAndCharts!$A147+$A$11,IF($C$5,8,0),1,1))) -> 119265700 | D147: =IF(A147>$B$30,NA(),IF(A147>$A$8,"",OFFSET(InputPriceData!$C$15,CalculationsAndCharts!$A147+$A$11,IF($C$5,8,0),1,1))) -> 298.66 | E147: =IF(A147>$B$30,NA(),IF(A147>$A$8,"",OFFSET(InputPriceData!$D$15,CalculationsAndCharts!$A147+$A$11,IF($C$5,8,0),1,1))) -> 301.13 | F147: =IF(A147>$B$30,NA(),IF(A147>$A$8,"",OFFSET(InputPriceData!$E$15,CalculationsAndCharts!$A147+$A$11,IF($C$5,8,0),1,1))) -> 295.71 | G147: =IF(A147>$B$30,NA(),IF(A147>$A$8,"",OFFSET(InputPriceData!$F$15,CalculationsAndCharts!$A147+$A$11,IF($C$5,8,0),1,1))) -> 300.5 | H147: 1.84 | I147: 1.84 | J147: 2.82 | K147: 3.2225 | N147: =IF($A147>$N$30,NA(),10*H147) -> 18.4 | O147: =IF($A147>$N$30,NA(),IF(N147<-1,-1,IF(N147>1,1,N147))) -> 1 | P147: 0.09320164198 | AW147: 119265700
A148: 116 | B148: =IF(A148>$B$30,NA(),IF($A148>$A$8,"",OFFSET(InputPriceData!$B$15,$A148+$A$11,0,1,1))) -> 2020-05-28 | C148: =IF(A148>$B$30,NA(),IF($A148>$A$8,"",OFFSET(InputPriceData!$G$15,CalculationsAndCharts!$A148+$A$11,IF($C$5,8,0),1,1))) -> 90405200 | D148: =IF(A148>$B$30,NA(),IF(A148>$A$8,"",OFFSET(InputPriceData!$C$15,CalculationsAndCharts!$A148+$A$11,IF($C$5,8,0),1,1))) -> 300.82 | E148: =IF(A148>$B$30,NA(),IF(A148>$A$8,"",OFFSET(InputPriceData!$D$15,CalculationsAndCharts!$A148+$A$11,IF($C$5,8,0),1,1))) -> 302.99 | F148: =IF(A148>$B$30,NA(),IF(A148>$A$8,"",OFFSET(InputPriceData!$E$15,CalculationsAndCharts!$A148+$A$11,IF($C$5,8,0),1,1))) -> 298.44 | G148: =IF(A148>$B$30,NA(),IF(A148>$A$8,"",OFFSET(InputPriceData!$F$15,CalculationsAndCharts!$A148+$A$11,IF($C$5,8,0),1,1))) -> 299.16 | H148: -1.66 | I148: 1.66 | J148: 2.82 | K148: 3.6125 | N148: =IF($A148>$N$30,NA(),10*H148) -> -16.6 | O148: =IF($A148>$N$30,NA(),IF(N148<-1,-1,IF(N148>1,1,N148))) -> -1 | P148: 0.09635447176 | AX148: 90405200
A149: 117 | B149: =IF(A149>$B$30,NA(),IF($A149>$A$8,"",OFFSET(InputPriceData!$B$15,$A149+$A$11,0,1,1))) -> 2020-05-27 | C149: =IF(A149>$B$30,NA(),IF($A149>$A$8,"",OFFSET(InputPriceData!$G$15,CalculationsAndCharts!$A149+$A$11,IF($C$5,8,0),1,1))) -> 104817400 | D149: =IF(A149>$B$30,NA(),IF(A149>$A$8,"",OFFSET(InputPriceData!$C$15,CalculationsAndCharts!$A149+$A$11,IF($C$5,8,0),1,1))) -> 298.33 | E149: =IF(A149>$B$30,NA(),IF(A149>$A$8,"",OFFSET(InputPriceData!$D$15,CalculationsAndCharts!$A149+$A$11,IF($C$5,8,0),1,1))) -> 299.76 | F149: =IF(A149>$B$30,NA(),IF(A149>$A$8,"",OFFSET(InputPriceData!$E$15,CalculationsAndCharts!$A149+$A$11,IF($C$5,8,0),1,1))) -> 293.14 | G149: =IF(A149>$B$30,NA(),IF(A149>$A$8,"",OFFSET(InputPriceData!$F$15,CalculationsAndCharts!$A149+$A$11,IF($C$5,8,0),1,1))) -> 299.72 | H149: 1.39 | I149: 1.39 | J149: 2.82 | K149: 4.13875 | N149: =IF($A149>$N$30,NA(),10*H149) -> 13.9 | O149: =IF($A149>$N$30,NA(),IF(N149<-1,-1,IF(N149>1,1,N149))) -> 1 | P149: 0.09569432429 | AW149: 104817400
A150: 118 | B150: =IF(A150>$B$30,NA(),IF($A150>$A$8,"",OFFSET(InputPriceData!$B$15,$A150+$A$11,0,1,1))) -> 2020-05-26 | C150: =IF(A150>$B$30,NA(),IF($A150>$A$8,"",OFFSET(InputPriceData!$G$15,CalculationsAndCharts!$A150+$A$11,IF($C$5,8,0),1,1))) -> 88951400 | D150: =IF(A150>$B$30,NA(),IF(A150>$A$8,"",OFFSET(InputPriceData!$C$15,CalculationsAndCharts!$A150+$A$11,IF($C$5,8,0),1,1))) -> 298.14 | E150: =IF(A150>$B$30,NA(),IF(A150>$A$8,"",OFFSET(InputPriceData!$D$15,CalculationsAndCharts!$A150+$A$11,IF($C$5,8,0),1,1))) -> 298.39 | F150: =IF(A150>$B$30,NA(),IF(A150>$A$8,"",OFFSET(InputPriceData!$E$15,CalculationsAndCharts!$A150+$A$11,IF($C$5,8,0),1,1))) -> 291.75 | G150: =IF(A150>$B$30,NA(),IF(A150>$A$8,"",OFFSET(InputPriceData!$F$15,CalculationsAndCharts!$A150+$A$11,IF($C$5,8,0),1,1))) -> 295.32 | H150: -2.82 | I150: 2.82 | J150: 2.82 | K150: 4.665 | N150: =IF($A150>$N$30,NA(),10*H150) -> -28.2 | O150: =IF($A150>$N$30,NA(),IF(N150<-1,-1,IF(N150>1,1,N150))) -> -1 | P150: 0.08994055665 | AX150: 88951400
A151: 119 | B151: =IF(A151>$B$30,NA(),IF($A151>$A$8,"",OFFSET(InputPriceData!$B$15,$A151+$A$11,0,1,1))) -> 2020-05-22 | C151: =IF(A151>$B$30,NA(),IF($A151>$A$8,"",OFFSET(InputPriceData!$G$15,CalculationsAndCharts!$A151+$A$11,IF($C$5,8,0),1,1))) -> 63958200 | D151: =IF(A151>$B$30,NA(),IF(A151>$A$8,"",OFFSET(InputPriceData!$C$15,CalculationsAndCharts!$A151+$A$11,IF($C$5,8,0),1,1))) -> 290.87 | E151: =IF(A151>$B$30,NA(),IF(A151>$A$8,"",OFFSET(InputPriceData!$D$15,CalculationsAndCharts!$A151+$A$11,IF($C$5,8,0),1,1))) -> 291.92 | F151: =IF(A151>$B$30,NA(),IF(A151>$A$8,"",OFFSET(InputPriceData!$E$15,CalculationsAndCharts!$A151+$A$11,IF($C$5,8,0),1,1))) -> 289.54 | G151: =IF(A151>$B$30,NA(),IF(A151>$A$8,"",OFFSET(InputPriceData!$F$15,CalculationsAndCharts!$A151+$A$11,IF($C$5,8,0),1,1))) -> 291.73 | H151: 0.86 | I151: 0.86 | J151: 2.35 | K151: 5.19125 | N151: =IF($A151>$N$30,NA(),10*H151) -> 8.6 | O151: =IF($A151>$N$30,NA(),IF(N151<-1,-1,IF(N151>1,1,N151))) -> 1 | P151: 0.07763014146 | AW151: 63958200
A152: 120 | B152: =IF(A152>$B$30,NA(),IF($A152>$A$8,"",OFFSET(InputPriceData!$B$15,$A152+$A$11,0,1,1))) -> 2020-05-21 | C152: =IF(A152>$B$30,NA(),IF($A152>$A$8,"",OFFSET(InputPriceData!$G$15,CalculationsAndCharts!$A152+$A$11,IF($C$5,8,0),1,1))) -> 78293900 | D152: =IF(A152>$B$30,NA(),IF(A152>$A$8,"",OFFSET(InputPriceData!$C$15,CalculationsAndCharts!$A152+$A$11,IF($C$5,8,0),1,1))) -> 293.06 | E152: =IF(A152>$B$30,NA(),IF(A152>$A$8,"",OFFSET(InputPriceData!$D$15,CalculationsAndCharts!$A152+$A$11,IF($C$5,8,0),1,1))) -> 293.93 | F152: =IF(A152>$B$30,NA(),IF(A152>$A$8,"",OFFSET(InputPriceData!$E$15,CalculationsAndCharts!$A152+$A$11,IF($C$5,8,0),1,1))) -> 290 | G152: =IF(A152>$B$30,NA(),IF(A152>$A$8,"",OFFSET(InputPriceData!$F$15,CalculationsAndCharts!$A152+$A$11,IF($C$5,8,0),1,1))) -> 291.18 | H152: -1.88 | I152: 1.88 | J152: 2.35 | K152: 5.77625 | N152: =IF($A152>$N$30,NA(),10*H152) -> -18.8 | O152: =IF($A152>$N$30,NA(),IF(N152<-1,-1,IF(N152>1,1,N152))) -> -1 | P152: 0.05712920019 | AX152: 78293900
A153: 121 | B153: =IF(A153>$B$30,NA(),IF($A153>$A$8,"",OFFSET(InputPriceData!$B$15,$A153+$A$11,0,1,1))) -> 2020-05-20 | C153: =IF(A153>$B$30,NA(),IF($A153>$A$8,"",OFFSET(InputPriceData!$G$15,CalculationsAndCharts!$A153+$A$11,IF($C$5,8,0),1,1))) -> 85861700 | D153: =IF(A153>$B$30,NA(),IF(A153>$A$8,"",OFFSET(InputPriceData!$C$15,CalculationsAndCharts!$A153+$A$11,IF($C$5,8,0),1,1))) -> 292.1 | E153: =IF(A153>$B$30,NA(),IF(A153>$A$8,"",OFFSET(InputPriceData!$D$15,CalculationsAndCharts!$A153+$A$11,IF($C$5,8,0),1,1))) -> 294.13 | F153: =IF(A153>$B$30,NA(),IF(A153>$A$8,"",OFFSET(InputPriceData!$E$15,CalculationsAndCharts!$A153+$A$11,IF($C$5,8,0),1,1))) -> 291.86 | G153: =IF(A153>$B$30,NA(),IF(A153>$A$8,"",OFFSET(InputPriceData!$F$15,CalculationsAndCharts!$A153+$A$11,IF($C$5,8,0),1,1))) -> 293.2 | H153: 1.1 | I153: 1.1 | J153: 3.86 | K153: 5.95 | N153: =IF($A153>$N$30,NA(),10*H153) -> 11 | O153: =IF($A153>$N$30,NA(),IF(N153<-1,-1,IF(N153>1,1,N153))) -> 1 | P153: 0.0266571995 | AW153: 85861700
A154: 122 | B154: =IF(A154>$B$30,NA(),IF($A154>$A$8,"",OFFSET(InputPriceData!$B$15,$A154+$A$11,0,1,1))) -> 2020-05-19 | C154: =IF(A154>$B$30,NA(),IF($A154>$A$8,"",OFFSET(InputPriceData!$G$15,CalculationsAndCharts!$A154+$A$11,IF($C$5,8,0),1,1))) -> 95189300 | D154: =IF(A154>$B$30,NA(),IF(A154>$A$8,"",OFFSET(InputPriceData!$C$15,CalculationsAndCharts!$A154+$A$11,IF($C$5,8,0),1,1))) -> 290.65 | E154: =IF(A154>$B$30,NA(),IF(A154>$A$8,"",OFFSET(InputPriceData!$D$15,CalculationsAndCharts!$A154+$A$11,IF($C$5,8,0),1,1))) -> 292.49 | F154: =IF(A154>$B$30,NA(),IF(A154>$A$8,"",OFFSET(InputPriceData!$E$15,CalculationsAndCharts!$A154+$A$11,IF($C$5,8,0),1,1))) -> 288.28 | G154: =IF(A154>$B$30,NA(),IF(A154>$A$8,"",OFFSET(InputPriceData!$F$15,CalculationsAndCharts!$A154+$A$11,IF($C$5,8,0),1,1))) -> 288.3 | H154: -2.35 | I154: 2.35 | J154: 5.94 | K154: 5.935 | N154: =IF($A154>$N$30,NA(),10*H154) -> -23.5 | O154: =IF($A154>$N$30,NA(),IF(N154<-1,-1,IF(N154>1,1,N154))) -> -1 | P154: -0.0156730553 | AX154: 95189300
A155: 123 | B155: =IF(A155>$B$30,NA(),IF($A155>$A$8,"",OFFSET(InputPriceData!$B$15,$A155+$A$11,0,1,1))) -> 2020-05-18 | C155: =IF(A155>$B$30,NA(),IF($A155>$A$8,"",OFFSET(InputPriceData!$G$15,CalculationsAndCharts!$A155+$A$11,IF($C$5,8,0),1,1))) -> 120320200 | D155: =IF(A155>$B$30,NA(),IF(A155>$A$8,"",OFFSET(InputPriceData!$C$15,CalculationsAndCharts!$A155+$A$11,IF($C$5,8,0),1,1))) -> 289.37 | E155: =IF(A155>$B$30,NA(),IF(A155>$A$8,"",OFFSET(InputPriceData!$D$15,CalculationsAndCharts!$A155+$A$11,IF($C$5,8,0),1,1))) -> 293.02 | F155: =IF(A155>$B$30,NA(),IF(A155>$A$8,"",OFFSET(InputPriceData!$E$15,CalculationsAndCharts!$A155+$A$11,IF($C$5,8,0),1,1))) -> 289.02 | G155: =IF(A155>$B$30,NA(),IF(A155>$A$8,"",OFFSET(InputPriceData!$F$15,CalculationsAndCharts!$A155+$A$11,IF($C$5,8,0),1,1))) -> 291.29 | H155: 1.92 | I155: 1.92 | J155: 5.94 | K155: 5.66 | N155: =IF($A155>$N$30,NA(),10*H155) -> 19.2 | O155: =IF($A155>$N$30,NA(),IF(N155<-1,-1,IF(N155>1,1,N155))) -> 1 | P155: -0.07179621852 | AW155: 120320200
A156: 124 | B156: =IF(A156>$B$30,NA(),IF($A156>$A$8,"",OFFSET(InputPriceData!$B$15,$A156+$A$11,0,1,1))) -> 2020-05-15 | C156: =IF(A156>$B$30,NA(),IF($A156>$A$8,"",OFFSET(InputPriceData!$G$15,CalculationsAndCharts!$A156+$A$11,IF($C$5,8,0),1,1))) -> 111146300 | D156: =IF(A156>$B$30,NA(),IF(A156>$A$8,"",OFFSET(InputPriceData!$C$15,CalculationsAndCharts!$A156+$A$11,IF($C$5,8,0),1,1))) -> 278.82 | E156: =IF(A156>$B$30,NA(),IF(A156>$A$8,"",OFFSET(InputPriceData!$D$15,CalculationsAndCharts!$A156+$A$11,IF($C$5,8,0),1,1))) -> 282.73 | F156: =IF(A156>$B$30,NA(),IF(A156>$A$8,"",OFFSET(InputPriceData!$E$15,CalculationsAndCharts!$A156+$A$11,IF($C$5,8,0),1,1))) -> 277.81 | G156: =IF(A156>$B$30,NA(),IF(A156>$A$8,"",OFFSET(InputPriceData!$F$15,CalculationsAndCharts!$A156+$A$11,IF($C$5,8,0),1,1))) -> 282.68 | H156: 3.86 | I156: 3.86 | J156: 7.03 | K156: 5.385 | N156: =IF($A156>$N$30,NA(),10*H156) -> 38.6 | O156: =IF($A156>$N$30,NA(),IF(N156<-1,-1,IF(N156>1,1,N156))) -> 1 | P156: -0.1436123841 | AW156: 111146300
A157: 125 | B157: =IF(A157>$B$30,NA(),IF($A157>$A$8,"",OFFSET(InputPriceData!$B$15,$A157+$A$11,0,1,1))) -> 2020-05-14 | C157: =IF(A157>$B$30,NA(),IF($A157>$A$8,"",OFFSET(InputPriceData!$G$15,CalculationsAndCharts!$A157+$A$11,IF($C$5,8,0),1,1))) -> 121977900 | D157: =IF(A157>$B$30,NA(),IF(A157>$A$8,"",OFFSET(InputPriceData!$C$15,CalculationsAndCharts!$A157+$A$11,IF($C$5,8,0),1,1))) -> 275.45 | E157: =IF(A157>$B$30,NA(),IF(A157>$A$8,"",OFFSET(InputPriceData!$D$15,CalculationsAndCharts!$A157+$A$11,IF($C$5,8,0),1,1))) -> 281.53 | F157: =IF(A157>$B$30,NA(),IF(A157>$A$8,"",OFFSET(InputPriceData!$E$15,CalculationsAndCharts!$A157+$A$11,IF($C$5,8,0),1,1))) -> 269.56 | G157: =IF(A157>$B$30,NA(),IF(A157>$A$8,"",OFFSET(InputPriceData!$F$15,CalculationsAndCharts!$A157+$A$11,IF($C$5,8,0),1,1))) -> 281.39 | H157: 5.94 | I157: 5.94 | J157: 7.03 | K157: 4.85625 | N157: =IF($A157>$N$30,NA(),10*H157) -> 59.4 | O157: =IF($A157>$N$30,NA(),IF(N157<-1,-1,IF(N157>1,1,N157))) -> 1 | P157: -0.1820282189 | AW157: 121977900
A158: 126 | B158: =IF(A158>$B$30,NA(),IF($A158>$A$8,"",OFFSET(InputPriceData!$B$15,$A158+$A$11,0,1,1))) -> 2020-05-13 | C158: =IF(A158>$B$30,NA(),IF($A158>$A$8,"",OFFSET(InputPriceData!$G$15,CalculationsAndCharts!$A158+$A$11,IF($C$5,8,0),1,1))) -> 144721100 | D158: =IF(A158>$B$30,NA(),IF(A158>$A$8,"",OFFSET(InputPriceData!$C$15,CalculationsAndCharts!$A158+$A$11,IF($C$5,8,0),1,1))) -> 282.47 | E158: =IF(A158>$B$30,NA(),IF(A158>$A$8,"",OFFSET(InputPriceData!$D$15,CalculationsAndCharts!$A158+$A$11,IF($C$5,8,0),1,1))) -> 283.58 | F158: =IF(A158>$B$30,NA(),IF(A158>$A$8,"",OFFSET(InputPriceData!$E$15,CalculationsAndCharts!$A158+$A$11,IF($C$5,8,0),1,1))) -> 275.46 | G158: =IF(A158>$B$30,NA(),IF(A158>$A$8,"",OFFSET(InputPriceData!$F$15,CalculationsAndCharts!$A158+$A$11,IF($C$5,8,0),1,1))) -> 278.06 | H158: -4.41 | I158: 4.41 | J158: 7.03 | K158: 4.3275 | N158: =IF($A158>$N$30,NA(),10*H158) -> -44.1 | O158: =IF($A158>$N$30,NA(),IF(N158<-1,-1,IF(N158>1,1,N158))) -> -1 | P158: -0.1735782362 | AX158: 144721100
A159: 127 | B159: =IF(A159>$B$30,NA(),IF($A159>$A$8,"",OFFSET(InputPriceData!$B$15,$A159+$A$11,0,1,1))) -> 2020-05-12 | C159: =IF(A159>$B$30,NA(),IF($A159>$A$8,"",OFFSET(InputPriceData!$G$15,CalculationsAndCharts!$A159+$A$11,IF($C$5,8,0),1,1))) -> 95870800 | D159: =IF(A159>$B$30,NA(),IF(A159>$A$8,"",OFFSET(InputPriceData!$C$15,CalculationsAndCharts!$A159+$A$11,IF($C$5,8,0),1,1))) -> 290.1 | E159: =IF(A159>$B$30,NA(),IF(A159>$A$8,"",OFFSET(InputPriceData!$D$15,CalculationsAndCharts!$A159+$A$11,IF($C$5,8,0),1,1))) -> 290.54 | F159: =IF(A159>$B$30,NA(),IF(A159>$A$8,"",OFFSET(InputPriceData!$E$15,CalculationsAndCharts!$A159+$A$11,IF($C$5,8,0),1,1))) -> 282.92 | G159: =IF(A159>$B$30,NA(),IF(A159>$A$8,"",OFFSET(InputPriceData!$F$15,CalculationsAndCharts!$A159+$A$11,IF($C$5,8,0),1,1))) -> 283.07 | H159: -7.03 | I159: 7.03 | J159: 7.03 | K159: 4.10125 | N159: =IF($A159>$N$30,NA(),10*H159) -> -70.3 | O159: =IF($A159>$N$30,NA(),IF(N159<-1,-1,IF(N159>1,1,N159))) -> -1 | P159: -0.1533893028 | AX159: 95870800
A160: 128 | B160: =IF(A160>$B$30,NA(),IF($A160>$A$8,"",OFFSET(InputPriceData!$B$15,$A160+$A$11,0,1,1))) -> 2020-05-11 | C160: =IF(A160>$B$30,NA(),IF($A160>$A$8,"",OFFSET(InputPriceData!$G$15,CalculationsAndCharts!$A160+$A$11,IF($C$5,8,0),1,1))) -> 79514200 | D160: =IF(A160>$B$30,NA(),IF(A160>$A$8,"",OFFSET(InputPriceData!$C$15,CalculationsAndCharts!$A160+$A$11,IF($C$5,8,0),1,1))) -> 286.69 | E160: =IF(A160>$B$30,NA(),IF(A160>$A$8,"",OFFSET(InputPriceData!$D$15,CalculationsAndCharts!$A160+$A$11,IF($C$5,8,0),1,1))) -> 290.31 | F160: =IF(A160>$B$30,NA(),IF(A160>$A$8,"",OFFSET(InputPriceData!$E$15,CalculationsAndCharts!$A160+$A$11,IF($C$5,8,0),1,1))) -> 286.24 | G160: =IF(A160>$B$30,NA(),IF(A160>$A$8,"",OFFSET(InputPriceData!$F$15,CalculationsAndCharts!$A160+$A$11,IF($C$5,8,0),1,1))) -> 288.83 | H160: 2.14 | I160: 2.14 | J160: 3.74 | K160: 3.875 | N160: =IF($A160>$N$30,NA(),10*H160) -> 21.4 | O160: =IF($A160>$N$30,NA(),IF(N160<-1,-1,IF(N160>1,1,N160))) -> 1 | P160: -0.169292325 | AW160: 79514200
A161: 129 | B161: =IF(A161>$B$30,NA(),IF($A161>$A$8,"",OFFSET(InputPriceData!$B$15,$A161+$A$11,0,1,1))) -> 2020-05-08 | C161: =IF(A161>$B$30,NA(),IF($A161>$A$8,"",OFFSET(InputPriceData!$G$15,CalculationsAndCharts!$A161+$A$11,IF($C$5,8,0),1,1))) -> 76622100 | D161: =IF(A161>$B$30,NA(),IF(A161>$A$8,"",OFFSET(InputPriceData!$C$15,CalculationsAndCharts!$A161+$A$11,IF($C$5,8,0),1,1))) -> 287.43 | E161: =IF(A161>$B$30,NA(),IF(A161>$A$8,"",OFFSET(InputPriceData!$D$15,CalculationsAndCharts!$A161+$A$11,IF($C$5,8,0),1,1))) -> 289.27 | F161: =IF(A161>$B$30,NA(),IF(A161>$A$8,"",OFFSET(InputPriceData!$E$15,CalculationsAndCharts!$A161+$A$11,IF($C$5,8,0),1,1))) -> 286.22 | G161: =IF(A161>$B$30,NA(),IF(A161>$A$8,"",OFFSET(InputPriceData!$F$15,CalculationsAndCharts!$A161+$A$11,IF($C$5,8,0),1,1))) -> 288.77 | H161: 1.34 | I161: 1.34 | J161: 3.74 | K161: 4.06 | N161: =IF($A161>$N$30,NA(),10*H161) -> 13.4 | O161: =IF($A161>$N$30,NA(),IF(N161<-1,-1,IF(N161>1,1,N161))) -> 1 | P161: -0.1820680404 | AW161: =IF(G161>=D161,C161,NA()) -> 76622100 | AX161: =IF(G161<D161,C161,NA()) -> 
A162: 130 | B162: =IF(A162>$B$30,NA(),IF($A162>$A$8,"",OFFSET(InputPriceData!$B$15,$A162+$A$11,0,1,1))) -> 2020-05-07 | C162: =IF(A162>$B$30,NA(),IF($A162>$A$8,"",OFFSET(InputPriceData!$G$15,CalculationsAndCharts!$A162+$A$11,IF($C$5,8,0),1,1))) -> 75250400 | D162: =IF(A162>$B$30,NA(),IF(A162>$A$8,"",OFFSET(InputPriceData!$C$15,CalculationsAndCharts!$A162+$A$11,IF($C$5,8,0),1,1))) -> 284.14 | E162: =IF(A162>$B$30,NA(),IF(A162>$A$8,"",OFFSET(InputPriceData!$D$15,CalculationsAndCharts!$A162+$A$11,IF($C$5,8,0),1,1))) -> 286.14 | F162: =IF(A162>$B$30,NA(),IF(A162>$A$8,"",OFFSET(InputPriceData!$E$15,CalculationsAndCharts!$A162+$A$11,IF($C$5,8,0),1,1))) -> 283.52 | G162: =IF(A162>$B$30,NA(),IF(A162>$A$8,"",OFFSET(InputPriceData!$F$15,CalculationsAndCharts!$A162+$A$11,IF($C$5,8,0),1,1))) -> 284.07 | H162: =IF($A162>$H$30,NA(),G162-D162) -> -0.07 | I162: =IF($A162>$H$30,NA(),ABS(H162)) -> 0.07 | J162: =IF($A162>$J$30,NA(),MAX(OFFSET(I162,0,0,$A$17,1))) -> 3.74 | K162: =IF($A162>$K$30,NA(),AVERAGE(OFFSET(J162,0,0,$A$18,1))) -> 4.245 | N162: =IF($A162>$N$30,NA(),10*H162) -> -0.7 | O162: =IF($A162>$N$30,NA(),IF(N162<-1,-1,IF(N162>1,1,N162))) -> -0.7 | P162: =IF($A162>$A$8,NA(),IF($A162>$P$30,O162,$E$23*(O162+O163)/2+$E$21*P163+$E$22*P164)) -> -0.1391385822 | AX162: 75250400
A163: 131 | B163: =IF(A163>$B$30,NA(),IF($A163>$A$8,"",OFFSET(InputPriceData!$B$15,$A163+$A$11,0,1,1))) -> 2020-05-06 | C163: =IF(A163>$B$30,NA(),IF($A163>$A$8,"",OFFSET(InputPriceData!$G$15,CalculationsAndCharts!$A163+$A$11,IF($C$5,8,0),1,1))) -> 73632600 | D163: =IF(A163>$B$30,NA(),IF(A163>$A$8,"",OFFSET(InputPriceData!$C$15,CalculationsAndCharts!$A163+$A$11,IF($C$5,8,0),1,1))) -> 284.42 | E163: =IF(A163>$B$30,NA(),IF(A163>$A$8,"",OFFSET(InputPriceData!$D$15,CalculationsAndCharts!$A163+$A$11,IF($C$5,8,0),1,1))) -> 284.84 | F163: =IF(A163>$B$30,NA(),IF(A163>$A$8,"",OFFSET(InputPriceData!$E$15,CalculationsAndCharts!$A163+$A$11,IF($C$5,8,0),1,1))) -> 280.22 | G163: =IF(A163>$B$30,NA(),IF(A163>$A$8,"",OFFSET(InputPriceData!$F$15,CalculationsAndCharts!$A163+$A$11,IF($C$5,8,0),1,1))) -> 280.68 | H163: -3.74 | I163: 3.74 | J163: 3.74 | K163: 4.055 | N163: =IF($A163>$N$30,NA(),10*H163) -> -37.4 | O163: =IF($A163>$N$30,NA(),IF(N163<-1,-1,IF(N163>1,1,N163))) -> -1 | P163: -0.0667099156 | AX163: 73632600
A164: 132 | B164: =IF(A164>$B$30,NA(),IF($A164>$A$8,"",OFFSET(InputPriceData!$B$15,$A164+$A$11,0,1,1))) -> 2020-05-05 | C164: =IF(A164>$B$30,NA(),IF($A164>$A$8,"",OFFSET(InputPriceData!$G$15,CalculationsAndCharts!$A164+$A$11,IF($C$5,8,0),1,1))) -> 79569900 | D164: =IF(A164>$B$30,NA(),IF(A164>$A$8,"",OFFSET(InputPriceData!$C$15,CalculationsAndCharts!$A164+$A$11,IF($C$5,8,0),1,1))) -> 283.04 | E164: =IF(A164>$B$30,NA(),IF(A164>$A$8,"",OFFSET(InputPriceData!$D$15,CalculationsAndCharts!$A164+$A$11,IF($C$5,8,0),1,1))) -> 285.62 | F164: =IF(A164>$B$30,NA(),IF(A164>$A$8,"",OFFSET(InputPriceData!$E$15,CalculationsAndCharts!$A164+$A$11,IF($C$5,8,0),1,1))) -> 280.15 | G164: =IF(A164>$B$30,NA(),IF(A164>$A$8,"",OFFSET(InputPriceData!$F$15,CalculationsAndCharts!$A164+$A$11,IF($C$5,8,0),1,1))) -> 282.6 | H164: -0.44 | I164: 0.44 | J164: 2.8 | K164: 4.0425 | N164: =IF($A164>$N$30,NA(),10*H164) -> -4.4 | O164: =IF($A164>$N$30,NA(),IF(N164<-1,-1,IF(N164>1,1,N164))) -> -1 | P164: -0.009147960741 | AX164: 79569900
A165: 133 | B165: =IF(A165>$B$30,NA(),IF($A165>$A$8,"",OFFSET(InputPriceData!$B$15,$A165+$A$11,0,1,1))) -> 2020-05-04 | C165: =IF(A165>$B$30,NA(),IF($A165>$A$8,"",OFFSET(InputPriceData!$G$15,CalculationsAndCharts!$A165+$A$11,IF($C$5,8,0),1,1))) -> 80873200 | D165: =IF(A165>$B$30,NA(),IF(A165>$A$8,"",OFFSET(InputPriceData!$C$15,CalculationsAndCharts!$A165+$A$11,IF($C$5,8,0),1,1))) -> 277.21 | E165: =IF(A165>$B$30,NA(),IF(A165>$A$8,"",OFFSET(InputPriceData!$D$15,CalculationsAndCharts!$A165+$A$11,IF($C$5,8,0),1,1))) -> 280.33 | F165: =IF(A165>$B$30,NA(),IF(A165>$A$8,"",OFFSET(InputPriceData!$E$15,CalculationsAndCharts!$A165+$A$11,IF($C$5,8,0),1,1))) -> 275.62 | G165: =IF(A165>$B$30,NA(),IF(A165>$A$8,"",OFFSET(InputPriceData!$F$15,CalculationsAndCharts!$A165+$A$11,IF($C$5,8,0),1,1))) -> 280.01 | H165: 2.8 | I165: 2.8 | J165: 2.8 | K165: 4.1475 | N165: =IF($A165>$N$30,NA(),10*H165) -> 28 | O165: =IF($A165>$N$30,NA(),IF(N165<-1,-1,IF(N165>1,1,N165))) -> 1 | P165: 0.01786860621 | AW165: 80873200
A166: 134 | B166: =IF(A166>$B$30,NA(),IF($A166>$A$8,"",OFFSET(InputPriceData!$B$15,$A166+$A$11,0,1,1))) -> 2020-05-01 | C166: =IF(A166>$B$30,NA(),IF($A166>$A$8,"",OFFSET(InputPriceData!$G$15,CalculationsAndCharts!$A166+$A$11,IF($C$5,8,0),1,1))) -> 125180000 | D166: =IF(A166>$B$30,NA(),IF(A166>$A$8,"",OFFSET(InputPriceData!$C$15,CalculationsAndCharts!$A166+$A$11,IF($C$5,8,0),1,1))) -> 281.73 | E166: =IF(A166>$B$30,NA(),IF(A166>$A$8,"",OFFSET(InputPriceData!$D$15,CalculationsAndCharts!$A166+$A$11,IF($C$5,8,0),1,1))) -> 287.01 | F166: =IF(A166>$B$30,NA(),IF(A166>$A$8,"",OFFSET(InputPriceData!$E$15,CalculationsAndCharts!$A166+$A$11,IF($C$5,8,0),1,1))) -> 277.98 | G166: =IF(A166>$B$30,NA(),IF(A166>$A$8,"",OFFSET(InputPriceData!$F$15,CalculationsAndCharts!$A166+$A$11,IF($C$5,8,0),1,1))) -> 279.24 | H166: -2.49 | I166: 2.49 | J166: 5.22 | K166: 4.2525 | N166: =IF($A166>$N$30,NA(),10*H166) -> -24.9 | O166: =IF($A166>$N$30,NA(),IF(N166<-1,-1,IF(N166>1,1,N166))) -> -1 | P166: 0.05328829738 | AX166: 125180000
A167: 135 | B167: =IF(A167>$B$30,NA(),IF($A167>$A$8,"",OFFSET(InputPriceData!$B$15,$A167+$A$11,0,1,1))) -> 2020-04-30 | C167: =IF(A167>$B$30,NA(),IF($A167>$A$8,"",OFFSET(InputPriceData!$G$15,CalculationsAndCharts!$A167+$A$11,IF($C$5,8,0),1,1))) -> 122901700 | D167: =IF(A167>$B$30,NA(),IF(A167>$A$8,"",OFFSET(InputPriceData!$C$15,CalculationsAndCharts!$A167+$A$11,IF($C$5,8,0),1,1))) -> 288.05 | E167: =IF(A167>$B$30,NA(),IF(A167>$A$8,"",OFFSET(InputPriceData!$D$15,CalculationsAndCharts!$A167+$A$11,IF($C$5,8,0),1,1))) -> 289.64 | F167: =IF(A167>$B$30,NA(),IF(A167>$A$8,"",OFFSET(InputPriceData!$E$15,CalculationsAndCharts!$A167+$A$11,IF($C$5,8,0),1,1))) -> 284.97 | G167: =IF(A167>$B$30,NA(),IF(A167>$A$8,"",OFFSET(InputPriceData!$F$15,CalculationsAndCharts!$A167+$A$11,IF($C$5,8,0),1,1))) -> 286.83 | H167: -1.22 | I167: 1.22 | J167: 5.22 | K167: 4.055 | N167: =IF($A167>$N$30,NA(),10*H167) -> -12.2 | O167: =IF($A167>$N$30,NA(),IF(N167<-1,-1,IF(N167>1,1,N167))) -> -1 | P167: 0.09820629848 | AX167: 122901700
A168: 136 | B168: =IF(A168>$B$30,NA(),IF($A168>$A$8,"",OFFSET(InputPriceData!$B$15,$A168+$A$11,0,1,1))) -> 2020-04-29 | C168: =IF(A168>$B$30,NA(),IF($A168>$A$8,"",OFFSET(InputPriceData!$G$15,CalculationsAndCharts!$A168+$A$11,IF($C$5,8,0),1,1))) -> 118745600 | D168: =IF(A168>$B$30,NA(),IF(A168>$A$8,"",OFFSET(InputPriceData!$C$15,CalculationsAndCharts!$A168+$A$11,IF($C$5,8,0),1,1))) -> 287.87 | E168: =IF(A168>$B$30,NA(),IF(A168>$A$8,"",OFFSET(InputPriceData!$D$15,CalculationsAndCharts!$A168+$A$11,IF($C$5,8,0),1,1))) -> 291.18 | F168: =IF(A168>$B$30,NA(),IF(A168>$A$8,"",OFFSET(InputPriceData!$E$15,CalculationsAndCharts!$A168+$A$11,IF($C$5,8,0),1,1))) -> 286.76 | G168: =IF(A168>$B$30,NA(),IF(A168>$A$8,"",OFFSET(InputPriceData!$F$15,CalculationsAndCharts!$A168+$A$11,IF($C$5,8,0),1,1))) -> 289.53 | H168: 1.66 | I168: 1.66 | J168: 5.22 | K168: 3.5575 | N168: =IF($A168>$N$30,NA(),10*H168) -> 16.6 | O168: =IF($A168>$N$30,NA(),IF(N168<-1,-1,IF(N168>1,1,N168))) -> 1 | P168: 0.1027619442 | AW168: 118745600
A169: 137 | B169: =IF(A169>$B$30,NA(),IF($A169>$A$8,"",OFFSET(InputPriceData!$B$15,$A169+$A$11,0,1,1))) -> 2020-04-28 | C169: =IF(A169>$B$30,NA(),IF($A169>$A$8,"",OFFSET(InputPriceData!$G$15,CalculationsAndCharts!$A169+$A$11,IF($C$5,8,0),1,1))) -> 105270000 | D169: =IF(A169>$B$30,NA(),IF(A169>$A$8,"",OFFSET(InputPriceData!$C$15,CalculationsAndCharts!$A169+$A$11,IF($C$5,8,0),1,1))) -> 287.36 | E169: =IF(A169>$B$30,NA(),IF(A169>$A$8,"",OFFSET(InputPriceData!$D$15,CalculationsAndCharts!$A169+$A$11,IF($C$5,8,0),1,1))) -> 287.74 | F169: =IF(A169>$B$30,NA(),IF(A169>$A$8,"",OFFSET(InputPriceData!$E$15,CalculationsAndCharts!$A169+$A$11,IF($C$5,8,0),1,1))) -> 281.82 | G169: =IF(A169>$B$30,NA(),IF(A169>$A$8,"",OFFSET(InputPriceData!$F$15,CalculationsAndCharts!$A169+$A$11,IF($C$5,8,0),1,1))) -> 282.14 | H169: -5.22 | I169: 5.22 | J169: 5.22 | K169: 3.2525 | N169: =IF($A169>$N$30,NA(),10*H169) -> -52.2 | O169: =IF($A169>$N$30,NA(),IF(N169<-1,-1,IF(N169>1,1,N169))) -> -1 | P169: 0.1036622964 | AX169: 105270000
A170: 138 | B170: =IF(A170>$B$30,NA(),IF($A170>$A$8,"",OFFSET(InputPriceData!$B$15,$A170+$A$11,0,1,1))) -> 2020-04-27 | C170: =IF(A170>$B$30,NA(),IF($A170>$A$8,"",OFFSET(InputPriceData!$G$15,CalculationsAndCharts!$A170+$A$11,IF($C$5,8,0),1,1))) -> 77896600 | D170: =IF(A170>$B$30,NA(),IF(A170>$A$8,"",OFFSET(InputPriceData!$C$15,CalculationsAndCharts!$A170+$A$11,IF($C$5,8,0),1,1))) -> 281.54 | E170: =IF(A170>$B$30,NA(),IF(A170>$A$8,"",OFFSET(InputPriceData!$D$15,CalculationsAndCharts!$A170+$A$11,IF($C$5,8,0),1,1))) -> 284.65 | F170: =IF(A170>$B$30,NA(),IF(A170>$A$8,"",OFFSET(InputPriceData!$E$15,CalculationsAndCharts!$A170+$A$11,IF($C$5,8,0),1,1))) -> 281.05 | G170: =IF(A170>$B$30,NA(),IF(A170>$A$8,"",OFFSET(InputPriceData!$F$15,CalculationsAndCharts!$A170+$A$11,IF($C$5,8,0),1,1))) -> 283.44 | H170: 1.9 | I170: 1.9 | J170: 2.22 | K170: 2.9475 | N170: =IF($A170>$N$30,NA(),10*H170) -> 19 | O170: =IF($A170>$N$30,NA(),IF(N170<-1,-1,IF(N170>1,1,N170))) -> 1 | P170: 0.09960170885 | AW170: 77896600
A171: 139 | B171: =IF(A171>$B$30,NA(),IF($A171>$A$8,"",OFFSET(InputPriceData!$B$15,$A171+$A$11,0,1,1))) -> 2020-04-24 | C171: =IF(A171>$B$30,NA(),IF($A171>$A$8,"",OFFSET(InputPriceData!$G$15,CalculationsAndCharts!$A171+$A$11,IF($C$5,8,0),1,1))) -> 85166000 | D171: =IF(A171>$B$30,NA(),IF(A171>$A$8,"",OFFSET(InputPriceData!$C$15,CalculationsAndCharts!$A171+$A$11,IF($C$5,8,0),1,1))) -> 277.2 | E171: =IF(A171>$B$30,NA(),IF(A171>$A$8,"",OFFSET(InputPriceData!$D$15,CalculationsAndCharts!$A171+$A$11,IF($C$5,8,0),1,1))) -> 280.14 | F171: =IF(A171>$B$30,NA(),IF(A171>$A$8,"",OFFSET(InputPriceData!$E$15,CalculationsAndCharts!$A171+$A$11,IF($C$5,8,0),1,1))) -> 275 | G171: =IF(A171>$B$30,NA(),IF(A171>$A$8,"",OFFSET(InputPriceData!$F$15,CalculationsAndCharts!$A171+$A$11,IF($C$5,8,0),1,1))) -> 279.42 | H171: 2.22 | I171: 2.22 | J171: 3.64 | K171: 3.0175 | N171: =IF($A171>$N$30,NA(),10*H171) -> 22.2 | O171: =IF($A171>$N$30,NA(),IF(N171<-1,-1,IF(N171>1,1,N171))) -> 1 | P171: 0.08907678611 | AW171: 85166000
A172: 140 | B172: =IF(A172>$B$30,NA(),IF($A172>$A$8,"",OFFSET(InputPriceData!$B$15,$A172+$A$11,0,1,1))) -> 2020-04-23 | C172: =IF(A172>$B$30,NA(),IF($A172>$A$8,"",OFFSET(InputPriceData!$G$15,CalculationsAndCharts!$A172+$A$11,IF($C$5,8,0),1,1))) -> 104709700 | D172: =IF(A172>$B$30,NA(),IF(A172>$A$8,"",OFFSET(InputPriceData!$C$15,CalculationsAndCharts!$A172+$A$11,IF($C$5,8,0),1,1))) -> 276.97 | E172: =IF(A172>$B$30,NA(),IF(A172>$A$8,"",OFFSET(InputPriceData!$D$15,CalculationsAndCharts!$A172+$A$11,IF($C$5,8,0),1,1))) -> 280.37 | F172: =IF(A172>$B$30,NA(),IF(A172>$A$8,"",OFFSET(InputPriceData!$E$15,CalculationsAndCharts!$A172+$A$11,IF($C$5,8,0),1,1))) -> 275.25 | G172: =IF(A172>$B$30,NA(),IF(A172>$A$8,"",OFFSET(InputPriceData!$F$15,CalculationsAndCharts!$A172+$A$11,IF($C$5,8,0),1,1))) -> 275.57 | H172: -1.4 | I172: 1.4 | J172: 3.64 | K172: 3.3125 | N172: =IF($A172>$N$30,NA(),10*H172) -> -14 | O172: =IF($A172>$N$30,NA(),IF(N172<-1,-1,IF(N172>1,1,N172))) -> -1 | P172: 0.1212450083 | AX172: 104709700
A173: 141 | B173: =IF(A173>$B$30,NA(),IF($A173>$A$8,"",OFFSET(InputPriceData!$B$15,$A173+$A$11,0,1,1))) -> 2020-04-22 | C173: =IF(A173>$B$30,NA(),IF($A173>$A$8,"",OFFSET(InputPriceData!$G$15,CalculationsAndCharts!$A173+$A$11,IF($C$5,8,0),1,1))) -> 93524600 | D173: =IF(A173>$B$30,NA(),IF(A173>$A$8,"",OFFSET(InputPriceData!$C$15,CalculationsAndCharts!$A173+$A$11,IF($C$5,8,0),1,1))) -> 274.85 | E173: =IF(A173>$B$30,NA(),IF(A173>$A$8,"",OFFSET(InputPriceData!$D$15,CalculationsAndCharts!$A173+$A$11,IF($C$5,8,0),1,1))) -> 277.47 | F173: =IF(A173>$B$30,NA(),IF(A173>$A$8,"",OFFSET(InputPriceData!$E$15,CalculationsAndCharts!$A173+$A$11,IF($C$5,8,0),1,1))) -> 273.43 | G173: =IF(A173>$B$30,NA(),IF(A173>$A$8,"",OFFSET(InputPriceData!$F$15,CalculationsAndCharts!$A173+$A$11,IF($C$5,8,0),1,1))) -> 275.59 | H173: 0.74 | I173: 0.74 | J173: 3.64 | K173: 3.97875 | N173: =IF($A173>$N$30,NA(),10*H173) -> 7.4 | O173: =IF($A173>$N$30,NA(),IF(N173<-1,-1,IF(N173>1,1,N173))) -> 1 | P173: 0.1583352413 | AW173: 93524600
A174: 142 | B174: =IF(A174>$B$30,NA(),IF($A174>$A$8,"",OFFSET(InputPriceData!$B$15,$A174+$A$11,0,1,1))) -> 2020-04-21 | C174: =IF(A174>$B$30,NA(),IF($A174>$A$8,"",OFFSET(InputPriceData!$G$15,CalculationsAndCharts!$A174+$A$11,IF($C$5,8,0),1,1))) -> 126385700 | D174: =IF(A174>$B$30,NA(),IF(A174>$A$8,"",OFFSET(InputPriceData!$C$15,CalculationsAndCharts!$A174+$A$11,IF($C$5,8,0),1,1))) -> 273.25 | E174: =IF(A174>$B$30,NA(),IF(A174>$A$8,"",OFFSET(InputPriceData!$D$15,CalculationsAndCharts!$A174+$A$11,IF($C$5,8,0),1,1))) -> 274.55 | F174: =IF(A174>$B$30,NA(),IF(A174>$A$8,"",OFFSET(InputPriceData!$E$15,CalculationsAndCharts!$A174+$A$11,IF($C$5,8,0),1,1))) -> 268.6 | G174: =IF(A174>$B$30,NA(),IF(A174>$A$8,"",OFFSET(InputPriceData!$F$15,CalculationsAndCharts!$A174+$A$11,IF($C$5,8,0),1,1))) -> 269.61 | H174: -3.64 | I174: 3.64 | J174: 3.64 | K174: 4.645 | N174: =IF($A174>$N$30,NA(),10*H174) -> -36.4 | O174: =IF($A174>$N$30,NA(),IF(N174<-1,-1,IF(N174>1,1,N174))) -> -1 | P174: 0.2001578945 | AX174: 126385700
A175: 143 | B175: =IF(A175>$B$30,NA(),IF($A175>$A$8,"",OFFSET(InputPriceData!$B$15,$A175+$A$11,0,1,1))) -> 2020-04-20 | C175: =IF(A175>$B$30,NA(),IF($A175>$A$8,"",OFFSET(InputPriceData!$G$15,CalculationsAndCharts!$A175+$A$11,IF($C$5,8,0),1,1))) -> 100109300 | D175: =IF(A175>$B$30,NA(),IF(A175>$A$8,"",OFFSET(InputPriceData!$C$15,CalculationsAndCharts!$A175+$A$11,IF($C$5,8,0),1,1))) -> 279.06 | E175: =IF(A175>$B$30,NA(),IF(A175>$A$8,"",OFFSET(InputPriceData!$D$15,CalculationsAndCharts!$A175+$A$11,IF($C$5,8,0),1,1))) -> 283.19 | F175: =IF(A175>$B$30,NA(),IF(A175>$A$8,"",OFFSET(InputPriceData!$E$15,CalculationsAndCharts!$A175+$A$11,IF($C$5,8,0),1,1))) -> 277.82 | G175: =IF(A175>$B$30,NA(),IF(A175>$A$8,"",OFFSET(InputPriceData!$F$15,CalculationsAndCharts!$A175+$A$11,IF($C$5,8,0),1,1))) -> 278.05 | H175: -1.01 | I175: 1.01 | J175: 1.24 | K175: 5.31125 | N175: =IF($A175>$N$30,NA(),10*H175) -> -10.1 | O175: =IF($A175>$N$30,NA(),IF(N175<-1,-1,IF(N175>1,1,N175))) -> -1 | P175: 0.2462173863 | AX175: 100109300
A176: 144 | B176: =IF(A176>$B$30,NA(),IF($A176>$A$8,"",OFFSET(InputPriceData!$B$15,$A176+$A$11,0,1,1))) -> 2020-04-17 | C176: =IF(A176>$B$30,NA(),IF($A176>$A$8,"",OFFSET(InputPriceData!$G$15,CalculationsAndCharts!$A176+$A$11,IF($C$5,8,0),1,1))) -> 146684800 | D176: =IF(A176>$B$30,NA(),IF(A176>$A$8,"",OFFSET(InputPriceData!$C$15,CalculationsAndCharts!$A176+$A$11,IF($C$5,8,0),1,1))) -> 281.8 | E176: =IF(A176>$B$30,NA(),IF(A176>$A$8,"",OFFSET(InputPriceData!$D$15,CalculationsAndCharts!$A176+$A$11,IF($C$5,8,0),1,1))) -> 283.69 | F176: =IF(A176>$B$30,NA(),IF(A176>$A$8,"",OFFSET(InputPriceData!$E$15,CalculationsAndCharts!$A176+$A$11,IF($C$5,8,0),1,1))) -> 278.85 | G176: =IF(A176>$B$30,NA(),IF(A176>$A$8,"",OFFSET(InputPriceData!$F$15,CalculationsAndCharts!$A176+$A$11,IF($C$5,8,0),1,1))) -> 283.04 | H176: 1.24 | I176: 1.24 | J176: 2.78 | K176: 6.2775 | N176: =IF($A176>$N$30,NA(),10*H176) -> 12.4 | O176: =IF($A176>$N$30,NA(),IF(N176<-1,-1,IF(N176>1,1,N176))) -> 1 | P176: 0.2447815448 | AW176: 146684800
A177: 145 | B177: =IF(A177>$B$30,NA(),IF($A177>$A$8,"",OFFSET(InputPriceData!$B$15,$A177+$A$11,0,1,1))) -> 2020-04-16 | C177: =IF(A177>$B$30,NA(),IF($A177>$A$8,"",OFFSET(InputPriceData!$G$15,CalculationsAndCharts!$A177+$A$11,IF($C$5,8,0),1,1))) -> 131798300 | D177: =IF(A177>$B$30,NA(),IF(A177>$A$8,"",OFFSET(InputPriceData!$C$15,CalculationsAndCharts!$A177+$A$11,IF($C$5,8,0),1,1))) -> 275.64 | E177: =IF(A177>$B$30,NA(),IF(A177>$A$8,"",OFFSET(InputPriceData!$D$15,CalculationsAndCharts!$A177+$A$11,IF($C$5,8,0),1,1))) -> 276.51 | F177: =IF(A177>$B$30,NA(),IF(A177>$A$8,"",OFFSET(InputPriceData!$E$15,CalculationsAndCharts!$A177+$A$11,IF($C$5,8,0),1,1))) -> 272.3 | G177: =IF(A177>$B$30,NA(),IF(A177>$A$8,"",OFFSET(InputPriceData!$F$15,CalculationsAndCharts!$A177+$A$11,IF($C$5,8,0),1,1))) -> 275.59 | H177: -0.05 | I177: 0.05 | J177: 2.78 | K177: 6.79625 | N177: =IF($A177>$N$30,NA(),10*H177) -> -0.5 | O177: =IF($A177>$N$30,NA(),IF(N177<-1,-1,IF(N177>1,1,N177))) -> -0.5 | P177: 0.2304035911 | AX177: 131798300
A178: 146 | B178: =IF(A178>$B$30,NA(),IF($A178>$A$8,"",OFFSET(InputPriceData!$B$15,$A178+$A$11,0,1,1))) -> 2020-04-15 | C178: =IF(A178>$B$30,NA(),IF($A178>$A$8,"",OFFSET(InputPriceData!$G$15,CalculationsAndCharts!$A178+$A$11,IF($C$5,8,0),1,1))) -> 121775000 | D178: =IF(A178>$B$30,NA(),IF(A178>$A$8,"",OFFSET(InputPriceData!$C$15,CalculationsAndCharts!$A178+$A$11,IF($C$5,8,0),1,1))) -> 274.08 | E178: =IF(A178>$B$30,NA(),IF(A178>$A$8,"",OFFSET(InputPriceData!$D$15,CalculationsAndCharts!$A178+$A$11,IF($C$5,8,0),1,1))) -> 280.37 | F178: =IF(A178>$B$30,NA(),IF(A178>$A$8,"",OFFSET(InputPriceData!$E$15,CalculationsAndCharts!$A178+$A$11,IF($C$5,8,0),1,1))) -> 272 | G178: =IF(A178>$B$30,NA(),IF(A178>$A$8,"",OFFSET(InputPriceData!$F$15,CalculationsAndCharts!$A178+$A$11,IF($C$5,8,0),1,1))) -> 274.27 | H178: 0.19 | I178: 0.19 | J178: 2.78 | K178: 7.26875 | N178: =IF($A178>$N$30,NA(),10*H178) -> 1.9 | O178: =IF($A178>$N$30,NA(),IF(N178<-1,-1,IF(N178>1,1,N178))) -> 1 | P178: 0.2120664994 | AW178: 121775000
A179: 147 | B179: =IF(A179>$B$30,NA(),IF($A179>$A$8,"",OFFSET(InputPriceData!$B$15,$A179+$A$11,0,1,1))) -> 2020-04-14 | C179: =IF(A179>$B$30,NA(),IF($A179>$A$8,"",OFFSET(InputPriceData!$G$15,CalculationsAndCharts!$A179+$A$11,IF($C$5,8,0),1,1))) -> 134143400 | D179: =IF(A179>$B$30,NA(),IF(A179>$A$8,"",OFFSET(InputPriceData!$C$15,CalculationsAndCharts!$A179+$A$11,IF($C$5,8,0),1,1))) -> 277.45 | E179: =IF(A179>$B$30,NA(),IF(A179>$A$8,"",OFFSET(InputPriceData!$D$15,CalculationsAndCharts!$A179+$A$11,IF($C$5,8,0),1,1))) -> 281.32 | F179: =IF(A179>$B$30,NA(),IF(A179>$A$8,"",OFFSET(InputPriceData!$E$15,CalculationsAndCharts!$A179+$A$11,IF($C$5,8,0),1,1))) -> 272.05 | G179: =IF(A179>$B$30,NA(),IF(A179>$A$8,"",OFFSET(InputPriceData!$F$15,CalculationsAndCharts!$A179+$A$11,IF($C$5,8,0),1,1))) -> 280.23 | H179: 2.78 | I179: 2.78 | J179: 6 | K179: 7.74125 | N179: =IF($A179>$N$30,NA(),10*H179) -> 27.8 | O179: =IF($A179>$N$30,NA(),IF(N179<-1,-1,IF(N179>1,1,N179))) -> 1 | P179: 0.1893381282 | AW179: 134143400
A180: 148 | B180: =IF(A180>$B$30,NA(),IF($A180>$A$8,"",OFFSET(InputPriceData!$B$15,$A180+$A$11,0,1,1))) -> 2020-04-13 | C180: =IF(A180>$B$30,NA(),IF($A180>$A$8,"",OFFSET(InputPriceData!$G$15,CalculationsAndCharts!$A180+$A$11,IF($C$5,8,0),1,1))) -> 114839100 | D180: =IF(A180>$B$30,NA(),IF(A180>$A$8,"",OFFSET(InputPriceData!$C$15,CalculationsAndCharts!$A180+$A$11,IF($C$5,8,0),1,1))) -> 273.66 | E180: =IF(A180>$B$30,NA(),IF(A180>$A$8,"",OFFSET(InputPriceData!$D$15,CalculationsAndCharts!$A180+$A$11,IF($C$5,8,0),1,1))) -> 274.02 | F180: =IF(A180>$B$30,NA(),IF(A180>$A$8,"",OFFSET(InputPriceData!$E$15,CalculationsAndCharts!$A180+$A$11,IF($C$5,8,0),1,1))) -> 268 | G180: =IF(A180>$B$30,NA(),IF(A180>$A$8,"",OFFSET(InputPriceData!$F$15,CalculationsAndCharts!$A180+$A$11,IF($C$5,8,0),1,1))) -> 272.2 | H180: -1.46 | I180: 1.46 | J180: 8.97 | K180: 7.725 | N180: =IF($A180>$N$30,NA(),10*H180) -> -14.6 | O180: =IF($A180>$N$30,NA(),IF(N180<-1,-1,IF(N180>1,1,N180))) -> -1 | P180: 0.1999984399 | AX180: 114839100
A181: 149 | B181: =IF(A181>$B$30,NA(),IF($A181>$A$8,"",OFFSET(InputPriceData!$B$15,$A181+$A$11,0,1,1))) -> 2020-04-09 | C181: =IF(A181>$B$30,NA(),IF($A181>$A$8,"",OFFSET(InputPriceData!$G$15,CalculationsAndCharts!$A181+$A$11,IF($C$5,8,0),1,1))) -> 190282700 | D181: =IF(A181>$B$30,NA(),IF(A181>$A$8,"",OFFSET(InputPriceData!$C$15,CalculationsAndCharts!$A181+$A$11,IF($C$5,8,0),1,1))) -> 274.09 | E181: =IF(A181>$B$30,NA(),IF(A181>$A$8,"",OFFSET(InputPriceData!$D$15,CalculationsAndCharts!$A181+$A$11,IF($C$5,8,0),1,1))) -> 277.67 | F181: =IF(A181>$B$30,NA(),IF(A181>$A$8,"",OFFSET(InputPriceData!$E$15,CalculationsAndCharts!$A181+$A$11,IF($C$5,8,0),1,1))) -> 272.01 | G181: =IF(A181>$B$30,NA(),IF(A181>$A$8,"",OFFSET(InputPriceData!$F$15,CalculationsAndCharts!$A181+$A$11,IF($C$5,8,0),1,1))) -> 274.71 | H181: 0.62 | I181: 0.62 | J181: 8.97 | K181: 8.045 | N181: =IF($A181>$N$30,NA(),10*H181) -> 6.2 | O181: =IF($A181>$N$30,NA(),IF(N181<-1,-1,IF(N181>1,1,N181))) -> 1 | P181: 0.2041630333 | AW181: 190282700
A182: 150 | B182: =IF(A182>$B$30,NA(),IF($A182>$A$8,"",OFFSET(InputPriceData!$B$15,$A182+$A$11,0,1,1))) -> 2020-04-08 | C182: =IF(A182>$B$30,NA(),IF($A182>$A$8,"",OFFSET(InputPriceData!$G$15,CalculationsAndCharts!$A182+$A$11,IF($C$5,8,0),1,1))) -> 153774500 | D182: =IF(A182>$B$30,NA(),IF(A182>$A$8,"",OFFSET(InputPriceData!$C$15,CalculationsAndCharts!$A182+$A$11,IF($C$5,8,0),1,1))) -> 264.59 | E182: =IF(A182>$B$30,NA(),IF(A182>$A$8,"",OFFSET(InputPriceData!$D$15,CalculationsAndCharts!$A182+$A$11,IF($C$5,8,0),1,1))) -> 272.53 | F182: =IF(A182>$B$30,NA(),IF(A182>$A$8,"",OFFSET(InputPriceData!$E$15,CalculationsAndCharts!$A182+$A$11,IF($C$5,8,0),1,1))) -> 261.92 | G182: =IF(A182>$B$30,NA(),IF(A182>$A$8,"",OFFSET(InputPriceData!$F$15,CalculationsAndCharts!$A182+$A$11,IF($C$5,8,0),1,1))) -> 270.59 | H182: 6 | I182: 6 | J182: 8.97 | K182: 8.365 | N182: =IF($A182>$N$30,NA(),10*H182) -> 60 | O182: =IF($A182>$N$30,NA(),IF(N182<-1,-1,IF(N182>1,1,N182))) -> 1 | P182: 0.1993812708 | AW182: 153774500
A183: 151 | B183: =IF(A183>$B$30,NA(),IF($A183>$A$8,"",OFFSET(InputPriceData!$B$15,$A183+$A$11,0,1,1))) -> 2020-04-07 | C183: =IF(A183>$B$30,NA(),IF($A183>$A$8,"",OFFSET(InputPriceData!$G$15,CalculationsAndCharts!$A183+$A$11,IF($C$5,8,0),1,1))) -> 201427200 | D183: =IF(A183>$B$30,NA(),IF(A183>$A$8,"",OFFSET(InputPriceData!$C$15,CalculationsAndCharts!$A183+$A$11,IF($C$5,8,0),1,1))) -> 270.77 | E183: =IF(A183>$B$30,NA(),IF(A183>$A$8,"",OFFSET(InputPriceData!$D$15,CalculationsAndCharts!$A183+$A$11,IF($C$5,8,0),1,1))) -> 271.58 | F183: =IF(A183>$B$30,NA(),IF(A183>$A$8,"",OFFSET(InputPriceData!$E$15,CalculationsAndCharts!$A183+$A$11,IF($C$5,8,0),1,1))) -> 261.56 | G183: =IF(A183>$B$30,NA(),IF(A183>$A$8,"",OFFSET(InputPriceData!$F$15,CalculationsAndCharts!$A183+$A$11,IF($C$5,8,0),1,1))) -> 261.8 | H183: -8.97 | I183: 8.97 | J183: 8.97 | K183: 8.685 | N183: =IF($A183>$N$30,NA(),10*H183) -> -89.7 | O183: =IF($A183>$N$30,NA(),IF(N183<-1,-1,IF(N183>1,1,N183))) -> -1 | P183: 0.2336631173 | AX183: 201427200
A184: 152 | B184: =IF(A184>$B$30,NA(),IF($A184>$A$8,"",OFFSET(InputPriceData!$B$15,$A184+$A$11,0,1,1))) -> 2020-04-06 | C184: =IF(A184>$B$30,NA(),IF($A184>$A$8,"",OFFSET(InputPriceData!$G$15,CalculationsAndCharts!$A184+$A$11,IF($C$5,8,0),1,1))) -> 188061200 | D184: =IF(A184>$B$30,NA(),IF(A184>$A$8,"",OFFSET(InputPriceData!$C$15,CalculationsAndCharts!$A184+$A$11,IF($C$5,8,0),1,1))) -> 254.6 | E184: =IF(A184>$B$30,NA(),IF(A184>$A$8,"",OFFSET(InputPriceData!$D$15,CalculationsAndCharts!$A184+$A$11,IF($C$5,8,0),1,1))) -> 263.65 | F184: =IF(A184>$B$30,NA(),IF(A184>$A$8,"",OFFSET(InputPriceData!$E$15,CalculationsAndCharts!$A184+$A$11,IF($C$5,8,0),1,1))) -> 245.05 | G184: =IF(A184>$B$30,NA(),IF(A184>$A$8,"",OFFSET(InputPriceData!$F$15,CalculationsAndCharts!$A184+$A$11,IF($C$5,8,0),1,1))) -> 261.53 | H184: 6.93 | I184: 6.93 | J184: 6.93 | K184: 9.005 | N184: =IF($A184>$N$30,NA(),10*H184) -> 69.3 | O184: =IF($A184>$N$30,NA(),IF(N184<-1,-1,IF(N184>1,1,N184))) -> 1 | P184: 0.2678789752 | AW184: 188061200
A185: 153 | B185: =IF(A185>$B$30,NA(),IF($A185>$A$8,"",OFFSET(InputPriceData!$B$15,$A185+$A$11,0,1,1))) -> 2020-04-03 | C185: =IF(A185>$B$30,NA(),IF($A185>$A$8,"",OFFSET(InputPriceData!$G$15,CalculationsAndCharts!$A185+$A$11,IF($C$5,8,0),1,1))) -> 135561200 | D185: =IF(A185>$B$30,NA(),IF(A185>$A$8,"",OFFSET(InputPriceData!$C$15,CalculationsAndCharts!$A185+$A$11,IF($C$5,8,0),1,1))) -> 247.61 | E185: =IF(A185>$B$30,NA(),IF(A185>$A$8,"",OFFSET(InputPriceData!$D$15,CalculationsAndCharts!$A185+$A$11,IF($C$5,8,0),1,1))) -> 250.14 | F185: =IF(A185>$B$30,NA(),IF(A185>$A$8,"",OFFSET(InputPriceData!$E$15,CalculationsAndCharts!$A185+$A$11,IF($C$5,8,0),1,1))) -> 242.14 | G185: =IF(A185>$B$30,NA(),IF(A185>$A$8,"",OFFSET(InputPriceData!$F$15,CalculationsAndCharts!$A185+$A$11,IF($C$5,8,0),1,1))) -> 245.07 | H185: -2.54 | I185: 2.54 | J185: 6.56 | K185: 9.8325 | N185: =IF($A185>$N$30,NA(),10*H185) -> -25.4 | O185: =IF($A185>$N$30,NA(),IF(N185<-1,-1,IF(N185>1,1,N185))) -> -1 | P185: 0.3002662123 | AX185: 135561200
A186: 154 | B186: =IF(A186>$B$30,NA(),IF($A186>$A$8,"",OFFSET(InputPriceData!$B$15,$A186+$A$11,0,1,1))) -> 2020-04-02 | C186: =IF(A186>$B$30,NA(),IF($A186>$A$8,"",OFFSET(InputPriceData!$G$15,CalculationsAndCharts!$A186+$A$11,IF($C$5,8,0),1,1))) -> 177660400 | D186: =IF(A186>$B$30,NA(),IF(A186>$A$8,"",OFFSET(InputPriceData!$C$15,CalculationsAndCharts!$A186+$A$11,IF($C$5,8,0),1,1))) -> 242.11 | E186: =IF(A186>$B$30,NA(),IF(A186>$A$8,"",OFFSET(InputPriceData!$D$15,CalculationsAndCharts!$A186+$A$11,IF($C$5,8,0),1,1))) -> 249.51 | F186: =IF(A186>$B$30,NA(),IF(A186>$A$8,"",OFFSET(InputPriceData!$E$15,CalculationsAndCharts!$A186+$A$11,IF($C$5,8,0),1,1))) -> 241.52 | G186: =IF(A186>$B$30,NA(),IF(A186>$A$8,"",OFFSET(InputPriceData!$F$15,CalculationsAndCharts!$A186+$A$11,IF($C$5,8,0),1,1))) -> 248.67 | H186: 6.56 | I186: 6.56 | J186: 6.56 | K186: 10.70625 | N186: =IF($A186>$N$30,NA(),10*H186) -> 65.6 | O186: =IF($A186>$N$30,NA(),IF(N186<-1,-1,IF(N186>1,1,N186))) -> 1 | P186: 0.3285476596 | AW186: 177660400
A187: 155 | B187: =IF(A187>$B$30,NA(),IF($A187>$A$8,"",OFFSET(InputPriceData!$B$15,$A187+$A$11,0,1,1))) -> 2020-04-01 | C187: =IF(A187>$B$30,NA(),IF($A187>$A$8,"",OFFSET(InputPriceData!$G$15,CalculationsAndCharts!$A187+$A$11,IF($C$5,8,0),1,1))) -> 189554600 | D187: =IF(A187>$B$30,NA(),IF(A187>$A$8,"",OFFSET(InputPriceData!$C$15,CalculationsAndCharts!$A187+$A$11,IF($C$5,8,0),1,1))) -> 244.87 | E187: =IF(A187>$B$30,NA(),IF(A187>$A$8,"",OFFSET(InputPriceData!$D$15,CalculationsAndCharts!$A187+$A$11,IF($C$5,8,0),1,1))) -> 254.42 | F187: =IF(A187>$B$30,NA(),IF(A187>$A$8,"",OFFSET(InputPriceData!$E$15,CalculationsAndCharts!$A187+$A$11,IF($C$5,8,0),1,1))) -> 240.84 | G187: =IF(A187>$B$30,NA(),IF(A187>$A$8,"",OFFSET(InputPriceData!$F$15,CalculationsAndCharts!$A187+$A$11,IF($C$5,8,0),1,1))) -> 243.06 | H187: -1.81 | I187: 1.81 | J187: 5.87 | K187: 11.58 | N187: =IF($A187>$N$30,NA(),10*H187) -> -18.1 | O187: =IF($A187>$N$30,NA(),IF(N187<-1,-1,IF(N187>1,1,N187))) -> -1 | P187: 0.3498700612 | AX187: 189554600
A188: 156 | B188: =IF(A188>$B$30,NA(),IF($A188>$A$8,"",OFFSET(InputPriceData!$B$15,$A188+$A$11,0,1,1))) -> 2020-03-31 | C188: =IF(A188>$B$30,NA(),IF($A188>$A$8,"",OFFSET(InputPriceData!$G$15,CalculationsAndCharts!$A188+$A$11,IF($C$5,8,0),1,1))) -> 194881100 | D188: =IF(A188>$B$30,NA(),IF(A188>$A$8,"",OFFSET(InputPriceData!$C$15,CalculationsAndCharts!$A188+$A$11,IF($C$5,8,0),1,1))) -> 257.29 | E188: =IF(A188>$B$30,NA(),IF(A188>$A$8,"",OFFSET(InputPriceData!$D$15,CalculationsAndCharts!$A188+$A$11,IF($C$5,8,0),1,1))) -> 260.02 | F188: =IF(A188>$B$30,NA(),IF(A188>$A$8,"",OFFSET(InputPriceData!$E$15,CalculationsAndCharts!$A188+$A$11,IF($C$5,8,0),1,1))) -> 253 | G188: =IF(A188>$B$30,NA(),IF(A188>$A$8,"",OFFSET(InputPriceData!$F$15,CalculationsAndCharts!$A188+$A$11,IF($C$5,8,0),1,1))) -> 254.51 | H188: -2.78 | I188: 2.78 | J188: 11.53 | K188: 12.54 | N188: =IF($A188>$N$30,NA(),10*H188) -> -27.8 | O188: =IF($A188>$N$30,NA(),IF(N188<-1,-1,IF(N188>1,1,N188))) -> -1 | P188: 0.3607506049 | AX188: 194881100
A189: 157 | B189: =IF(A189>$B$30,NA(),IF($A189>$A$8,"",OFFSET(InputPriceData!$B$15,$A189+$A$11,0,1,1))) -> 2020-03-30 | C189: =IF(A189>$B$30,NA(),IF($A189>$A$8,"",OFFSET(InputPriceData!$G$15,CalculationsAndCharts!$A189+$A$11,IF($C$5,8,0),1,1))) -> 171369500 | D189: =IF(A189>$B$30,NA(),IF(A189>$A$8,"",OFFSET(InputPriceData!$C$15,CalculationsAndCharts!$A189+$A$11,IF($C$5,8,0),1,1))) -> 252.49 | E189: =IF(A189>$B$30,NA(),IF(A189>$A$8,"",OFFSET(InputPriceData!$D$15,CalculationsAndCharts!$A189+$A$11,IF($C$5,8,0),1,1))) -> 259.13 | F189: =IF(A189>$B$30,NA(),IF(A189>$A$8,"",OFFSET(InputPriceData!$E$15,CalculationsAndCharts!$A189+$A$11,IF($C$5,8,0),1,1))) -> 250.35 | G189: =IF(A189>$B$30,NA(),IF(A189>$A$8,"",OFFSET(InputPriceData!$F$15,CalculationsAndCharts!$A189+$A$11,IF($C$5,8,0),1,1))) -> 258.36 | H189: 5.87 | I189: 5.87 | J189: 11.53 | K189: 12.05125 | N189: =IF($A189>$N$30,NA(),10*H189) -> 58.7 | O189: =IF($A189>$N$30,NA(),IF(N189<-1,-1,IF(N189>1,1,N189))) -> 1 | P189: 0.3061867016 | AW189: 171369500
A190: 158 | B190: =IF(A190>$B$30,NA(),IF($A190>$A$8,"",OFFSET(InputPriceData!$B$15,$A190+$A$11,0,1,1))) -> 2020-03-27 | C190: =IF(A190>$B$30,NA(),IF($A190>$A$8,"",OFFSET(InputPriceData!$G$15,CalculationsAndCharts!$A190+$A$11,IF($C$5,8,0),1,1))) -> 224341200 | D190: =IF(A190>$B$30,NA(),IF(A190>$A$8,"",OFFSET(InputPriceData!$C$15,CalculationsAndCharts!$A190+$A$11,IF($C$5,8,0),1,1))) -> 250.09 | E190: =IF(A190>$B$30,NA(),IF(A190>$A$8,"",OFFSET(InputPriceData!$D$15,CalculationsAndCharts!$A190+$A$11,IF($C$5,8,0),1,1))) -> 257.53 | F190: =IF(A190>$B$30,NA(),IF(A190>$A$8,"",OFFSET(InputPriceData!$E$15,CalculationsAndCharts!$A190+$A$11,IF($C$5,8,0),1,1))) -> 247.9 | G190: =IF(A190>$B$30,NA(),IF(A190>$A$8,"",OFFSET(InputPriceData!$F$15,CalculationsAndCharts!$A190+$A$11,IF($C$5,8,0),1,1))) -> 250.24 | H190: 0.15 | I190: 0.15 | J190: 11.53 | K190: 11.5625 | N190: =IF($A190>$N$30,NA(),10*H190) -> 1.5 | O190: =IF($A190>$N$30,NA(),IF(N190<-1,-1,IF(N190>1,1,N190))) -> 1 | P190: 0.2172466653 | AW190: 224341200
A191: 159 | B191: =IF(A191>$B$30,NA(),IF($A191>$A$8,"",OFFSET(InputPriceData!$B$15,$A191+$A$11,0,1,1))) -> 2020-03-26 | C191: =IF(A191>$B$30,NA(),IF($A191>$A$8,"",OFFSET(InputPriceData!$G$15,CalculationsAndCharts!$A191+$A$11,IF($C$5,8,0),1,1))) -> 257632800 | D191: =IF(A191>$B$30,NA(),IF(A191>$A$8,"",OFFSET(InputPriceData!$C$15,CalculationsAndCharts!$A191+$A$11,IF($C$5,8,0),1,1))) -> 246.39 | E191: =IF(A191>$B$30,NA(),IF(A191>$A$8,"",OFFSET(InputPriceData!$D$15,CalculationsAndCharts!$A191+$A$11,IF($C$5,8,0),1,1))) -> 259.5 | F191: =IF(A191>$B$30,NA(),IF(A191>$A$8,"",OFFSET(InputPriceData!$E$15,CalculationsAndCharts!$A191+$A$11,IF($C$5,8,0),1,1))) -> 245.92 | G191: =IF(A191>$B$30,NA(),IF(A191>$A$8,"",OFFSET(InputPriceData!$F$15,CalculationsAndCharts!$A191+$A$11,IF($C$5,8,0),1,1))) -> 257.92 | H191: 11.53 | I191: 11.53 | J191: 11.53 | K191: 11.09 | N191: =IF($A191>$N$30,NA(),10*H191) -> 115.3 | O191: =IF($A191>$N$30,NA(),IF(N191<-1,-1,IF(N191>1,1,N191))) -> 1 | P191: 0.1374551043 | AW191: 257632800
A192: 160 | B192: =IF(A192>$B$30,NA(),IF($A192>$A$8,"",OFFSET(InputPriceData!$B$15,$A192+$A$11,0,1,1))) -> 2020-03-25 | C192: =IF(A192>$B$30,NA(),IF($A192>$A$8,"",OFFSET(InputPriceData!$G$15,CalculationsAndCharts!$A192+$A$11,IF($C$5,8,0),1,1))) -> 299430300 | D192: =IF(A192>$B$30,NA(),IF(A192>$A$8,"",OFFSET(InputPriceData!$C$15,CalculationsAndCharts!$A192+$A$11,IF($C$5,8,0),1,1))) -> 241.79 | E192: =IF(A192>$B$30,NA(),IF(A192>$A$8,"",OFFSET(InputPriceData!$D$15,CalculationsAndCharts!$A192+$A$11,IF($C$5,8,0),1,1))) -> 253.13 | F192: =IF(A192>$B$30,NA(),IF(A192>$A$8,"",OFFSET(InputPriceData!$E$15,CalculationsAndCharts!$A192+$A$11,IF($C$5,8,0),1,1))) -> 236.74 | G192: =IF(A192>$B$30,NA(),IF(A192>$A$8,"",OFFSET(InputPriceData!$F$15,CalculationsAndCharts!$A192+$A$11,IF($C$5,8,0),1,1))) -> 243.69 | H192: 1.9 | I192: 1.9 | J192: 13.55 | K192: 10.6175 | N192: =IF($A192>$N$30,NA(),10*H192) -> 19 | O192: =IF($A192>$N$30,NA(),IF(N192<-1,-1,IF(N192>1,1,N192))) -> 1 | P192: 0.07402263406 | AW192: 299430300
A193: 161 | B193: =IF(A193>$B$30,NA(),IF($A193>$A$8,"",OFFSET(InputPriceData!$B$15,$A193+$A$11,0,1,1))) -> 2020-03-24 | C193: =IF(A193>$B$30,NA(),IF($A193>$A$8,"",OFFSET(InputPriceData!$G$15,CalculationsAndCharts!$A193+$A$11,IF($C$5,8,0),1,1))) -> 235494500 | D193: =IF(A193>$B$30,NA(),IF(A193>$A$8,"",OFFSET(InputPriceData!$C$15,CalculationsAndCharts!$A193+$A$11,IF($C$5,8,0),1,1))) -> 231.48 | E193: =IF(A193>$B$30,NA(),IF(A193>$A$8,"",OFFSET(InputPriceData!$D$15,CalculationsAndCharts!$A193+$A$11,IF($C$5,8,0),1,1))) -> 241.03 | F193: =IF(A193>$B$30,NA(),IF(A193>$A$8,"",OFFSET(InputPriceData!$E$15,CalculationsAndCharts!$A193+$A$11,IF($C$5,8,0),1,1))) -> 230.86 | G193: =IF(A193>$B$30,NA(),IF(A193>$A$8,"",OFFSET(InputPriceData!$F$15,CalculationsAndCharts!$A193+$A$11,IF($C$5,8,0),1,1))) -> 240.1 | H193: 8.62 | I193: 8.62 | J193: 13.55 | K193: 9.8925 | N193: =IF($A193>$N$30,NA(),10*H193) -> 86.2 | O193: =IF($A193>$N$30,NA(),IF(N193<-1,-1,IF(N193>1,1,N193))) -> 1 | P193: 0.03581327343 | AW193: 235494500
A194: 162 | B194: =IF(A194>$B$30,NA(),IF($A194>$A$8,"",OFFSET(InputPriceData!$B$15,$A194+$A$11,0,1,1))) -> 2020-03-23 | C194: =IF(A194>$B$30,NA(),IF($A194>$A$8,"",OFFSET(InputPriceData!$G$15,CalculationsAndCharts!$A194+$A$11,IF($C$5,8,0),1,1))) -> 326025200 | D194: =IF(A194>$B$30,NA(),IF(A194>$A$8,"",OFFSET(InputPriceData!$C$15,CalculationsAndCharts!$A194+$A$11,IF($C$5,8,0),1,1))) -> 225.32 | E194: =IF(A194>$B$30,NA(),IF(A194>$A$8,"",OFFSET(InputPriceData!$D$15,CalculationsAndCharts!$A194+$A$11,IF($C$5,8,0),1,1))) -> 226.8 | F194: =IF(A194>$B$30,NA(),IF(A194>$A$8,"",OFFSET(InputPriceData!$E$15,CalculationsAndCharts!$A194+$A$11,IF($C$5,8,0),1,1))) -> 215.52 | G194: =IF(A194>$B$30,NA(),IF(A194>$A$8,"",OFFSET(InputPriceData!$F$15,CalculationsAndCharts!$A194+$A$11,IF($C$5,8,0),1,1))) -> 220.15 | H194: -5.17 | I194: 5.17 | J194: 13.55 | K194: 9.1675 | N194: =IF($A194>$N$30,NA(),10*H194) -> -51.7 | O194: =IF($A194>$N$30,NA(),IF(N194<-1,-1,IF(N194>1,1,N194))) -> -1 | P194: 0.03346358255 | AX194: 326025200
A195: 163 | B195: =IF(A195>$B$30,NA(),IF($A195>$A$8,"",OFFSET(InputPriceData!$B$15,$A195+$A$11,0,1,1))) -> 2020-03-20 | C195: =IF(A195>$B$30,NA(),IF($A195>$A$8,"",OFFSET(InputPriceData!$G$15,CalculationsAndCharts!$A195+$A$11,IF($C$5,8,0),1,1))) -> 347158800 | D195: =IF(A195>$B$30,NA(),IF(A195>$A$8,"",OFFSET(InputPriceData!$C$15,CalculationsAndCharts!$A195+$A$11,IF($C$5,8,0),1,1))) -> 239.48 | E195: =IF(A195>$B$30,NA(),IF(A195>$A$8,"",OFFSET(InputPriceData!$D$15,CalculationsAndCharts!$A195+$A$11,IF($C$5,8,0),1,1))) -> 241.4 | F195: =IF(A195>$B$30,NA(),IF(A195>$A$8,"",OFFSET(InputPriceData!$E$15,CalculationsAndCharts!$A195+$A$11,IF($C$5,8,0),1,1))) -> 225.63 | G195: =IF(A195>$B$30,NA(),IF(A195>$A$8,"",OFFSET(InputPriceData!$F$15,CalculationsAndCharts!$A195+$A$11,IF($C$5,8,0),1,1))) -> 225.93 | H195: -13.55 | I195: 13.55 | J195: 13.55 | K195: 8.25125 | N195: =IF($A195>$N$30,NA(),10*H195) -> -135.5 | O195: =IF($A195>$N$30,NA(),IF(N195<-1,-1,IF(N195>1,1,N195))) -> -1 | P195: 0.02860239382 | AX195: 347158800
A196: 164 | B196: =IF(A196>$B$30,NA(),IF($A196>$A$8,"",OFFSET(InputPriceData!$B$15,$A196+$A$11,0,1,1))) -> 2020-03-19 | C196: =IF(A196>$B$30,NA(),IF($A196>$A$8,"",OFFSET(InputPriceData!$G$15,CalculationsAndCharts!$A196+$A$11,IF($C$5,8,0),1,1))) -> 289322000 | D196: =IF(A196>$B$30,NA(),IF(A196>$A$8,"",OFFSET(InputPriceData!$C$15,CalculationsAndCharts!$A196+$A$11,IF($C$5,8,0),1,1))) -> 234.86 | E196: =IF(A196>$B$30,NA(),IF(A196>$A$8,"",OFFSET(InputPriceData!$D$15,CalculationsAndCharts!$A196+$A$11,IF($C$5,8,0),1,1))) -> 242.84 | F196: =IF(A196>$B$30,NA(),IF(A196>$A$8,"",OFFSET(InputPriceData!$E$15,CalculationsAndCharts!$A196+$A$11,IF($C$5,8,0),1,1))) -> 227.96 | G196: =IF(A196>$B$30,NA(),IF(A196>$A$8,"",OFFSET(InputPriceData!$F$15,CalculationsAndCharts!$A196+$A$11,IF($C$5,8,0),1,1))) -> 236.1 | H196: 1.24 | I196: 1.24 | J196: 7.62 | K196: 7.08625 | N196: =IF($A196>$N$30,NA(),10*H196) -> 12.4 | O196: =IF($A196>$N$30,NA(),IF(N196<-1,-1,IF(N196>1,1,N196))) -> 1 | P196: -0.03023906733 | AW196: 289322000
A197: 165 | B197: =IF(A197>$B$30,NA(),IF($A197>$A$8,"",OFFSET(InputPriceData!$B$15,$A197+$A$11,0,1,1))) -> 2020-03-18 | C197: =IF(A197>$B$30,NA(),IF($A197>$A$8,"",OFFSET(InputPriceData!$G$15,CalculationsAndCharts!$A197+$A$11,IF($C$5,8,0),1,1))) -> 327597100 | D197: =IF(A197>$B$30,NA(),IF(A197>$A$8,"",OFFSET(InputPriceData!$C$15,CalculationsAndCharts!$A197+$A$11,IF($C$5,8,0),1,1))) -> 231.92 | E197: =IF(A197>$B$30,NA(),IF(A197>$A$8,"",OFFSET(InputPriceData!$D$15,CalculationsAndCharts!$A197+$A$11,IF($C$5,8,0),1,1))) -> 243.82 | F197: =IF(A197>$B$30,NA(),IF(A197>$A$8,"",OFFSET(InputPriceData!$E$15,CalculationsAndCharts!$A197+$A$11,IF($C$5,8,0),1,1))) -> 223.84 | G197: =IF(A197>$B$30,NA(),IF(A197>$A$8,"",OFFSET(InputPriceData!$F$15,CalculationsAndCharts!$A197+$A$11,IF($C$5,8,0),1,1))) -> 235.6 | H197: 3.68 | I197: 3.68 | J197: 7.62 | K197: 6.96 | N197: =IF($A197>$N$30,NA(),10*H197) -> 36.8 | O197: =IF($A197>$N$30,NA(),IF(N197<-1,-1,IF(N197>1,1,N197))) -> 1 | P197: -0.1078236364 | AW197: 327597100
A198: 166 | B198: =IF(A198>$B$30,NA(),IF($A198>$A$8,"",OFFSET(InputPriceData!$B$15,$A198+$A$11,0,1,1))) -> 2020-03-17 | C198: =IF(A198>$B$30,NA(),IF($A198>$A$8,"",OFFSET(InputPriceData!$G$15,CalculationsAndCharts!$A198+$A$11,IF($C$5,8,0),1,1))) -> 262070500 | D198: =IF(A198>$B$30,NA(),IF(A198>$A$8,"",OFFSET(InputPriceData!$C$15,CalculationsAndCharts!$A198+$A$11,IF($C$5,8,0),1,1))) -> 240.55 | E198: =IF(A198>$B$30,NA(),IF(A198>$A$8,"",OFFSET(InputPriceData!$D$15,CalculationsAndCharts!$A198+$A$11,IF($C$5,8,0),1,1))) -> 251.47 | F198: =IF(A198>$B$30,NA(),IF(A198>$A$8,"",OFFSET(InputPriceData!$E$15,CalculationsAndCharts!$A198+$A$11,IF($C$5,8,0),1,1))) -> 232.72 | G198: =IF(A198>$B$30,NA(),IF(A198>$A$8,"",OFFSET(InputPriceData!$F$15,CalculationsAndCharts!$A198+$A$11,IF($C$5,8,0),1,1))) -> 248.17 | H198: 7.62 | I198: 7.62 | J198: 7.75 | K198: 7.14375 | N198: =IF($A198>$N$30,NA(),10*H198) -> 76.2 | O198: =IF($A198>$N$30,NA(),IF(N198<-1,-1,IF(N198>1,1,N198))) -> 1 | P198: -0.1558159292 | AW198: 262070500
A199: 167 | B199: =IF(A199>$B$30,NA(),IF($A199>$A$8,"",OFFSET(InputPriceData!$B$15,$A199+$A$11,0,1,1))) -> 2020-03-16 | C199: =IF(A199>$B$30,NA(),IF($A199>$A$8,"",OFFSET(InputPriceData!$G$15,CalculationsAndCharts!$A199+$A$11,IF($C$5,8,0),1,1))) -> 297240000 | D199: =IF(A199>$B$30,NA(),IF(A199>$A$8,"",OFFSET(InputPriceData!$C$15,CalculationsAndCharts!$A199+$A$11,IF($C$5,8,0),1,1))) -> 236.76 | E199: =IF(A199>$B$30,NA(),IF(A199>$A$8,"",OFFSET(InputPriceData!$D$15,CalculationsAndCharts!$A199+$A$11,IF($C$5,8,0),1,1))) -> 252.19 | F199: =IF(A199>$B$30,NA(),IF(A199>$A$8,"",OFFSET(InputPriceData!$E$15,CalculationsAndCharts!$A199+$A$11,IF($C$5,8,0),1,1))) -> 233.01 | G199: =IF(A199>$B$30,NA(),IF(A199>$A$8,"",OFFSET(InputPriceData!$F$15,CalculationsAndCharts!$A199+$A$11,IF($C$5,8,0),1,1))) -> 235.45 | H199: -1.31 | I199: 1.31 | J199: 7.75 | K199: 7.51 | N199: =IF($A199>$N$30,NA(),10*H199) -> -13.1 | O199: =IF($A199>$N$30,NA(),IF(N199<-1,-1,IF(N199>1,1,N199))) -> -1 | P199: -0.1615760079 | AX199: 297240000
A200: 168 | B200: =IF(A200>$B$30,NA(),IF($A200>$A$8,"",OFFSET(InputPriceData!$B$15,$A200+$A$11,0,1,1))) -> 2020-03-13 | C200: =IF(A200>$B$30,NA(),IF($A200>$A$8,"",OFFSET(InputPriceData!$G$15,CalculationsAndCharts!$A200+$A$11,IF($C$5,8,0),1,1))) -> 329566100 | D200: =IF(A200>$B$30,NA(),IF(A200>$A$8,"",OFFSET(InputPriceData!$C$15,CalculationsAndCharts!$A200+$A$11,IF($C$5,8,0),1,1))) -> 258.27 | E200: =IF(A200>$B$30,NA(),IF(A200>$A$8,"",OFFSET(InputPriceData!$D$15,CalculationsAndCharts!$A200+$A$11,IF($C$5,8,0),1,1))) -> 266.5 | F200: =IF(A200>$B$30,NA(),IF(A200>$A$8,"",OFFSET(InputPriceData!$E$15,CalculationsAndCharts!$A200+$A$11,IF($C$5,8,0),1,1))) -> 243.96 | G200: =IF(A200>$B$30,NA(),IF(A200>$A$8,"",OFFSET(InputPriceData!$F$15,CalculationsAndCharts!$A200+$A$11,IF($C$5,8,0),1,1))) -> 264.38 | H200: 6.11 | I200: 6.11 | J200: 7.75 | K200: 7.87625 | N200: =IF($A200>$N$30,NA(),10*H200) -> 61.1 | O200: =IF($A200>$N$30,NA(),IF(N200<-1,-1,IF(N200>1,1,N200))) -> 1 | P200: -0.1611052079 | AW200: 329566100
A201: 169 | B201: =IF(A201>$B$30,NA(),IF($A201>$A$8,"",OFFSET(InputPriceData!$B$15,$A201+$A$11,0,1,1))) -> 2020-03-12 | C201: =IF(A201>$B$30,NA(),IF($A201>$A$8,"",OFFSET(InputPriceData!$G$15,CalculationsAndCharts!$A201+$A$11,IF($C$5,8,0),1,1))) -> 392220700 | D201: =IF(A201>$B$30,NA(),IF(A201>$A$8,"",OFFSET(InputPriceData!$C$15,CalculationsAndCharts!$A201+$A$11,IF($C$5,8,0),1,1))) -> 251.31 | E201: =IF(A201>$B$30,NA(),IF(A201>$A$8,"",OFFSET(InputPriceData!$D$15,CalculationsAndCharts!$A201+$A$11,IF($C$5,8,0),1,1))) -> 261.77 | F201: =IF(A201>$B$30,NA(),IF(A201>$A$8,"",OFFSET(InputPriceData!$E$15,CalculationsAndCharts!$A201+$A$11,IF($C$5,8,0),1,1))) -> 243.14 | G201: =IF(A201>$B$30,NA(),IF(A201>$A$8,"",OFFSET(InputPriceData!$F$15,CalculationsAndCharts!$A201+$A$11,IF($C$5,8,0),1,1))) -> 243.56 | H201: -7.75 | I201: 7.75 | J201: 7.75 | K201: 8.2425 | N201: =IF($A201>$N$30,NA(),10*H201) -> -77.5 | O201: =IF($A201>$N$30,NA(),IF(N201<-1,-1,IF(N201>1,1,N201))) -> -1 | P201: -0.1522798845 | AX201: 392220700
A202: 170 | B202: =IF(A202>$B$30,NA(),IF($A202>$A$8,"",OFFSET(InputPriceData!$B$15,$A202+$A$11,0,1,1))) -> 2020-03-11 | C202: =IF(A202>$B$30,NA(),IF($A202>$A$8,"",OFFSET(InputPriceData!$G$15,CalculationsAndCharts!$A202+$A$11,IF($C$5,8,0),1,1))) -> 255316300 | D202: =IF(A202>$B$30,NA(),IF(A202>$A$8,"",OFFSET(InputPriceData!$C$15,CalculationsAndCharts!$A202+$A$11,IF($C$5,8,0),1,1))) -> 275.55 | E202: =IF(A202>$B$30,NA(),IF(A202>$A$8,"",OFFSET(InputPriceData!$D$15,CalculationsAndCharts!$A202+$A$11,IF($C$5,8,0),1,1))) -> 276.77 | F202: =IF(A202>$B$30,NA(),IF(A202>$A$8,"",OFFSET(InputPriceData!$E$15,CalculationsAndCharts!$A202+$A$11,IF($C$5,8,0),1,1))) -> 265.91 | G202: =IF(A202>$B$30,NA(),IF(A202>$A$8,"",OFFSET(InputPriceData!$F$15,CalculationsAndCharts!$A202+$A$11,IF($C$5,8,0),1,1))) -> 269.33 | H202: -6.22 | I202: 6.22 | J202: 6.22 | K202: 8.60875 | N202: =IF($A202>$N$30,NA(),10*H202) -> -62.2 | O202: =IF($A202>$N$30,NA(),IF(N202<-1,-1,IF(N202>1,1,N202))) -> -1 | P202: -0.1326692705 | AX202: 255316300
A203: 171 | B203: =IF(A203>$B$30,NA(),IF($A203>$A$8,"",OFFSET(InputPriceData!$B$15,$A203+$A$11,0,1,1))) -> 2020-03-10 | C203: =IF(A203>$B$30,NA(),IF($A203>$A$8,"",OFFSET(InputPriceData!$G$15,CalculationsAndCharts!$A203+$A$11,IF($C$5,8,0),1,1))) -> 276444100 | D203: =IF(A203>$B$30,NA(),IF(A203>$A$8,"",OFFSET(InputPriceData!$C$15,CalculationsAndCharts!$A203+$A$11,IF($C$5,8,0),1,1))) -> 279.42 | E203: =IF(A203>$B$30,NA(),IF(A203>$A$8,"",OFFSET(InputPriceData!$D$15,CalculationsAndCharts!$A203+$A$11,IF($C$5,8,0),1,1))) -> 283.23 | F203: =IF(A203>$B$30,NA(),IF(A203>$A$8,"",OFFSET(InputPriceData!$E$15,CalculationsAndCharts!$A203+$A$11,IF($C$5,8,0),1,1))) -> 268.49 | G203: =IF(A203>$B$30,NA(),IF(A203>$A$8,"",OFFSET(InputPriceData!$F$15,CalculationsAndCharts!$A203+$A$11,IF($C$5,8,0),1,1))) -> 283.13 | H203: 3.71 | I203: 3.71 | J203: 4.23 | K203: 9.21625 | N203: =IF($A203>$N$30,NA(),10*H203) -> 37.1 | O203: =IF($A203>$N$30,NA(),IF(N203<-1,-1,IF(N203>1,1,N203))) -> 1 | P203: -0.1504035612 | AW203: 276444100
... 1079 more rows

Sheet Follow
A1: Stocks and Indexes I wish to follow
A3: To ease following a stock, enter a Yahoo Finance acceptable symbol in column "A" anywhere below cell "A9".
A4: Thereafter you may doubleclick the cell containing a symbol of interest to initiate data retrieval and charting for that symbol.
A7: Symbol
A8: To | B8: Description | C8: Last Trade as of most recent check
A9: Follow | C9: Date | D9: Time | E9: Open | F9: High | G9: Low | H9: Close | I9: Volume | J9: Change | K9: Retrieved @
A10: A | B10: Agilent Technologies, Inc. (A) -NYSE (Daily) | C10: 2020-03-09 | D10: 16:04:00 | E10: 72.589996 | F10: 74.190002 | G10: 70.169998 | H10: 70.75 | I10: 4591093 | J10: -7.809998 | K10: 2020-03-09T16:59:21
A11: AA | B11: Alcoa Corporation (AA) -NYSE (Daily) | C11: 2020-01-31 | D11: 16:04:00 | E11: 14.01 | F11: 14.24 | G11: 13.62 | H11: 13.95 | I11: 9931500 | J11: -0.34 | K11: 2020-02-02T15:07:13
A12: AAL | B12: American Airlines Group Inc. (AAL) -NasdaqGS (Daily) | C12: 2020-03-09 | D12: 16:00:00 | E12: 14.87 | F12: 15.79 | G12: 14.46 | H12: 14.75 | I12: 41078614 | J12: -1.22 | K12: 2020-03-09T17:00:15
A13: AAPL | B13: Apple Inc. (AAPL) -NasdaqGS (Daily) | C13: 2020-06-17 | D13: 16:00:00 | E13: 355.149994 | F13: 355.369995 | G13: 351.089996 | H13: 351.589996 | I13: 27604481 | J13: -0.489991 | K13: 2020-06-17T17:45:34
A14: ADM | B14: Archer-Daniels-Midland Company (ADM) -NYSE (Weekly) | C14: 2018-07-13 | D14: 16:00:00 | E14: 47.5 | F14: 47.84 | G14: 47.169998 | H14: 47.57 | I14: 2402809 | J14: 0
A15: ADBE | B15: Adobe Inc. (ADBE) -NasdaqGS (Daily) | C15: 2020-06-17 | D15: 16:00:00 | E15: 414 | F15: 417.425995 | G15: 411.429993 | H15: 413.48999 | I15: 2026063 | J15: 1.819977 | K15: 2020-06-17T17:42:59
A16: ALGN | B16: Align Technology, Inc. (ALGN) -NasdaqGS (Daily) | C16: 2020-01-30 | D16: 16:00:00 | E16: 248.740005 | F16: 264.450012 | G16: 248.350006 | H16: 262.890015 | I16: 1833160 | J16: 1.290009
A17: AMC | B17: AMC Entertainment Holdings, Inc. (AMC) -NYSE (Weekly) | C17: 2018-07-13 | D17: 16:02:00 | E17: 17.049999 | F17: 17.15 | G17: 16.525 | H17: 17.049999 | I17: 1442776 | J17: 0
A18: AMD | B18: Advanced Micro Devices, Inc. (AMD) -NasdaqGS (Daily) | C18: 2020-08-19 | D18: 12:40:00 | E18: 81.775703 | F18: 81.849998 | G18: 80.449997 | H18: 80.760002 | I18: 18434143 | J18: -0.900002 | K18: 2020-08-19T12:40:49
A19: BSX | B19: Boston Scientific Corporation C (BSX) -NYQ (Daily) | C19: 2015-03-13 | D19: 16:01:00 | E19: 16.84 | F19: 16.91 | G19: 16.44 | H19: 16.61 | I19: 7262460 | J19: -0.28
A20: CASY | B20: Casey's General Stores, Inc. (CASY) -NasdaqGS (Daily) | C20: 2019-04-10 | D20: 16:00:00 | E20: 128.979996 | F20: 130.330002 | G20: 128.779999 | H20: 130.179993 | I20: 351300 | J20: 1.489991
A21: CAT | B21: Caterpillar Inc. (CAT) -NYSE (Daily) | C21: 2020-03-13 | D21: 11:48:00 | E21: 98.389999 | F21: 99.910004 | G21: 90.150101 | H21: 90.269997 | I21: 3568294 | J21: -1.990005 | K21: 2020-03-13T11:48:53
A22: CSCO | B22: Cisco Systems, In (CSCO) -NasdaqNM (Daily) | C22: 2015-02-19 | D22: 16:00:00 | E22: 29.32 | F22: 29.39 | G22: 29.13 | H22: 29.31 | I22: 21469012 | J22: -0.18
A23: CVS | B23: CVS Health Corporation (CVS) -NYSE (Daily) | C23: 2020-03-09 | D23: 16:07:00 | E23: 59.75 | F23: 63 | G23: 59.599998 | H23: 61.299999 | I23: 13065424 | J23: -2.850003 | K23: 2020-03-09T17:51:54
A24: DIS | B24: The Walt Disney Company (DIS) -NYSE (Daily) | C24: 2020-03-09 | D24: 16:07:00 | E24: 108.690002 | F24: 110.43 | G24: 104.279999 | H24: 104.349998 | I24: 26101127 | J24: -10.919999 | K24: 2020-03-09T16:59:51
A25: F | B25: Ford Motor Company (F) -NYSE (Daily) | C25: 2020-01-31 | D25: 16:03:00 | E25: 8.78 | F25: 8.84 | G25: 8.74 | H25: 8.82 | I25: 59781000 | J25: -0.02 | K25: 2020-02-02T15:09:03
A26: FAS | B26: Direxion Daily Financial Bull 3X ETF (FAS) -NYSEArca (Daily) | C26: 2017-10-13 | D26: 16:00:00 | E26: 58.099998 | F26: 58.939999 | G26: 57.43 | H26: 58.450001 | I26: 1709300 | J26: 0.07
A27: FB | B27: Facebook, Inc. (FB) -NasdaqGS (Daily) | C27: 2020-02-14 | D27: 16:00:00 | E27: 214 | F27: 214.929993 | G27: 212.649994 | H27: 214.179993 | I27: 10727400 | J27: 1.039994 | K27: 2020-02-15T17:19:34
A28: GSK | B28: GlaxoSmithKline plc (GSK) -NYSE (Daily) | C28: 2021-01-15 | D28: 16:00:00 | E28: 38.41 | F28: 38.66 | G28: 38.209999 | H28: 38.470001 | I28: 3100400 | J28: 0.310001 | K28: 2021-01-17T18:07:58
A29: GDX | B29: VanEck Vectors Gold Miners ETF (GDX) -NYSEArca (Daily) | C29: 2020-01-31 | D29: 16:00:00 | E29: 28.799999 | F29: 29.24 | G29: 28.76 | H29: 28.99 | I29: 41946000 | J29: 0.26 | K29: 2020-02-02T15:11:17
A30: GOOG | B30: Alphabet Inc. (GOOG) -NasdaqGS (Daily) | C30: 2020-02-14 | D30: 16:00:00 | E30: 1515.599976 | F30: 1520.73999 | G30: 1507.339966 | H30: 1520.73999 | I30: 1196700 | J30: 6.079956 | K30: 2020-02-15T17:20:39
A31: HAL | B31: Halliburton Company (HAL) -NYSE (Daily) | C31: 2020-09-17 | D31: 11:11:00 | E31: 14.73 | F31: 14.945 | G31: 14.57 | H31: 14.91 | I31: 4265279 | J31: -0.16 | K31: 2020-09-17T11:11:52
A32: HD | B32: The Home Depot, Inc. (HD) -NYSE (Daily) | C32: 2020-03-13 | D32: 11:54:00 | E32: 200.449997 | F32: 201.179993 | G32: 192.270096 | H32: 193.449997 | I32: 3274582 | J32: 2.860001 | K32: 2020-03-13T11:54:29
A33: HSY | B33: The Hershey Company (HSY) -NYSE (Daily) | C33: 2021-01-15 | D33: 16:00:00 | E33: 147.089996 | F33: 149.490005 | G33: 146.880005 | H33: 148.460007 | I33: 1193700 | J33: 1.040009 | K33: 2021-01-17T18:06:10
A34: HTLD | B34: Heartland Express, Inc. (HTLD) -NasdaqGS (Daily) | C34: 2020-03-09 | D34: 16:00:00 | E34: 17.33 | F34: 17.690001 | G34: 16.82 | H34: 16.879999 | I34: 284762 | J34: -1.280001 | K34: 2020-03-09T17:00:56
A35: IDEX | B35: Ideanomics, Inc. (IDEX) -NasdaqGS (Daily) | C35: 2021-02-19 | D35: 10:11:00 | E35: 3.99 | F35: 4.15 | G35: 3.88 | H35: 3.92 | I35: 8623006 | J35: 0.19 | K35: 2021-02-19T10:11:40
A36: IBM | B36: International Business Machines Corporation (IBM) -NYSE (Daily) | C36: 2021-02-09 | D36: 16:00:00 | E36: 121.900002 | F36: 122.565002 | G36: 121.050003 | H36: 122.099998 | I36: 4173266 | J36: -1.510003 | K36: 2021-02-09T17:01:49
A37: INTC | B37: Intel Corporation (INTC) -NasdaqGS (Daily) | C37: 2020-02-14 | D37: 16:00:00 | E37: 67.519997 | F37: 67.860001 | G37: 66.82 | H37: 67.269997 | I37: 13402800 | J37: -0.170005 | K37: 2020-02-15T17:21:41
A38: JAH | B38: Jarden Corporation Common Stock (JAH) -NYQ (Daily) | C38: 2016-01-08 | D38: 16:02:00 | E38: 53.82 | F38: 53.88 | G38: 52.65 | H38: 52.73 | I38: 4519480 | J38: -0.81
A39: JNJ | B39: Johnson & Johnson (JNJ) -NYSE (Daily) | C39: 2019-08-14 | D39: 10:33:00 | E39: 132.529999 | F39: 132.539993 | G39: 131.419998 | H39: 131.759995 | I39: 870520 | J39: -0.169998
A40: KO | B40: The Coca-Cola Company (KO) -NYSE (Daily) | C40: 2020-03-09 | D40: 16:07:00 | E40: 52.049999 | F40: 53.580002 | G40: 51.474998 | H40: 51.860001 | I40: 27771279 | J40: -3.399997 | K40: 2020-03-09T17:05:43
A41: LOW | B41: Lowe's Companies, Inc. (LOW) -NYSE (Daily) | C41: 2020-03-09 | D41: 16:03:00 | E41: 97.82 | F41: 99.82 | G41: 93.150101 | H41: 94.220001 | I41: 8167579 | J41: -11.089997 | K41: 2020-03-09T16:57:19
A42: LMT | B42: Lockheed Martin Corporation (LMT) -NYSE (Daily) | C42: 2021-02-09 | D42: 16:04:00 | E42: 338.540009 | F42: 344.48999 | G42: 336.570007 | H42: 342.339996 | I42: 1545066 | J42: 4.5 | K42: 2021-02-09T16:56:05
A43: MCD | B43: McDonald's Corporation (MCD) -NYSE (Daily) | C43: 2020-03-09 | D43: 16:01:00 | E43: 187.669998 | F43: 194.470001 | G43: 184.100006 | H43: 186.860001 | I43: 7601343 | J43: -12 | K43: 2020-03-09T16:58:16
A44: MDT | B44: Medtronic plc (MDT) -NYSE (Daily) | C44: 2020-03-09 | D44: 16:07:00 | E44: 94.019997 | F44: 95.470001 | G44: 91.709999 | H44: 92.400002 | I44: 9000931 | J44: -6.659996 | K44: 2020-03-09T17:48:45
A45: MGM | B45: MGM Resorts International (MGM) -NYSE (Daily) | C45: 2020-03-09 | D45: 16:02:00 | E45: 18.6 | F45: 19.58 | G45: 17.530001 | H45: 17.879999 | I45: 26050818 | J45: -2.51 | K45: 2020-03-09T17:13:53
A46: MO | B46: Altria Group, Inc. (MO) -NYSE (Daily) | C46: 2020-01-31 | D46: 16:05:00 | E46: 48.25 | F46: 48.799999 | G46: 47.240002 | H46: 47.529999 | I46: 11790800 | J46: -0.470001 | K46: 2020-02-02T15:20:55
A47: MSFT | B47: Microsoft Corporation (MSFT) -NasdaqGS (Daily) | C47: 2020-03-09 | D47: 16:00:00 | E47: 151 | F47: 157.75 | G47: 150 | H47: 150.619995 | I47: 69167627 | J47: -10.950012 | K47: 2020-03-09T17:06:41
A48: NFLX | B48: Netflix, Inc. (NFLX) -NasdaqGS (Daily) | C48: 2020-03-09 | D48: 16:00:00 | E48: 343.859985 | F48: 357.470001 | G48: 341.720886 | H48: 346.48999 | I48: 6746188 | J48: -22.480011 | K48: 2020-03-09T17:23:37
A49: NUGT | B49: Direxion Daily Gold Miners Index Bull 3X Shares (NUGT) -NYSEArca (Daily) | C49: 2020-01-31 | D49: 16:00:00 | E49: 32.439999 | F49: 33.830002 | G49: 32.240002 | H49: 33.02 | I49: 11325200 | J49: 0.84 | K49: 2020-02-02T15:21:51
A50: NVS | B50: Novartis AG (NVS) -NYSE (Daily) | C50: 2020-03-06 | D50: 16:02:00 | E50: 84.330002 | F50: 85.830002 | G50: 83.970001 | H50: 85.720001 | I50: 5624700 | J50: -0.089997 | K50: 2020-03-08T16:56:35
A51: NVDA | B51: NVIDIA Corporation (NVDA) -NasdaqGS (Daily) | C51: 2020-12-14 | D51: 16:00:00 | E51: 523.515015 | F51: 535.549988 | G51: 523.099976 | H51: 532.349976 | I51: 6580666 | J51: 11.819947 | K51: 2020-12-14T18:31:17
A52: PRU | B52: Prudential Financial, Inc. (PRU) -NYSE (Daily) | C52: 2020-03-09 | D52: 16:02:00 | E52: 63.75 | F52: 65.830002 | G52: 57.375 | H52: 58.240002 | I52: 7614493 | J52: -11.569996 | K52: 2020-03-09T17:11:43
A53: PSEC | B53: Prospect Capital Corporation (PSEC) -NasdaqGS (Daily) | C53: 2020-02-14 | D53: 16:00:00 | E53: 6.53 | F53: 6.56 | G53: 6.51 | H53: 6.52 | I53: 1235500 | J53: -0.04 | K53: 2020-02-15T14:43:16
A54: RPM | B54: RPM International Inc. (RPM) -NYSE (Daily) | C54: 2020-03-09 | D54: 16:02:00 | E54: 64.470001 | F54: 66.730003 | G54: 63.5 | H54: 65.290001 | I54: 1115882 | J54: -2.919998 | K54: 2020-03-09T17:10:08
A55: RSP | B55: Invesco S&P 500 Equal Weight ETF (RSP) -NYSEArca (Daily) | C55: 2020-01-31 | D55: 16:00:00 | E55: 115.279999 | F55: 115.32 | G55: 113.230003 | H55: 113.540001 | I55: 747600 | J55: -2.309997 | K55: 2020-02-02T15:28:52
A56: SPR | B56: Spirit AeroSystems Holdings, Inc. (SPR) -NYSE (Daily) | C56: 2020-03-09 | D56: 16:06:00 | E56: 43.700001 | F56: 43.880001 | G56: 41.5 | H56: 42.139999 | I56: 2091368 | J56: -5.23 | K56: 2020-03-09T17:09:37
A57: SQ | B57: Square, Inc. (SQ) -NYSE (Daily) | C57: 2020-10-02 | D57: 16:00:00 | E57: 164.050003 | F57: 171.240005 | G57: 163.800995 | H57: 169.610001 | I57: 11150500 | J57: 1.119996 | K57: 2020-10-04T20:00:52
A58: SWKS | B58: Skyworks Solutions, Inc. (SWKS) -NasdaqGS (Daily) | C58: 2020-01-31 | D58: 16:00:00 | E58: 115.5 | F58: 115.739998 | G58: 112.720001 | H58: 113.150002 | I58: 2444600 | J58: -3.080001 | K58: 2020-02-02T15:26:46
A59: TOL | B59: Toll Brothers, Inc. (TOL) -NYSE (Daily) | C59: 2020-03-09 | D59: 16:07:00 | E59: 34.759998 | F59: 35.314999 | G59: 32.060001 | H59: 34.110001 | I59: 3127968 | J59: -2.86 | K59: 2020-03-09T17:12:09
A60: TSLA | B60: Tesla, Inc. (TSLA) -NasdaqGS (Daily) | C60: 2020-03-13 | D60: 12:08:00 | E60: 595 | F60: 607.570007 | G60: 502.01001 | H60: 510 | I60: 12224537 | J60: -50.549988 | K60: 2020-03-13T12:08:39
A61: TXN | B61: Texas Instruments Incorporated (TXN) -NasdaqGS (Daily) | C61: 2020-06-19 | D61: 11:30:00 | E61: 128.059998 | F61: 128.179993 | G61: 126.07 | H61: 126.370003 | I61: 2078988 | J61: 0.39 | K61: 2020-06-19T11:31:00
A62: UNP | B62: Union Pacific Corporation (UNP) -NYSE (Daily) | C62: 2020-03-09 | D62: 16:07:00 | E62: 145.199997 | F62: 145.580002 | G62: 133.179993 | H62: 135.839996 | I62: 9380024 | J62: -20.25 | K62: 2020-03-09T17:11:21
A63: VZ | B63: Verizon Communications Inc. (VZ) -NYSE (Daily) | C63: 2019-04-10 | D63: 16:00:00 | E63: 58.400002 | F63: 58.700001 | G63: 58.360001 | H63: 58.610001 | I63: 8022000 | J63: 0.209999
A64: WBA | B64: Walgreens Boots Alliance, Inc. (WBA) -NasdaqGS (Daily) | C64: 2020-01-31 | D64: 16:00:00 | E64: 51.709999 | F64: 51.919998 | G64: 50.66 | H64: 50.849998 | I64: 6532300 | J64: -1.100003 | K64: 2020-02-02T15:28:06
A65: WMT | B65: Walmart Inc. (WMT) -NYSE (Daily) | C65: 2020-03-09 | D65: 16:01:00 | E65: 113.82 | F65: 120.629997 | G65: 112.730003 | H65: 117.160004 | I65: 19567750 | J65: -0.069999 | K65: 2020-03-09T17:10:39
A67: ^AEX | B67: AEX-INDEX (^AEX) -Amsterdam (Daily) | C67: 2020-03-09 | D67: 18:05:00 | E67: 506.950012 | F67: 506.950012 | G67: 485.730011 | H67: 490.660004 | I67: 0 | J67: -40.629974 | K67: 2020-03-09T17:41:58
A68: ^AORD | B68: ALL ORDINARIES (^AORD) -ASX (Daily) | C68: 2020-03-09 | D68: 16:17:00 | E68: 6472.399902 | F68: 6287.299805 | G68: 5822.399902 | H68: 5822.399902 | I68: 0 | J68: -465.100098 | K68: 2020-03-09T17:45:59
A69: ^DJI | B69: Dow Jones Industrial Average (^DJI) -DJI (Daily) | C69: 2021-01-15 | D69: 17:18:00 | E69: 30926.76953 | F69: 30941.98047 | G69: 30612.66992 | H69: 30814.25977 | I69: 433000000 | J69: -177.259765 | K69: 2021-01-18T09:45:18
A70: ^FTSE | B70: FTSE 100 (^FTSE) -FTSE Index (Daily) | C70: 2020-03-09 | D70: 16:45:00 | E70: 6462.549805 | F70: 6462.549805 | G70: 5891.560059 | H70: 5965.77002 | I70: 0 | J70: -496.830078 | K70: 2020-03-09T17:43:57
A71: ^GSPC | B71: S&P 500 (^GSPC) -SNP (Daily) | C71: 2021-01-15 | D71: 17:18:00 | E71: 3788.72998 | F71: 3788.72998 | G71: 3749.620117 | H71: 3768.25 | I71: 5353060000 | J71: -27.290039 | K71: 2021-01-17T18:23:17
A72: ^HSI | B72: HANG SENG INDEX (^HSI) -HKSE (Daily) | C72: 2020-03-09 | D72: 16:08:00 | E72: 25134.01953 | F72: 25321.2793 | G72: 24948.38086 | H72: 25040.46094 | I72: 0 | J72: -1106.208984 | K72: 2020-03-09T17:39:06
A73: ^MID | B73: S&P MID CAP 400 INDEX (^MID) -NYSE (Daily) | C73: 2020-02-14 | D73: 16:06:00 | E73: 2099.459961 | F73: 2100.51001 | G73: 2089.610107 | H73: 2096.610107 | I73: 0 | J73: -0.679932 | K73: 2020-02-14T21:04:41
A74: ^NDX | B74: NASDAQ 100 (^NDX) -Nasdaq GIDS (Daily) | C74: 2020-02-14 | D74: 16:51:00 | E74: 9613.881836 | F74: 9634.750977 | G74: 9583.083008 | H74: 9623.580078 | I74: 469910279 | J74: 27.879883 | K74: 2020-02-14T16:52:02
A75: ^NYA | B75: NYSE COMPOSITE (DJ) (^NYA) -NYSE (Weekly) | C75: 2021-01-11 | D75: 16:10:00 | E75: 14828.03027 | F75: 15129.12012 | G75: 14791.65039 | H75: 14894.16992 | I75: 24551330000 | J75: -72.660156 | K75: 2021-01-18T09:10:33
A76: ^OEX | B76: S&P 100 INDEX (^OEX) -Chicago Options (Daily) | C76: 2019-09-13 | D76: 16:56:00 | E76: 1332.27002 | F76: 1334.420044 | G76: 1328.73999 | H76: 1330.969971 | I76: 3520060000 | J76: -1.010009
A77: ^RUT | B77: Russell 2000 (^RUT) -Chicago Options (Daily) | C77: 2021-01-15 | D77: 16:00:00 | E77: 2154.689941 | F77: 2154.689941 | G77: 2102.530029 | H77: 2123.199951 | I77: 53530600 | J77: -32.150147 | K77: 2021-01-18T08:41:42
A78: ^SSEC | B78: SSE Composite Index (^SSEC) -Shanghai (Daily) | C78: 2020-03-09 | D78: 15:00:00 | E78: 3039.939453 | F78: 2989.205078 | G78: 2940.713867 | H78: 2943.290771 | I78: 2801367936 | J78: -388.231202 | K78: 2020-03-09T17:38:09
A79: ^VIX | B79: CBOE Volatility Index (^VIX) -Chicago Options (Daily) | C79: 2020-03-09 | D79: 16:14:00 | E79: 41.939999 | F79: 62.119999 | G79: 41.939999 | H79: 54.459999 | I79: 0 | J79: 12.52 | K79: 2020-03-09T17:38:36
A80: IWM | B80: iShares Russell 2000 ETF (IWM) -NYSEArca (Daily) | C80: 2021-02-19 | D80: 09:56:00 | E80: 222.460007 | F80: 223.080002 | G80: 222.169998 | H80: 222.970001 | I80: 3614630 | J80: 2.380005 | K80: 2021-02-19T09:56:07
A81: QQQ | B81: Invesco QQQ Trust (QQQ) -NasdaqGM (Daily) | C81: 2020-08-27 | D81: 15:01:00 | E81: 293.079987 | F81: 293.851013 | G81: 288.704987 | H81: 291.994995 | I81: 41822663 | J81: 0.035004 | K81: 2020-08-27T15:02:03
A82: XLE | B82: Energy Select Sector SPDR Fund (XLE) -NYSEArca (Daily) | C82: 2020-07-10 | D82: 16:00:00 | E82: 34.240002 | F82: 35.580002 | G82: 34.240002 | H82: 35.540001 | I82: 25223900 | J82: 1.100002 | K82: 2020-07-11T16:34:13
A83: SPY | B83: SPDR S&P 500 ETF Trust (SPY) -NYSEArca (Daily) | C83: 2021-03-12 | D83: 16:00:00 | E83: 392.070007 | F83: 394.209991 | G83: 391.200012 | H83: 394.059998 | I83: 64608100 | J83: 0.529999 | K83: 2021-03-14T16:16:07
A85: ACAD | B85: ACADIA Pharmaceut (ACAD) -NasdaqNM (Daily) | C85: 2014-07-21 | D85: 16:00:00 | E85: 20.13 | F85: 20.55 | G85: 19.8101 | H85: 20.31 | I85: 691016
A86: CLDX | B86: Celldex Therapeut (CLDX) -NasdaqNM (Daily) | C86: 2015-02-02 | D86: 16:00:00 | E86: 21.47 | F86: 21.69 | G86: 20.11 | H86: 21.02 | I86: 1570418 | J86: -0.4
A87: ICPT | B87: Intercept Pharmac (ICPT) -NasdaqNM (Daily) | C87: 2014-07-21 | D87: 16:00:00 | E87: 215.97 | F87: 218.43 | G87: 213.05 | H87: 218.14 | I87: 191276
A88: INO | B88: Inovio Pharmaceut (INO) -AMEX (Daily) | C88: 2014-07-21 | D88: 16:00:00 | E88: 10.3 | F88: 11.08 | G88: 10.1 | H88: 11.01 | I88: 1800796
A89: JCP | B89: J. C. Penney Company, Inc. (JCP) -NYSE (Daily) | C89: 2017-12-07 | D89: 16:01:00 | E89: 3.34 | F89: 3.4 | G89: 3.25 | H89: 3.27 | I89: 14485464 | J89: -0.07
A90: LCI | B90: Lannett Co Inc Co (LCI) -NYSE (Daily) | C90: 2014-07-21 | D90: 16:02:00 | E90: 38.09 | F90: 38.803 | G90: 36.5101 | H90: 37.76 | I90: 611367
A91: NPSP | B91: NPS Pharmaceutica (NPSP) -NasdaqNM (Daily) | C91: 2014-07-21 | D91: 15:59:00 | E91: 28.75 | F91: 29.43 | G91: 28.31 | H91: 29.29 | I91: 1126758
A92: PBYI | B92: Puma Biotechnolog (PBYI) -NYSE (Daily) | C92: 2014-07-21 | D92: 16:02:00 | E92: 58.27 | F92: 59.46 | G92: 57.39 | H92: 58.98 | I92: 348030
